Workbook

Sheet Documentation

Sheet Calcs for PsychChart SI
D1: Relative Humidity Curves
A2: Pb (psia) | B2: 101325 | D2: 0.1 | F2: =D2+0.1 -> 0.2 | H2: =F2+0.1 -> 0.3 | J2: =H2+0.1 -> 0.4 | L2: =J2+0.1 -> 0.5 | N2: 0.6 | P2: 0.7 | R2: 0.8 | T2: 0.9 | V2: 1
B3: Chart Limits | D3: =IF(E$21,NA(),D$21) -> 5 | E3: =IF(E$21,NA(),MIN(Wmax,psych(Pb,D3,D$2,3,4,1))) -> 0.0005360344753 | F3: =IF(G$21,NA(),F$21) -> 5 | G3: =IF(G$21,NA(),MIN(Wmax,psych(Pb,F3,F$2,3,4,1))) -> 0.001072993678 | H3: =IF(I$21,NA(),H$21) -> 5 | I3: =IF(I$21,NA(),MIN(Wmax,psych(Pb,H3,H$2,3,4,1))) -> 0.001610880002 | J3: =IF(K$21,NA(),J$21) -> 5 | K3: =IF(K$21,NA(),MIN(Wmax,psych(Pb,J3,J$2,3,4,1))) -> 0.002149695851 | L3: =IF(M$21,NA(),L$21) -> 5 | M3: =IF(M$21,NA(),MIN(Wmax,psych(Pb,L3,L$2,3,4,1))) -> 0.002689443636 | N3: =IF(O$21,NA(),N$21) -> 5 | O3: =IF(O$21,NA(),MIN(Wmax,psych(Pb,N3,N$2,3,4,1))) -> 0.003230125779 | P3: =IF(Q$21,NA(),P$21) -> 5 | Q3: =IF(Q$21,NA(),MIN(Wmax,psych(Pb,P3,P$2,3,4,1))) -> 0.003771744706 | R3: =IF(S$21,NA(),R$21) -> 5 | S3: =IF(S$21,NA(),MIN(Wmax,psych(Pb,R3,R$2,3,4,1))) -> 0.004314302854 | T3: =IF(U$21,NA(),T$21) -> 5 | U3: =IF(U$21,NA(),MIN(Wmax,psych(Pb,T3,T$2,3,4,1))) -> 0.00485780267 | V3: =IF(W$21,NA(),V$21) -> 5 | W3: =IF(W$21,NA(),MIN(Wmax,psych(Pb,V3,V$2,3,4,1))) -> 0.005402246605
B4: Tdb | C4: W | D4: =IF(E$21,NA(),D3+(D$19-D$3)/16) -> 7.8125 | E4: =IF(E$21,NA(),MIN(Wmax,psych(Pb,D4,D$2,3,4,1))) -> 0.0006508807197 | F4: =IF(G$21,NA(),F3+(F$19-F$3)/16) -> 7.8125 | G4: =IF(G$21,NA(),MIN(Wmax,psych(Pb,F4,F$2,3,4,1))) -> 0.001303125115 | H4: =IF(I$21,NA(),H3+(H$19-H$3)/16) -> 7.8125 | I4: =IF(I$21,NA(),MIN(Wmax,psych(Pb,H4,H$2,3,4,1))) -> 0.001956737476 | J4: =IF(K$21,NA(),J3+(J$19-J$3)/16) -> 7.8125 | K4: =IF(K$21,NA(),MIN(Wmax,psych(Pb,J4,J$2,3,4,1))) -> 0.002611722111 | L4: =IF(M$21,NA(),L3+(L$19-L$3)/16) -> 7.8125 | M4: =IF(M$21,NA(),MIN(Wmax,psych(Pb,L4,L$2,3,4,1))) -> 0.003268083347 | N4: =IF(O$21,NA(),N3+(N$19-N$3)/16) -> 7.8125 | O4: =IF(O$21,NA(),MIN(Wmax,psych(Pb,N4,N$2,3,4,1))) -> 0.003925825527 | P4: =IF(Q$21,NA(),P3+(P$19-P$3)/16) -> 7.8125 | Q4: =IF(Q$21,NA(),MIN(Wmax,psych(Pb,P4,P$2,3,4,1))) -> 0.004584953014 | R4: =IF(S$21,NA(),R3+(R$19-R$3)/16) -> 7.8125 | S4: =IF(S$21,NA(),MIN(Wmax,psych(Pb,R4,R$2,3,4,1))) -> 0.005245470189 | T4: =IF(U$21,NA(),T3+(T$19-T$3)/16) -> 7.8125 | U4: =IF(U$21,NA(),MIN(Wmax,psych(Pb,T4,T$2,3,4,1))) -> 0.005907381453 | V4: =IF(W$21,NA(),V3+(V$19-V$3)/16) -> 7.8125 | W4: =IF(W$21,NA(),MIN(Wmax,psych(Pb,V4,V$2,3,4,1))) -> 0.006570691222
A5: Min | B5: 5 | C5: 0 | D5: =IF(E$21,NA(),D4+(D$19-D$3)/16) -> 10.625 | E5: =IF(E$21,NA(),MIN(Wmax,psych(Pb,D5,D$2,3,4,1))) -> 0.0007869484296 | F5: =IF(G$21,NA(),F4+(F$19-F$3)/16) -> 10.625 | G5: =IF(G$21,NA(),MIN(Wmax,psych(Pb,F5,F$2,3,4,1))) -> 0.001575890725 | H5: =IF(I$21,NA(),H4+(H$19-H$3)/16) -> 10.625 | I5: =IF(I$21,NA(),MIN(Wmax,psych(Pb,H5,H$2,3,4,1))) -> 0.002366834474 | J5: =IF(K$21,NA(),J4+(J$19-J$3)/16) -> 10.625 | K5: =IF(K$21,NA(),MIN(Wmax,psych(Pb,J5,J$2,3,4,1))) -> 0.003159787302 | L5: =IF(M$21,NA(),L4+(L$19-L$3)/16) -> 10.625 | M5: =IF(M$21,NA(),MIN(Wmax,psych(Pb,L5,L$2,3,4,1))) -> 0.003954756873 | N5: =IF(O$21,NA(),N4+(N$19-N$3)/16) -> 10.625 | O5: =IF(O$21,NA(),MIN(Wmax,psych(Pb,N5,N$2,3,4,1))) -> 0.004751750892 | P5: =IF(Q$21,NA(),P4+(P$19-P$3)/16) -> 10.625 | Q5: =IF(Q$21,NA(),MIN(Wmax,psych(Pb,P5,P$2,3,4,1))) -> 0.005550777102 | R5: =IF(S$21,NA(),R4+(R$19-R$3)/16) -> 10.625 | S5: =IF(S$21,NA(),MIN(Wmax,psych(Pb,R5,R$2,3,4,1))) -> 0.006351843284 | T5: =IF(U$21,NA(),T4+(T$19-T$3)/16) -> 10.625 | U5: =IF(U$21,NA(),MIN(Wmax,psych(Pb,T5,T$2,3,4,1))) -> 0.007154957261 | V5: =IF(W$21,NA(),V4+(V$19-V$3)/16) -> 10.625 | W5: =IF(W$21,NA(),MIN(Wmax,psych(Pb,V5,V$2,3,4,1))) -> 0.007960126896
A6: Max | B6: 50 | C6: 0.04 | D6: 13.4375 | E6: =IF(E$21,NA(),MIN(Wmax,psych(Pb,D6,D$2,3,4,1))) -> 0.0009475175966 | F6: 13.4375 | G6: =IF(G$21,NA(),MIN(Wmax,psych(Pb,F6,F$2,3,4,1))) -> 0.001897926474 | H6: 13.4375 | I6: =IF(I$21,NA(),MIN(Wmax,psych(Pb,H6,H$2,3,4,1))) -> 0.002851239886 | J6: 13.4375 | K6: =IF(K$21,NA(),MIN(Wmax,psych(Pb,J6,J$2,3,4,1))) -> 0.003807471167 | L6: 13.4375 | M6: =IF(M$21,NA(),MIN(Wmax,psych(Pb,L6,L$2,3,4,1))) -> 0.004766633736 | N6: 13.4375 | O6: =IF(O$21,NA(),MIN(Wmax,psych(Pb,N6,N$2,3,4,1))) -> 0.00572874109 | P6: 13.4375 | Q6: =IF(Q$21,NA(),MIN(Wmax,psych(Pb,P6,P$2,3,4,1))) -> 0.006693806813 | R6: 13.4375 | S6: =IF(S$21,NA(),MIN(Wmax,psych(Pb,R6,R$2,3,4,1))) -> 0.00766184457 | T6: 13.4375 | U6: =IF(U$21,NA(),MIN(Wmax,psych(Pb,T6,T$2,3,4,1))) -> 0.008632868112 | V6: 13.4375 | W6: =IF(W$21,NA(),MIN(Wmax,psych(Pb,V6,V$2,3,4,1))) -> 0.009606891273
A7: Maj. Div. | B7: 5 | C7: 0.004 | D7: 16.25 | E7: =IF(E$21,NA(),MIN(Wmax,psych(Pb,D7,D$2,3,4,1))) -> 0.001136272406 | F7: 16.25 | G7: =IF(G$21,NA(),MIN(Wmax,psych(Pb,F7,F$2,3,4,1))) -> 0.00227670404 | H7: 16.25 | I7: =IF(I$21,NA(),MIN(Wmax,psych(Pb,H7,H$2,3,4,1))) -> 0.003421317779 | J7: 16.25 | K7: =IF(K$21,NA(),MIN(Wmax,psych(Pb,J7,J$2,3,4,1))) -> 0.00457013667 | L7: 16.25 | M7: =IF(M$21,NA(),MIN(Wmax,psych(Pb,L7,L$2,3,4,1))) -> 0.00572318393 | N7: 16.25 | O7: =IF(O$21,NA(),MIN(Wmax,psych(Pb,N7,N$2,3,4,1))) -> 0.006880482946 | P7: 16.25 | Q7: =IF(Q$21,NA(),MIN(Wmax,psych(Pb,P7,P$2,3,4,1))) -> 0.008042057279 | R7: 16.25 | S7: =IF(S$21,NA(),MIN(Wmax,psych(Pb,R7,R$2,3,4,1))) -> 0.009207930663 | T7: 16.25 | U7: =IF(U$21,NA(),MIN(Wmax,psych(Pb,T7,T$2,3,4,1))) -> 0.01037812701 | V7: 16.25 | W7: =IF(W$21,NA(),MIN(Wmax,psych(Pb,V7,V$2,3,4,1))) -> 0.01155267041
D8: 19.0625 | E8: =IF(E$21,NA(),MIN(Wmax,psych(Pb,D8,D$2,3,4,1))) -> 0.001357337999 | F8: 19.0625 | G8: =IF(G$21,NA(),MIN(Wmax,psych(Pb,F8,F$2,3,4,1))) -> 0.002720613153 | H8: 19.0625 | I8: =IF(I$21,NA(),MIN(Wmax,psych(Pb,H8,H$2,3,4,1))) -> 0.004089864502 | J8: 19.0625 | K8: =IF(K$21,NA(),MIN(Wmax,psych(Pb,J8,J$2,3,4,1))) -> 0.005465131429 | L8: 19.0625 | M8: =IF(M$21,NA(),MIN(Wmax,psych(Pb,L8,L$2,3,4,1))) -> 0.006846453665 | N8: 19.0625 | O8: =IF(O$21,NA(),MIN(Wmax,psych(Pb,N8,N$2,3,4,1))) -> 0.008233871289 | P8: 19.0625 | Q8: =IF(Q$21,NA(),MIN(Wmax,psych(Pb,P8,P$2,3,4,1))) -> 0.009627424736 | R8: 19.0625 | S8: =IF(S$21,NA(),MIN(Wmax,psych(Pb,R8,R$2,3,4,1))) -> 0.0110271548 | T8: 19.0625 | U8: =IF(U$21,NA(),MIN(Wmax,psych(Pb,T8,T$2,3,4,1))) -> 0.01243310264 | V8: 19.0625 | W8: =IF(W$21,NA(),MIN(Wmax,psych(Pb,V8,V$2,3,4,1))) -> 0.01384530977
B9: T @ Wmax | C9: W @ Tmin | D9: 21.875 | E9: =IF(E$21,NA(),MIN(Wmax,psych(Pb,D9,D$2,3,4,1))) -> 0.001615319523 | F9: 21.875 | G9: =IF(G$21,NA(),MIN(Wmax,psych(Pb,F9,F$2,3,4,1))) -> 0.003239051056 | H9: 21.875 | I9: =IF(I$21,NA(),MIN(Wmax,psych(Pb,H9,H$2,3,4,1))) -> 0.004871260482 | J9: 21.875 | K9: =IF(K$21,NA(),MIN(Wmax,psych(Pb,J9,J$2,3,4,1))) -> 0.006512014372 | L9: 21.875 | M9: =IF(M$21,NA(),MIN(Wmax,psych(Pb,L9,L$2,3,4,1))) -> 0.008161379995 | N9: 21.875 | O9: =IF(O$21,NA(),MIN(Wmax,psych(Pb,N9,N$2,3,4,1))) -> 0.009819425332 | P9: 21.875 | Q9: =IF(Q$21,NA(),MIN(Wmax,psych(Pb,P9,P$2,3,4,1))) -> 0.01148621908 | R9: 21.875 | S9: =IF(S$21,NA(),MIN(Wmax,psych(Pb,R9,R$2,3,4,1))) -> 0.01316183065 | T9: 21.875 | U9: =IF(U$21,NA(),MIN(Wmax,psych(Pb,T9,T$2,3,4,1))) -> 0.01484633021 | V9: 21.875 | W9: =IF(W$21,NA(),MIN(Wmax,psych(Pb,V9,V$2,3,4,1))) -> 0.01653978867
B10: =psych(Pb,Tmax,Wmax,4,2) -> 686.2044901 | C10: =psych(Pb,Tmin,1,3,4) -> 1.471685751e-07 | D10: 24.6875 | E10: =IF(E$21,NA(),MIN(Wmax,psych(Pb,D10,D$2,3,4,1))) -> 0.001915343671 | F10: 24.6875 | G10: =IF(G$21,NA(),MIN(Wmax,psych(Pb,F10,F$2,3,4,1))) -> 0.003842520113 | H10: 24.6875 | I10: =IF(I$21,NA(),MIN(Wmax,psych(Pb,H10,H$2,3,4,1))) -> 0.005781639317 | J10: 24.6875 | K10: =IF(K$21,NA(),MIN(Wmax,psych(Pb,J10,J$2,3,4,1))) -> 0.007732812643 | L10: 24.6875 | M10: =IF(M$21,NA(),MIN(Wmax,psych(Pb,L10,L$2,3,4,1))) -> 0.009696152839 | N10: 24.6875 | O10: =IF(O$21,NA(),MIN(Wmax,psych(Pb,N10,N$2,3,4,1))) -> 0.01167177406 | P10: 24.6875 | Q10: =IF(Q$21,NA(),MIN(Wmax,psych(Pb,P10,P$2,3,4,1))) -> 0.01365979191 | R10: 24.6875 | S10: =IF(S$21,NA(),MIN(Wmax,psych(Pb,R10,R$2,3,4,1))) -> 0.01566032342 | T10: 24.6875 | U10: =IF(U$21,NA(),MIN(Wmax,psych(Pb,T10,T$2,3,4,1))) -> 0.01767348713 | V10: 24.6875 | W10: =IF(W$21,NA(),MIN(Wmax,psych(Pb,V10,V$2,3,4,1))) -> 0.01969940305
D11: 27.5 | E11: =IF(E$21,NA(),MIN(Wmax,psych(Pb,D11,D$2,3,4,1))) -> 0.00226310294 | F11: 27.5 | G11: =IF(G$21,NA(),MIN(Wmax,psych(Pb,F11,F$2,3,4,1))) -> 0.004542734831 | H11: 27.5 | I11: =IF(I$21,NA(),MIN(Wmax,psych(Pb,H11,H$2,3,4,1))) -> 0.006839077418 | J11: 27.5 | K11: =IF(K$21,NA(),MIN(Wmax,psych(Pb,J11,J$2,3,4,1))) -> 0.009152315124 | L11: 27.5 | M11: =IF(M$21,NA(),MIN(Wmax,psych(Pb,L11,L$2,3,4,1))) -> 0.01148263509 | N11: 27.5 | O11: =IF(O$21,NA(),MIN(Wmax,psych(Pb,N11,N$2,3,4,1))) -> 0.01383022724 | P11: 27.5 | Q11: =IF(Q$21,NA(),MIN(Wmax,psych(Pb,P11,P$2,3,4,1))) -> 0.01619528432 | R11: 27.5 | S11: =IF(S$21,NA(),MIN(Wmax,psych(Pb,R11,R$2,3,4,1))) -> 0.01857800194 | T11: 27.5 | U11: =IF(U$21,NA(),MIN(Wmax,psych(Pb,T11,T$2,3,4,1))) -> 0.02097857868 | V11: 27.5 | W11: =IF(W$21,NA(),MIN(Wmax,psych(Pb,V11,V$2,3,4,1))) -> 0.02339721606
D12: 30.3125 | E12: =IF(E$21,NA(),MIN(Wmax,psych(Pb,D12,D$2,3,4,1))) -> 0.002664902904 | F12: 30.3125 | G12: =IF(G$21,NA(),MIN(Wmax,psych(Pb,F12,F$2,3,4,1))) -> 0.005352739876 | H12: 30.3125 | I12: =IF(I$21,NA(),MIN(Wmax,psych(Pb,H12,H$2,3,4,1))) -> 0.008063808251 | J12: 30.3125 | K12: =IF(K$21,NA(),MIN(Wmax,psych(Pb,J12,J$2,3,4,1))) -> 0.01079841053 | L12: 30.3125 | M12: =IF(M$21,NA(),MIN(Wmax,psych(Pb,L12,L$2,3,4,1))) -> 0.01355685447 | N12: 30.3125 | O12: =IF(O$21,NA(),MIN(Wmax,psych(Pb,N12,N$2,3,4,1))) -> 0.01633945325 | P12: 30.3125 | Q12: =IF(Q$21,NA(),MIN(Wmax,psych(Pb,P12,P$2,3,4,1))) -> 0.01914652552 | R12: 30.3125 | S12: =IF(S$21,NA(),MIN(Wmax,psych(Pb,R12,R$2,3,4,1))) -> 0.0219783956 | T12: 30.3125 | U12: =IF(U$21,NA(),MIN(Wmax,psych(Pb,T12,T$2,3,4,1))) -> 0.02483539354 | V12: 30.3125 | W12: =IF(W$21,NA(),MIN(Wmax,psych(Pb,V12,V$2,3,4,1))) -> 0.02771785526
D13: 33.125 | E13: =IF(E$21,NA(),MIN(Wmax,psych(Pb,D13,D$2,3,4,1))) -> 0.003127712881 | F13: 33.125 | G13: =IF(G$21,NA(),MIN(Wmax,psych(Pb,F13,F$2,3,4,1))) -> 0.006287041021 | H13: 33.125 | I13: =IF(I$21,NA(),MIN(Wmax,psych(Pb,H13,H$2,3,4,1))) -> 0.009478466212 | J13: 33.125 | K13: =IF(K$21,NA(),MIN(Wmax,psych(Pb,J13,J$2,3,4,1))) -> 0.01270248008 | L13: 33.125 | M13: =IF(M$21,NA(),MIN(Wmax,psych(Pb,L13,L$2,3,4,1))) -> 0.01595958436 | N13: 33.125 | O13: =IF(O$21,NA(),MIN(Wmax,psych(Pb,N13,N$2,3,4,1))) -> 0.01925029111 | P13: 33.125 | Q13: =IF(Q$21,NA(),MIN(Wmax,psych(Pb,P13,P$2,3,4,1))) -> 0.02257512303 | R13: 33.125 | S13: =IF(S$21,NA(),MIN(Wmax,psych(Pb,R13,R$2,3,4,1))) -> 0.02593461372 | T13: 33.125 | U13: =IF(U$21,NA(),MIN(Wmax,psych(Pb,T13,T$2,3,4,1))) -> 0.02932930794 | V13: 33.125 | W13: =IF(W$21,NA(),MIN(Wmax,psych(Pb,V13,V$2,3,4,1))) -> 0.03275976196
D14: 35.9375 | E14: =IF(E$21,NA(),MIN(Wmax,psych(Pb,D14,D$2,3,4,1))) -> 0.003659220458 | F14: 35.9375 | G14: =IF(G$21,NA(),MIN(Wmax,psych(Pb,F14,F$2,3,4,1))) -> 0.007361751428 | H14: 35.9375 | I14: =IF(I$21,NA(),MIN(Wmax,psych(Pb,H14,H$2,3,4,1))) -> 0.01110836642 | J14: 35.9375 | K14: =IF(K$21,NA(),MIN(Wmax,psych(Pb,J14,J$2,3,4,1))) -> 0.01489985748 | L14: 35.9375 | M14: =IF(M$21,NA(),MIN(Wmax,psych(Pb,L14,L$2,3,4,1))) -> 0.01873703573 | N14: 35.9375 | O14: =IF(O$21,NA(),MIN(Wmax,psych(Pb,N14,N$2,3,4,1))) -> 0.02262073197 | P14: 35.9375 | Q14: =IF(Q$21,NA(),MIN(Wmax,psych(Pb,P14,P$2,3,4,1))) -> 0.02655179727 | R14: 35.9375 | S14: =IF(S$21,NA(),MIN(Wmax,psych(Pb,R14,R$2,3,4,1))) -> 0.03053110357 | T14: 35.9375 | U14: =IF(U$21,NA(),MIN(Wmax,psych(Pb,T14,T$2,3,4,1))) -> 0.03455954436 | V14: 35.9375 | W14: =IF(W$21,NA(),MIN(Wmax,psych(Pb,V14,V$2,3,4,1))) -> 0.03863803532
D15: 38.75 | E15: =IF(E$21,NA(),MIN(Wmax,psych(Pb,D15,D$2,3,4,1))) -> 0.004267890436 | F15: 38.75 | G15: =IF(G$21,NA(),MIN(Wmax,psych(Pb,F15,F$2,3,4,1))) -> 0.008594756206 | H15: 38.75 | I15: =IF(I$21,NA(),MIN(Wmax,psych(Pb,H15,H$2,3,4,1))) -> 0.01298182823 | J15: 38.75 | K15: =IF(K$21,NA(),MIN(Wmax,psych(Pb,J15,J$2,3,4,1))) -> 0.01743037192 | L15: 38.75 | M15: =IF(M$21,NA(),MIN(Wmax,psych(Pb,L15,L$2,3,4,1))) -> 0.02194168841 | N15: 38.75 | O15: =IF(O$21,NA(),MIN(Wmax,psych(Pb,N15,N$2,3,4,1))) -> 0.0265171158 | P15: 38.75 | Q15: =IF(Q$21,NA(),MIN(Wmax,psych(Pb,P15,P$2,3,4,1))) -> 0.03115803051 | R15: 38.75 | S15: =IF(S$21,NA(),MIN(Wmax,psych(Pb,R15,R$2,3,4,1))) -> 0.03586584864 | T15: 38.75 | U15: =IF(U$21,NA(),MIN(Wmax,psych(Pb,T15,T$2,3,4,1))) -> 0.04 | V15: 38.75 | W15: =IF(W$21,NA(),MIN(Wmax,psych(Pb,V15,V$2,3,4,1))) -> 0.04
D16: 41.5625 | E16: =IF(E$21,NA(),MIN(Wmax,psych(Pb,D16,D$2,3,4,1))) -> 0.004963028891 | F16: 41.5625 | G16: =IF(G$21,NA(),MIN(Wmax,psych(Pb,F16,F$2,3,4,1))) -> 0.01000589888 | H16: 41.5625 | I16: =IF(I$21,NA(),MIN(Wmax,psych(Pb,H16,H$2,3,4,1))) -> 0.01513055221 | J16: 41.5625 | K16: =IF(K$21,NA(),MIN(Wmax,psych(Pb,J16,J$2,3,4,1))) -> 0.02033899465 | L16: 41.5625 | M16: =IF(M$21,NA(),MIN(Wmax,psych(Pb,L16,L$2,3,4,1))) -> 0.02563329809 | N16: 41.5625 | O16: =IF(O$21,NA(),MIN(Wmax,psych(Pb,N16,N$2,3,4,1))) -> 0.03101560329 | P16: 41.5625 | Q16: =IF(Q$21,NA(),MIN(Wmax,psych(Pb,P16,P$2,3,4,1))) -> 0.03648812279 | R16: 41.5625 | S16: =IF(S$21,NA(),MIN(Wmax,psych(Pb,R16,R$2,3,4,1))) -> 0.04 | T16: 41.5625 | U16: =IF(U$21,NA(),MIN(Wmax,psych(Pb,T16,T$2,3,4,1))) -> 0.04 | V16: 41.5625 | W16: =IF(W$21,NA(),MIN(Wmax,psych(Pb,V16,V$2,3,4,1))) -> 0.04
D17: 44.375 | E17: =IF(E$21,NA(),MIN(Wmax,psych(Pb,D17,D$2,3,4,1))) -> 0.005754853198 | F17: 44.375 | G17: =IF(G$21,NA(),MIN(Wmax,psych(Pb,F17,F$2,3,4,1))) -> 0.01161719417 | H17: 44.375 | I17: =IF(I$21,NA(),MIN(Wmax,psych(Pb,H17,H$2,3,4,1))) -> 0.01759006276 | J17: 44.375 | K17: =IF(K$21,NA(),MIN(Wmax,psych(Pb,J17,J$2,3,4,1))) -> 0.02367661451 | L17: 44.375 | M17: =IF(M$21,NA(),MIN(Wmax,psych(Pb,L17,L$2,3,4,1))) -> 0.02988012624 | N17: 44.375 | O17: =IF(O$21,NA(),MIN(Wmax,psych(Pb,N17,N$2,3,4,1))) -> 0.03620400195 | P17: 44.375 | Q17: =IF(Q$21,NA(),MIN(Wmax,psych(Pb,P17,P$2,3,4,1))) -> 0.04 | R17: 44.375 | S17: =IF(S$21,NA(),MIN(Wmax,psych(Pb,R17,R$2,3,4,1))) -> 0.04 | T17: 44.375 | U17: =IF(U$21,NA(),MIN(Wmax,psych(Pb,T17,T$2,3,4,1))) -> 0.04 | V17: 44.375 | W17: =IF(W$21,NA(),MIN(Wmax,psych(Pb,V17,V$2,3,4,1))) -> 0.04
D18: 47.1875 | E18: =IF(E$21,NA(),MIN(Wmax,psych(Pb,D18,D$2,3,4,1))) -> 0.00665456904 | F18: 47.1875 | G18: =IF(G$21,NA(),MIN(Wmax,psych(Pb,F18,F$2,3,4,1))) -> 0.01345307261 | H18: 47.1875 | I18: =IF(I$21,NA(),MIN(Wmax,psych(Pb,H18,H$2,3,4,1))) -> 0.0204002316 | J18: 47.1875 | K18: =IF(K$21,NA(),MIN(Wmax,psych(Pb,J18,J$2,3,4,1))) -> 0.02750097564 | L18: 47.1875 | M18: =IF(M$21,NA(),MIN(Wmax,psych(Pb,L18,L$2,3,4,1))) -> 0.03476045474 | N18: 47.1875 | O18: =IF(O$21,NA(),MIN(Wmax,psych(Pb,N18,N$2,3,4,1))) -> 0.04 | P18: 47.1875 | Q18: =IF(Q$21,NA(),MIN(Wmax,psych(Pb,P18,P$2,3,4,1))) -> 0.04 | R18: 47.1875 | S18: =IF(S$21,NA(),MIN(Wmax,psych(Pb,R18,R$2,3,4,1))) -> 0.04 | T18: 47.1875 | U18: =IF(U$21,NA(),MIN(Wmax,psych(Pb,T18,T$2,3,4,1))) -> 0.04 | V18: 47.1875 | W18: =IF(W$21,NA(),MIN(Wmax,psych(Pb,V18,V$2,3,4,1))) -> 0.04
D19: =IF(E$21,NA(),Tmax) -> 50 | E19: =IF(E$21,NA(),MIN(Wmax,psych(Pb,D19,D$2,3,4,1))) -> 0.007674455614 | F19: =IF(G$21,NA(),Tmax) -> 50 | G19: =IF(G$21,NA(),MIN(Wmax,psych(Pb,F19,F$2,3,4,1))) -> 0.01554066359 | H19: =IF(I$21,NA(),Tmax) -> 50 | I19: =IF(I$21,NA(),MIN(Wmax,psych(Pb,H19,H$2,3,4,1))) -> 0.02360590147 | J19: =IF(K$21,NA(),Tmax) -> 50 | K19: =IF(K$21,NA(),MIN(Wmax,psych(Pb,J19,J$2,3,4,1))) -> 0.03187781978 | L19: =IF(M$21,NA(),Tmax) -> 50 | M19: =IF(M$21,NA(),MIN(Wmax,psych(Pb,L19,L$2,3,4,1))) -> 0.04 | N19: =IF(O$21,NA(),Tmax) -> 50 | O19: =IF(O$21,NA(),MIN(Wmax,psych(Pb,N19,N$2,3,4,1))) -> 0.04 | P19: =IF(Q$21,NA(),Tmax) -> 50 | Q19: =IF(Q$21,NA(),MIN(Wmax,psych(Pb,P19,P$2,3,4,1))) -> 0.04 | R19: =IF(S$21,NA(),Tmax) -> 50 | S19: =IF(S$21,NA(),MIN(Wmax,psych(Pb,R19,R$2,3,4,1))) -> 0.04 | T19: =IF(U$21,NA(),Tmax) -> 50 | U19: =IF(U$21,NA(),MIN(Wmax,psych(Pb,T19,T$2,3,4,1))) -> 0.04 | V19: =IF(W$21,NA(),Tmax) -> 50 | W19: =IF(W$21,NA(),MIN(Wmax,psych(Pb,V19,V$2,3,4,1))) -> 0.04
D21: =IF(Wmin=0,Tmin,"Wmin must be 0") -> 5 | E21: =D21>=Tmax -> FALSE | F21: =IF(Wmin=0,Tmin,"Wmin must be 0") -> 5 | G21: =F21>=Tmax -> FALSE | H21: =IF(Wmin=0,Tmin,"Wmin must be 0") -> 5 | I21: =H21>=Tmax -> FALSE | J21: =IF(Wmin=0,Tmin,"Wmin must be 0") -> 5 | K21: =J21>=Tmax -> FALSE | L21: =IF(Wmin=0,Tmin,"Wmin must be 0") -> 5 | M21: =L21>=Tmax -> FALSE | N21: =IF(Wmin=0,Tmin,"Wmin must be 0") -> 5 | O21: =N21>=Tmax -> FALSE | P21: =IF(Wmin=0,Tmin,"Wmin must be 0") -> 5 | Q21: =P21>=Tmax -> FALSE | R21: =IF(Wmin=0,Tmin,"Wmin must be 0") -> 5 | S21: =R21>=Tmax -> FALSE | T21: =IF(Wmin=0,Tmin,"Wmin must be 0") -> 5 | U21: =T21>=Tmax -> FALSE | V21: =IF(Wmin=0,Tmin,"Wmin must be 0") -> 5 | W21: =V21>=Tmax -> FALSE
D23: Wet Bulb Lines
D24: =F24-Tdiv -> -10 | F24: =H24-Tdiv -> -5 | H24: =J24-Tdiv -> 0 | J24: =Tmin -> 5 | L24: =J24+Tdiv -> 10 | N24: =L24+Tdiv -> 15 | P24: =N24+Tdiv -> 20 | R24: =P24+Tdiv -> 25 | T24: =R24+Tdiv -> 30 | V24: =T24+Tdiv -> 35 | X24: =V24+Tdiv -> 40 | Z24: =X24+Tdiv -> 45 | AB24: =Z24+Tdiv -> 50 | AD24: =AB24+Tdiv -> 55
D25: =D24 -> -10 | E25: =psych(Pb,D25,1,3,4,1) -> 0.001599507531 | F25: =F24 -> -5 | G25: =psych(Pb,F25,1,3,4,1) -> 0.002476032865 | H25: =H24 -> 0 | I25: =psych(Pb,H25,1,3,4,1) -> 0.003774310202 | J25: =J24 -> 5 | K25: =psych(Pb,J25,1,3,4,1) -> 0.005402246605 | L25: =L24 -> 10 | M25: =psych(Pb,L25,1,3,4,1) -> 0.007630483085 | N25: =N24 -> 15 | O25: =psych(Pb,N25,1,3,4,1) -> 0.01064805448 | P25: =P24 -> 20 | Q25: =psych(Pb,P25,1,3,4,1) -> 0.01469587861 | R25: =R24 -> 25 | S25: =psych(Pb,R25,1,3,4,1) -> 0.02008225281 | T25: =T24 -> 30 | U25: =psych(Pb,T25,1,3,4,1) -> 0.02720409886 | V25: =V24 -> 35 | W25: =psych(Pb,V25,1,3,4,1) -> 0.03657778755 | X25: =X24 -> 40 | Y25: =psych(Pb,X25,1,3,4,1) -> 0.04888534355 | Z25: =Z24 -> 45 | AA25: =psych(Pb,Z25,1,3,4,1) -> 0.06504606071 | AB25: =AB24 -> 50 | AC25: =psych(Pb,AB25,1,3,4,1) -> 0.0863315688 | AD25: =AD24 -> 55 | AE25: =psych(Pb,AD25,1,3,4,1) -> 0.1145583936
D26: =Tmax -> 50 | E26: =psych(Pb,D26,D25,1,4,1) -> -0.02136776123 | F26: =Tmax -> 50 | G26: =psych(Pb,F26,F25,1,4,1) -> -0.01878009948 | H26: =Tmax -> 50 | I26: =psych(Pb,H26,H25,1,4,1) -> -0.01575190832 | J26: =Tmax -> 50 | K26: =psych(Pb,J26,J25,1,4,1) -> -0.01236725366 | L26: =Tmax -> 50 | M26: =psych(Pb,L26,L25,1,4,1) -> -0.008359120911 | N26: =Tmax -> 50 | O26: =psych(Pb,N26,N25,1,4,1) -> -0.003536145308 | P26: =Tmax -> 50 | Q26: =psych(Pb,P26,P25,1,4,1) -> 0.002346646646 | R26: =Tmax -> 50 | S26: =psych(Pb,R26,R25,1,4,1) -> 0.009604085922 | T26: =Tmax -> 50 | U26: =psych(Pb,T26,T25,1,4,1) -> 0.01864316009 | V26: =Tmax -> 50 | W26: =psych(Pb,V26,V25,1,4,1) -> 0.02999532132 | X26: =Tmax -> 50 | Y26: =psych(Pb,X26,X25,1,4,1) -> 0.04436484235 | Z26: =Tmax -> 50 | AA26: =psych(Pb,Z26,Z25,1,4,1) -> 0.06270366875 | AB26: =Tmax -> 50 | AC26: =psych(Pb,AB26,AB25,1,4,1) -> 0.0863315688 | AD26: =Tmax -> 50 | AE26: =psych(Pb,AD26,AD25,1,4,1) -> 0.117137068

Sheet Calcs for PsychChart IP
D1: Relative Humidity Curves
A2: Pb (psia) | B2: 14.696 | D2: 0.1 | F2: =D2+0.1 -> 0.2 | H2: =F2+0.1 -> 0.3 | J2: =H2+0.1 -> 0.4 | L2: =J2+0.1 -> 0.5 | N2: 0.6 | P2: 0.7 | R2: 0.8 | T2: 0.9 | V2: 1
B3: Chart Limits | D3: =IF(E$21,NA(),D$21) -> 20 | E3: =IF(E$21,NA(),MIN(Wmax,psych(Pb,D3,D$2,3,4))) -> 0.0002137567892 | F3: =IF(G$21,NA(),F$21) -> 20 | G3: =IF(G$21,NA(),MIN(Wmax,psych(Pb,F3,F$2,3,4))) -> 0.0004276605532 | H3: =IF(I$21,NA(),H$21) -> 20 | I3: =IF(I$21,NA(),MIN(Wmax,psych(Pb,H3,H$2,3,4))) -> 0.0006417114435 | J3: =IF(K$21,NA(),J$21) -> 20 | K3: =IF(K$21,NA(),MIN(Wmax,psych(Pb,J3,J$2,3,4))) -> 0.0008559096121 | L3: =IF(M$21,NA(),L$21) -> 20 | M3: =IF(M$21,NA(),MIN(Wmax,psych(Pb,L3,L$2,3,4))) -> 0.001070255211 | N3: =IF(O$21,NA(),N$21) -> 20 | O3: =IF(O$21,NA(),MIN(Wmax,psych(Pb,N3,N$2,3,4))) -> 0.001284748392 | P3: =IF(Q$21,NA(),P$21) -> 20 | Q3: =IF(Q$21,NA(),MIN(Wmax,psych(Pb,P3,P$2,3,4))) -> 0.001499389309 | R3: =IF(S$21,NA(),R$21) -> 20 | S3: =IF(S$21,NA(),MIN(Wmax,psych(Pb,R3,R$2,3,4))) -> 0.001714178113 | T3: =IF(U$21,NA(),T$21) -> 20 | U3: =IF(U$21,NA(),MIN(Wmax,psych(Pb,T3,T$2,3,4))) -> 0.001929114957 | V3: =IF(W$21,NA(),V$21) -> 20 | W3: =IF(W$21,NA(),MIN(Wmax,psych(Pb,V3,V$2,3,4))) -> 0.002144199996
B4: Tdb | C4: W | D4: =IF(E$21,NA(),D3+(D$19-D$3)/16) -> 25.625 | E4: =IF(E$21,NA(),MIN(Wmax,psych(Pb,D4,D$2,3,4))) -> 0.0002792957077 | F4: =IF(G$21,NA(),F3+(F$19-F$3)/16) -> 25.625 | G4: =IF(G$21,NA(),MIN(Wmax,psych(Pb,F4,F$2,3,4))) -> 0.0005588423597 | H4: =IF(I$21,NA(),H3+(H$19-H$3)/16) -> 25.625 | I4: =IF(I$21,NA(),MIN(Wmax,psych(Pb,H4,H$2,3,4))) -> 0.0008386402942 | J4: =IF(K$21,NA(),J3+(J$19-J$3)/16) -> 25.625 | K4: =IF(K$21,NA(),MIN(Wmax,psych(Pb,J4,J$2,3,4))) -> 0.00111868985 | L4: =IF(M$21,NA(),L3+(L$19-L$3)/16) -> 25.625 | M4: =IF(M$21,NA(),MIN(Wmax,psych(Pb,L4,L$2,3,4))) -> 0.001398991367 | N4: =IF(O$21,NA(),N3+(N$19-N$3)/16) -> 25.625 | O4: =IF(O$21,NA(),MIN(Wmax,psych(Pb,N4,N$2,3,4))) -> 0.001679545186 | P4: =IF(Q$21,NA(),P3+(P$19-P$3)/16) -> 25.625 | Q4: =IF(Q$21,NA(),MIN(Wmax,psych(Pb,P4,P$2,3,4))) -> 0.001960351646 | R4: =IF(S$21,NA(),R3+(R$19-R$3)/16) -> 25.625 | S4: =IF(S$21,NA(),MIN(Wmax,psych(Pb,R4,R$2,3,4))) -> 0.00224141109 | T4: =IF(U$21,NA(),T3+(T$19-T$3)/16) -> 25.625 | U4: =IF(U$21,NA(),MIN(Wmax,psych(Pb,T4,T$2,3,4))) -> 0.00252272386 | V4: =IF(W$21,NA(),V3+(V$19-V$3)/16) -> 25.625 | W4: =IF(W$21,NA(),MIN(Wmax,psych(Pb,V4,V$2,3,4))) -> 0.002804290297
A5: Min | B5: 20 | C5: 0 | D5: =IF(E$21,NA(),D4+(D$19-D$3)/16) -> 31.25 | E5: =IF(E$21,NA(),MIN(Wmax,psych(Pb,D5,D$2,3,4))) -> 0.0003626917683 | F5: =IF(G$21,NA(),F4+(F$19-F$3)/16) -> 31.25 | G5: =IF(G$21,NA(),MIN(Wmax,psych(Pb,F5,F$2,3,4))) -> 0.0007258067724 | H5: =IF(I$21,NA(),H4+(H$19-H$3)/16) -> 31.25 | I5: =IF(I$21,NA(),MIN(Wmax,psych(Pb,H5,H$2,3,4))) -> 0.001089345753 | J5: =IF(K$21,NA(),J4+(J$19-J$3)/16) -> 31.25 | K5: =IF(K$21,NA(),MIN(Wmax,psych(Pb,J5,J$2,3,4))) -> 0.001453309454 | L5: =IF(M$21,NA(),L4+(L$19-L$3)/16) -> 31.25 | M5: =IF(M$21,NA(),MIN(Wmax,psych(Pb,L5,L$2,3,4))) -> 0.00181769862 | N5: =IF(O$21,NA(),N4+(N$19-N$3)/16) -> 31.25 | O5: =IF(O$21,NA(),MIN(Wmax,psych(Pb,N5,N$2,3,4))) -> 0.002182513997 | P5: =IF(Q$21,NA(),P4+(P$19-P$3)/16) -> 31.25 | Q5: =IF(Q$21,NA(),MIN(Wmax,psych(Pb,P5,P$2,3,4))) -> 0.002547756333 | R5: =IF(S$21,NA(),R4+(R$19-R$3)/16) -> 31.25 | S5: =IF(S$21,NA(),MIN(Wmax,psych(Pb,R5,R$2,3,4))) -> 0.002913426379 | T5: =IF(U$21,NA(),T4+(T$19-T$3)/16) -> 31.25 | U5: =IF(U$21,NA(),MIN(Wmax,psych(Pb,T5,T$2,3,4))) -> 0.003279524885 | V5: =IF(W$21,NA(),V4+(V$19-V$3)/16) -> 31.25 | W5: =IF(W$21,NA(),MIN(Wmax,psych(Pb,V5,V$2,3,4))) -> 0.003646052606
A6: Max | B6: 110 | C6: 0.04 | D6: 36.875 | E6: =IF(E$21,NA(),MIN(Wmax,psych(Pb,D6,D$2,3,4))) -> 0.0004561148606 | F6: 36.875 | G6: =IF(G$21,NA(),MIN(Wmax,psych(Pb,F6,F$2,3,4))) -> 0.0009128991751 | H6: 36.875 | I6: =IF(I$21,NA(),MIN(Wmax,psych(Pb,H6,H$2,3,4))) -> 0.001370354418 | J6: 36.875 | K6: =IF(K$21,NA(),MIN(Wmax,psych(Pb,J6,J$2,3,4))) -> 0.00182848207 | L6: 36.875 | M6: =IF(M$21,NA(),MIN(Wmax,psych(Pb,L6,L$2,3,4))) -> 0.002287283613 | N6: 36.875 | O6: =IF(O$21,NA(),MIN(Wmax,psych(Pb,N6,N$2,3,4))) -> 0.002746760535 | P6: 36.875 | Q6: =IF(Q$21,NA(),MIN(Wmax,psych(Pb,P6,P$2,3,4))) -> 0.00320691433 | R6: 36.875 | S6: =IF(S$21,NA(),MIN(Wmax,psych(Pb,R6,R$2,3,4))) -> 0.003667746493 | T6: 36.875 | U6: =IF(U$21,NA(),MIN(Wmax,psych(Pb,T6,T$2,3,4))) -> 0.004129258527 | V6: 36.875 | W6: =IF(W$21,NA(),MIN(Wmax,psych(Pb,V6,V$2,3,4))) -> 0.004591451936
A7: Maj. Div. | B7: 10 | C7: 0.004 | D7: 42.5 | E7: =IF(E$21,NA(),MIN(Wmax,psych(Pb,D7,D$2,3,4))) -> 0.0005680276779 | F7: 42.5 | G7: =IF(G$21,NA(),MIN(Wmax,psych(Pb,F7,F$2,3,4))) -> 0.001137093815 | H7: 42.5 | I7: =IF(I$21,NA(),MIN(Wmax,psych(Pb,H7,H$2,3,4))) -> 0.001707201261 | J7: 42.5 | K7: =IF(K$21,NA(),MIN(Wmax,psych(Pb,J7,J$2,3,4))) -> 0.002278352878 | L7: 42.5 | M7: =IF(M$21,NA(),MIN(Wmax,psych(Pb,L7,L$2,3,4))) -> 0.002850551536 | N7: 42.5 | O7: =IF(O$21,NA(),MIN(Wmax,psych(Pb,N7,N$2,3,4))) -> 0.003423800117 | P7: 42.5 | Q7: =IF(Q$21,NA(),MIN(Wmax,psych(Pb,P7,P$2,3,4))) -> 0.003998101514 | R7: 42.5 | S7: =IF(S$21,NA(),MIN(Wmax,psych(Pb,R7,R$2,3,4))) -> 0.004573458629 | T7: 42.5 | U7: =IF(U$21,NA(),MIN(Wmax,psych(Pb,T7,T$2,3,4))) -> 0.005149874378 | V7: 42.5 | W7: =IF(W$21,NA(),MIN(Wmax,psych(Pb,V7,V$2,3,4))) -> 0.005727351682
D8: 48.125 | E8: =IF(E$21,NA(),MIN(Wmax,psych(Pb,D8,D$2,3,4))) -> 0.0007035744944 | F8: 48.125 | G8: =IF(G$21,NA(),MIN(Wmax,psych(Pb,F8,F$2,3,4))) -> 0.001408742537 | H8: 48.125 | I8: =IF(I$21,NA(),MIN(Wmax,psych(Pb,H8,H$2,3,4))) -> 0.002115509549 | J8: 48.125 | K8: =IF(K$21,NA(),MIN(Wmax,psych(Pb,J8,J$2,3,4))) -> 0.002823880974 | L8: 48.125 | M8: =IF(M$21,NA(),MIN(Wmax,psych(Pb,L8,L$2,3,4))) -> 0.003533862281 | N8: 48.125 | O8: =IF(O$21,NA(),MIN(Wmax,psych(Pb,N8,N$2,3,4))) -> 0.004245458965 | P8: 48.125 | Q8: =IF(Q$21,NA(),MIN(Wmax,psych(Pb,P8,P$2,3,4))) -> 0.004958676546 | R8: 48.125 | S8: =IF(S$21,NA(),MIN(Wmax,psych(Pb,R8,R$2,3,4))) -> 0.005673520568 | T8: 48.125 | U8: =IF(U$21,NA(),MIN(Wmax,psych(Pb,T8,T$2,3,4))) -> 0.0063899966 | V8: 48.125 | W8: =IF(W$21,NA(),MIN(Wmax,psych(Pb,V8,V$2,3,4))) -> 0.007108110238
B9: T @ Wmax | C9: W @ Tmin | D9: 53.75 | E9: =IF(E$21,NA(),MIN(Wmax,psych(Pb,D9,D$2,3,4))) -> 0.0008669221061 | F9: 53.75 | G9: =IF(G$21,NA(),MIN(Wmax,psych(Pb,F9,F$2,3,4))) -> 0.001736264235 | H9: 53.75 | I9: =IF(I$21,NA(),MIN(Wmax,psych(Pb,H9,H$2,3,4))) -> 0.002608036534 | J9: 53.75 | K9: =IF(K$21,NA(),MIN(Wmax,psych(Pb,J9,J$2,3,4))) -> 0.003482249208 | L9: 53.75 | M9: =IF(M$21,NA(),MIN(Wmax,psych(Pb,L9,L$2,3,4))) -> 0.004358912518 | N9: 53.75 | O9: =IF(O$21,NA(),MIN(Wmax,psych(Pb,N9,N$2,3,4))) -> 0.005238036784 | P9: 53.75 | Q9: =IF(Q$21,NA(),MIN(Wmax,psych(Pb,P9,P$2,3,4))) -> 0.006119632381 | R9: 53.75 | S9: =IF(S$21,NA(),MIN(Wmax,psych(Pb,R9,R$2,3,4))) -> 0.007003709746 | T9: 53.75 | U9: =IF(U$21,NA(),MIN(Wmax,psych(Pb,T9,T$2,3,4))) -> 0.007890279374 | V9: 53.75 | W9: =IF(W$21,NA(),MIN(Wmax,psych(Pb,V9,V$2,3,4))) -> 0.008779351817
B10: =psych(Pb,Tmax,Wmax,4,2) -> 97.71034432 | C10: =psych(Pb,Tmin,1,3,4) -> 0.002144199996 | D10: 59.375 | E10: =IF(E$21,NA(),MIN(Wmax,psych(Pb,D10,D$2,3,4))) -> 0.001062821843 | F10: 59.375 | G10: =IF(G$21,NA(),MIN(Wmax,psych(Pb,F10,F$2,3,4))) -> 0.002129282143 | H10: 59.375 | I10: =IF(I$21,NA(),MIN(Wmax,psych(Pb,H10,H$2,3,4))) -> 0.003199399617 | J10: 59.375 | K10: =IF(K$21,NA(),MIN(Wmax,psych(Pb,J10,J$2,3,4))) -> 0.004273193107 | L10: 59.375 | M10: =IF(M$21,NA(),MIN(Wmax,psych(Pb,L10,L$2,3,4))) -> 0.005350681589 | N10: 59.375 | O10: =IF(O$21,NA(),MIN(Wmax,psych(Pb,N10,N$2,3,4))) -> 0.006431884168 | P10: 59.375 | Q10: =IF(Q$21,NA(),MIN(Wmax,psych(Pb,P10,P$2,3,4))) -> 0.00751682008 | R10: 59.375 | S10: =IF(S$21,NA(),MIN(Wmax,psych(Pb,R10,R$2,3,4))) -> 0.008605508695 | T10: 59.375 | U10: =IF(U$21,NA(),MIN(Wmax,psych(Pb,T10,T$2,3,4))) -> 0.009697969517 | V10: 59.375 | W10: =IF(W$21,NA(),MIN(Wmax,psych(Pb,V10,V$2,3,4))) -> 0.01079422219
D11: 65 | E11: =IF(E$21,NA(),MIN(Wmax,psych(Pb,D11,D$2,3,4))) -> 0.001296669851 | F11: 65 | G11: =IF(G$21,NA(),MIN(Wmax,psych(Pb,F11,F$2,3,4))) -> 0.002598757449 | H11: 65 | I11: =IF(I$21,NA(),MIN(Wmax,psych(Pb,H11,H$2,3,4))) -> 0.00390629682 | J11: 65 | K11: =IF(K$21,NA(),MIN(Wmax,psych(Pb,J11,J$2,3,4))) -> 0.005219322276 | L11: 65 | M11: =IF(M$21,NA(),MIN(Wmax,psych(Pb,L11,L$2,3,4))) -> 0.006537868415 | N11: 65 | O11: =IF(O$21,NA(),MIN(Wmax,psych(Pb,N11,N$2,3,4))) -> 0.00786197013 | P11: 65 | Q11: =IF(Q$21,NA(),MIN(Wmax,psych(Pb,P11,P$2,3,4))) -> 0.009191662606 | R11: 65 | S11: =IF(S$21,NA(),MIN(Wmax,psych(Pb,R11,R$2,3,4))) -> 0.01052698133 | T11: 65 | U11: =IF(U$21,NA(),MIN(Wmax,psych(Pb,T11,T$2,3,4))) -> 0.01186796208 | V11: 65 | W11: =IF(W$21,NA(),MIN(Wmax,psych(Pb,V11,V$2,3,4))) -> 0.01321464095
D12: 70.625 | E12: =IF(E$21,NA(),MIN(Wmax,psych(Pb,D12,D$2,3,4))) -> 0.001574571554 | F12: 70.625 | G12: =IF(G$21,NA(),MIN(Wmax,psych(Pb,F12,F$2,3,4))) -> 0.003157135544 | H12: 70.625 | I12: =IF(I$21,NA(),MIN(Wmax,psych(Pb,H12,H$2,3,4))) -> 0.00474775298 | J12: 70.625 | K12: =IF(K$21,NA(),MIN(Wmax,psych(Pb,J12,J$2,3,4))) -> 0.006346485492 | L12: 70.625 | M12: =IF(M$21,NA(),MIN(Wmax,psych(Pb,L12,L$2,3,4))) -> 0.007953395342 | N12: 70.625 | O12: =IF(O$21,NA(),MIN(Wmax,psych(Pb,N12,N$2,3,4))) -> 0.00956854543 | P12: 70.625 | Q12: =IF(Q$21,NA(),MIN(Wmax,psych(Pb,P12,P$2,3,4))) -> 0.0111919993 | R12: 70.625 | S12: =IF(S$21,NA(),MIN(Wmax,psych(Pb,R12,R$2,3,4))) -> 0.01282382116 | T12: 70.625 | U12: =IF(U$21,NA(),MIN(Wmax,psych(Pb,T12,T$2,3,4))) -> 0.01446407588 | V12: 70.625 | W12: =IF(W$21,NA(),MIN(Wmax,psych(Pb,V12,V$2,3,4))) -> 0.01611282898
D13: 76.25 | E13: =IF(E$21,NA(),MIN(Wmax,psych(Pb,D13,D$2,3,4))) -> 0.001903410652 | F13: 76.25 | G13: =IF(G$21,NA(),MIN(Wmax,psych(Pb,F13,F$2,3,4))) -> 0.003818506868 | H13: 76.25 | I13: =IF(I$21,NA(),MIN(Wmax,psych(Pb,H13,H$2,3,4))) -> 0.005745396589 | J13: 76.25 | K13: =IF(K$21,NA(),MIN(Wmax,psych(Pb,J13,J$2,3,4))) -> 0.007684189093 | L13: 76.25 | M13: =IF(M$21,NA(),MIN(Wmax,psych(Pb,L13,L$2,3,4))) -> 0.009634995009 | N13: 76.25 | O13: =IF(O$21,NA(),MIN(Wmax,psych(Pb,N13,N$2,3,4))) -> 0.01159792634 | P13: 76.25 | Q13: =IF(Q$21,NA(),MIN(Wmax,psych(Pb,P13,P$2,3,4))) -> 0.0135730965 | R13: 76.25 | S13: =IF(S$21,NA(),MIN(Wmax,psych(Pb,R13,R$2,3,4))) -> 0.0155606203 | T13: 76.25 | U13: =IF(U$21,NA(),MIN(Wmax,psych(Pb,T13,T$2,3,4))) -> 0.017560614 | V13: 76.25 | W13: =IF(W$21,NA(),MIN(Wmax,psych(Pb,V13,V$2,3,4))) -> 0.01957319533
D14: 81.875 | E14: =IF(E$21,NA(),MIN(Wmax,psych(Pb,D14,D$2,3,4))) -> 0.002290923122 | F14: 81.875 | G14: =IF(G$21,NA(),MIN(Wmax,psych(Pb,F14,F$2,3,4))) -> 0.004598784831 | H14: 81.875 | I14: =IF(I$21,NA(),MIN(Wmax,psych(Pb,H14,H$2,3,4))) -> 0.006923773685 | J14: 81.875 | K14: =IF(K$21,NA(),MIN(Wmax,psych(Pb,J14,J$2,3,4))) -> 0.009266081051 | L14: 81.875 | M14: =IF(M$21,NA(),MIN(Wmax,psych(Pb,L14,L$2,3,4))) -> 0.01162590116 | N14: 81.875 | O14: =IF(O$21,NA(),MIN(Wmax,psych(Pb,N14,N$2,3,4))) -> 0.01400343114 | P14: 81.875 | Q14: =IF(Q$21,NA(),MIN(Wmax,psych(Pb,P14,P$2,3,4))) -> 0.01639887113 | R14: 81.875 | S14: =IF(S$21,NA(),MIN(Wmax,psych(Pb,R14,R$2,3,4))) -> 0.01881242424 | T14: 81.875 | U14: =IF(U$21,NA(),MIN(Wmax,psych(Pb,T14,T$2,3,4))) -> 0.02124429672 | V14: 81.875 | W14: =IF(W$21,NA(),MIN(Wmax,psych(Pb,V14,V$2,3,4))) -> 0.02369469793
D15: 87.5 | E15: =IF(E$21,NA(),MIN(Wmax,psych(Pb,D15,D$2,3,4))) -> 0.002745776806 | F15: 87.5 | G15: =IF(G$21,NA(),MIN(Wmax,psych(Pb,F15,F$2,3,4))) -> 0.005515903979 | H15: 87.5 | I15: =IF(I$21,NA(),MIN(Wmax,psych(Pb,H15,H$2,3,4))) -> 0.008310706881 | J15: 87.5 | K15: =IF(K$21,NA(),MIN(Wmax,psych(Pb,J15,J$2,3,4))) -> 0.0111305167 | L15: 87.5 | M15: =IF(M$21,NA(),MIN(Wmax,psych(Pb,L15,L$2,3,4))) -> 0.01397567056 | N15: 87.5 | O15: =IF(O$21,NA(),MIN(Wmax,psych(Pb,N15,N$2,3,4))) -> 0.01684651171 | P15: 87.5 | Q15: =IF(Q$21,NA(),MIN(Wmax,psych(Pb,P15,P$2,3,4))) -> 0.01974338958 | R15: 87.5 | S15: =IF(S$21,NA(),MIN(Wmax,psych(Pb,R15,R$2,3,4))) -> 0.02266666 | T15: 87.5 | U15: =IF(U$21,NA(),MIN(Wmax,psych(Pb,T15,T$2,3,4))) -> 0.0256166853 | V15: 87.5 | W15: =IF(W$21,NA(),MIN(Wmax,psych(Pb,V15,V$2,3,4))) -> 0.02859383447
D16: 93.125 | E16: =IF(E$21,NA(),MIN(Wmax,psych(Pb,D16,D$2,3,4))) -> 0.003277657371 | F16: 93.125 | G16: =IF(G$21,NA(),MIN(Wmax,psych(Pb,F16,F$2,3,4))) -> 0.006590042388 | H16: 93.125 | I16: =IF(I$21,NA(),MIN(Wmax,psych(Pb,H16,H$2,3,4))) -> 0.009937709913 | J16: 93.125 | K16: =IF(K$21,NA(),MIN(Wmax,psych(Pb,J16,J$2,3,4))) -> 0.01332122669 | L16: 93.125 | M16: =IF(M$21,NA(),MIN(Wmax,psych(Pb,L16,L$2,3,4))) -> 0.01674117167 | N16: 93.125 | O16: =IF(O$21,NA(),MIN(Wmax,psych(Pb,N16,N$2,3,4))) -> 0.02019813634 | P16: 93.125 | Q16: =IF(Q$21,NA(),MIN(Wmax,psych(Pb,P16,P$2,3,4))) -> 0.02369272506 | R16: 93.125 | S16: =IF(S$21,NA(),MIN(Wmax,psych(Pb,R16,R$2,3,4))) -> 0.0272255554 | T16: 93.125 | U16: =IF(U$21,NA(),MIN(Wmax,psych(Pb,T16,T$2,3,4))) -> 0.03079725856 | V16: 93.125 | W16: =IF(W$21,NA(),MIN(Wmax,psych(Pb,V16,V$2,3,4))) -> 0.03440847966
D17: 98.75 | E17: =IF(E$21,NA(),MIN(Wmax,psych(Pb,D17,D$2,3,4))) -> 0.003897361605 | F17: 98.75 | G17: =IF(G$21,NA(),MIN(Wmax,psych(Pb,F17,F$2,3,4))) -> 0.007843873361 | H17: 98.75 | I17: =IF(I$21,NA(),MIN(Wmax,psych(Pb,H17,H$2,3,4))) -> 0.01184047093 | J17: 98.75 | K17: =IF(K$21,NA(),MIN(Wmax,psych(Pb,J17,J$2,3,4))) -> 0.01588811386 | L17: 98.75 | M17: =IF(M$21,NA(),MIN(Wmax,psych(Pb,L17,L$2,3,4))) -> 0.01998778639 | N17: 98.75 | O17: =IF(O$21,NA(),MIN(Wmax,psych(Pb,N17,N$2,3,4))) -> 0.02414049822 | P17: 98.75 | Q17: =IF(Q$21,NA(),MIN(Wmax,psych(Pb,P17,P$2,3,4))) -> 0.02834728532 | R17: 98.75 | S17: =IF(S$21,NA(),MIN(Wmax,psych(Pb,R17,R$2,3,4))) -> 0.03260921086 | T17: 98.75 | U17: =IF(U$21,NA(),MIN(Wmax,psych(Pb,T17,T$2,3,4))) -> 0.03692736604 | V17: 98.75 | W17: =IF(W$21,NA(),MIN(Wmax,psych(Pb,V17,V$2,3,4))) -> 0.04
D18: 104.375 | E18: =IF(E$21,NA(),MIN(Wmax,psych(Pb,D18,D$2,3,4))) -> 0.004616899267 | F18: 104.375 | G18: =IF(G$21,NA(),MIN(Wmax,psych(Pb,F18,F$2,3,4))) -> 0.009302852737 | H18: 104.375 | I18: =IF(I$21,NA(),MIN(Wmax,psych(Pb,H18,H$2,3,4))) -> 0.01405942133 | J18: 104.375 | K18: =IF(K$21,NA(),MIN(Wmax,psych(Pb,J18,J$2,3,4))) -> 0.01888821338 | L18: 104.375 | M18: =IF(M$21,NA(),MIN(Wmax,psych(Pb,L18,L$2,3,4))) -> 0.02379088642 | N18: 104.375 | O18: =IF(O$21,NA(),MIN(Wmax,psych(Pb,N18,N$2,3,4))) -> 0.02876914909 | P18: 104.375 | Q18: =IF(Q$21,NA(),MIN(Wmax,psych(Pb,P18,P$2,3,4))) -> 0.03382476315 | R18: 104.375 | S18: =IF(S$21,NA(),MIN(Wmax,psych(Pb,R18,R$2,3,4))) -> 0.03895954553 | T18: 104.375 | U18: =IF(U$21,NA(),MIN(Wmax,psych(Pb,T18,T$2,3,4))) -> 0.04 | V18: 104.375 | W18: =IF(W$21,NA(),MIN(Wmax,psych(Pb,V18,V$2,3,4))) -> 0.04
D19: =IF(E$21,NA(),Tmax) -> 110 | E19: =IF(E$21,NA(),MIN(Wmax,psych(Pb,D19,D$2,3,4))) -> 0.00544960503 | F19: =IF(G$21,NA(),Tmax) -> 110 | G19: =IF(G$21,NA(),MIN(Wmax,psych(Pb,F19,F$2,3,4))) -> 0.01099554982 | H19: =IF(I$21,NA(),Tmax) -> 110 | I19: =IF(I$21,NA(),MIN(Wmax,psych(Pb,H19,H$2,3,4))) -> 0.01664041184 | J19: =IF(K$21,NA(),Tmax) -> 110 | K19: =IF(K$21,NA(),MIN(Wmax,psych(Pb,J19,J$2,3,4))) -> 0.02238686132 | L19: =IF(M$21,NA(),Tmax) -> 110 | M19: =IF(M$21,NA(),MIN(Wmax,psych(Pb,L19,L$2,3,4))) -> 0.02823766549 | N19: =IF(O$21,NA(),Tmax) -> 110 | O19: =IF(O$21,NA(),MIN(Wmax,psych(Pb,N19,N$2,3,4))) -> 0.03419569298 | P19: =IF(Q$21,NA(),Tmax) -> 110 | Q19: =IF(Q$21,NA(),MIN(Wmax,psych(Pb,P19,P$2,3,4))) -> 0.04 | R19: =IF(S$21,NA(),Tmax) -> 110 | S19: =IF(S$21,NA(),MIN(Wmax,psych(Pb,R19,R$2,3,4))) -> 0.04 | T19: =IF(U$21,NA(),Tmax) -> 110 | U19: =IF(U$21,NA(),MIN(Wmax,psych(Pb,T19,T$2,3,4))) -> 0.04 | V19: =IF(W$21,NA(),Tmax) -> 110 | W19: =IF(W$21,NA(),MIN(Wmax,psych(Pb,V19,V$2,3,4))) -> 0.04
D21: =IF(Wmin=0,Tmin,"Wmin must be 0") -> 20 | E21: =D21>=Tmax -> FALSE | F21: =IF(Wmin=0,Tmin,"Wmin must be 0") -> 20 | G21: =F21>=Tmax -> FALSE | H21: =IF(Wmin=0,Tmin,"Wmin must be 0") -> 20 | I21: =H21>=Tmax -> FALSE | J21: =IF(Wmin=0,Tmin,"Wmin must be 0") -> 20 | K21: =J21>=Tmax -> FALSE | L21: =IF(Wmin=0,Tmin,"Wmin must be 0") -> 20 | M21: =L21>=Tmax -> FALSE | N21: =IF(Wmin=0,Tmin,"Wmin must be 0") -> 20 | O21: =N21>=Tmax -> FALSE | P21: =IF(Wmin=0,Tmin,"Wmin must be 0") -> 20 | Q21: =P21>=Tmax -> FALSE | R21: =IF(Wmin=0,Tmin,"Wmin must be 0") -> 20 | S21: =R21>=Tmax -> FALSE | T21: =IF(Wmin=0,Tmin,"Wmin must be 0") -> 20 | U21: =T21>=Tmax -> FALSE | V21: =IF(Wmin=0,Tmin,"Wmin must be 0") -> 20 | W21: =V21>=Tmax -> FALSE
D23: Wet Bulb Lines
D24: =F24-Tdiv -> -10 | F24: =H24-Tdiv -> 0 | H24: =J24-Tdiv -> 10 | J24: =Tmin -> 20 | L24: =J24+Tdiv -> 30 | N24: =L24+Tdiv -> 40 | P24: =N24+Tdiv -> 50 | R24: =P24+Tdiv -> 60 | T24: =R24+Tdiv -> 70 | V24: =T24+Tdiv -> 80 | X24: =V24+Tdiv -> 90 | Z24: =X24+Tdiv -> 100 | AB24: =Z24+Tdiv -> 110 | AD24: =AB24+Tdiv -> 120
D25: =D24 -> -10 | E25: =psych(Pb,D25,1,3,4) -> 0.0004586949631 | F25: =F24 -> 0 | G25: =psych(Pb,F25,1,3,4) -> 0.000784059757 | H25: =H24 -> 10 | I25: =psych(Pb,H25,1,3,4) -> 0.001310294466 | J25: =J24 -> 20 | K25: =psych(Pb,J25,1,3,4) -> 0.002144199996 | L25: =L24 -> 30 | M25: =psych(Pb,L25,1,3,4) -> 0.003441157557 | N25: =N24 -> 40 | O25: =psych(Pb,N25,1,3,4) -> 0.005194743831 | P25: =P24 -> 50 | Q25: =psych(Pb,P25,1,3,4) -> 0.007630456162 | R25: =R24 -> 60 | S25: =psych(Pb,R25,1,3,4) -> 0.01104190476 | T25: =T24 -> 70 | U25: =psych(Pb,T25,1,3,4) -> 0.01576470611 | V25: =V24 -> 80 | W25: =psych(Pb,V25,1,3,4) -> 0.02224061175 | X25: =X24 -> 90 | Y25: =psych(Pb,X25,1,3,4) -> 0.0310560076 | Z25: =Z24 -> 100 | AA25: =psych(Pb,Z25,1,3,4) -> 0.04300067926 | AB25: =AB24 -> 110 | AC25: =psych(Pb,AB25,1,3,4) -> 0.05916122923 | AD25: =AD24 -> 120 | AE25: =psych(Pb,AD25,1,3,4) -> 0.08107604955
D26: =Tmax -> 110 | E26: =psych(Pb,D26,D25,1,4) -> -0.02459419681 | F26: =Tmax -> 110 | G26: =psych(Pb,F26,F25,1,4) -> -0.02239609354 | H26: =Tmax -> 110 | I26: =psych(Pb,H26,H25,1,4) -> -0.01996936593 | J26: =Tmax -> 110 | K26: =psych(Pb,J26,J25,1,4) -> -0.01720789105 | L26: =Tmax -> 110 | M26: =psych(Pb,L26,L25,1,4) -> -0.01395683599 | N26: =Tmax -> 110 | O26: =psych(Pb,N26,N25,1,4) -> -0.01021611994 | P26: =Tmax -> 110 | Q26: =psych(Pb,P26,P25,1,4) -> -0.005759269407 | R26: =Tmax -> 110 | S26: =psych(Pb,R26,R25,1,4) -> -0.0002893565674 | T26: =Tmax -> 110 | U26: =psych(Pb,T26,T25,1,4) -> 0.006536847605 | V26: =Tmax -> 110 | W26: =psych(Pb,V26,V25,1,4) -> 0.01517327811 | X26: =Tmax -> 110 | Y26: =psych(Pb,X26,X25,1,4) -> 0.02622520854 | Z26: =Tmax -> 110 | AA26: =psych(Pb,Z26,Z25,1,4) -> 0.04051117099 | AB26: =Tmax -> 110 | AC26: =psych(Pb,AB26,AB25,1,4) -> 0.05916122923 | AD26: =Tmax -> 110 | AE26: =psych(Pb,AD26,AD25,1,4) -> 0.08377979667

Sheet CZ1
A1: Date | B1: TdbºC | C1: RH% | D1: P Pa | E1: Wind m/s | F1: Windº | G1: Rain mm/hr | H1: W
A2: 1906-01-01T01:00:00 | B2: 4.9125 | C2: 86.5 | D2: 101585 | E2: 4.4875 | F2: 118.625 | G2: 0 | H2: =psych(D2,B2,0.01*C2,3,4,1) -> 0.004626890909
A3: 1906-01-01T02:00:00 | B3: 2.7 | C3: 90.375 | D3: 101590 | E3: 3.1 | F3: 110 | G3: 0 | H3: =psych(D3,B3,0.01*C3,3,4,1) -> 0.004133240207
A4: 1906-01-01T03:00:00 | B4: 2.825 | C4: 89.375 | D4: 101663.75 | E4: 3.225 | F4: 110 | G4: 0 | H4: =psych(D4,B4,0.01*C4,3,4,1) -> 0.004120882021
A5: 1906-01-01T04:00:00 | B5: 3.0875 | C5: 86.5 | D5: 101715 | E5: 3.4875 | F5: 110 | G5: 0 | H5: =psych(D5,B5,0.01*C5,3,4,1) -> 0.004060818074
A6: 1906-01-01T05:00:00 | B6: 3.3875 | C6: 84.375 | D6: 101742.5 | E6: 3.85 | F6: 110 | G6: 0 | H6: =psych(D6,B6,0.01*C6,3,4,1) -> 0.004044829999
A7: 1906-01-01T06:00:00 | B7: 3.6875 | C7: 82.75 | D7: 101750 | E7: 4.3125 | F7: 110 | G7: 0 | H7: =psych(D7,B7,0.01*C7,3,4,1) -> 0.004051559683
A8: 1906-01-01T07:00:00 | B8: 4.05 | C8: 80.125 | D8: 101768.75 | E8: 4.25 | F8: 110 | G8: 0 | H8: =psych(D8,B8,0.01*C8,3,4,1) -> 0.004023496929
A9: 1906-01-01T08:00:00 | B9: 4.575 | C9: 79.625 | D9: 101798.75 | E9: 4.5375 | F9: 111.875 | G9: 0 | H9: =psych(D9,B9,0.01*C9,3,4,1) -> 0.00414795384
A10: 1906-01-01T09:00:00 | B10: 5.175 | C10: 79.375 | D10: 101835 | E10: 5.2375 | F10: 115.5 | G10: 0 | H10: =psych(D10,B10,0.01*C10,3,4,1) -> 0.004311404105
A11: 1906-01-01T10:00:00 | B11: 5.775 | C11: 79 | D11: 101868.75 | E11: 5.9375 | F11: 118.875 | G11: 1.5 | H11: =psych(D11,B11,0.01*C11,3,4,1) -> 0.004473363711
A12: 1906-01-01T11:00:00 | B12: 6.5625 | C12: 78.375 | D12: 101867.5 | E12: 5.95 | F12: 120 | G12: 0 | H12: =psych(D12,B12,0.01*C12,3,4,1) -> 0.004687779257
A13: 1906-01-01T12:00:00 | B13: 7.525 | C13: 77.375 | D13: 101841.25 | E13: 5.6125 | F13: 120 | G13: 0 | H13: =psych(D13,B13,0.01*C13,3,4,1) -> 0.004947189804
A14: 1906-01-01T13:00:00 | B14: 8.525 | C14: 77 | D14: 101817.5 | E14: 5.25 | F14: 120 | G14: 0 | H14: =psych(D14,B14,0.01*C14,3,4,1) -> 0.00527395493
A15: 1906-01-01T14:00:00 | B15: 8.9 | C15: 77.625 | D15: 101797.5 | E15: 5.1 | F15: 128.125 | G15: 0 | H15: =psych(D15,B15,0.01*C15,3,4,1) -> 0.005456107355
A16: 1906-01-01T15:00:00 | B16: 8.9 | C16: 78 | D16: 101771.25 | E16: 5.1 | F16: 141.75 | G16: 0 | H16: =psych(D16,B16,0.01*C16,3,4,1) -> 0.005484124333
A17: 1906-01-01T16:00:00 | B17: 8.9 | C17: 78.625 | D17: 101747.5 | E17: 5.1 | F17: 155.125 | G17: 0 | H17: =psych(D17,B17,0.01*C17,3,4,1) -> 0.005529760158
A18: 1906-01-01T17:00:00 | B18: 8.9 | C18: 79 | D18: 101733.75 | E18: 5.225 | F18: 151.875 | G18: 0 | H18: =psych(D18,B18,0.01*C18,3,4,1) -> 0.005557127512
A19: 1906-01-01T18:00:00 | B19: 8.9 | C19: 79 | D19: 101723.75 | E19: 5.425 | F19: 138.25 | G19: 0 | H19: =psych(D19,B19,0.01*C19,3,4,1) -> 0.005557678689
A20: 1906-01-01T19:00:00 | B20: 8.9 | C20: 79 | D20: 101713.75 | E20: 5.625 | F20: 124.875 | G20: 0 | H20: =psych(D20,B20,0.01*C20,3,4,1) -> 0.005558229976
A21: 1906-01-01T20:00:00 | B21: 8.9 | C21: 79 | D21: 101710 | E21: 5.575 | F21: 120 | G21: 0 | H21: =psych(D21,B21,0.01*C21,3,4,1) -> 0.005558436736
A22: 1906-01-01T21:00:00 | B22: 8.9 | C22: 79 | D22: 101710 | E22: 5.375 | F22: 120 | G22: 0 | H22: =psych(D22,B22,0.01*C22,3,4,1) -> 0.005558436736
A23: 1906-01-01T22:00:00 | B23: 8.9 | C23: 79 | D23: 101710 | E23: 5.175 | F23: 120 | G23: 1.5 | H23: =psych(D23,B23,0.01*C23,3,4,1) -> 0.005558436736
A24: 1906-01-01T23:00:00 | B24: 8.8375 | C24: 79 | D24: 101697.5 | E24: 5.6625 | F24: 124.375 | G24: 0 | H24: =psych(D24,B24,0.01*C24,3,4,1) -> 0.005535477439
A25: 1906-01-01 | B25: 8.675 | C25: 79 | D25: 101671.25 | E25: 6.5 | F25: 130.75 | G25: 0 | H25: =psych(D25,B25,0.01*C25,3,4,1) -> 0.005475836153
A26: 1906-01-02T01:00:00 | B26: 8.475 | C26: 79 | D26: 101647.5 | E26: 7.3625 | F26: 137.375 | G26: 0 | H26: =psych(D26,B26,0.01*C26,3,4,1) -> 0.005402755133
A27: 1906-01-02T02:00:00 | B27: 8.3375 | C27: 78.375 | D27: 101627.5 | E27: 7.1375 | F27: 140 | G27: 0 | H27: =psych(D27,B27,0.01*C27,3,4,1) -> 0.005310497647
A28: 1906-01-02T03:00:00 | B28: 8.3625 | C28: 78 | D28: 101601.25 | E28: 6.3 | F28: 140 | G28: 0 | H28: =psych(D28,B28,0.01*C28,3,4,1) -> 0.005295305528
A29: 1906-01-02T04:00:00 | B29: 8.5875 | C29: 76.75 | D29: 101577.5 | E29: 5.4375 | F29: 140 | G29: 1.5 | H29: =psych(D29,B29,0.01*C29,3,4,1) -> 0.005291770233
A30: 1906-01-02T05:00:00 | B30: 8.7 | C30: 77.875 | D30: 101545 | E30: 5.6625 | F30: 140 | G30: 0 | H30: =psych(D30,B30,0.01*C30,3,4,1) -> 0.005413183601
A31: 1906-01-02T06:00:00 | B31: 8.7 | C31: 79.625 | D31: 101498.75 | E31: 6.5 | F31: 140 | G31: 0 | H31: =psych(D31,B31,0.01*C31,3,4,1) -> 0.005538455884
A32: 1906-01-02T07:00:00 | B32: 8.7 | C32: 81.875 | D32: 101455 | E32: 7.3625 | F32: 140 | G32: 1.5 | H32: =psych(D32,B32,0.01*C32,3,4,1) -> 0.005698870826
A33: 1906-01-02T08:00:00 | B33: 8.7 | C33: 83.625 | D33: 101440 | E33: 7.1375 | F33: 140 | G33: 0 | H33: =psych(D33,B33,0.01*C33,3,4,1) -> 0.005822687827
A34: 1906-01-02T09:00:00 | B34: 8.7 | C34: 84.625 | D34: 101440 | E34: 6.3 | F34: 140 | G34: 0 | H34: =psych(D34,B34,0.01*C34,3,4,1) -> 0.005892976079
A35: 1906-01-02T10:00:00 | B35: 8.7 | C35: 85.625 | D35: 101440 | E35: 5.4375 | F35: 140 | G35: 1.5 | H35: =psych(D35,B35,0.01*C35,3,4,1) -> 0.005963280073
A36: 1906-01-02T11:00:00 | B36: 8.825 | C36: 87.875 | D36: 101408.75 | E36: 5.35 | F36: 146.25 | G36: 0 | H36: =psych(D36,B36,0.01*C36,3,4,1) -> 0.006175954592
A37: 1906-01-02T12:00:00 | B37: 9.0875 | C37: 91.5 | D37: 101365 | E37: 5.6875 | F37: 156.25 | G37: 0 | H37: =psych(D37,B37,0.01*C37,3,4,1) -> 0.006552536452
A38: 1906-01-02T13:00:00 | B38: 9.325 | C38: 94.875 | D38: 101318.75 | E38: 6.05 | F38: 166.25 | G38: 1.5 | H38: =psych(D38,B38,0.01*C38,3,4,1) -> 0.006910992829
A39: 1906-01-02T14:00:00 | B39: 9.5875 | C39: 95.375 | D39: 101256.25 | E39: 5.95 | F39: 165.625 | G39: 0 | H39: =psych(D39,B39,0.01*C39,3,4,1) -> 0.007077458775
A40: 1906-01-02T15:00:00 | B40: 9.7625 | C40: 94.375 | D40: 101192.5 | E40: 5.6125 | F40: 159.25 | G40: 0 | H40: =psych(D40,B40,0.01*C40,3,4,1) -> 0.007090675824
A41: 1906-01-02T16:00:00 | B41: 9.925 | C41: 93.375 | D41: 101126.25 | E41: 5.25 | F41: 152.625 | G41: 1.5 | H41: =psych(D41,B41,0.01*C41,3,4,1) -> 0.007097156387
A42: 1906-01-02T17:00:00 | B42: 10 | C42: 93 | D42: 101087.5 | E42: 4.7875 | F42: 150 | G42: 0 | H42: =psych(D42,B42,0.01*C42,3,4,1) -> 0.007107108968
A43: 1906-01-02T18:00:00 | B43: 10 | C43: 93 | D43: 101061.25 | E43: 4.2875 | F43: 150 | G43: 0 | H43: =psych(D43,B43,0.01*C43,3,4,1) -> 0.007108976093
A44: 1906-01-02T19:00:00 | B44: 10 | C44: 93 | D44: 101037.5 | E44: 3.7875 | F44: 150 | G44: 1.5 | H44: =psych(D44,B44,0.01*C44,3,4,1) -> 0.007110666241
A45: 1906-01-02T20:00:00 | B45: 9.875 | C45: 93.625 | D45: 101023.75 | E45: 4.35 | F45: 148.125 | G45: 0 | H45: =psych(D45,B45,0.01*C45,3,4,1) -> 0.007099563481
A46: 1906-01-02T21:00:00 | B46: 9.7375 | C46: 94.625 | D46: 101013.75 | E46: 5.55 | F46: 144.5 | G46: 0 | H46: =psych(D46,B46,0.01*C46,3,4,1) -> 0.007110318714
A47: 1906-01-02T22:00:00 | B47: 9.5125 | C47: 95.625 | D47: 101003.75 | E47: 6.75 | F47: 141.125 | G47: 1.5 | H47: =psych(D47,B47,0.01*C47,3,4,1) -> 0.007077971391
A48: 1906-01-02T23:00:00 | B48: 9.2125 | C48: 96.625 | D48: 100981.25 | E48: 6.7625 | F48: 140 | G48: 0 | H48: =psych(D48,B48,0.01*C48,3,4,1) -> 0.007009755182
A49: 1906-01-02 | B49: 8.9125 | C49: 98.25 | D49: 100945 | E49: 6.0625 | F49: 140 | G49: 0 | H49: =psych(D49,B49,0.01*C49,3,4,1) -> 0.006987010834
A50: 1906-01-03T01:00:00 | B50: 8.675 | C50: 99.625 | D50: 100911.25 | E50: 5.3625 | F50: 140 | G50: 1.5 | H50: =psych(D50,B50,0.01*C50,3,4,1) -> 0.00697406564
A51: 1906-01-03T02:00:00 | B51: 8.6 | C51: 99.375 | D51: 100868.75 | E51: 4.9125 | F51: 135.625 | G51: 0 | H51: =psych(D51,B51,0.01*C51,3,4,1) -> 0.006923677502
A52: 1906-01-03T03:00:00 | B52: 8.725 | C52: 97.75 | D52: 100825 | E52: 4.55 | F52: 129.25 | G52: 0 | H52: =psych(D52,B52,0.01*C52,3,4,1) -> 0.006870755813
A53: 1906-01-03T04:00:00 | B53: 8.925 | C53: 96.375 | D53: 100778.75 | E53: 4.2125 | F53: 122.625 | G53: 1.5 | H53: =psych(D53,B53,0.01*C53,3,4,1) -> 0.006869494974
A54: 1906-01-03T05:00:00 | B54: 9.375 | C54: 95.375 | D54: 100735 | E54: 4.2875 | F54: 130.625 | G54: 0 | H54: =psych(D54,B54,0.01*C54,3,4,1) -> 0.007012373917
A55: 1906-01-03T06:00:00 | B55: 10.0375 | C55: 94.375 | D55: 100688.75 | E55: 4.65 | F55: 147 | G55: 0 | H55: =psych(D55,B55,0.01*C55,3,4,1) -> 0.007260733977
A56: 1906-01-03T07:00:00 | B56: 10.6125 | C56: 93.375 | D56: 100645 | E56: 4.9875 | F56: 163.625 | G56: 1.5 | H56: =psych(D56,B56,0.01*C56,3,4,1) -> 0.007470947816
A57: 1906-01-03T08:00:00 | B57: 10.8 | C57: 93.625 | D57: 100630 | E57: 5.4125 | F57: 171.875 | G57: 0 | H57: =psych(D57,B57,0.01*C57,3,4,1) -> 0.007587650717
A58: 1906-01-03T09:00:00 | B58: 10.8 | C58: 94.625 | D58: 100630 | E58: 5.975 | F58: 175.5 | G58: 0 | H58: =psych(D58,B58,0.01*C58,3,4,1) -> 0.007669693064
A59: 1906-01-03T10:00:00 | B59: 10.8 | C59: 96.25 | D59: 100630 | E59: 6.5125 | F59: 178.875 | G59: 1.5 | H59: =psych(D59,B59,0.01*C59,3,4,1) -> 0.007803057493
A60: 1906-01-03T11:00:00 | B60: 10.925 | C60: 95.75 | D60: 100580 | E60: 6.8875 | F60: 175.625 | G60: 0 | H60: =psych(D60,B60,0.01*C60,3,4,1) -> 0.007831603065
A61: 1906-01-03T12:00:00 | B61: 11.1875 | C61: 94.375 | D61: 100500 | E61: 7.25 | F61: 169.25 | G61: 0 | H61: =psych(D61,B61,0.01*C61,3,4,1) -> 0.007861568996
A62: 1906-01-03T13:00:00 | B62: 11.425 | C62: 93.375 | D62: 100420 | E62: 7.5875 | F62: 162.625 | G62: 1.5 | H62: =psych(D62,B62,0.01*C62,3,4,1) -> 0.00790861402
A63: 1906-01-03T14:00:00 | B63: 11.5 | C63: 93 | D63: 100340 | E63: 7.2625 | F63: 161.875 | G63: 0 | H63: =psych(D63,B63,0.01*C63,3,4,1) -> 0.007922559822
A64: 1906-01-03T15:00:00 | B64: 11.5 | C64: 93 | D64: 100260 | E64: 6.625 | F64: 165.5 | G64: 0 | H64: =psych(D64,B64,0.01*C64,3,4,1) -> 0.007928962021
A65: 1906-01-03T16:00:00 | B65: 11.5 | C65: 93 | D65: 100180 | E65: 5.9625 | F65: 168.875 | G65: 1.5 | H65: =psych(D65,B65,0.01*C65,3,4,1) -> 0.007935374576
A66: 1906-01-03T17:00:00 | B66: 11.8125 | C66: 94.25 | D66: 100125 | E66: 6.1375 | F66: 171.875 | G66: 0 | H66: =psych(D66,B66,0.01*C66,3,4,1) -> 0.008218135131
A67: 1906-01-03T18:00:00 | B67: 12.1875 | C67: 96.875 | D67: 100078.75 | E67: 6.775 | F67: 175.5 | G67: 0 | H67: =psych(D67,B67,0.01*C67,3,4,1) -> 0.008668705458
A68: 1906-01-03T19:00:00 | B68: 12.55 | C68: 99.25 | D68: 100035 | E68: 7.4375 | F68: 178.875 | G68: 1.5 | H68: =psych(D68,B68,0.01*C68,3,4,1) -> 0.00910573758
A69: 1906-01-03T20:00:00 | B69: 12.7 | C69: 100 | D69: 99995 | E69: 8.2625 | F69: 181.875 | G69: 0 | H69: =psych(D69,B69,0.01*C69,3,4,1) -> 0.00927143505
A70: 1906-01-03T21:00:00 | B70: 12.7 | C70: 100 | D70: 99961.25 | E70: 9.1 | F70: 185.5 | G70: 0 | H70: =psych(D70,B70,0.01*C70,3,4,1) -> 0.00927461205
A71: 1906-01-03T22:00:00 | B71: 12.7 | C71: 100 | D71: 99925 | E71: 9.9625 | F71: 188.875 | G71: 1.5 | H71: =psych(D71,B71,0.01*C71,3,4,1) -> 0.00927802681
A72: 1906-01-03T23:00:00 | B72: 12.7625 | C72: 99.375 | D72: 99891.25 | E72: 9.7375 | F72: 188.125 | G72: 0 | H72: =psych(D72,B72,0.01*C72,3,4,1) -> 0.009260772359
A73: 1906-01-03 | B73: 12.8625 | C73: 97.75 | D73: 99855 | E73: 8.9 | F73: 184.5 | G73: 0 | H73: =psych(D73,B73,0.01*C73,3,4,1) -> 0.009171247427
A74: 1906-01-04T01:00:00 | B74: 12.9 | C74: 96.375 | D74: 99821.25 | E74: 8.0375 | F74: 181.125 | G74: 1.5 | H74: =psych(D74,B74,0.01*C74,3,4,1) -> 0.009066025528
A75: 1906-01-04T02:00:00 | B75: 12.775 | C75: 96.625 | D75: 99841.25 | E75: 7.1375 | F75: 188.125 | G75: 0 | H75: =psych(D75,B75,0.01*C75,3,4,1) -> 0.009012851691
A76: 1906-01-04T03:00:00 | B76: 12.5125 | C76: 98.25 | D76: 99885 | E76: 6.3 | F76: 201.75 | G76: 0 | H76: =psych(D76,B76,0.01*C76,3,4,1) -> 0.009003872111
A77: 1906-01-04T04:00:00 | B77: 12.0875 | C77: 99.625 | D77: 99931.25 | E77: 5.4375 | F77: 215.125 | G77: 1.5 | H77: =psych(D77,B77,0.01*C77,3,4,1) -> 0.008872188436
A78: 1906-01-04T05:00:00 | B78: 11.775 | C78: 98.125 | D78: 99968.75 | E78: 4.9125 | F78: 203.125 | G78: 0 | H78: =psych(D78,B78,0.01*C78,3,4,1) -> 0.008552728096
A79: 1906-01-04T06:00:00 | B79: 11.575 | C79: 95.75 | D79: 100005 | E79: 4.55 | F79: 176.75 | G79: 0 | H79: =psych(D79,B79,0.01*C79,3,4,1) -> 0.008228879135
A80: 1906-01-04T07:00:00 | B80: 11.3125 | C80: 93.75 | D80: 100038.75 | E80: 4.2125 | F80: 150.125 | G80: 1.5 | H80: =psych(D80,B80,0.01*C80,3,4,1) -> 0.007911465627
A81: 1906-01-04T08:00:00 | B81: 11.075 | C81: 94.25 | D81: 100062.5 | E81: 3.225 | F81: 110.625 | G81: 0 | H81: =psych(D81,B81,0.01*C81,3,4,1) -> 0.007826361954
A82: 1906-01-04T09:00:00 | B82: 10.875 | C82: 96.25 | D82: 100088.75 | E82: 1.8875 | F82: 64.25 | G82: 0 | H82: =psych(D82,B82,0.01*C82,3,4,1) -> 0.007885544698
A83: 1906-01-04T10:00:00 | B83: 10.6125 | C83: 98.875 | D83: 100112.5 | E83: 0.525 | F83: 17.625 | G83: 1.5 | H83: =psych(D83,B83,0.01*C83,3,4,1) -> 0.007959252101
A84: 1906-01-04T11:00:00 | B84: 10.6875 | C84: 98.125 | D84: 100107.5 | E84: 0 | F84: 0 | G84: 0 | H84: =psych(D84,B84,0.01*C84,3,4,1) -> 0.007938600078
A85: 1906-01-04T12:00:00 | B85: 10.925 | C85: 95.75 | D85: 100081.25 | E85: 0 | F85: 0 | G85: 0 | H85: =psych(D85,B85,0.01*C85,3,4,1) -> 0.007871125377
A86: 1906-01-04T13:00:00 | B86: 11.125 | C86: 93.75 | D86: 100057.5 | E86: 0 | F86: 0 | G86: 1.5 | H86: =psych(D86,B86,0.01*C86,3,4,1) -> 0.007810936461
A87: 1906-01-04T14:00:00 | B87: 11.5125 | C87: 93 | D87: 100056.25 | E87: 1.0625 | F87: 25 | G87: 0 | H87: =psych(D87,B87,0.01*C87,3,4,1) -> 0.007951976192
A88: 1906-01-04T15:00:00 | B88: 11.8875 | C88: 93 | D88: 100066.25 | E88: 2.7625 | F88: 65 | G88: 0 | H88: =psych(D88,B88,0.01*C88,3,4,1) -> 0.008153340522
A89: 1906-01-04T16:00:00 | B89: 12.3125 | C89: 93 | D89: 100076.25 | E89: 4.4625 | F89: 105 | G89: 0 | H89: =psych(D89,B89,0.01*C89,3,4,1) -> 0.008387164871
A90: 1906-01-04T17:00:00 | B90: 12.1875 | C90: 94.25 | D90: 100092.5 | E90: 4.0375 | F90: 95 | G90: 0 | H90: =psych(D90,B90,0.01*C90,3,4,1) -> 0.008429453798
A91: 1906-01-04T18:00:00 | B91: 11.8125 | C91: 96.25 | D91: 100118.75 | E91: 2.3375 | F91: 55 | G91: 0 | H91: =psych(D91,B91,0.01*C91,3,4,1) -> 0.008395410146
A92: 1906-01-04T19:00:00 | B92: 11.3875 | C92: 98.875 | D92: 100142.5 | E92: 0.6375 | F92: 15 | G92: 1.5 | H92: =psych(D92,B92,0.01*C92,3,4,1) -> 0.00838312754
A93: 1906-01-04T20:00:00 | B93: 11.5125 | C93: 99.375 | D93: 100181.25 | E93: 0.625 | F93: 31.25 | G93: 0 | H93: =psych(D93,B93,0.01*C93,3,4,1) -> 0.008493768256
A94: 1906-01-04T21:00:00 | B94: 11.8875 | C94: 98.375 | D94: 100225 | E94: 1.6875 | F94: 81.25 | G94: 0 | H94: =psych(D94,B94,0.01*C94,3,4,1) -> 0.008617247155
A95: 1906-01-04T22:00:00 | B95: 12.3125 | C95: 97.375 | D95: 100271.25 | E95: 2.725 | F95: 131.25 | G95: 1.5 | H95: =psych(D95,B95,0.01*C95,3,4,1) -> 0.008769966813
A96: 1906-01-04T23:00:00 | B96: 12.75 | C96: 97 | D96: 100315 | E96: 2.475 | F96: 118.75 | G96: 0 | H96: =psych(D96,B96,0.01*C96,3,4,1) -> 0.008990031444
A97: 1906-01-04 | B97: 13.025 | C97: 97 | D97: 100361.25 | E97: 1.4125 | F97: 68.75 | G97: 0 | H97: =psych(D97,B97,0.01*C97,3,4,1) -> 0.009151510234
A98: 1906-01-05T01:00:00 | B98: 13.1625 | C98: 97 | D98: 100405 | E98: 0.375 | F98: 18.75 | G98: 1.5 | H98: =psych(D98,B98,0.01*C98,3,4,1) -> 0.009231288632
A99: 1906-01-05T02:00:00 | B99: 13.2625 | C99: 96.375 | D99: 100463.75 | E99: 1.0625 | F99: 31.25 | G99: 0 | H99: =psych(D99,B99,0.01*C99,3,4,1) -> 0.009226440412
A100: 1906-01-05T03:00:00 | B100: 13.3 | C100: 94.75 | D100: 100533.75 | E100: 2.7625 | F100: 81.25 | G100: 0 | H100: =psych(D100,B100,0.01*C100,3,4,1) -> 0.009084732388
A101: 1906-01-05T04:00:00 | B101: 13.3 | C101: 93.375 | D101: 100603.75 | E101: 4.4625 | F101: 131.25 | G101: 1.5 | H101: =psych(D101,B101,0.01*C101,3,4,1) -> 0.008944680963
A102: 1906-01-05T05:00:00 | B102: 13.1125 | C102: 93 | D102: 100655 | E102: 4.6 | F102: 141.875 | G102: 0 | H102: =psych(D102,B102,0.01*C102,3,4,1) -> 0.008793732439
A103: 1906-01-05T06:00:00 | B103: 12.9375 | C103: 93 | D103: 100701.25 | E103: 3.7375 | F103: 128.25 | G103: 0 | H103: =psych(D103,B103,0.01*C103,3,4,1) -> 0.008688198157
A104: 1906-01-05T07:00:00 | B104: 12.775 | C104: 93 | D104: 100745 | E104: 2.9 | F104: 114.875 | G104: 0 | H104: =psych(D104,B104,0.01*C104,3,4,1) -> 0.008591160642
A105: 1906-01-05T08:00:00 | B105: 13.075 | C105: 91.75 | D105: 100791.25 | E105: 3.1 | F105: 118.125 | G105: 0 | H105: =psych(D105,B105,0.01*C105,3,4,1) -> 0.008640495803
A106: 1906-01-05T09:00:00 | B106: 13.7375 | C106: 89.125 | D106: 100835 | E106: 3.9625 | F106: 131.75 | G106: 0 | H106: =psych(D106,B106,0.01*C106,3,4,1) -> 0.008761749013
A107: 1906-01-05T10:00:00 | B107: 14.375 | C107: 87.375 | D107: 100881.25 | E107: 4.8 | F107: 145.125 | G107: 1.5 | H107: =psych(D107,B107,0.01*C107,3,4,1) -> 0.008951030125
A108: 1906-01-05T11:00:00 | B108: 14.725 | C108: 88.25 | D108: 100912.5 | E108: 4.9125 | F108: 156.25 | G108: 0 | H108: =psych(D108,B108,0.01*C108,3,4,1) -> 0.009249007791
A109: 1906-01-05T12:00:00 | B109: 14.9875 | C109: 90.25 | D109: 100932.5 | E109: 4.55 | F109: 166.25 | G109: 0 | H109: =psych(D109,B109,0.01*C109,3,4,1) -> 0.009623870124
A110: 1906-01-05T13:00:00 | B110: 15.225 | C110: 92.25 | D110: 100952.5 | E110: 4.2125 | F110: 176.25 | G110: 1.5 | H110: =psych(D110,B110,0.01*C110,3,4,1) -> 0.009992485784
A111: 1906-01-05T14:00:00 | B111: 15.3 | C111: 93 | D111: 100985 | E111: 4.2875 | F111: 180 | G111: 0 | H111: =psych(D111,B111,0.01*C111,3,4,1) -> 0.01012120416
A112: 1906-01-05T15:00:00 | B112: 15.3 | C112: 93 | D112: 101018.75 | E112: 4.65 | F112: 180 | G112: 0 | H112: =psych(D112,B112,0.01*C112,3,4,1) -> 0.0101177677
A113: 1906-01-05T16:00:00 | B113: 15.3 | C113: 93 | D113: 101055 | E113: 4.9875 | F113: 180 | G113: 1.5 | H113: =psych(D113,B113,0.01*C113,3,4,1) -> 0.01011407928
A114: 1906-01-05T17:00:00 | B114: 15.175 | C114: 93.625 | D114: 101095 | E114: 5.4125 | F114: 175.625 | G114: 0 | H114: =psych(D114,B114,0.01*C114,3,4,1) -> 0.01009628087
A115: 1906-01-05T18:00:00 | B115: 14.9125 | C115: 95.25 | D115: 101141.25 | E115: 5.975 | F115: 169.25 | G115: 0 | H115: =psych(D115,B115,0.01*C115,3,4,1) -> 0.01009474478
A116: 1906-01-05T19:00:00 | B116: 14.675 | C116: 96.625 | D116: 101185 | E116: 6.5125 | F116: 162.625 | G116: 1.5 | H116: =psych(D116,B116,0.01*C116,3,4,1) -> 0.01008018423
A117: 1906-01-05T20:00:00 | B117: 14.475 | C117: 97 | D117: 101237.5 | E117: 5.825 | F117: 164.375 | G117: 0 | H117: =psych(D117,B117,0.01*C117,3,4,1) -> 0.009982648016
A118: 1906-01-05T21:00:00 | B118: 14.275 | C118: 96.375 | D118: 101291.25 | E118: 4.4875 | F118: 170.75 | G118: 0 | H118: =psych(D118,B118,0.01*C118,3,4,1) -> 0.009782477305
A119: 1906-01-05T22:00:00 | B119: 14.075 | C119: 96 | D119: 101347.5 | E119: 3.125 | F119: 177.375 | G119: 1.5 | H119: =psych(D119,B119,0.01*C119,3,4,1) -> 0.00961095053
A120: 1906-01-05T23:00:00 | B120: 13.9375 | C120: 96 | D120: 101413.75 | E120: 2.7875 | F120: 173.75 | G120: 0 | H120: =psych(D120,B120,0.01*C120,3,4,1) -> 0.009517931928
A121: 1906-01-05 | B121: 13.9 | C121: 96 | D121: 101477.5 | E121: 3.15 | F121: 163.75 | G121: 0 | H121: =psych(D121,B121,0.01*C121,3,4,1) -> 0.009488368252
A122: 1906-01-06T01:00:00 | B122: 13.9625 | C122: 96 | D122: 101543.75 | E122: 3.4875 | F122: 153.75 | G122: 1.5 | H122: =psych(D122,B122,0.01*C122,3,4,1) -> 0.009521240815
A123: 1906-01-06T02:00:00 | B123: 14.0625 | C123: 96 | D123: 101601.25 | E123: 3.9125 | F123: 154.375 | G123: 0 | H123: =psych(D123,B123,0.01*C123,3,4,1) -> 0.00957868643
A124: 1906-01-06T03:00:00 | B124: 14.1 | C124: 96 | D124: 101645 | E124: 4.4125 | F124: 160.75 | G124: 0 | H124: =psych(D124,B124,0.01*C124,3,4,1) -> 0.009598179178
A125: 1906-01-06T04:00:00 | B125: 14.1 | C125: 96 | D125: 101691.25 | E125: 4.9125 | F125: 167.375 | G125: 1.5 | H125: =psych(D125,B125,0.01*C125,3,4,1) -> 0.009593746516
A126: 1906-01-06T05:00:00 | B126: 14.225 | C126: 95.375 | D126: 101728.75 | E126: 4.6 | F126: 163.75 | G126: 0 | H126: =psych(D126,B126,0.01*C126,3,4,1) -> 0.009605473732
A127: 1906-01-06T06:00:00 | B127: 14.3625 | C127: 94.375 | D127: 101765 | E127: 3.7375 | F127: 153.75 | G127: 0 | H127: =psych(D127,B127,0.01*C127,3,4,1) -> 0.009586064637
A128: 1906-01-06T07:00:00 | B128: 14.525 | C128: 93.375 | D128: 101798.75 | E128: 2.9 | F128: 143.75 | G128: 0 | H128: =psych(D128,B128,0.01*C128,3,4,1) -> 0.009581462489
A129: 1906-01-06T08:00:00 | B129: 15.225 | C129: 91.75 | D129: 101828.75 | E129: 2.475 | F129: 144.375 | G129: 0 | H129: =psych(D129,B129,0.01*C129,3,4,1) -> 0.009850593161
A130: 1906-01-06T09:00:00 | B130: 16.1 | C130: 89.75 | D130: 101865 | E130: 2.3375 | F130: 150.75 | G130: 0 | H130: =psych(D130,B130,0.01*C130,3,4,1) -> 0.01019338947
A131: 1906-01-06T10:00:00 | B131: 16.9625 | C131: 87.125 | D131: 101898.75 | E131: 2.175 | F131: 157.375 | G131: 0 | H131: =psych(D131,B131,0.01*C131,3,4,1) -> 0.01045439666
A132: 1906-01-06T11:00:00 | B132: 16.9875 | C132: 86 | D132: 101903.75 | E132: 1.6625 | F132: 126.875 | G132: 0 | H132: =psych(D132,B132,0.01*C132,3,4,1) -> 0.01033329148
A133: 1906-01-06T12:00:00 | B133: 16.55 | C133: 86.625 | D133: 101893.75 | E133: 0.9625 | F133: 73.25 | G133: 0 | H133: =psych(D133,B133,0.01*C133,3,4,1) -> 0.01012072087
A134: 1906-01-06T13:00:00 | B134: 16.0875 | C134: 87 | D134: 101883.75 | E134: 0.2625 | F134: 19.875 | G134: 0 | H134: =psych(D134,B134,0.01*C134,3,4,1) -> 0.009866248319
A135: 1906-01-06T14:00:00 | B135: 15.9 | C135: 87 | D135: 101873.75 | E135: 0.625 | F135: 33.125 | G135: 0 | H135: =psych(D135,B135,0.01*C135,3,4,1) -> 0.009747867695
A136: 1906-01-06T15:00:00 | B136: 15.9 | C136: 87 | D136: 101857.5 | E136: 1.6875 | F136: 86.75 | G136: 0 | H136: =psych(D136,B136,0.01*C136,3,4,1) -> 0.009749447213
A137: 1906-01-06T16:00:00 | B137: 15.9 | C137: 87 | D137: 101843.75 | E137: 2.725 | F137: 140.125 | G137: 0 | H137: =psych(D137,B137,0.01*C137,3,4,1) -> 0.009750784129
A138: 1906-01-06T17:00:00 | B138: 15.5875 | C138: 87.625 | D138: 101827.5 | E138: 2.475 | F138: 126.875 | G138: 0 | H138: =psych(D138,B138,0.01*C138,3,4,1) -> 0.009625914664
A139: 1906-01-06T18:00:00 | B139: 15.2125 | C139: 88.625 | D139: 101807.5 | E139: 1.4125 | F139: 73.25 | G139: 0 | H139: =psych(D139,B139,0.01*C139,3,4,1) -> 0.009504209921
A140: 1906-01-06T19:00:00 | B140: 14.7875 | C140: 89.625 | D140: 101787.5 | E140: 0.375 | F140: 19.875 | G140: 0 | H140: =psych(D140,B140,0.01*C140,3,4,1) -> 0.009351517594
A141: 1906-01-06T20:00:00 | B141: 13.975 | C141: 91.875 | D141: 101761.25 | E141: 0 | F141: 0 | G141: 0 | H141: =psych(D141,B141,0.01*C141,3,4,1) -> 0.009093873139
A142: 1906-01-06T21:00:00 | B142: 12.975 | C142: 95.5 | D142: 101725 | E142: 0 | F142: 0 | G142: 0 | H142: =psych(D142,B142,0.01*C142,3,4,1) -> 0.008856022776
A143: 1906-01-06T22:00:00 | B143: 11.9125 | C143: 98.875 | D143: 101691.25 | E143: 0 | F143: 0 | G143: 0 | H143: =psych(D143,B143,0.01*C143,3,4,1) -> 0.008549339155
A144: 1906-01-06T23:00:00 | B144: 11.125 | C144: 100 | D144: 101636.25 | E144: 0 | F144: 0 | G144: 0 | H144: =psych(D144,B144,0.01*C144,3,4,1) -> 0.008207410584
A145: 1906-01-06 | B145: 10.65 | C145: 100 | D145: 101566.25 | E145: 0 | F145: 0 | G145: 0 | H145: =psych(D145,B145,0.01*C145,3,4,1) -> 0.007954391875
A146: 1906-01-07T01:00:00 | B146: 10.4375 | C146: 100 | D146: 101496.25 | E146: 0 | F146: 0 | G146: 0 | H146: =psych(D146,B146,0.01*C146,3,4,1) -> 0.007846492002
A147: 1906-01-07T02:00:00 | B147: 10.275 | C147: 100 | D147: 101463.75 | E147: 0 | F147: 0 | G147: 0 | H147: =psych(D147,B147,0.01*C147,3,4,1) -> 0.007763227047
A148: 1906-01-07T03:00:00 | B148: 9.95 | C148: 100 | D148: 101453.75 | E148: 0 | F148: 0 | G148: 0 | H148: =psych(D148,B148,0.01*C148,3,4,1) -> 0.00759487846
A149: 1906-01-07T04:00:00 | B149: 9.55 | C149: 100 | D149: 101443.75 | E149: 0 | F149: 0 | G149: 0 | H149: =psych(D149,B149,0.01*C149,3,4,1) -> 0.007391992766
A150: 1906-01-07T05:00:00 | B150: 9.65 | C150: 99.375 | D150: 101383.75 | E150: 0.75 | F150: 25 | G150: 0 | H150: =psych(D150,B150,0.01*C150,3,4,1) -> 0.007399800753
A151: 1906-01-07T06:00:00 | B151: 10.05 | C151: 98.375 | D151: 101293.75 | E151: 1.95 | F151: 65 | G151: 0 | H151: =psych(D151,B151,0.01*C151,3,4,1) -> 0.007532826232
A152: 1906-01-07T07:00:00 | B152: 10.45 | C152: 97.375 | D152: 101203.75 | E152: 3.15 | F152: 105 | G152: 0 | H152: =psych(D152,B152,0.01*C152,3,4,1) -> 0.007666813836
A153: 1906-01-07T08:00:00 | B153: 11.0375 | C153: 94.5 | D153: 101151.25 | E153: 3.2875 | F153: 151.25 | G153: 0 | H153: =psych(D153,B153,0.01*C153,3,4,1) -> 0.007742308799
A154: 1906-01-07T09:00:00 | B154: 11.675 | C154: 91.125 | D154: 101115 | E154: 2.7875 | F154: 201.25 | G154: 0 | H154: =psych(D154,B154,0.01*C154,3,4,1) -> 0.007791416098
A155: 1906-01-07T10:00:00 | B155: 12.3375 | C155: 87.5 | D155: 101081.25 | E155: 2.2875 | F155: 251.25 | G155: 0 | H155: =psych(D155,B155,0.01*C155,3,4,1) -> 0.007818489683
A156: 1906-01-07T11:00:00 | B156: 12.85 | C156: 87.875 | D156: 101026.25 | E156: 1.6625 | F156: 288.75 | G156: 0 | H156: =psych(D156,B156,0.01*C156,3,4,1) -> 0.008129040008
A157: 1906-01-07T12:00:00 | B157: 13.25 | C157: 92.125 | D157: 100956.25 | E157: 0.9625 | F157: 318.75 | G157: 0 | H157: =psych(D157,B157,0.01*C157,3,4,1) -> 0.008762943165
A158: 1906-01-07T13:00:00 | B158: 13.65 | C158: 95.875 | D158: 100886.25 | E158: 0.2625 | F158: 123.75 | G158: 0 | H158: =psych(D158,B158,0.01*C158,3,4,1) -> 0.009376186146
A159: 1906-01-07T14:00:00 | B159: 13.8 | C159: 97 | D159: 100810 | E159: 0 | F159: 0 | G159: 0 | H159: =psych(D159,B159,0.01*C159,3,4,1) -> 0.009589710758
A160: 1906-01-07T15:00:00 | B160: 13.8 | C160: 97 | D160: 100736.25 | E160: 0 | F160: 0 | G160: 0 | H160: =psych(D160,B160,0.01*C160,3,4,1) -> 0.009596839806
A161: 1906-01-07T16:00:00 | B161: 13.8 | C161: 97 | D161: 100660 | E161: 0 | F161: 0 | G161: 0 | H161: =psych(D161,B161,0.01*C161,3,4,1) -> 0.00960422167
A162: 1906-01-07T17:00:00 | B162: 13.675 | C162: 97 | D162: 100617.5 | E162: 1.0625 | F162: 187.5 | G162: 0 | H162: =psych(D162,B162,0.01*C162,3,4,1) -> 0.00952934409
A163: 1906-01-07T18:00:00 | B163: 13.5375 | C163: 96.375 | D163: 100591.25 | E163: 2.7625 | F163: 262.5 | G163: 0 | H163: =psych(D163,B163,0.01*C163,3,4,1) -> 0.009383842389
A164: 1906-01-07T19:00:00 | B164: 13.375 | C164: 96 | D164: 100567.5 | E164: 4.4625 | F164: 202.5 | G164: 0 | H164: =psych(D164,B164,0.01*C164,3,4,1) -> 0.009249042579
A165: 1906-01-07T20:00:00 | B165: 13.425 | C165: 93.5 | D165: 100572.5 | E165: 5.35 | F165: 178.125 | G165: 0 | H165: =psych(D165,B165,0.01*C165,3,4,1) -> 0.009034077942
A166: 1906-01-07T21:00:00 | B166: 13.5625 | C166: 90.75 | D166: 100598.75 | E166: 5.6875 | F166: 174.5 | G166: 0 | H166: =psych(D166,B166,0.01*C166,3,4,1) -> 0.008842298201
A167: 1906-01-07T22:00:00 | B167: 13.725 | C167: 88.125 | D167: 100622.5 | E167: 6.05 | F167: 171.125 | G167: 1.5 | H167: =psych(D167,B167,0.01*C167,3,4,1) -> 0.00867346596
A168: 1906-01-07T23:00:00 | B168: 13.7375 | C168: 88.25 | D168: 100698.75 | E168: 5.7625 | F168: 171.875 | G168: 0 | H168: =psych(D168,B168,0.01*C168,3,4,1) -> 0.008686430298
A169: 1906-01-07 | B169: 13.45 | C169: 91.5 | D169: 100808.75 | E169: 5.0625 | F169: 175.5 | G169: 0 | H169: =psych(D169,B169,0.01*C169,3,4,1) -> 0.008831671174
A170: 1906-01-08T01:00:00 | B170: 12.925 | C170: 94.875 | D170: 100918.75 | E170: 4.3625 | F170: 178.875 | G170: 1.5 | H170: =psych(D170,B170,0.01*C170,3,4,1) -> 0.008839142367
A171: 1906-01-08T02:00:00 | B171: 12.3875 | C171: 95.375 | D171: 101010 | E171: 3.6625 | F171: 203.125 | G171: 0 | H171: =psych(D171,B171,0.01*C171,3,4,1) -> 0.008566410478
A172: 1906-01-08T03:00:00 | B172: 11.8875 | C172: 94.375 | D172: 101090 | E172: 3.025 | F172: 239.5 | G172: 0 | H172: =psych(D172,B172,0.01*C172,3,4,1) -> 0.008190580646
A173: 1906-01-08T04:00:00 | B173: 11.45 | C173: 93.375 | D173: 101170 | E173: 2.3625 | F173: 276.125 | G173: 0 | H173: =psych(D173,B173,0.01*C173,3,4,1) -> 0.00786241863
A174: 1906-01-08T05:00:00 | B174: 10.675 | C174: 93.625 | D174: 101237.5 | E174: 1.6625 | F174: 304.375 | G174: 0 | H174: =psych(D174,B174,0.01*C174,3,4,1) -> 0.00747828585
A175: 1906-01-08T06:00:00 | B175: 9.675 | C175: 94.625 | D175: 101291.25 | E175: 0.9625 | F175: 328 | G175: 0 | H175: =psych(D175,B175,0.01*C175,3,4,1) -> 0.007060581195
A176: 1906-01-08T07:00:00 | B176: 8.7375 | C176: 95.625 | D176: 101347.5 | E176: 0.2625 | F176: 126.375 | G176: 0 | H176: =psych(D176,B176,0.01*C176,3,4,1) -> 0.006690480128
A177: 1906-01-08T08:00:00 | B177: 8.9625 | C177: 96 | D177: 101420 | E177: 0 | F177: 0 | G177: 0 | H177: =psych(D177,B177,0.01*C177,3,4,1) -> 0.00681617243
A178: 1906-01-08T09:00:00 | B178: 9.925 | C178: 96.625 | D178: 101500 | E178: 0 | F178: 0 | G178: 0 | H178: =psych(D178,B178,0.01*C178,3,4,1) -> 0.007319724825
A179: 1906-01-08T10:00:00 | B179: 10.925 | C179: 97 | D179: 101580 | E179: 0 | F179: 0 | G179: 0 | H179: =psych(D179,B179,0.01*C179,3,4,1) -> 0.007856043783
A180: 1906-01-08T11:00:00 | B180: 11.675 | C180: 93.875 | D180: 101616.25 | E180: 0.4375 | F180: 218.75 | G180: 0 | H180: =psych(D180,B180,0.01*C180,3,4,1) -> 0.007989466587
A181: 1906-01-08T12:00:00 | B181: 12.275 | C181: 89.5 | D181: 101626.25 | E181: 1.1375 | F181: 343.75 | G181: 0 | H181: =psych(D181,B181,0.01*C181,3,4,1) -> 0.007922988276
A182: 1906-01-08T13:00:00 | B182: 12.875 | C182: 84.875 | D182: 101636.25 | E182: 1.8375 | F182: 333.75 | G182: 0 | H182: =psych(D182,B182,0.01*C182,3,4,1) -> 0.007813267955
A183: 1906-01-08T14:00:00 | B183: 12.975 | C183: 83 | D183: 101633.75 | E183: 2.5375 | F183: 331.875 | G183: 0 | H183: =psych(D183,B183,0.01*C183,3,4,1) -> 0.007689522677
A184: 1906-01-08T15:00:00 | B184: 12.8375 | C184: 83 | D184: 101623.75 | E184: 3.175 | F184: 335.5 | G184: 0 | H184: =psych(D184,B184,0.01*C184,3,4,1) -> 0.007620523316
A185: 1906-01-08T16:00:00 | B185: 12.675 | C185: 83 | D185: 101613.75 | E185: 3.8375 | F185: 338.875 | G185: 0 | H185: =psych(D185,B185,0.01*C185,3,4,1) -> 0.007539553298
A186: 1906-01-08T17:00:00 | B186: 11.6 | C186: 84.875 | D186: 101603.75 | E186: 3.225 | F186: 344.375 | G186: 0 | H186: =psych(D186,B186,0.01*C186,3,4,1) -> 0.007179399998
A187: 1906-01-08T18:00:00 | B187: 9.9375 | C187: 87.875 | D187: 101587.5 | E187: 1.8875 | F187: 350.75 | G187: 0 | H187: =psych(D187,B187,0.01*C187,3,4,1) -> 0.006649631471
A188: 1906-01-08T19:00:00 | B188: 8.3 | C188: 91.5 | D188: 101573.75 | E188: 0.525 | F188: 132.375 | G188: 0 | H188: =psych(D188,B188,0.01*C188,3,4,1) -> 0.006196055349
A189: 1906-01-08T20:00:00 | B189: 6.95 | C189: 93.625 | D189: 101595 | E189: 0 | F189: 0 | G189: 0 | H189: =psych(D189,B189,0.01*C189,3,4,1) -> 0.005776575894
A190: 1906-01-08T21:00:00 | B190: 5.75 | C190: 94.625 | D190: 101628.75 | E190: 0 | F190: 0 | G190: 0 | H190: =psych(D190,B190,0.01*C190,3,4,1) -> 0.005369148298
A191: 1906-01-08T22:00:00 | B191: 4.55 | C191: 95.625 | D191: 101665 | E191: 0 | F191: 0 | G191: 0 | H191: =psych(D191,B191,0.01*C191,3,4,1) -> 0.004985949189
A192: 1906-01-08T23:00:00 | B192: 3.975 | C192: 95.375 | D192: 101673.75 | E192: 0.5625 | F192: 12.5 | G192: 0 | H192: =psych(D192,B192,0.01*C192,3,4,1) -> 0.004774263633
A193: 1906-01-08 | B193: 4.2125 | C193: 94.375 | D193: 101657.5 | E193: 1.4 | F193: 32.5 | G193: 0 | H193: =psych(D193,B193,0.01*C193,3,4,1) -> 0.004804696458
A194: 1906-01-09T01:00:00 | B194: 4.7125 | C194: 93.375 | D194: 101643.75 | E194: 2.2625 | F194: 52.5 | G194: 0 | H194: =psych(D194,B194,0.01*C194,3,4,1) -> 0.004924840149
A195: 1906-01-09T02:00:00 | B195: 4.775 | C195: 93.625 | D195: 101627.5 | E195: 2.0375 | F195: 47.5 | G195: 0 | H195: =psych(D195,B195,0.01*C195,3,4,1) -> 0.004960719106
A196: 1906-01-09T03:00:00 | B196: 4.075 | C196: 94.625 | D196: 101601.25 | E196: 1.2 | F196: 27.5 | G196: 0 | H196: =psych(D196,B196,0.01*C196,3,4,1) -> 0.004773533146
A197: 1906-01-09T04:00:00 | B197: 3.075 | C197: 96.25 | D197: 101577.5 | E197: 0.3375 | F197: 7.5 | G197: 0 | H197: =psych(D197,B197,0.01*C197,3,4,1) -> 0.00452399681
A198: 1906-01-09T05:00:00 | B198: 2.95 | C198: 95.125 | D198: 101545 | E198: 0 | F198: 0 | G198: 0 | H198: =psych(D198,B198,0.01*C198,3,4,1) -> 0.00443245207
A199: 1906-01-09T06:00:00 | B199: 3.35 | C199: 92.75 | D199: 101498.75 | E199: 0 | F199: 0 | G199: 0 | H199: =psych(D199,B199,0.01*C199,3,4,1) -> 0.004448061647
A200: 1906-01-09T07:00:00 | B200: 3.75 | C200: 90.125 | D200: 101455 | E200: 0 | F200: 0 | G200: 0 | H200: =psych(D200,B200,0.01*C200,3,4,1) -> 0.004447829384
... 4300 more rows

Sheet CZ2
A1: Date | B1: TdbºC | C1: RH% | D1: P Pa | E1: Wind m/s | F1: Windº | G1: Rain mm/hr | H1: W
A2: 2193.041667 | B2: 7.35 | C2: 98.5 | D2: 99982.5 | E2: 0 | F2: 0 | G2: 0 | H2: =psych(D2,B2,0.01*C2,3,4,1) -> 0.006352857085
A3: 2193.083333 | B3: 7.4 | C3: 98.125 | D3: 100077.5 | E3: 0 | F3: 0 | G3: 0 | H3: =psych(D3,B3,0.01*C3,3,4,1) -> 0.006344243541
A4: 2193.125 | B4: 7.7 | C4: 97 | D4: 100173.75 | E4: 0 | F4: 0 | G4: 0 | H4: =psych(D4,B4,0.01*C4,3,4,1) -> 0.006395756256
A5: 2193.166667 | B5: 7.95 | C5: 96.375 | D5: 100200 | E5: 0 | F5: 0 | G5: 0 | H5: =psych(D5,B5,0.01*C5,3,4,1) -> 0.006462773955
A6: 2193.208333 | B6: 8.1 | C6: 96 | D6: 100225 | E6: 0 | F6: 0 | G6: 0 | H6: =psych(D6,B6,0.01*C6,3,4,1) -> 0.00650247833
A7: 2193.25 | B7: 8.2875 | C7: 96.625 | D7: 100240 | E7: 0 | F7: 0 | G7: 0 | H7: =psych(D7,B7,0.01*C7,3,4,1) -> 0.006629102145
A8: 2193.291667 | B8: 8.4 | C8: 97 | D8: 100258.75 | E8: 0 | F8: 0 | G8: 0 | H8: =psych(D8,B8,0.01*C8,3,4,1) -> 0.006705411833
A9: 2193.333333 | B9: 8.4 | C9: 97 | D9: 100313.75 | E9: 0 | F9: 0 | G9: 0 | H9: =psych(D9,B9,0.01*C9,3,4,1) -> 0.006701695779
A10: 2193.375 | B10: 8.4 | C10: 97 | D10: 100358.75 | E10: 0 | F10: 0 | G10: 0 | H10: =psych(D10,B10,0.01*C10,3,4,1) -> 0.006698658433
A11: 2193.416667 | B11: 8.4 | C11: 97 | D11: 100395 | E11: 0 | F11: 0 | G11: 0 | H11: =psych(D11,B11,0.01*C11,3,4,1) -> 0.006696213683
A12: 2193.458333 | B12: 8.9 | C12: 96.375 | D12: 100385 | E12: 0 | F12: 0 | G12: 0 | H12: =psych(D12,B12,0.01*C12,3,4,1) -> 0.006884967079
A13: 2193.5 | B13: 10.1375 | C13: 94.125 | D13: 100307.5 | E13: 0 | F13: 0 | G13: 0 | H13: =psych(D13,B13,0.01*C13,3,4,1) -> 0.007318527002
A14: 2193.541667 | B14: 11.825 | C14: 84.875 | D14: 100207.5 | E14: 0 | F14: 0 | G14: 0 | H14: =psych(D14,B14,0.01*C14,3,4,1) -> 0.00739098139
A15: 2193.583333 | B15: 13.625 | C15: 71.875 | D15: 100107.5 | E15: 0 | F15: 0 | G15: 0 | H15: =psych(D15,B15,0.01*C15,3,4,1) -> 0.007046144568
A16: 2193.625 | B16: 14.9875 | C16: 63.875 | D16: 100045 | E16: 0 | F16: 0 | G16: 0 | H16: =psych(D16,B16,0.01*C16,3,4,1) -> 0.006841505835
A17: 2193.666667 | B17: 14.9625 | C17: 68.25 | D17: 100011.25 | E17: 0 | F17: 0 | G17: 0 | H17: =psych(D17,B17,0.01*C17,3,4,1) -> 0.007306197654
A18: 2193.708333 | B18: 14.0125 | C18: 75.125 | D18: 99956.25 | E18: 0.9375 | F18: 168.75 | G18: 0 | H18: =psych(D18,B18,0.01*C18,3,4,1) -> 0.007570350045
A19: 2193.75 | B19: 12.6625 | C19: 80.75 | D19: 99930 | E19: 0.5625 | F19: 101.25 | G19: 0 | H19: =psych(D19,B19,0.01*C19,3,4,1) -> 0.007451605787
A20: 2193.791667 | B20: 11.225 | C20: 89.25 | D20: 99930 | E20: 0 | F20: 0 | G20: 0 | H20: =psych(D20,B20,0.01*C20,3,4,1) -> 0.00749127944
A21: 2193.833333 | B21: 10.45 | C21: 93 | D21: 99955 | E21: 0 | F21: 0 | G21: 0 | H21: =psych(D21,B21,0.01*C21,3,4,1) -> 0.007410813209
A22: 2193.875 | B22: 10.1125 | C22: 93 | D22: 99970 | E22: 0 | F22: 0 | G22: 0 | H22: =psych(D22,B22,0.01*C22,3,4,1) -> 0.00724246069
A23: 2193.916667 | B23: 9.5 | C23: 92.375 | D23: 99970 | E23: 0 | F23: 0 | G23: 0 | H23: =psych(D23,B23,0.01*C23,3,4,1) -> 0.006900361202
A24: 2193.958333 | B24: 8.825 | C24: 92.625 | D24: 99988.75 | E24: 0 | F24: 0 | G24: 0 | H24: =psych(D24,B24,0.01*C24,3,4,1) -> 0.006606767456
A25: 2193 | B25: 8.2875 | C25: 94.875 | D25: 99981.25 | E25: 0 | F25: 0 | G25: 0 | H25: =psych(D25,B25,0.01*C25,3,4,1) -> 0.006524803313
A26: 2194.041667 | B26: 7.85 | C26: 96.625 | D26: 99945 | E26: 0 | F26: 0 | G26: 0 | H26: =psych(D26,B26,0.01*C26,3,4,1) -> 0.006451849238
A27: 2194.083333 | B27: 7.2625 | C27: 97 | D27: 99930 | E27: 0 | F27: 0 | G27: 0 | H27: =psych(D27,B27,0.01*C27,3,4,1) -> 0.006220708911
A28: 2194.125 | B28: 6.5625 | C28: 97 | D28: 99930 | E28: 0 | F28: 0 | G28: 0 | H28: =psych(D28,B28,0.01*C28,3,4,1) -> 0.005925954739
A29: 2194.166667 | B29: 6.1125 | C29: 96.375 | D29: 99930 | E29: 0 | F29: 0 | G29: 0 | H29: =psych(D29,B29,0.01*C29,3,4,1) -> 0.005705780075
A30: 2194.208333 | B30: 6 | C30: 98.5 | D30: 99911.25 | E30: 0 | F30: 0 | G30: 0 | H30: =psych(D30,B30,0.01*C30,3,4,1) -> 0.00578824434
A31: 2194.25 | B31: 6 | C31: 100 | D31: 99875 | E31: 0 | F31: 0 | G31: 0 | H31: =psych(D31,B31,0.01*C31,3,4,1) -> 0.005879376426
A32: 2194.291667 | B32: 5.75 | C32: 98.125 | D32: 99885 | E32: 0 | F32: 0 | G32: 0 | H32: =psych(D32,B32,0.01*C32,3,4,1) -> 0.005667637597
A33: 2194.333333 | B33: 5.6 | C33: 97 | D33: 99900 | E33: 0 | F33: 0 | G33: 0 | H33: =psych(D33,B33,0.01*C33,3,4,1) -> 0.005542731762
A34: 2194.375 | B34: 5.6 | C34: 97 | D34: 99918.75 | E34: 0 | F34: 0 | G34: 0 | H34: =psych(D34,B34,0.01*C34,3,4,1) -> 0.005541682388
A35: 2194.416667 | B35: 5.85 | C35: 96.375 | D35: 99930 | E35: 0 | F35: 0 | G35: 0 | H35: =psych(D35,B35,0.01*C35,3,4,1) -> 0.00560215664
A36: 2194.458333 | B36: 7.625 | C36: 96 | D36: 99911.25 | E36: 0 | F36: 0 | G36: 0 | H36: =psych(D36,B36,0.01*C36,3,4,1) -> 0.006313212828
A37: 2194.5 | B37: 9.975 | C37: 89.75 | D37: 99856.25 | E37: 0 | F37: 0 | G37: 0 | H37: =psych(D37,B37,0.01*C37,3,4,1) -> 0.006929736396
A38: 2194.541667 | B38: 11.925 | C38: 72.25 | D38: 99661.25 | E38: 0 | F38: 0 | G38: 0 | H38: =psych(D38,B38,0.01*C38,3,4,1) -> 0.00635751011
A39: 2194.583333 | B39: 13.5375 | C39: 58.375 | D39: 99578.75 | E39: 0 | F39: 0 | G39: 0 | H39: =psych(D39,B39,0.01*C39,3,4,1) -> 0.00570822412
A40: 2194.625 | B40: 14.6 | C40: 53.75 | D40: 99552.5 | E40: 0 | F40: 0 | G40: 0 | H40: =psych(D40,B40,0.01*C40,3,4,1) -> 0.005631841
A41: 2194.666667 | B41: 14.9 | C41: 53 | D41: 99505 | E41: 0 | F41: 0 | G41: 0 | H41: =psych(D41,B41,0.01*C41,3,4,1) -> 0.005664808924
A42: 2194.708333 | B42: 14.15 | C42: 57.375 | D42: 99515 | E42: 1.3125 | F42: 56.25 | G42: 0 | H42: =psych(D42,B42,0.01*C42,3,4,1) -> 0.00584327353
A43: 2194.75 | B43: 12.7625 | C43: 65.625 | D43: 99530 | E43: 0.7875 | F43: 33.75 | G43: 0 | H43: =psych(D43,B43,0.01*C43,3,4,1) -> 0.006107137305
A44: 2194.791667 | B44: 12.2 | C44: 69 | D44: 99530 | E44: 0 | F44: 0 | G44: 0 | H44: =psych(D44,B44,0.01*C44,3,4,1) -> 0.006189078239
A45: 2194.833333 | B45: 11.7625 | C45: 74 | D45: 99548.75 | E45: 0 | F45: 0 | G45: 0 | H45: =psych(D45,B45,0.01*C45,3,4,1) -> 0.006450241379
A46: 2194.875 | B46: 11.25 | C46: 77 | D46: 99560 | E46: 0 | F46: 0 | G46: 0 | H46: =psych(D46,B46,0.01*C46,3,4,1) -> 0.006487490054
A47: 2194.916667 | B47: 10.9125 | C47: 78.875 | D47: 99560 | E47: 0 | F47: 0 | G47: 0 | H47: =psych(D47,B47,0.01*C47,3,4,1) -> 0.006498251702
A48: 2194.958333 | B48: 10.9875 | C48: 81.875 | D48: 99560 | E48: 0 | F48: 0 | G48: 0 | H48: =psych(D48,B48,0.01*C48,3,4,1) -> 0.006782198691
A49: 2194 | B49: 11.6 | C49: 84.875 | D49: 99541.25 | E49: 0 | F49: 0 | G49: 0 | H49: =psych(D49,B49,0.01*C49,3,4,1) -> 0.007329910627
A50: 2195.041667 | B50: 12.275 | C50: 84.125 | D50: 99505 | E50: 0 | F50: 0 | G50: 0 | H50: =psych(D50,B50,0.01*C50,3,4,1) -> 0.007602049976
A51: 2195.083333 | B51: 12.5625 | C51: 83.625 | D51: 99471.25 | E51: 0 | F51: 0 | G51: 0 | H51: =psych(D51,B51,0.01*C51,3,4,1) -> 0.00770489043
A52: 2195.125 | B52: 12.1625 | C52: 85.25 | D52: 99478.75 | E52: 0 | F52: 0 | G52: 0 | H52: =psych(D52,B52,0.01*C52,3,4,1) -> 0.007649464388
A53: 2195.166667 | B53: 11.65 | C53: 87.875 | D53: 99446.25 | E53: 0 | F53: 0 | G53: 0 | H53: =psych(D53,B53,0.01*C53,3,4,1) -> 0.007624979714
A54: 2195.208333 | B54: 11.5 | C54: 91.5 | D54: 99382.5 | E54: 0 | F54: 0 | G54: 0 | H54: =psych(D54,B54,0.01*C54,3,4,1) -> 0.007869208762
A55: 2195.25 | B55: 11.25 | C55: 93 | D55: 99335 | E55: 1.3125 | F55: 14.375 | G55: 0 | H55: =psych(D55,B55,0.01*C55,3,4,1) -> 0.007870570809
A56: 2195.291667 | B56: 11.1 | C56: 95.5 | D56: 99345 | E56: 0.7875 | F56: 8.625 | G56: 0 | H56: =psych(D56,B56,0.01*C56,3,4,1) -> 0.008002951762
A57: 2195.333333 | B57: 10.475 | C57: 93.875 | D57: 99360 | E57: 0 | F57: 0 | G57: 0 | H57: =psych(D57,B57,0.01*C57,3,4,1) -> 0.007539443953
A58: 2195.375 | B58: 10.975 | C58: 92.625 | D58: 99397.5 | E58: 0 | F58: 0 | G58: 0 | H58: =psych(D58,B58,0.01*C58,3,4,1) -> 0.007689931762
A59: 2195.416667 | B59: 12.625 | C59: 90.5 | D59: 99445 | E59: 0 | F59: 0 | G59: 0 | H59: =psych(D59,B59,0.01*C59,3,4,1) -> 0.0083838423
A60: 2195.458333 | B60: 14.2375 | C60: 83.375 | D60: 99435 | E60: 0 | F60: 0 | G60: 0 | H60: =psych(D60,B60,0.01*C60,3,4,1) -> 0.008583671062
A61: 2195.5 | B61: 15.675 | C61: 75 | D61: 99357.5 | E61: 3.5625 | F61: 0 | G61: 0 | H61: =psych(D61,B61,0.01*C61,3,4,1) -> 0.008475853361
A62: 2195.541667 | B62: 15.95 | C62: 67.625 | D62: 99257.5 | E62: 6.6375 | F62: 183.125 | G62: 0 | H62: =psych(D62,B62,0.01*C62,3,4,1) -> 0.007777287787
A63: 2195.583333 | B63: 15.8 | C63: 63.125 | D63: 99220 | E63: 4.95 | F63: 306.75 | G63: 0 | H63: =psych(D63,B63,0.01*C63,3,4,1) -> 0.007186408739
A64: 2195.625 | B64: 16.05 | C64: 60.75 | D64: 99220 | E64: 3.6 | F64: 301.25 | G64: 0 | H64: =psych(D64,B64,0.01*C64,3,4,1) -> 0.007025670803
A65: 2195.666667 | B65: 15.7625 | C65: 62.5 | D65: 99201.25 | E65: 3.6 | F65: 278.625 | G65: 0 | H65: =psych(D65,B65,0.01*C65,3,4,1) -> 0.007098547651
A66: 2195.708333 | B66: 15.0625 | C66: 67.125 | D66: 99190 | E66: 3.2875 | F66: 284.375 | G66: 0 | H66: =psych(D66,B66,0.01*C66,3,4,1) -> 0.007291902599
A67: 2195.75 | B67: 14.3 | C67: 70.875 | D67: 99208.75 | E67: 2.475 | F67: 109.875 | G67: 0 | H67: =psych(D67,B67,0.01*C67,3,4,1) -> 0.007328454361
A68: 2195.791667 | B68: 13.375 | C68: 75.125 | D68: 99245 | E68: 0.7875 | F68: 0 | G68: 0 | H68: =psych(D68,B68,0.01*C68,3,4,1) -> 0.00731179737
A69: 2195.833333 | B69: 12.3125 | C69: 81.375 | D69: 99297.5 | E69: 0 | F69: 0 | G69: 0 | H69: =psych(D69,B69,0.01*C69,3,4,1) -> 0.007384560332
A70: 2195.875 | B70: 11.4 | C70: 87.75 | D70: 99382.5 | E70: 0 | F70: 0 | G70: 0 | H70: =psych(D70,B70,0.01*C70,3,4,1) -> 0.007492397534
A71: 2195.916667 | B71: 11.1 | C71: 90 | D71: 99357.5 | E71: 0 | F71: 0 | G71: 0 | H71: =psych(D71,B71,0.01*C71,3,4,1) -> 0.007535504432
A72: 2195.958333 | B72: 10.6 | C72: 91.875 | D72: 99470 | E72: 0 | F72: 0 | G72: 0 | H72: =psych(D72,B72,0.01*C72,3,4,1) -> 0.007431099328
A73: 2195 | B73: 9.3625 | C73: 93 | D73: 99560 | E73: 0 | F73: 0 | G73: 0 | H73: =psych(D73,B73,0.01*C73,3,4,1) -> 0.006911523292
A74: 2196.041667 | B74: 7.925 | C74: 93 | D74: 99603.75 | E74: 0 | F74: 0 | G74: 0 | H74: =psych(D74,B74,0.01*C74,3,4,1) -> 0.006261100043
A75: 2196.083333 | B75: 7.0875 | C75: 94.875 | D75: 99630 | E75: 0 | F75: 0 | G75: 0 | H75: =psych(D75,B75,0.01*C75,3,4,1) -> 0.006028151092
A76: 2196.125 | B76: 7.15 | C76: 96.625 | D76: 99673.75 | E76: 0 | F76: 0 | G76: 0 | H76: =psych(D76,B76,0.01*C76,3,4,1) -> 0.006164336506
A77: 2196.166667 | B77: 6.3625 | C77: 97 | D77: 99700 | E77: 0 | F77: 0 | G77: 0 | H77: =psych(D77,B77,0.01*C77,3,4,1) -> 0.005857673108
A78: 2196.208333 | B78: 6.05 | C78: 96.375 | D78: 99700 | E78: 0 | F78: 0 | G78: 0 | H78: =psych(D78,B78,0.01*C78,3,4,1) -> 0.005694179208
A79: 2196.25 | B79: 6.3875 | C79: 98.5 | D79: 99737.5 | E79: 0 | F79: 0 | G79: 0 | H79: =psych(D79,B79,0.01*C79,3,4,1) -> 0.005957225377
A80: 2196.291667 | B80: 6.5 | C80: 100 | D80: 99785 | E80: 0 | F80: 0 | G80: 0 | H80: =psych(D80,B80,0.01*C80,3,4,1) -> 0.006093449944
A81: 2196.333333 | B81: 6.75 | C81: 97.5 | D81: 99862.5 | E81: 0 | F81: 0 | G81: 0 | H81: =psych(D81,B81,0.01*C81,3,4,1) -> 0.006039022423
A82: 2196.375 | B82: 6.9 | C82: 96 | D82: 99943.75 | E82: 0 | F82: 0 | G82: 0 | H82: =psych(D82,B82,0.01*C82,3,4,1) -> 0.006002493974
A83: 2196.416667 | B83: 7.15 | C83: 96.625 | D83: 99970 | E83: 0 | F83: 0 | G83: 0 | H83: =psych(D83,B83,0.01*C83,3,4,1) -> 0.006145888676
A84: 2196.458333 | B84: 7.7375 | C84: 97 | D84: 99945 | E84: 0 | F84: 0 | G84: 0 | H84: =psych(D84,B84,0.01*C84,3,4,1) -> 0.006427138832
A85: 2196.5 | B85: 8.5 | C85: 96.375 | D85: 99886.25 | E85: 0 | F85: 0 | G85: 0 | H85: =psych(D85,B85,0.01*C85,3,4,1) -> 0.006732860462
A86: 2196.541667 | B86: 10.3625 | C86: 92.25 | D86: 99822.5 | E86: 0 | F86: 0 | G86: 0 | H86: =psych(D86,B86,0.01*C86,3,4,1) -> 0.007316825955
A87: 2196.583333 | B87: 13.425 | C87: 71.25 | D87: 99737.5 | E87: 0.9375 | F87: 196.875 | G87: 0 | H87: =psych(D87,B87,0.01*C87,3,4,1) -> 0.006918619581
A88: 2196.625 | B88: 14.95 | C88: 56.875 | D88: 99700 | E88: 0.5625 | F88: 118.125 | G88: 0 | H88: =psych(D88,B88,0.01*C88,3,4,1) -> 0.006090802602
A89: 2196.666667 | B89: 15.35 | C89: 51.25 | D89: 99718.75 | E89: 2.25 | F89: 112.5 | G89: 0 | H89: =psych(D89,B89,0.01*C89,3,4,1) -> 0.005626246012
A90: 2196.708333 | B90: 14.3125 | C90: 43.375 | D90: 99773.75 | E90: 2.2875 | F90: 236.25 | G90: 0 | H90: =psych(D90,B90,0.01*C90,3,4,1) -> 0.004442709788
A91: 2196.75 | B91: 12.9125 | C91: 38.75 | D91: 99837.5 | E91: 2.8125 | F91: 284.375 | G91: 0 | H91: =psych(D91,B91,0.01*C91,3,4,1) -> 0.003616113018
A92: 2196.791667 | B92: 11.3125 | C92: 47.375 | D92: 99885 | E92: 1.35 | F92: 109.875 | G92: 0 | H92: =psych(D92,B92,0.01*C92,3,4,1) -> 0.003979083903
A93: 2196.833333 | B93: 9.9125 | C93: 58 | D93: 99943.75 | E93: 0 | F93: 0 | G93: 0 | H93: =psych(D93,B93,0.01*C93,3,4,1) -> 0.004437990535
A94: 2196.875 | B94: 9.0625 | C94: 65.375 | D94: 100007.5 | E94: 0 | F94: 0 | G94: 0 | H94: =psych(D94,B94,0.01*C94,3,4,1) -> 0.004723424651
A95: 2196.916667 | B95: 7.8625 | C95: 73.625 | D95: 100073.75 | E95: 0 | F95: 0 | G95: 0 | H95: =psych(D95,B95,0.01*C95,3,4,1) -> 0.004901831823
A96: 2196.958333 | B96: 6.675 | C96: 76.375 | D96: 100143.75 | E96: 0 | F96: 0 | G96: 0 | H96: =psych(D96,B96,0.01*C96,3,4,1) -> 0.004682874341
A97: 2196 | B97: 6.05 | C97: 74.125 | D97: 100170 | E97: 0 | F97: 0 | G97: 0 | H97: =psych(D97,B97,0.01*C97,3,4,1) -> 0.004349683553
A98: 2197.041667 | B98: 5.8375 | C98: 79.25 | D98: 100188.75 | E98: 0 | F98: 0 | G98: 0 | H98: =psych(D98,B98,0.01*C98,3,4,1) -> 0.004583375464
A99: 2197.083333 | B99: 5.4875 | C99: 83 | D99: 100225 | E99: 0 | F99: 0 | G99: 0 | H99: =psych(D99,B99,0.01*C99,3,4,1) -> 0.004684168196
A100: 2197.125 | B100: 4.8625 | C100: 84.875 | D100: 100277.5 | E100: 0 | F100: 0 | G100: 0 | H100: =psych(D100,B100,0.01*C100,3,4,1) -> 0.004582818446
A101: 2197.166667 | B101: 4.6 | C101: 87.875 | D101: 100300 | E101: 0 | F101: 0 | G101: 0 | H101: =psych(D101,B101,0.01*C101,3,4,1) -> 0.004658056474
A102: 2197.208333 | B102: 4.6 | C102: 89 | D102: 100300 | E102: 0 | F102: 0 | G102: 0 | H102: =psych(D102,B102,0.01*C102,3,4,1) -> 0.00471814256
A103: 2197.25 | B103: 4.35 | C103: 89 | D103: 100300 | E103: 0 | F103: 0 | G103: 0 | H103: =psych(D103,B103,0.01*C103,3,4,1) -> 0.004635636581
A104: 2197.291667 | B104: 4.0125 | C104: 89 | D104: 100325 | E104: 0 | F104: 0 | G104: 0 | H104: =psych(D104,B104,0.01*C104,3,4,1) -> 0.004525160807
A105: 2197.333333 | B105: 4.0875 | C105: 89 | D105: 100383.75 | E105: 0 | F105: 0 | G105: 0 | H105: =psych(D105,B105,0.01*C105,3,4,1) -> 0.004546569512
A106: 2197.375 | B106: 4.8875 | C106: 87.125 | D106: 100428.75 | E106: 0 | F106: 0 | G106: 0 | H106: =psych(D106,B106,0.01*C106,3,4,1) -> 0.004706355261
A107: 2197.416667 | B107: 6.4875 | C107: 82.25 | D107: 100483.75 | E107: 0 | F107: 0 | G107: 0 | H107: =psych(D107,B107,0.01*C107,3,4,1) -> 0.004963781675
A108: 2197.458333 | B108: 7.2 | C108: 80 | D108: 100466.25 | E108: 0 | F108: 0 | G108: 0 | H108: =psych(D108,B108,0.01*C108,3,4,1) -> 0.005072004809
A109: 2197.5 | B109: 7.45 | C109: 77.5 | D109: 100352.5 | E109: 0 | F109: 0 | G109: 0 | H109: =psych(D109,B109,0.01*C109,3,4,1) -> 0.005003426324
A110: 2197.541667 | B110: 7.6 | C110: 76 | D110: 100200 | E110: 0 | F110: 0 | G110: 0 | H110: =psych(D110,B110,0.01*C110,3,4,1) -> 0.00496437583
A111: 2197.583333 | B111: 9.6625 | C111: 62.25 | D111: 100096.25 | E111: 0 | F111: 0 | G111: 0 | H111: =psych(D111,B111,0.01*C111,3,4,1) -> 0.004678597661
A112: 2197.625 | B112: 12.3375 | C112: 49.625 | D112: 100045 | E112: 0 | F112: 0 | G112: 0 | H112: =psych(D112,B112,0.01*C112,3,4,1) -> 0.004456211438
A113: 2197.666667 | B113: 13.8875 | C113: 47 | D113: 100011.25 | E113: 0 | F113: 0 | G113: 0 | H113: =psych(D113,B113,0.01*C113,3,4,1) -> 0.00467371694
A114: 2197.708333 | B114: 13.3625 | C114: 52 | D114: 100000 | E114: 0 | F114: 0 | G114: 0 | H114: =psych(D114,B114,0.01*C114,3,4,1) -> 0.005000337953
A115: 2197.75 | B115: 12.1125 | C115: 57.5 | D115: 100000 | E115: 0 | F115: 0 | G115: 0 | H115: =psych(D115,B115,0.01*C115,3,4,1) -> 0.005094937026
A116: 2197.791667 | B116: 10.5125 | C116: 66.5 | D116: 100000 | E116: 0 | F116: 0 | G116: 0 | H116: =psych(D116,B116,0.01*C116,3,4,1) -> 0.005301057164
A117: 2197.833333 | B117: 9.3625 | C117: 74.75 | D117: 100018.75 | E117: 0 | F117: 0 | G117: 0 | H117: =psych(D117,B117,0.01*C117,3,4,1) -> 0.005517492397
A118: 2197.875 | B118: 8.4125 | C118: 82 | D118: 100073.75 | E118: 0 | F118: 0 | G118: 0 | H118: =psych(D118,B118,0.01*C118,3,4,1) -> 0.00567446999
A119: 2197.916667 | B119: 7.25 | C119: 87.5 | D119: 100100 | E119: 0 | F119: 0 | G119: 0 | H119: =psych(D119,B119,0.01*C119,3,4,1) -> 0.005591534846
A120: 2197.958333 | B120: 6.2375 | C120: 93.375 | D120: 100143.75 | E120: 0 | F120: 0 | G120: 0 | H120: =psych(D120,B120,0.01*C120,3,4,1) -> 0.005562945614
A121: 2197 | B121: 5.5875 | C121: 94.125 | D121: 100151.25 | E121: 0 | F121: 0 | G121: 0 | H121: =psych(D121,B121,0.01*C121,3,4,1) -> 0.00535873241
A122: 2198.041667 | B122: 5.2125 | C122: 94.875 | D122: 100158.75 | E122: 0 | F122: 0 | G122: 0 | H122: =psych(D122,B122,0.01*C122,3,4,1) -> 0.005261228406
A123: 2198.083333 | B123: 5.1625 | C123: 96 | D123: 100170 | E123: 0 | F123: 0 | G123: 0 | H123: =psych(D123,B123,0.01*C123,3,4,1) -> 0.005304884044
A124: 2198.125 | B124: 5.2 | C124: 98.5 | D124: 100170 | E124: 0 | F124: 0 | G124: 0 | H124: =psych(D124,B124,0.01*C124,3,4,1) -> 0.005458602593
A125: 2198.166667 | B125: 4.5125 | C125: 100 | D125: 100126.25 | E125: 0 | F125: 0 | G125: 0 | H125: =psych(D125,B125,0.01*C125,3,4,1) -> 0.005282814329
A126: 2198.208333 | B126: 4.35 | C126: 100 | D126: 100125 | E126: 0 | F126: 0 | G126: 0 | H126: =psych(D126,B126,0.01*C126,3,4,1) -> 0.005222571335
A127: 2198.25 | B127: 4.5 | C127: 100 | D127: 100115 | E127: 0 | F127: 0 | G127: 0 | H127: =psych(D127,B127,0.01*C127,3,4,1) -> 0.005278751341
A128: 2198.291667 | B128: 4.6875 | C128: 100 | D128: 100125 | E128: 0 | F128: 0 | G128: 0 | H128: =psych(D128,B128,0.01*C128,3,4,1) -> 0.005348524899
A129: 2198.333333 | B129: 4.3625 | C129: 100 | D129: 100140 | E129: 0 | F129: 0 | G129: 0 | H129: =psych(D129,B129,0.01*C129,3,4,1) -> 0.005226399025
A130: 2198.375 | B130: 4.7875 | C130: 100 | D130: 100177.5 | E130: 0 | F130: 0 | G130: 0 | H130: =psych(D130,B130,0.01*C130,3,4,1) -> 0.00538351493
A131: 2198.416667 | B131: 6.825 | C131: 93.75 | D131: 100200 | E131: 0 | F131: 0 | G131: 0 | H131: =psych(D131,B131,0.01*C131,3,4,1) -> 0.005815033735
A132: 2198.458333 | B132: 9.425 | C132: 80 | D132: 100200 | E132: 0 | F132: 0 | G132: 0 | H132: =psych(D132,B132,0.01*C132,3,4,1) -> 0.005923006285
A133: 2198.5 | B133: 11.8375 | C133: 65.875 | D133: 100118.75 | E133: 0 | F133: 0 | G133: 0 | H133: =psych(D133,B133,0.01*C133,3,4,1) -> 0.005731117705
A134: 2198.541667 | B134: 13.3875 | C134: 57.25 | D134: 100026.25 | E134: 0 | F134: 0 | G134: 0 | H134: =psych(D134,B134,0.01*C134,3,4,1) -> 0.005517262754
A135: 2198.583333 | B135: 14.4875 | C135: 53.75 | D135: 99937.5 | E135: 0 | F135: 0 | G135: 0 | H135: =psych(D135,B135,0.01*C135,3,4,1) -> 0.005568941594
A136: 2198.625 | B136: 15.8375 | C136: 49.875 | D136: 99900 | E136: 0 | F136: 0 | G136: 0 | H136: =psych(D136,B136,0.01*C136,3,4,1) -> 0.005638970999
A137: 2198.666667 | B137: 15.2125 | C137: 52.375 | D137: 99900 | E137: 0 | F137: 0 | G137: 0 | H137: =psych(D137,B137,0.01*C137,3,4,1) -> 0.005689401125
A138: 2198.708333 | B138: 13.5625 | C138: 60.625 | D138: 99875 | E138: 0 | F138: 0 | G138: 0 | H138: =psych(D138,B138,0.01*C138,3,4,1) -> 0.005922309657
A139: 2198.75 | B139: 12.0625 | C139: 66.5 | D139: 99885 | E139: 0 | F139: 0 | G139: 0 | H139: =psych(D139,B139,0.01*C139,3,4,1) -> 0.005887213145
A140: 2198.791667 | B140: 10.625 | C140: 73.625 | D140: 99900 | E140: 0 | F140: 0 | G140: 0 | H140: =psych(D140,B140,0.01*C140,3,4,1) -> 0.005925037684
A141: 2198.833333 | B141: 9.85 | C141: 78.875 | D141: 99918.75 | E141: 0 | F141: 0 | G141: 0 | H141: =psych(D141,B141,0.01*C141,3,4,1) -> 0.006026792184
A142: 2198.875 | B142: 8.7625 | C142: 85.625 | D142: 99955 | E142: 0 | F142: 0 | G142: 0 | H142: =psych(D142,B142,0.01*C142,3,4,1) -> 0.006078645173
A143: 2198.916667 | B143: 7.45 | C143: 94 | D143: 99988.75 | E143: 0 | F143: 0 | G143: 0 | H143: =psych(D143,B143,0.01*C143,3,4,1) -> 0.006101415479
A144: 2198.958333 | B144: 6.5 | C144: 94.5 | D144: 100018.75 | E144: 0 | F144: 0 | G144: 0 | H144: =psych(D144,B144,0.01*C144,3,4,1) -> 0.005741634692
A145: 2198 | B145: 5.95 | C145: 97.375 | D145: 100030 | E145: 0 | F145: 0 | G145: 0 | H145: =psych(D145,B145,0.01*C145,3,4,1) -> 0.005694754039
A146: 2199.041667 | B146: 5.7375 | C146: 100 | D146: 100011.25 | E146: 0 | F146: 0 | G146: 0 | H146: =psych(D146,B146,0.01*C146,3,4,1) -> 0.005764538213
A147: 2199.083333 | B147: 5.7 | C147: 100 | D147: 100018.75 | E147: 0 | F147: 0 | G147: 0 | H147: =psych(D147,B147,0.01*C147,3,4,1) -> 0.005748995181
A148: 2199.125 | B148: 5.7 | C148: 100 | D148: 100055 | E148: 0 | F148: 0 | G148: 0 | H148: =psych(D148,B148,0.01*C148,3,4,1) -> 0.005746893071
A149: 2199.166667 | B149: 5.075 | C149: 100 | D149: 100070 | E149: 0 | F149: 0 | G149: 0 | H149: =psych(D149,B149,0.01*C149,3,4,1) -> 0.005499528241
A150: 2199.208333 | B150: 4.7 | C150: 100 | D150: 100070 | E150: 0 | F150: 0 | G150: 0 | H150: =psych(D150,B150,0.01*C150,3,4,1) -> 0.005356209094
A151: 2199.25 | B151: 4.45 | C151: 100 | D151: 100045 | E151: 0 | F151: 0 | G151: 0 | H151: =psych(D151,B151,0.01*C151,3,4,1) -> 0.005263853009
A152: 2199.291667 | B152: 4.55 | C152: 100 | D152: 100055 | E152: 0 | F152: 0 | G152: 0 | H152: =psych(D152,B152,0.01*C152,3,4,1) -> 0.005300623858
A153: 2199.333333 | B153: 4.8875 | C153: 98.125 | D153: 100113.75 | E153: 0 | F153: 0 | G153: 0 | H153: =psych(D153,B153,0.01*C153,3,4,1) -> 0.005322463202
A154: 2199.375 | B154: 5.25 | C154: 96.375 | D154: 100158.75 | E154: 0 | F154: 0 | G154: 0 | H154: =psych(D154,B154,0.01*C154,3,4,1) -> 0.00535921663
A155: 2199.416667 | B155: 6.775 | C155: 94.125 | D155: 100213.75 | E155: 0 | F155: 0 | G155: 0 | H155: =psych(D155,B155,0.01*C155,3,4,1) -> 0.005817487285
A156: 2199.458333 | B156: 9.475 | C156: 83 | D156: 100240 | E156: 0 | F156: 0 | G156: 0 | H156: =psych(D156,B156,0.01*C156,3,4,1) -> 0.006165752454
A157: 2199.5 | B157: 12.0375 | C157: 68.875 | D157: 100177.5 | E157: 0 | F157: 0 | G157: 0 | H157: =psych(D157,B157,0.01*C157,3,4,1) -> 0.006071437556
A158: 2199.541667 | B158: 14.025 | C158: 55.875 | D158: 100033.75 | E158: 0 | F158: 0 | G158: 0 | H158: =psych(D158,B158,0.01*C158,3,4,1) -> 0.00561322592
A159: 2199.583333 | B159: 15.45 | C159: 49.125 | D159: 99945 | E159: 0 | F159: 0 | G159: 0 | H159: =psych(D159,B159,0.01*C159,3,4,1) -> 0.005413575435
A160: 2199.625 | B160: 16.5875 | C160: 48 | D160: 99886.25 | E160: 0 | F160: 0 | G160: 0 | H160: =psych(D160,B160,0.01*C160,3,4,1) -> 0.005694234636
A161: 2199.666667 | B161: 17 | C161: 49.25 | D161: 99860 | E161: 0 | F161: 0 | G161: 0 | H161: =psych(D161,B161,0.01*C161,3,4,1) -> 0.006002114066
A162: 2199.708333 | B162: 14.875 | C162: 58.75 | D162: 99841.25 | E162: 0 | F162: 0 | G162: 0 | H162: =psych(D162,B162,0.01*C162,3,4,1) -> 0.006254027912
A163: 2199.75 | B163: 12.9125 | C163: 67.125 | D163: 99811.25 | E163: 0 | F163: 0 | G163: 0 | H163: =psych(D163,B163,0.01*C163,3,4,1) -> 0.00629249378
A164: 2199.791667 | B164: 11.3125 | C164: 75.875 | D164: 99800 | E164: 0 | F164: 0 | G164: 0 | H164: =psych(D164,B164,0.01*C164,3,4,1) -> 0.006402959631
A165: 2199.833333 | B165: 9.9125 | C165: 83.75 | D165: 99800 | E165: 0 | F165: 0 | G165: 0 | H165: =psych(D165,B165,0.01*C165,3,4,1) -> 0.006438025686
A166: 2199.875 | B166: 8.5625 | C166: 90.375 | D166: 99800 | E166: 0 | F166: 0 | G166: 0 | H166: =psych(D166,B166,0.01*C166,3,4,1) -> 0.006342035627
A167: 2199.916667 | B167: 7.75 | C167: 93 | D167: 99818.75 | E167: 0 | F167: 0 | G167: 0 | H167: =psych(D167,B167,0.01*C167,3,4,1) -> 0.006172658751
A168: 2199.958333 | B168: 7.35 | C168: 97.375 | D168: 99873.75 | E168: 0 | F168: 0 | G168: 0 | H168: =psych(D168,B168,0.01*C168,3,4,1) -> 0.006286473291
A169: 2199 | B169: 6.7 | C169: 100 | D169: 99875 | E169: 0 | F169: 0 | G169: 0 | H169: =psych(D169,B169,0.01*C169,3,4,1) -> 0.006173150963
A170: 2200.041667 | B170: 5.9625 | C170: 100 | D170: 99860 | E170: 0 | F170: 0 | G170: 0 | H170: =psych(D170,B170,0.01*C170,3,4,1) -> 0.005864886427
A171: 2200.083333 | B171: 5.3875 | C171: 100 | D171: 99860 | E171: 0 | F171: 0 | G171: 0 | H171: =psych(D171,B171,0.01*C171,3,4,1) -> 0.005633497466
A172: 2200.125 | B172: 5.2 | C172: 100 | D172: 99860 | E172: 0 | F172: 0 | G172: 0 | H172: =psych(D172,B172,0.01*C172,3,4,1) -> 0.0055598288
A173: 2200.166667 | B173: 5.3875 | C173: 100 | D173: 99860 | E173: 0 | F173: 0 | G173: 0 | H173: =psych(D173,B173,0.01*C173,3,4,1) -> 0.005633497466
A174: 2200.208333 | B174: 5.0625 | C174: 100 | D174: 99841.25 | E174: 0 | F174: 0 | G174: 0 | H174: =psych(D174,B174,0.01*C174,3,4,1) -> 0.005507396844
A175: 2200.25 | B175: 4.3625 | C175: 100 | D175: 99811.25 | E175: 0 | F175: 0 | G175: 0 | H175: =psych(D175,B175,0.01*C175,3,4,1) -> 0.005243758433
A176: 2200.291667 | B176: 4.5375 | C176: 98.125 | D176: 99800 | E176: 0 | F176: 0 | G176: 0 | H176: =psych(D176,B176,0.01*C176,3,4,1) -> 0.005209206838
A177: 2200.333333 | B177: 4.3625 | C177: 98.875 | D177: 99800 | E177: 0 | F177: 0 | G177: 0 | H177: =psych(D177,B177,0.01*C177,3,4,1) -> 0.005184863714
A178: 2200.375 | B178: 4.7875 | C178: 100 | D178: 99818.75 | E178: 0 | F178: 0 | G178: 0 | H178: =psych(D178,B178,0.01*C178,3,4,1) -> 0.005403031435
A179: 2200.416667 | B179: 7.075 | C179: 93.125 | D179: 99830 | E179: 0 | F179: 0 | G179: 0 | H179: =psych(D179,B179,0.01*C179,3,4,1) -> 0.005898830743
A180: 2200.458333 | B180: 9.825 | C180: 77.75 | D180: 99811.25 | E180: 0 | F180: 0 | G180: 0 | H180: =psych(D180,B180,0.01*C180,3,4,1) -> 0.005936409578
A181: 2200.5 | B181: 11.9875 | C181: 62.25 | D181: 99756.25 | E181: 0 | F181: 0 | G181: 0 | H181: =psych(D181,B181,0.01*C181,3,4,1) -> 0.005487360309
A182: 2200.541667 | B182: 13.6375 | C182: 52 | D182: 99642.5 | E182: 0 | F182: 0 | G182: 0 | H182: =psych(D182,B182,0.01*C182,3,4,1) -> 0.005109913614
A183: 2200.583333 | B183: 15.1375 | C183: 47.125 | D183: 99552.5 | E183: 0 | F183: 0 | G183: 0 | H183: =psych(D183,B183,0.01*C183,3,4,1) -> 0.005107513716
A184: 2200.625 | B184: 16.1375 | C184: 41.625 | D184: 99505 | E184: 0 | F184: 0 | G184: 0 | H184: =psych(D184,B184,0.01*C184,3,4,1) -> 0.004809988635
A185: 2200.666667 | B185: 15.7125 | C185: 49 | D185: 99471.25 | E185: 0 | F185: 0 | G185: 0 | H185: =psych(D185,B185,0.01*C185,3,4,1) -> 0.005518518896
A186: 2200.708333 | B186: 13.8625 | C186: 60.625 | D186: 99435 | E186: 0 | F186: 0 | G186: 0 | H186: =psych(D186,B186,0.01*C186,3,4,1) -> 0.006067154547
A187: 2200.75 | B187: 12.3125 | C187: 62.125 | D187: 99445 | E187: 1.3125 | F187: 183.125 | G187: 0 | H187: =psych(D187,B187,0.01*C187,3,4,1) -> 0.005613471718
A188: 2200.791667 | B188: 10.775 | C188: 71 | D188: 99460 | E188: 0.7875 | F188: 109.875 | G188: 0 | H188: =psych(D188,B188,0.01*C188,3,4,1) -> 0.005795513818
A189: 2200.833333 | B189: 10.1 | C189: 77 | D189: 99460 | E189: 0 | F189: 0 | G189: 0 | H189: =psych(D189,B189,0.01*C189,3,4,1) -> 0.006010360377
A190: 2200.875 | B190: 9.35 | C190: 80.75 | D190: 99460 | E190: 0.9375 | F190: 183.125 | G190: 0 | H190: =psych(D190,B190,0.01*C190,3,4,1) -> 0.0059933505
A191: 2200.916667 | B191: 8.4625 | C191: 84.875 | D191: 99478.75 | E191: 0.5625 | F191: 109.875 | G191: 0 | H191: =psych(D191,B191,0.01*C191,3,4,1) -> 0.005931051879
A192: 2200.958333 | B192: 7.7 | C192: 88.5 | D192: 99490 | E192: 0 | F192: 0 | G192: 0 | H192: =psych(D192,B192,0.01*C192,3,4,1) -> 0.005870495536
A193: 2200 | B193: 6.8375 | C193: 91.875 | D193: 99490 | E193: 0 | F193: 0 | G193: 0 | H193: =psych(D193,B193,0.01*C193,3,4,1) -> 0.005743680867
A194: 2201.041667 | B194: 6.0625 | C194: 94.875 | D194: 99490 | E194: 0 | F194: 0 | G194: 0 | H194: =psych(D194,B194,0.01*C194,3,4,1) -> 0.005621593342
A195: 2201.083333 | B195: 5.4875 | C195: 94.125 | D195: 99490 | E195: 0 | F195: 0 | G195: 0 | H195: =psych(D195,B195,0.01*C195,3,4,1) -> 0.005357005042
A196: 2201.125 | B196: 5.05 | C196: 95.5 | D196: 99490 | E196: 0 | F196: 0 | G196: 0 | H196: =psych(D196,B196,0.01*C196,3,4,1) -> 0.005271553523
A197: 2201.166667 | B197: 4.2125 | C197: 98.875 | D197: 99471.25 | E197: 0 | F197: 0 | G197: 0 | H197: =psych(D197,B197,0.01*C197,3,4,1) -> 0.005147242388
A198: 2201.208333 | B198: 3.9875 | C198: 98.125 | D198: 99435 | E198: 0 | F198: 0 | G198: 0 | H198: =psych(D198,B198,0.01*C198,3,4,1) -> 0.005028972824
A199: 2201.25 | B199: 3.6625 | C199: 96.375 | D199: 99420 | E199: 0 | F199: 0 | G199: 0 | H199: =psych(D199,B199,0.01*C199,3,4,1) -> 0.004826711006
A200: 2201.291667 | B200: 3.4 | C200: 96 | D200: 99401.25 | E200: 0 | F200: 0 | G200: 0 | H200: =psych(D200,B200,0.01*C200,3,4,1) -> 0.00471975902
... 4300 more rows

Sheet CZ3
A1: Date | B1: TdbºC | C1: RH% | D1: P Pa | E1: Wind m/s | F1: Windº | G1: Rain mm/hr | H1: W
A2: 1906-01-01T01:00:00 | B2: 6.2625 | C2: 72.875 | D2: 101690 | E2: 4.6 | F2: 36.25 | G2: 0 | H2: =psych(D2,B2,0.01*C2,3,4,1) -> 0.004274203455
A3: 1906-01-01T02:00:00 | B3: 5.5625 | C3: 93.75 | D3: 101360 | E3: 1.9625 | F3: 33.75 | G3: 0 | H3: =psych(D3,B3,0.01*C3,3,4,1) -> 0.005263791607
A4: 1906-01-01T03:00:00 | B4: 4.7375 | C4: 94.25 | D4: 101170 | E4: 2.125 | F4: 23.75 | G4: 0 | H4: =psych(D4,B4,0.01*C4,3,4,1) -> 0.00500363133
A5: 1906-01-01T04:00:00 | B5: 4.0875 | C5: 95.625 | D5: 101078.75 | E5: 2.2625 | F5: 13.75 | G5: 0 | H5: =psych(D5,B5,0.01*C5,3,4,1) -> 0.004853798488
A6: 1906-01-01T05:00:00 | B6: 4.0875 | C6: 91.625 | D6: 101078.75 | E6: 2.3625 | F6: 20.625 | G6: 0 | H6: =psych(D6,B6,0.01*C6,3,4,1) -> 0.004649246113
A7: 1906-01-01T06:00:00 | B7: 5.075 | C7: 86.5 | D7: 101152.5 | E7: 2.525 | F7: 37 | G7: 0 | H7: =psych(D7,B7,0.01*C7,3,4,1) -> 0.00470018797
A8: 1906-01-01T07:00:00 | B8: 6.1 | C8: 81.25 | D8: 101196.25 | E8: 2.9125 | F8: 53.625 | G8: 0 | H8: =psych(D8,B8,0.01*C8,3,4,1) -> 0.00473871516
A9: 1906-01-01T08:00:00 | B9: 6.9625 | C9: 75.875 | D9: 101250 | E9: 3.975 | F9: 39.375 | G9: 0 | H9: =psych(D9,B9,0.01*C9,3,4,1) -> 0.004693288565
A10: 1906-01-01T09:00:00 | B10: 7.925 | C10: 70.25 | D10: 101330 | E10: 5.3125 | F10: 230.75 | G10: 0 | H10: =psych(D10,B10,0.01*C10,3,4,1) -> 0.004636896763
A11: 1906-01-01T10:00:00 | B11: 8.8625 | C11: 64.875 | D11: 101410 | E11: 6.675 | F11: 332.375 | G11: 0 | H11: =psych(D11,B11,0.01*C11,3,4,1) -> 0.004559243982
A12: 1906-01-01T11:00:00 | B12: 10.3875 | C12: 57.375 | D12: 101440 | E12: 7.075 | F12: 336.875 | G12: 0 | H12: =psych(D12,B12,0.01*C12,3,4,1) -> 0.004465305027
A13: 1906-01-01T12:00:00 | B13: 12.35 | C13: 49 | D13: 101440 | E13: 6.9375 | F13: 138.25 | G13: 0 | H13: =psych(D13,B13,0.01*C13,3,4,1) -> 0.004342357451
A14: 1906-01-01T13:00:00 | B14: 14.2875 | C14: 41.625 | D14: 101440 | E14: 6.775 | F14: 29.875 | G14: 0 | H14: =psych(D14,B14,0.01*C14,3,4,1) -> 0.004184927179
A15: 1906-01-01T14:00:00 | B15: 14.5625 | C15: 38.375 | D15: 101458.75 | E15: 6.825 | F15: 38.125 | G15: 0 | H15: =psych(D15,B15,0.01*C15,3,4,1) -> 0.003925075317
A16: 1906-01-01T15:00:00 | B16: 13.8625 | C16: 38 | D16: 101495 | E16: 6.9625 | F16: 34.5 | G16: 0 | H16: =psych(D16,B16,0.01*C16,3,4,1) -> 0.00371175853
A17: 1906-01-01T16:00:00 | B17: 13.1625 | C17: 36.75 | D17: 101528.75 | E17: 7.125 | F17: 31.125 | G17: 0 | H17: =psych(D17,B17,0.01*C17,3,4,1) -> 0.003426905714
A18: 1906-01-01T17:00:00 | B18: 12.15 | C18: 35.375 | D18: 101571.25 | E18: 7.5125 | F18: 25.625 | G18: 0 | H18: =psych(D18,B18,0.01*C18,3,4,1) -> 0.00308371557
A19: 1906-01-01T18:00:00 | B19: 10.8875 | C19: 34.375 | D19: 101615 | E19: 8.075 | F19: 19.25 | G19: 0 | H19: =psych(D19,B19,0.01*C19,3,4,1) -> 0.002753653782
A20: 1906-01-01T19:00:00 | B20: 9.65 | C20: 32.75 | D20: 101661.25 | E20: 8.6125 | F20: 12.625 | G20: 0 | H20: =psych(D20,B20,0.01*C20,3,4,1) -> 0.002412749002
A21: 1906-01-01T20:00:00 | B21: 8.7625 | C21: 32.625 | D21: 101736.25 | E21: 8.9875 | F21: 10 | G21: 0 | H21: =psych(D21,B21,0.01*C21,3,4,1) -> 0.002261716243
A22: 1906-01-01T21:00:00 | B22: 8.1875 | C22: 33 | D22: 101826.25 | E22: 9.35 | F22: 10 | G22: 0 | H22: =psych(D22,B22,0.01*C22,3,4,1) -> 0.00219804864
A23: 1906-01-01T22:00:00 | B23: 7.5625 | C23: 33 | D23: 101916.25 | E23: 9.6875 | F23: 10 | G23: 0 | H23: =psych(D23,B23,0.01*C23,3,4,1) -> 0.002104219407
A24: 1906-01-01T23:00:00 | B24: 7.05 | C24: 34.25 | D24: 101962.5 | E24: 9.6125 | F24: 16.25 | G24: 0 | H24: =psych(D24,B24,0.01*C24,3,4,1) -> 0.002107685755
A25: 1906-01-01 | B25: 6.775 | C25: 35.625 | D25: 101982.5 | E25: 9.25 | F25: 26.25 | G25: 0 | H25: =psych(D25,B25,0.01*C25,3,4,1) -> 0.002151013701
A26: 1906-01-02T01:00:00 | B26: 6.7 | C26: 37.25 | D26: 102002.5 | E26: 8.9125 | F26: 36.25 | G26: 0 | H26: =psych(D26,B26,0.01*C26,3,4,1) -> 0.002237430221
A27: 1906-01-02T02:00:00 | B27: 6.7 | C27: 36.125 | D27: 102035 | E27: 8.8 | F27: 38.125 | G27: 0 | H27: =psych(D27,B27,0.01*C27,3,4,1) -> 0.002168927639
A28: 1906-01-02T03:00:00 | B28: 6.7 | C28: 33.125 | D28: 102068.75 | E28: 8.8 | F28: 34.5 | G28: 0 | H28: =psych(D28,B28,0.01*C28,3,4,1) -> 0.001987573781
A29: 1906-01-02T04:00:00 | B29: 6.7 | C29: 30.125 | D29: 102105 | E29: 8.8 | F29: 31.125 | G29: 0 | H29: =psych(D29,B29,0.01*C29,3,4,1) -> 0.001806400712
A30: 1906-01-02T05:00:00 | B30: 6.2625 | C30: 29.625 | D30: 102126.25 | E30: 7.4875 | F30: 44.375 | G30: 0 | H30: =psych(D30,B30,0.01*C30,3,4,1) -> 0.001723070601
A31: 1906-01-02T06:00:00 | B31: 5.6875 | C31: 30.625 | D31: 102136.25 | E31: 5.45 | F31: 68 | G31: 0 | H31: =psych(D31,B31,0.01*C31,3,4,1) -> 0.001711554509
A32: 1906-01-02T07:00:00 | B32: 5 | C32: 31 | D32: 102146.25 | E32: 3.3875 | F32: 91.375 | G32: 0 | H32: =psych(D32,B32,0.01*C32,3,4,1) -> 0.001651299933
A33: 1906-01-02T08:00:00 | B33: 5.3875 | C33: 32.875 | D33: 102168.75 | E33: 2.725 | F33: 110.625 | G33: 0 | H33: =psych(D33,B33,0.01*C33,3,4,1) -> 0.001799102441
A34: 1906-01-02T09:00:00 | B34: 6.3625 | C34: 35.25 | D34: 102205 | E34: 2.8625 | F34: 127 | G34: 0 | H34: =psych(D34,B34,0.01*C34,3,4,1) -> 0.002063969874
A35: 1906-01-02T10:00:00 | B35: 7.3875 | C35: 37.25 | D35: 102238.75 | E35: 3.025 | F35: 143.625 | G35: 0 | H35: =psych(D35,B35,0.01*C35,3,4,1) -> 0.002340452
A36: 1906-01-02T11:00:00 | B36: 8.2375 | C36: 38.625 | D36: 102193.75 | E36: 2.975 | F36: 158.125 | G36: 0 | H36: =psych(D36,B36,0.01*C36,3,4,1) -> 0.002573738217
A37: 1906-01-02T12:00:00 | B37: 8.875 | C37: 39.625 | D37: 102103.75 | E37: 2.8375 | F37: 171.75 | G37: 0 | H37: =psych(D37,B37,0.01*C37,3,4,1) -> 0.002760209344
A38: 1906-01-02T13:00:00 | B38: 9.5375 | C38: 40.625 | D38: 102013.75 | E38: 2.675 | F38: 185.125 | G38: 0 | H38: =psych(D38,B38,0.01*C38,3,4,1) -> 0.002962710678
A39: 1906-01-02T14:00:00 | B39: 9.9875 | C39: 42.25 | D39: 101961.25 | E39: 2.35 | F39: 188.125 | G39: 0 | H39: =psych(D39,B39,0.01*C39,3,4,1) -> 0.003178444452
A40: 1906-01-02T15:00:00 | B40: 10.35 | C40: 43 | D40: 101925 | E40: 2.0125 | F40: 184.5 | G40: 0 | H40: =psych(D40,B40,0.01*C40,3,4,1) -> 0.003316195201
A41: 1906-01-02T16:00:00 | B41: 10.75 | C41: 43.625 | D41: 101891.25 | E41: 1.65 | F41: 181.125 | G41: 0 | H41: =psych(D41,B41,0.01*C41,3,4,1) -> 0.003457299273
A42: 1906-01-02T17:00:00 | B42: 10.4 | C42: 49 | D42: 101848.75 | E42: 1.75 | F42: 161.25 | G42: 0 | H42: =psych(D42,B42,0.01*C42,3,4,1) -> 0.003797320803
A43: 1906-01-02T18:00:00 | B43: 9.7875 | C43: 56.375 | D43: 101805 | E43: 2.0875 | F43: 131.25 | G43: 0 | H43: =psych(D43,B43,0.01*C43,3,4,1) -> 0.004197816128
A44: 1906-01-02T19:00:00 | B44: 9.1625 | C44: 64.625 | D44: 101758.75 | E44: 2.45 | F44: 101.25 | G44: 0 | H44: =psych(D44,B44,0.01*C44,3,4,1) -> 0.004619179148
A45: 1906-01-02T20:00:00 | B45: 8.4625 | C45: 68 | D45: 101727.5 | E45: 3.0375 | F45: 96.25 | G45: 0 | H45: =psych(D45,B45,0.01*C45,3,4,1) -> 0.004637212407
A46: 1906-01-02T21:00:00 | B46: 7.7 | C46: 68.625 | D46: 101707.5 | E46: 3.675 | F46: 106.25 | G46: 0 | H46: =psych(D46,B46,0.01*C46,3,4,1) -> 0.004442746964
A47: 1906-01-02T22:00:00 | B47: 6.9625 | C47: 68.375 | D47: 101687.5 | E47: 4.3375 | F47: 116.25 | G47: 0 | H47: =psych(D47,B47,0.01*C47,3,4,1) -> 0.004207913965
A48: 1906-01-02T23:00:00 | B48: 6.825 | C48: 69.875 | D48: 101636.25 | E48: 5.1625 | F48: 121.875 | G48: 0 | H48: =psych(D48,B48,0.01*C48,3,4,1) -> 0.004262323527
A49: 1906-01-02 | B49: 7.4625 | C49: 74.125 | D49: 101566.25 | E49: 6 | F49: 125.5 | G49: 0 | H49: =psych(D49,B49,0.01*C49,3,4,1) -> 0.004730328188
A50: 1906-01-03T01:00:00 | B50: 8.55 | C50: 78.5 | D50: 101496.25 | E50: 6.8625 | F50: 128.875 | G50: 0 | H50: =psych(D50,B50,0.01*C50,3,4,1) -> 0.005403980466
A51: 1906-01-03T02:00:00 | B51: 9.5 | C51: 78.75 | D51: 101445 | E51: 7.3875 | F51: 131.875 | G51: 0 | H51: =psych(D51,B51,0.01*C51,3,4,1) -> 0.005786784127
A52: 1906-01-03T03:00:00 | B52: 10.05 | C52: 76.75 | D52: 101398.75 | E52: 7.75 | F52: 135.5 | G52: 0 | H52: =psych(D52,B52,0.01*C52,3,4,1) -> 0.005855213336
A53: 1906-01-03T04:00:00 | B53: 10.45 | C53: 74.75 | D53: 101355 | E53: 8.0875 | F53: 138.875 | G53: 0 | H53: =psych(D53,B53,0.01*C53,3,4,1) -> 0.005859787891
A54: 1906-01-03T05:00:00 | B54: 10.6 | C54: 74.625 | D54: 101296.25 | E54: 8.6375 | F54: 141.875 | G54: 0 | H54: =psych(D54,B54,0.01*C54,3,4,1) -> 0.005912754987
A55: 1906-01-03T06:00:00 | B55: 10.6 | C55: 75.625 | D55: 101226.25 | E55: 9.3375 | F55: 145.5 | G55: 0 | H55: =psych(D55,B55,0.01*C55,3,4,1) -> 0.005996935355
A56: 1906-01-03T07:00:00 | B56: 10.6 | C56: 76.625 | D56: 101156.25 | E56: 10.0375 | F56: 148.875 | G56: 1.5 | H56: =psych(D56,B56,0.01*C56,3,4,1) -> 0.006081254851
A57: 1906-01-03T08:00:00 | B57: 10.7875 | C57: 76.375 | D57: 101130 | E57: 10.7375 | F57: 150 | G57: 0 | H57: =psych(D57,B57,0.01*C57,3,4,1) -> 0.006139780257
A58: 1906-01-03T09:00:00 | B58: 11.025 | C58: 75.375 | D58: 101130 | E58: 11.4375 | F58: 150 | G58: 0 | H58: =psych(D58,B58,0.01*C58,3,4,1) -> 0.00615603581
A59: 1906-01-03T10:00:00 | B59: 11.2875 | C59: 74.375 | D59: 101130 | E59: 12.1375 | F59: 150 | G59: 1.5 | H59: =psych(D59,B59,0.01*C59,3,4,1) -> 0.006181394507
A60: 1906-01-03T11:00:00 | B60: 10.65 | C60: 77.125 | D60: 101123.75 | E60: 11.4 | F60: 154.375 | G60: 0 | H60: =psych(D60,B60,0.01*C60,3,4,1) -> 0.006143961031
A61: 1906-01-03T12:00:00 | B61: 9.325 | C61: 82.125 | D61: 101113.75 | E61: 9.8625 | F61: 160.75 | G61: 0 | H61: =psych(D61,B61,0.01*C61,3,4,1) -> 0.005985550324
A62: 1906-01-03T13:00:00 | B62: 7.9875 | C62: 87.125 | D62: 101103.75 | E62: 8.3 | F62: 167.375 | G62: 1.5 | H62: =psych(D62,B62,0.01*C62,3,4,1) -> 0.00579892944
A63: 1906-01-03T14:00:00 | B63: 6.875 | C63: 90.25 | D63: 101081.25 | E63: 7.5125 | F63: 157.5 | G63: 0 | H63: =psych(D63,B63,0.01*C63,3,4,1) -> 0.005566023169
A64: 1906-01-03T15:00:00 | B64: 5.9375 | C64: 92.875 | D64: 101045 | E64: 7.15 | F64: 137.5 | G64: 0 | H64: =psych(D64,B64,0.01*C64,3,4,1) -> 0.005369588292
A65: 1906-01-03T16:00:00 | B65: 4.9125 | C65: 95.875 | D65: 101011.25 | E65: 6.8125 | F65: 117.5 | G65: 1.5 | H65: =psych(D65,B65,0.01*C65,3,4,1) -> 0.005161893204
A66: 1906-01-03T17:00:00 | B66: 4.9375 | C66: 95.75 | D66: 100987.5 | E66: 5.95 | F66: 114.375 | G66: 0 | H66: =psych(D66,B66,0.01*C66,3,4,1) -> 0.005165408381
A67: 1906-01-03T18:00:00 | B67: 5.575 | C67: 94.375 | D67: 100961.25 | E67: 4.75 | F67: 120.75 | G67: 0 | H67: =psych(D67,B67,0.01*C67,3,4,1) -> 0.005324949291
A68: 1906-01-03T19:00:00 | B68: 6.2375 | C68: 93.375 | D68: 100937.5 | E68: 3.55 | F68: 127.375 | G68: 1.5 | H68: =psych(D68,B68,0.01*C68,3,4,1) -> 0.005518811695
A69: 1906-01-03T20:00:00 | B69: 6.9375 | C69: 91.75 | D69: 100930 | E69: 3.2875 | F69: 130 | G69: 0 | H69: =psych(D69,B69,0.01*C69,3,4,1) -> 0.005692537783
A70: 1906-01-03T21:00:00 | B70: 7.6375 | C70: 90.375 | D70: 100930 | E70: 3.65 | F70: 130 | G70: 0 | H70: =psych(D70,B70,0.01*C70,3,4,1) -> 0.005884312471
A71: 1906-01-03T22:00:00 | B71: 8.3375 | C71: 89.375 | D71: 100930 | E71: 3.9875 | F71: 130 | G71: 1.5 | H71: =psych(D71,B71,0.01*C71,3,4,1) -> 0.006105407919
A72: 1906-01-03T23:00:00 | B72: 8.725 | C72: 89.625 | D72: 100911.25 | E72: 4.1 | F72: 131.875 | G72: 0 | H72: =psych(D72,B72,0.01*C72,3,4,1) -> 0.006288444342
A73: 1906-01-03 | B73: 8.675 | C73: 91.25 | D73: 100875 | E73: 4.1 | F73: 135.5 | G73: 0 | H73: =psych(D73,B73,0.01*C73,3,4,1) -> 0.00638409053
A74: 1906-01-04T01:00:00 | B74: 8.35 | C74: 92.625 | D74: 100841.25 | E74: 4.1 | F74: 138.875 | G74: 1.5 | H74: =psych(D74,B74,0.01*C74,3,4,1) -> 0.006340743091
A75: 1906-01-04T02:00:00 | B75: 7.95 | C75: 93.625 | D75: 100811.25 | E75: 3.9125 | F75: 129.375 | G75: 0 | H75: =psych(D75,B75,0.01*C75,3,4,1) -> 0.006238063776
A76: 1906-01-04T03:00:00 | B76: 7.55 | C76: 94.625 | D76: 100775 | E76: 3.55 | F76: 113 | G76: 0 | H76: =psych(D76,B76,0.01*C76,3,4,1) -> 0.006136199963
A77: 1906-01-04T04:00:00 | B77: 7.15 | C77: 96.25 | D77: 100741.25 | E77: 3.2125 | F77: 96.375 | G77: 0 | H77: =psych(D77,B77,0.01*C77,3,4,1) -> 0.006074477108
A78: 1906-01-04T05:00:00 | B78: 7 | C78: 95.75 | D78: 100730 | E78: 3.2875 | F78: 81.875 | G78: 0 | H78: =psych(D78,B78,0.01*C78,3,4,1) -> 0.005980847748
A79: 1906-01-04T06:00:00 | B79: 7 | C79: 94.375 | D79: 100730 | E79: 3.65 | F79: 68.25 | G79: 0 | H79: =psych(D79,B79,0.01*C79,3,4,1) -> 0.005894147
A80: 1906-01-04T07:00:00 | B80: 7 | C80: 93.375 | D80: 100730 | E80: 3.9875 | F80: 54.875 | G80: 0 | H80: =psych(D80,B80,0.01*C80,3,4,1) -> 0.005831106947
A81: 1906-01-04T08:00:00 | B81: 6.5625 | C81: 93 | D81: 100755 | E81: 4.4125 | F81: 50 | G81: 0 | H81: =psych(D81,B81,0.01*C81,3,4,1) -> 0.005632429425
A82: 1906-01-04T09:00:00 | B82: 5.925 | C82: 93 | D82: 100801.25 | E82: 4.975 | F82: 50 | G82: 0 | H82: =psych(D82,B82,0.01*C82,3,4,1) -> 0.005385290257
A83: 1906-01-04T10:00:00 | B83: 5.2625 | C83: 93 | D83: 100845 | E83: 5.5125 | F83: 50 | G83: 0 | H83: =psych(D83,B83,0.01*C83,3,4,1) -> 0.005139013452
A84: 1906-01-04T11:00:00 | B84: 6 | C84: 91.125 | D84: 100816.25 | E84: 5.575 | F84: 50 | G84: 0 | H84: =psych(D84,B84,0.01*C84,3,4,1) -> 0.005302686815
A85: 1906-01-04T12:00:00 | B85: 7.7875 | C85: 86.875 | D85: 100752.5 | E85: 5.375 | F85: 50 | G85: 0 | H85: =psych(D85,B85,0.01*C85,3,4,1) -> 0.005723219058
A86: 1906-01-04T13:00:00 | B86: 9.5 | C86: 83.75 | D86: 100686.25 | E86: 5.175 | F86: 50 | G86: 0 | H86: =psych(D86,B86,0.01*C86,3,4,1) -> 0.006204703589
A87: 1906-01-04T14:00:00 | B87: 9.6625 | C87: 83.625 | D87: 100653.75 | E87: 5.5375 | F87: 48.125 | G87: 0 | H87: =psych(D87,B87,0.01*C87,3,4,1) -> 0.006266126222
A88: 1906-01-04T15:00:00 | B88: 9.0875 | C88: 84.625 | D88: 100643.75 | E88: 6.2375 | F88: 44.5 | G88: 0 | H88: =psych(D88,B88,0.01*C88,3,4,1) -> 0.006099228648
A89: 1906-01-04T16:00:00 | B89: 8.4 | C89: 85.625 | D89: 100633.75 | E89: 6.9375 | F89: 41.125 | G89: 0 | H89: =psych(D89,B89,0.01*C89,3,4,1) -> 0.005889370139
A90: 1906-01-04T17:00:00 | B90: 7.6625 | C90: 86.625 | D90: 100605 | E90: 6.45 | F90: 33.75 | G90: 0 | H90: =psych(D90,B90,0.01*C90,3,4,1) -> 0.005666065773
A91: 1906-01-04T18:00:00 | B91: 7.025 | C91: 87.625 | D91: 100571.25 | E91: 5.25 | F91: 23.75 | G91: 0 | H91: =psych(D91,B91,0.01*C91,3,4,1) -> 0.005487068529
A92: 1906-01-04T19:00:00 | B92: 6.3625 | C92: 88.625 | D92: 100535 | E92: 4.05 | F92: 13.75 | G92: 0 | H92: =psych(D92,B92,0.01*C92,3,4,1) -> 0.005302778843
A93: 1906-01-04T20:00:00 | B93: 6.1 | C93: 89.625 | D93: 100526.25 | E93: 3.2875 | F93: 10 | G93: 0 | H93: =psych(D93,B93,0.01*C93,3,4,1) -> 0.005266436836
A94: 1906-01-04T21:00:00 | B94: 6.1 | C94: 90.625 | D94: 100542.5 | E94: 2.7875 | F94: 10 | G94: 0 | H94: =psych(D94,B94,0.01*C94,3,4,1) -> 0.00532483265
A95: 1906-01-04T22:00:00 | B95: 6.1 | C95: 92.25 | D95: 100556.25 | E95: 2.2875 | F95: 10 | G95: 0 | H95: =psych(D95,B95,0.01*C95,3,4,1) -> 0.005420396861
A96: 1906-01-04T23:00:00 | B96: 6.0375 | C96: 91.75 | D96: 100553.75 | E96: 2.2875 | F96: 20.625 | G96: 0 | H96: =psych(D96,B96,0.01*C96,3,4,1) -> 0.005367451654
A97: 1906-01-04 | B97: 6 | C97: 91 | D97: 100537.5 | E97: 2.65 | F97: 37 | G97: 0 | H97: =psych(D97,B97,0.01*C97,3,4,1) -> 0.005310158191
A98: 1906-01-05T01:00:00 | B98: 6 | C98: 89.75 | D98: 100523.75 | E98: 2.9875 | F98: 53.625 | G98: 0 | H98: =psych(D98,B98,0.01*C98,3,4,1) -> 0.005237324656
A99: 1906-01-05T02:00:00 | B99: 6.125 | C99: 89 | D99: 100526.25 | E99: 2.7875 | F99: 36.875 | G99: 0 | H99: =psych(D99,B99,0.01*C99,3,4,1) -> 0.005238522827
A100: 1906-01-05T03:00:00 | B100: 6.45 | C100: 89 | D100: 100542.5 | E100: 2.225 | F100: 225.5 | G100: 0 | H100: =psych(D100,B100,0.01*C100,3,4,1) -> 0.005357511781
A101: 1906-01-05T04:00:00 | B101: 6.85 | C101: 89 | D101: 100556.25 | E101: 1.6875 | F101: 323.875 | G101: 0 | H101: =psych(D101,B101,0.01*C101,3,4,1) -> 0.005507607471
A102: 1906-01-05T05:00:00 | B102: 7 | C102: 89 | D102: 100572.5 | E102: 1.9375 | F102: 274.375 | G102: 0 | H102: =psych(D102,B102,0.01*C102,3,4,1) -> 0.005564233352
A103: 1906-01-05T06:00:00 | B103: 7 | C103: 89 | D103: 100598.75 | E103: 2.6375 | F103: 218 | G103: 0 | H103: =psych(D103,B103,0.01*C103,3,4,1) -> 0.005562768448
A104: 1906-01-05T07:00:00 | B104: 7 | C104: 89 | D104: 100622.5 | E104: 3.3375 | F104: 161.375 | G104: 0 | H104: =psych(D104,B104,0.01*C104,3,4,1) -> 0.005561443724
A105: 1906-01-05T08:00:00 | B105: 7.5 | C105: 89 | D105: 100673.75 | E105: 3.9125 | F105: 146.25 | G105: 0 | H105: =psych(D105,B105,0.01*C105,3,4,1) -> 0.005754027221
A106: 1906-01-05T09:00:00 | B106: 8.1125 | C106: 89 | D106: 100737.5 | E106: 4.4125 | F106: 156.25 | G106: 0 | H106: =psych(D106,B106,0.01*C106,3,4,1) -> 0.00599795311
A107: 1906-01-05T10:00:00 | B107: 8.8 | C107: 89 | D107: 100803.75 | E107: 4.9125 | F107: 166.25 | G107: 1.5 | H107: =psych(D107,B107,0.01*C107,3,4,1) -> 0.006283001296
A108: 1906-01-05T11:00:00 | B108: 8.85 | C108: 89 | D108: 100836.25 | E108: 4.9125 | F108: 171.875 | G108: 0 | H108: =psych(D108,B108,0.01*C108,3,4,1) -> 0.006302446424
A109: 1906-01-05T12:00:00 | B109: 8.575 | C109: 89 | D109: 100846.25 | E109: 4.55 | F109: 175.5 | G109: 0 | H109: =psych(D109,B109,0.01*C109,3,4,1) -> 0.006184436164
A110: 1906-01-05T13:00:00 | B110: 8.25 | C110: 89 | D110: 100856.25 | E110: 4.2125 | F110: 178.875 | G110: 1.5 | H110: =psych(D110,B110,0.01*C110,3,4,1) -> 0.006047629789
A111: 1906-01-05T14:00:00 | B111: 8.6 | C111: 86.5 | D111: 100878.75 | E111: 4.2875 | F111: 198.75 | G111: 0 | H111: =psych(D111,B111,0.01*C111,3,4,1) -> 0.006017366047
A112: 1906-01-05T15:00:00 | B112: 9.275 | C112: 83.75 | D112: 100915 | E112: 4.65 | F112: 228.75 | G112: 0 | H112: =psych(D112,B112,0.01*C112,3,4,1) -> 0.006096516327
A113: 1906-01-05T16:00:00 | B113: 10 | C113: 80.5 | D113: 100948.75 | E113: 4.9875 | F113: 258.75 | G113: 0 | H113: =psych(D113,B113,0.01*C113,3,4,1) -> 0.006150944663
A114: 1906-01-05T17:00:00 | B114: 10.3 | C114: 80.25 | D114: 100985 | E114: 5.1 | F114: 253.125 | G114: 0 | H114: =psych(D114,B114,0.01*C114,3,4,1) -> 0.006254977392
A115: 1906-01-05T18:00:00 | B115: 10.3 | C115: 81.625 | D115: 101018.75 | E115: 5.1 | F115: 226.75 | G115: 0 | H115: =psych(D115,B115,0.01*C115,3,4,1) -> 0.006361098664
A116: 1906-01-05T19:00:00 | B116: 10.3 | C116: 82.625 | D116: 101055 | E116: 5.1 | F116: 200.125 | G116: 0 | H116: =psych(D116,B116,0.01*C116,3,4,1) -> 0.006437502327
A117: 1906-01-05T20:00:00 | B117: 10.3 | C117: 83.625 | D117: 101107.5 | E117: 5.1 | F117: 185.625 | G117: 0 | H117: =psych(D117,B117,0.01*C117,3,4,1) -> 0.006512811886
A118: 1906-01-05T21:00:00 | B118: 10.3 | C118: 84 | D118: 101161.25 | E118: 5.1 | F118: 179.25 | G118: 0 | H118: =psych(D118,B118,0.01*C118,3,4,1) -> 0.006538811842
A119: 1906-01-05T22:00:00 | B119: 10.3 | C119: 85.25 | D119: 101217.5 | E119: 5.1 | F119: 172.625 | G119: 0 | H119: =psych(D119,B119,0.01*C119,3,4,1) -> 0.00663342609
A120: 1906-01-05T23:00:00 | B120: 10.175 | C120: 86.625 | D120: 101246.25 | E120: 5.1 | F120: 165.625 | G120: 0 | H120: =psych(D120,B120,0.01*C120,3,4,1) -> 0.006682936436
A121: 1906-01-05 | B121: 9.975 | C121: 87.625 | D121: 101256.25 | E121: 5.1 | F121: 159.25 | G121: 0 | H121: =psych(D121,B121,0.01*C121,3,4,1) -> 0.006669355351
A122: 1906-01-06T01:00:00 | B122: 9.65 | C122: 88.625 | D122: 101266.25 | E122: 5.1 | F122: 152.625 | G122: 0 | H122: =psych(D122,B122,0.01*C122,3,4,1) -> 0.006598565354
A123: 1906-01-06T02:00:00 | B123: 9.375 | C123: 89.625 | D123: 101270 | E123: 4.9125 | F123: 141.875 | G123: 0 | H123: =psych(D123,B123,0.01*C123,3,4,1) -> 0.006549978599
A124: 1906-01-06T03:00:00 | B124: 9.175 | C124: 90.625 | D124: 101270 | E124: 4.55 | F124: 128.25 | G124: 0 | H124: =psych(D124,B124,0.01*C124,3,4,1) -> 0.006534233563
A125: 1906-01-06T04:00:00 | B125: 8.85 | C125: 91.625 | D125: 101270 | E125: 4.2125 | F125: 114.875 | G125: 0 | H125: =psych(D125,B125,0.01*C125,3,4,1) -> 0.006462185552
A126: 1906-01-06T05:00:00 | B126: 8.7 | C126: 91.375 | D126: 101270 | E126: 3.7875 | F126: 101.875 | G126: 0 | H126: =psych(D126,B126,0.01*C126,3,4,1) -> 0.00637863295
A127: 1906-01-06T06:00:00 | B127: 8.7 | C127: 90.375 | D127: 101270 | E127: 3.2875 | F127: 88.25 | G127: 0 | H127: =psych(D127,B127,0.01*C127,3,4,1) -> 0.006308117765
A128: 1906-01-06T07:00:00 | B128: 8.7 | C128: 89.375 | D128: 101270 | E128: 2.7875 | F128: 74.875 | G128: 0 | H128: =psych(D128,B128,0.01*C128,3,4,1) -> 0.006237618406
A129: 1906-01-06T08:00:00 | B129: 8.95 | C129: 89.625 | D129: 101288.75 | E129: 3.0375 | F129: 88.75 | G129: 0 | H129: =psych(D129,B129,0.01*C129,3,4,1) -> 0.006361802838
A130: 1906-01-06T09:00:00 | B130: 9.225 | C130: 91.25 | D130: 101325 | E130: 3.675 | F130: 118.75 | G130: 0 | H130: =psych(D130,B130,0.01*C130,3,4,1) -> 0.006598608483
A131: 1906-01-06T10:00:00 | B131: 9.55 | C131: 92.625 | D131: 101358.75 | E131: 4.3375 | F131: 148.75 | G131: 0 | H131: =psych(D131,B131,0.01*C131,3,4,1) -> 0.006846637285
A132: 1906-01-06T11:00:00 | B132: 9.8875 | C132: 89.875 | D132: 101357.5 | E132: 4.85 | F132: 168.125 | G132: 0 | H132: =psych(D132,B132,0.01*C132,3,4,1) -> 0.006795167712
A133: 1906-01-06T12:00:00 | B133: 10.25 | C133: 85.5 | D133: 101331.25 | E133: 5.1875 | F133: 181.75 | G133: 0 | H133: =psych(D133,B133,0.01*C133,3,4,1) -> 0.006623126196
A134: 1906-01-06T13:00:00 | B134: 10.65 | C134: 80.875 | D134: 101307.5 | E134: 5.55 | F134: 195.125 | G134: 1.5 | H134: =psych(D134,B134,0.01*C134,3,4,1) -> 0.00643397862
A135: 1906-01-06T14:00:00 | B135: 10.8 | C135: 80.25 | D135: 101281.25 | E135: 4.95 | F135: 214.375 | G135: 0 | H135: =psych(D135,B135,0.01*C135,3,4,1) -> 0.006450206351
A136: 1906-01-06T15:00:00 | B136: 10.8 | C136: 81.625 | D136: 101245 | E136: 3.75 | F136: 238 | G136: 0 | H136: =psych(D136,B136,0.01*C136,3,4,1) -> 0.006564264095
A137: 1906-01-06T16:00:00 | B137: 10.8 | C137: 82.625 | D137: 101211.25 | E137: 2.55 | F137: 261.375 | G137: 1.5 | H137: =psych(D137,B137,0.01*C137,3,4,1) -> 0.006647782829
A138: 1906-01-06T17:00:00 | B138: 10.55 | C138: 83.625 | D138: 101193.75 | E138: 1.975 | F138: 305.625 | G138: 0 | H138: =psych(D138,B138,0.01*C138,3,4,1) -> 0.006617905844
A139: 1906-01-06T18:00:00 | B139: 10.15 | C139: 84.625 | D139: 101183.75 | E139: 1.775 | F139: 137 | G139: 0 | H139: =psych(D139,B139,0.01*C139,3,4,1) -> 0.006520064906
A140: 1906-01-06T19:00:00 | B140: 9.8125 | C140: 85.625 | D140: 101173.75 | E140: 1.575 | F140: 58.625 | G140: 1.5 | H140: =psych(D140,B140,0.01*C140,3,4,1) -> 0.006449502
A141: 1906-01-06T20:00:00 | B141: 8.8875 | C141: 87.25 | D141: 101182.5 | E141: 2.5625 | F141: 71.875 | G141: 0 | H141: =psych(D141,B141,0.01*C141,3,4,1) -> 0.006171724686
A142: 1906-01-06T21:00:00 | B142: 7.4625 | C142: 89.875 | D142: 101208.75 | E142: 4.325 | F142: 58.25 | G142: 0 | H142: =psych(D142,B142,0.01*C142,3,4,1) -> 0.005765186568
A143: 1906-01-06T22:00:00 | B143: 6.15 | C143: 92.25 | D143: 101232.5 | E143: 6.0625 | F143: 44.875 | G143: 0 | H143: =psych(D143,B143,0.01*C143,3,4,1) -> 0.005402672882
A144: 1906-01-06T23:00:00 | B144: 5.1375 | C144: 93 | D144: 101240 | E144: 5.95 | F144: 38.125 | G144: 0 | H144: =psych(D144,B144,0.01*C144,3,4,1) -> 0.005074076561
A145: 1906-01-06 | B145: 4.4875 | C145: 93 | D145: 101240 | E145: 4.75 | F145: 34.5 | G145: 0 | H145: =psych(D145,B145,0.01*C145,3,4,1) -> 0.00484710064
A146: 1906-01-07T01:00:00 | B146: 4.1125 | C146: 93 | D146: 101240 | E146: 3.55 | F146: 31.125 | G146: 0 | H146: =psych(D146,B146,0.01*C146,3,4,1) -> 0.004720317851
A147: 1906-01-07T02:00:00 | B147: 3.9375 | C147: 93.625 | D147: 101208.75 | E147: 3.975 | F147: 30 | G147: 0 | H147: =psych(D147,B147,0.01*C147,3,4,1) -> 0.004695200963
A148: 1906-01-07T03:00:00 | B148: 3.775 | C148: 94.625 | D148: 101165 | E148: 5.3125 | F148: 30 | G148: 0 | H148: =psych(D148,B148,0.01*C148,3,4,1) -> 0.004693393581
A149: 1906-01-07T04:00:00 | B149: 3.5125 | C149: 95.625 | D149: 101118.75 | E149: 6.675 | F149: 30 | G149: 1.5 | H149: =psych(D149,B149,0.01*C149,3,4,1) -> 0.004657874084
A150: 1906-01-07T05:00:00 | B150: 3.5875 | C150: 95.375 | D150: 101081.25 | E150: 7.2 | F150: 34.375 | G150: 0 | H150: =psych(D150,B150,0.01*C150,3,4,1) -> 0.004672188927
A151: 1906-01-07T06:00:00 | B151: 3.825 | C151: 94.375 | D151: 101045 | E151: 7.2 | F151: 40.75 | G151: 0 | H151: =psych(D151,B151,0.01*C151,3,4,1) -> 0.004703157491
A152: 1906-01-07T07:00:00 | B152: 4.0875 | C152: 93.375 | D152: 101011.25 | E152: 7.2 | F152: 47.375 | G152: 1.5 | H152: =psych(D152,B152,0.01*C152,3,4,1) -> 0.004741912104
A153: 1906-01-07T08:00:00 | B153: 4.6375 | C153: 91.125 | D153: 101006.25 | E153: 7.5125 | F153: 51.875 | G153: 0 | H153: =psych(D153,B153,0.01*C153,3,4,1) -> 0.004810325926
A154: 1906-01-07T09:00:00 | B154: 5.2125 | C154: 88.75 | D154: 101016.25 | E154: 8.075 | F154: 55.5 | G154: 0 | H154: =psych(D154,B154,0.01*C154,3,4,1) -> 0.00487680206
A155: 1906-01-07T10:00:00 | B155: 5.8375 | C155: 86.75 | D155: 101026.25 | E155: 8.6125 | F155: 58.875 | G155: 1.5 | H155: =psych(D155,B155,0.01*C155,3,4,1) -> 0.004978680858
A156: 1906-01-07T11:00:00 | B156: 7.0375 | C156: 83.5 | D156: 100980 | E156: 8.4875 | F156: 61.875 | G156: 0 | H156: =psych(D156,B156,0.01*C156,3,4,1) -> 0.005209760907
A157: 1906-01-07T12:00:00 | B157: 8.6625 | C157: 79.5 | D157: 100906.25 | E157: 7.925 | F157: 65.5 | G157: 0 | H157: =psych(D157,B157,0.01*C157,3,4,1) -> 0.005548212282
A158: 1906-01-07T13:00:00 | B158: 10.2375 | C158: 75.5 | D158: 100830 | E158: 7.3875 | F158: 68.875 | G158: 1.5 | H158: =psych(D158,B158,0.01*C158,3,4,1) -> 0.0058655777
A159: 1906-01-07T14:00:00 | B159: 11.425 | C159: 72.75 | D159: 100768.75 | E159: 6.8875 | F159: 65.625 | G159: 0 | H159: =psych(D159,B159,0.01*C159,3,4,1) -> 0.006122999418
A160: 1906-01-07T15:00:00 | B160: 12.3625 | C160: 71.375 | D160: 100725 | E160: 6.3875 | F160: 59.25 | G160: 0 | H160: =psych(D160,B160,0.01*C160,3,4,1) -> 0.006396264451
A161: 1906-01-07T16:00:00 | B161: 13.325 | C161: 69.75 | D161: 100678.75 | E161: 5.8875 | F161: 52.625 | G161: 0 | H161: =psych(D161,B161,0.01*C161,3,4,1) -> 0.006663312386
A162: 1906-01-07T17:00:00 | B162: 12.95 | C162: 72.75 | D162: 100653.75 | E162: 5.075 | F162: 75 | G162: 0 | H162: =psych(D162,B162,0.01*C162,3,4,1) -> 0.006784645725
A163: 1906-01-07T18:00:00 | B163: 11.6875 | C163: 79.375 | D163: 100643.75 | E163: 4.0125 | F163: 115 | G163: 0 | H163: =psych(D163,B163,0.01*C163,3,4,1) -> 0.006813580883
A164: 1906-01-07T19:00:00 | B164: 10.45 | C164: 86.375 | D164: 100633.75 | E164: 2.975 | F164: 155 | G164: 0 | H164: =psych(D164,B164,0.01*C164,3,4,1) -> 0.006830161893
A165: 1906-01-07T20:00:00 | B165: 10 | C165: 89 | D165: 100655 | E165: 2.6 | F165: 170 | G165: 0 | H165: =psych(D165,B165,0.01*C165,3,4,1) -> 0.006827616875
A166: 1906-01-07T21:00:00 | B166: 10 | C166: 89 | D166: 100701.25 | E166: 2.6 | F166: 170 | G166: 0 | H166: =psych(D166,B166,0.01*C166,3,4,1) -> 0.006824446686
A167: 1906-01-07T22:00:00 | B167: 10 | C167: 89 | D167: 100745 | E167: 2.6 | F167: 170 | G167: 0 | H167: =psych(D167,B167,0.01*C167,3,4,1) -> 0.006821450567
A168: 1906-01-07T23:00:00 | B168: 9.3125 | C168: 89.625 | D168: 100772.5 | E168: 2.475 | F168: 146.875 | G168: 0 | H168: =psych(D168,B168,0.01*C168,3,4,1) -> 0.006554714953
A169: 1906-01-07 | B169: 7.775 | C169: 90.625 | D169: 100798.75 | E169: 2.3375 | F169: 110.5 | G169: 0 | H169: =psych(D169,B169,0.01*C169,3,4,1) -> 0.00596473425
A170: 1906-01-08T01:00:00 | B170: 5.85 | C170: 92.25 | D170: 100822.5 | E170: 2.175 | F170: 73.875 | G170: 0 | H170: =psych(D170,B170,0.01*C170,3,4,1) -> 0.005312453388
A171: 1906-01-08T02:00:00 | B171: 4.225 | C171: 93 | D171: 100848.75 | E171: 1.6625 | F171: 47.5 | G171: 0 | H171: =psych(D171,B171,0.01*C171,3,4,1) -> 0.004776638993
A172: 1906-01-08T03:00:00 | B172: 3.3875 | C172: 92.375 | D172: 100885 | E172: 0.9625 | F172: 27.5 | G172: 0 | H172: =psych(D172,B172,0.01*C172,3,4,1) -> 0.004469005722
A173: 1906-01-08T04:00:00 | B173: 2.825 | C173: 92 | D173: 100918.75 | E173: 0.2625 | F173: 7.5 | G173: 0 | H173: =psych(D173,B173,0.01*C173,3,4,1) -> 0.004274276423
A174: 1906-01-08T05:00:00 | B174: 2.6 | C174: 92 | D174: 100948.75 | E174: 0.4375 | F174: 12.5 | G174: 0 | H174: =psych(D174,B174,0.01*C174,3,4,1) -> 0.004204772861
A175: 1906-01-08T06:00:00 | B175: 2.6 | C175: 92 | D175: 100985 | E175: 1.1375 | F175: 32.5 | G175: 0 | H175: =psych(D175,B175,0.01*C175,3,4,1) -> 0.004203253298
A176: 1906-01-08T07:00:00 | B176: 2.6 | C176: 92 | D176: 101018.75 | E176: 1.8375 | F176: 52.5 | G176: 0 | H176: =psych(D176,B176,0.01*C176,3,4,1) -> 0.00420183952
A177: 1906-01-08T08:00:00 | B177: 4.5375 | C177: 83.25 | D177: 101086.25 | E177: 2.225 | F177: 66.25 | G177: 0 | H177: =psych(D177,B177,0.01*C177,3,4,1) -> 0.004357369385
A178: 1906-01-08T09:00:00 | B178: 7.575 | C178: 70.5 | D178: 101176.25 | E178: 2.3625 | F178: 76.25 | G178: 0 | H178: =psych(D178,B178,0.01*C178,3,4,1) -> 0.004549885859
A179: 1906-01-08T10:00:00 | B179: 10.7 | C179: 59.75 | D179: 101266.25 | E179: 2.525 | F179: 86.25 | G179: 0 | H179: =psych(D179,B179,0.01*C179,3,4,1) -> 0.004758473873
A180: 1906-01-08T11:00:00 | B180: 12.3375 | C180: 57.875 | D180: 101281.25 | E180: 2.7875 | F180: 110.625 | G180: 0 | H180: =psych(D180,B180,0.01*C180,3,4,1) -> 0.005139203972
A181: 1906-01-08T12:00:00 | B181: 12.9125 | C181: 61.5 | D181: 101245 | E181: 3.15 | F181: 144.25 | G181: 0 | H181: =psych(D181,B181,0.01*C181,3,4,1) -> 0.005677988863
A182: 1906-01-08T13:00:00 | B182: 13.5375 | C182: 65.5 | D182: 101211.25 | E182: 3.4875 | F182: 177.625 | G182: 0 | H182: =psych(D182,B182,0.01*C182,3,4,1) -> 0.006307653805
A183: 1906-01-08T14:00:00 | B183: 13.9875 | C183: 64.5 | D183: 101200 | E183: 2.85 | F183: 225.625 | G183: 0 | H183: =psych(D183,B183,0.01*C183,3,4,1) -> 0.006397436552
A184: 1906-01-08T15:00:00 | B184: 14.225 | C184: 60.5 | D184: 101200 | E184: 1.65 | F184: 282 | G184: 0 | H184: =psych(D184,B184,0.01*C184,3,4,1) -> 0.006090869945
A185: 1906-01-08T16:00:00 | B185: 14.4875 | C185: 56.5 | D185: 101200 | E185: 0.45 | F185: 113.625 | G185: 0 | H185: =psych(D185,B185,0.01*C185,3,4,1) -> 0.005782805562
A186: 1906-01-08T17:00:00 | B186: 13.6625 | C186: 55.625 | D186: 101212.5 | E186: 0.4375 | F186: 10.625 | G186: 0 | H186: =psych(D186,B186,0.01*C186,3,4,1) -> 0.005392536484
A187: 1906-01-08T18:00:00 | B187: 12.1625 | C187: 57.25 | D187: 101238.75 | E187: 1.1375 | F187: 27 | G187: 0 | H187: =psych(D187,B187,0.01*C187,3,4,1) -> 0.005026698219
A188: 1906-01-08T19:00:00 | B188: 10.6625 | C188: 58 | D188: 101262.5 | E188: 1.8375 | F188: 43.625 | G188: 0 | H188: =psych(D188,B188,0.01*C188,3,4,1) -> 0.004606630461
A189: 1906-01-08T20:00:00 | B189: 9.475 | C189: 62.375 | D189: 101288.75 | E189: 2.1 | F189: 66.875 | G189: 0 | H189: =psych(D189,B189,0.01*C189,3,4,1) -> 0.004574003357
A190: 1906-01-08T21:00:00 | B190: 8.5375 | C190: 69.375 | D190: 101325 | E190: 2.1 | F190: 93.25 | G190: 0 | H190: =psych(D190,B190,0.01*C190,3,4,1) -> 0.004775039121
A191: 1906-01-08T22:00:00 | B191: 7.575 | C191: 77 | D191: 101358.75 | E191: 2.1 | F191: 119.875 | G191: 0 | H191: =psych(D191,B191,0.01*C191,3,4,1) -> 0.004963707696
A192: 1906-01-08T23:00:00 | B192: 6.7625 | C192: 81.25 | D192: 101370 | E192: 2.2875 | F192: 131.875 | G192: 0 | H192: =psych(D192,B192,0.01*C192,3,4,1) -> 0.004953364106
A193: 1906-01-08 | B193: 6.1875 | C193: 82.625 | D193: 101370 | E193: 2.65 | F193: 135.5 | G193: 0 | H193: =psych(D193,B193,0.01*C193,3,4,1) -> 0.004840611187
A194: 1906-01-09T01:00:00 | B194: 5.625 | C194: 84.875 | D194: 101370 | E194: 2.9875 | F194: 138.875 | G194: 0 | H194: =psych(D194,B194,0.01*C194,3,4,1) -> 0.004782056189
A195: 1906-01-09T02:00:00 | B195: 4.8375 | C195: 87.875 | D195: 101382.5 | E195: 2.9125 | F195: 119.375 | G195: 0 | H195: =psych(D195,B195,0.01*C195,3,4,1) -> 0.004685671597
A196: 1906-01-09T03:00:00 | B196: 3.5625 | C196: 90.875 | D196: 101408.75 | E196: 2.55 | F196: 85.75 | G196: 0 | H196: =psych(D196,B196,0.01*C196,3,4,1) -> 0.00442782073
A197: 1906-01-09T04:00:00 | B197: 2.0625 | C197: 94.5 | D197: 101432.5 | E197: 2.2125 | F197: 52.375 | G197: 0 | H197: =psych(D197,B197,0.01*C197,3,4,1) -> 0.004136430695
A198: 1906-01-09T05:00:00 | B198: 2.625 | C198: 92.875 | D198: 101440 | E198: 2.225 | F198: 63.125 | G198: 0 | H198: =psych(D198,B198,0.01*C198,3,4,1) -> 0.004231906974
A199: 1906-01-09T06:00:00 | B199: 4.425 | C199: 87.875 | D199: 101440 | E199: 2.3625 | F199: 99.5 | G199: 0 | H199: =psych(D199,B199,0.01*C199,3,4,1) -> 0.004548824705
A200: 1906-01-09T07:00:00 | B200: 6.225 | C200: 83.5 | D200: 101440 | E200: 2.525 | F200: 136.125 | G200: 0 | H200: =psych(D200,B200,0.01*C200,3,4,1) -> 0.004901652571
... 4300 more rows

Sheet CZ4
A1: Date | B1: TdbºC | C1: RH% | D1: P Pa | E1: Wind m/s | F1: Windº | G1: Rain mm/hr | H1: W
A2: 1906-01-01T01:00:00 | B2: 8.5 | C2: 85.875 | D2: 102307.5 | E2: 0.375 | F2: 131.25 | G2: 0 | H2: =psych(D2,B2,0.01*C2,3,4,1) -> 0.00584910354
A3: 1906-01-01T02:00:00 | B3: 6.2 | C3: 89.625 | D3: 102287.5 | E3: 0 | F3: 0 | G3: 0 | H3: =psych(D3,B3,0.01*C3,3,4,1) -> 0.005211184327
A4: 1906-01-01T03:00:00 | B4: 5.4 | C4: 90.5 | D4: 102261.25 | E4: 0 | F4: 0 | G4: 0 | H4: =psych(D4,B4,0.01*C4,3,4,1) -> 0.004977720825
A5: 1906-01-01T04:00:00 | B5: 4.7875 | C5: 89 | D5: 102231.25 | E5: 0 | F5: 0 | G5: 0 | H5: =psych(D5,B5,0.01*C5,3,4,1) -> 0.004689883041
A6: 1906-01-01T05:00:00 | B6: 4.1 | C6: 90.875 | D6: 102207.5 | E6: 0 | F6: 0 | G6: 0 | H6: =psych(D6,B6,0.01*C6,3,4,1) -> 0.004563648037
A7: 1906-01-01T06:00:00 | B7: 3.4875 | C7: 92 | D7: 102206.25 | E7: 0 | F7: 100 | G7: 0 | H7: =psych(D7,B7,0.01*C7,3,4,1) -> 0.004424150135
A8: 1906-01-01T07:00:00 | B8: 3.1125 | C8: 92 | D8: 102216.25 | E8: 0 | F8: 60 | G8: 0 | H8: =psych(D8,B8,0.01*C8,3,4,1) -> 0.004307151557
A9: 1906-01-01T08:00:00 | B9: 1.5625 | C9: 94.5 | D9: 102195 | E9: 0.625 | F9: 50 | G9: 0 | H9: =psych(D9,B9,0.01*C9,3,4,1) -> 0.003960123972
A10: 1906-01-01T09:00:00 | B10: 1.6375 | C10: 98.5 | D10: 102161.25 | E10: 0.375 | F10: 30 | G10: 0 | H10: =psych(D10,B10,0.01*C10,3,4,1) -> 0.004152652472
A11: 1906-01-01T10:00:00 | B11: 2.7 | C11: 100 | D11: 102193.75 | E11: 1.9375 | F11: 168.75 | G11: 0 | H11: =psych(D11,B11,0.01*C11,3,4,1) -> 0.004549435916
A12: 1906-01-01T11:00:00 | B12: 4.5 | C12: 100 | D12: 102238.75 | E12: 2.475 | F12: 251.25 | G12: 0 | H12: =psych(D12,B12,0.01*C12,3,4,1) -> 0.005168187576
A13: 1906-01-01T12:00:00 | B13: 6.9625 | C13: 86.875 | D13: 102231.25 | E13: 1.4125 | F13: 240 | G13: 0 | H13: =psych(D13,B13,0.01*C13,3,4,1) -> 0.005327507048
A14: 1906-01-01T13:00:00 | B14: 10.4 | C14: 77.75 | D14: 102113.75 | E14: 2.9375 | F14: 158.75 | G14: 0 | H14: =psych(D14,B14,0.01*C14,3,4,1) -> 0.006031156856
A15: 1906-01-01T14:00:00 | B15: 12.3375 | C15: 80.75 | D15: 102025 | E15: 3.475 | F15: 203.75 | G15: 0 | H15: =psych(D15,B15,0.01*C15,3,4,1) -> 0.007140914848
A16: 1906-01-01T15:00:00 | B16: 12.6 | C16: 79.25 | D16: 101991.25 | E16: 3.1 | F16: 266.25 | G16: 0 | H16: =psych(D16,B16,0.01*C16,3,4,1) -> 0.007132442848
A17: 1906-01-01T16:00:00 | B17: 12.6 | C17: 80.75 | D17: 101998.75 | E17: 2.475 | F17: 276.25 | G17: 0 | H17: =psych(D17,B17,0.01*C17,3,4,1) -> 0.007268478746
A18: 1906-01-01T17:00:00 | B18: 12.1625 | C18: 84.875 | D18: 101991.25 | E18: 0.7875 | F18: 105 | G18: 0 | H18: =psych(D18,B18,0.01*C18,3,4,1) -> 0.007425562628
A19: 1906-01-01T18:00:00 | B19: 11.9 | C19: 80.375 | D19: 101998.75 | E19: 0 | F19: 0 | G19: 0 | H19: =psych(D19,B19,0.01*C19,3,4,1) -> 0.006904996375
A20: 1906-01-01T19:00:00 | B20: 11.4 | C20: 78.875 | D20: 102010 | E20: 1.625 | F20: 37.5 | G20: 0 | H20: =psych(D20,B20,0.01*C20,3,4,1) -> 0.006551345133
A21: 1906-01-01T20:00:00 | B21: 11.6 | C21: 83.75 | D21: 102035 | E21: 2.9125 | F21: 78.75 | G21: 1.5 | H21: =psych(D21,B21,0.01*C21,3,4,1) -> 0.007052878523
A22: 1906-01-01T21:00:00 | B22: 11.9 | C22: 89.75 | D22: 102050 | E22: 2.475 | F22: 90 | G22: 1.5 | H22: =psych(D22,B22,0.01*C22,3,4,1) -> 0.007716472151
A23: 1906-01-01T22:00:00 | B23: 11.9 | C23: 92 | D23: 102131.25 | E23: 2.1 | F23: 171.25 | G23: 1.5 | H23: =psych(D23,B23,0.01*C23,3,4,1) -> 0.007906007568
A24: 1906-01-01T23:00:00 | B24: 11.8375 | C24: 94.5 | D24: 102248.75 | E24: 0.7875 | F24: 82.5 | G24: 0 | H24: =psych(D24,B24,0.01*C24,3,4,1) -> 0.00808035144
A25: 1906-01-01 | B25: 11.6125 | C25: 91.625 | D25: 102308.75 | E25: 0.625 | F25: 218.75 | G25: 0 | H25: =psych(D25,B25,0.01*C25,3,4,1) -> 0.007709822822
A26: 1906-01-02T01:00:00 | B26: 11.1875 | C26: 87.125 | D26: 102301.25 | E26: 2.625 | F26: 275 | G26: 0 | H26: =psych(D26,B26,0.01*C26,3,4,1) -> 0.007121468487
A27: 1906-01-02T02:00:00 | B27: 10.4375 | C27: 87.875 | D27: 102327.5 | E27: 2.2875 | F27: 223.75 | G27: 0 | H27: =psych(D27,B27,0.01*C27,3,4,1) -> 0.006828033839
A28: 1906-01-02T03:00:00 | B28: 9.5375 | C28: 89 | D28: 102375 | E28: 1.5 | F28: 238.75 | G28: 0 | H28: =psych(D28,B28,0.01*C28,3,4,1) -> 0.006504365608
A29: 1906-01-02T04:00:00 | B29: 9.2 | C29: 89 | D29: 102390 | E29: 1.5 | F29: 250 | G29: 0 | H29: =psych(D29,B29,0.01*C29,3,4,1) -> 0.006355778325
A30: 1906-01-02T05:00:00 | B30: 8.6375 | C30: 89.625 | D30: 102408.75 | E30: 2.1875 | F30: 231.25 | G30: 0 | H30: =psych(D30,B30,0.01*C30,3,4,1) -> 0.006158614708
A31: 1906-01-02T06:00:00 | B31: 7.2375 | C31: 91.875 | D31: 102482.5 | E31: 1.6 | F31: 213.75 | G31: 0 | H31: =psych(D31,B31,0.01*C31,3,4,1) -> 0.00573098629
A32: 1906-01-02T07:00:00 | B32: 6.6 | C32: 91.125 | D32: 102520 | E32: 1.3125 | F32: 228.75 | G32: 0 | H32: =psych(D32,B32,0.01*C32,3,4,1) -> 0.005436181818
A33: 1906-01-02T08:00:00 | B33: 6.1625 | C33: 91.875 | D33: 102563.75 | E33: 1.5 | F33: 240 | G33: 0 | H33: =psych(D33,B33,0.01*C33,3,4,1) -> 0.005314714281
A34: 1906-01-02T09:00:00 | B34: 6.9625 | C34: 84.875 | D34: 102608.75 | E34: 1.875 | F34: 215 | G34: 0 | H34: =psych(D34,B34,0.01*C34,3,4,1) -> 0.005184528657
A35: 1906-01-02T10:00:00 | B35: 9.6625 | C35: 76.25 | D35: 102663.75 | E35: 2.725 | F35: 218.75 | G35: 0 | H35: =psych(D35,B35,0.01*C35,3,4,1) -> 0.005595668398
A36: 1906-01-02T11:00:00 | B36: 11.9625 | C36: 67.75 | D36: 102671.25 | E36: 4.0375 | F36: 255 | G36: 0 | H36: =psych(D36,B36,0.01*C36,3,4,1) -> 0.00579591604
A37: 1906-01-02T12:00:00 | B37: 12.6 | C37: 64 | D37: 102660 | E37: 5.2875 | F37: 263.75 | G37: 0 | H37: =psych(D37,B37,0.01*C37,3,4,1) -> 0.005709488984
A38: 1906-01-02T13:00:00 | B38: 13.6 | C38: 59.625 | D38: 102635 | E38: 5.325 | F38: 253.75 | G38: 0 | H38: =psych(D38,B38,0.01*C38,3,4,1) -> 0.005679653188
A39: 1906-01-02T14:00:00 | B39: 15.2625 | C39: 53.25 | D39: 102557.5 | E39: 4.475 | F39: 243.75 | G39: 0 | H39: =psych(D39,B39,0.01*C39,3,4,1) -> 0.00565236832
A40: 1906-01-02T15:00:00 | B40: 16.4625 | C40: 51.625 | D40: 102501.25 | E40: 4.725 | F40: 258.75 | G40: 0 | H40: =psych(D40,B40,0.01*C40,3,4,1) -> 0.005922896946
A41: 1906-01-02T16:00:00 | B41: 16.8 | C41: 54.5 | D41: 102508.75 | E41: 3.85 | F41: 263.75 | G41: 0 | H41: =psych(D41,B41,0.01*C41,3,4,1) -> 0.006392691209
A42: 1906-01-02T17:00:00 | B42: 16.2375 | C42: 57.25 | D42: 102520 | E42: 2.7875 | F42: 247.5 | G42: 0 | H42: =psych(D42,B42,0.01*C42,3,4,1) -> 0.006479295598
A43: 1906-01-02T18:00:00 | B43: 14.4 | C43: 60.5 | D43: 102520 | E43: 2.2875 | F43: 252.5 | G43: 0 | H43: =psych(D43,B43,0.01*C43,3,4,1) -> 0.006080867262
A44: 1906-01-02T19:00:00 | B44: 12.9375 | C44: 63.25 | D44: 102545 | E44: 1.725 | F44: 266.25 | G44: 0 | H44: =psych(D44,B44,0.01*C44,3,4,1) -> 0.005775871497
A45: 1906-01-02T20:00:00 | B45: 12.1 | C45: 67.125 | D45: 102578.75 | E45: 2.1875 | F45: 232.5 | G45: 0 | H45: =psych(D45,B45,0.01*C45,3,4,1) -> 0.005800003054
A46: 1906-01-02T21:00:00 | B46: 10.7375 | C46: 75.25 | D46: 102590 | E46: 2.6 | F46: 203.75 | G46: 0 | H46: =psych(D46,B46,0.01*C46,3,4,1) -> 0.005941552536
A47: 1906-01-02T22:00:00 | B47: 9.5375 | C47: 83.375 | D47: 102608.75 | E47: 2.2875 | F47: 212.5 | G47: 0 | H47: =psych(D47,B47,0.01*C47,3,4,1) -> 0.006075243227
A48: 1906-01-02T23:00:00 | B48: 8.95 | C48: 81.625 | D48: 102645 | E48: 2.1 | F48: 213.75 | G48: 0 | H48: =psych(D48,B48,0.01*C48,3,4,1) -> 0.005711470222
A49: 1906-01-02 | B49: 8.7375 | C49: 67.125 | D49: 102660 | E49: 2.4125 | F49: 216.25 | G49: 0 | H49: =psych(D49,B49,0.01*C49,3,4,1) -> 0.004621149675
A50: 1906-01-03T01:00:00 | B50: 8.7 | C50: 57.5 | D50: 102660 | E50: 2.2875 | F50: 257.5 | G50: 0 | H50: =psych(D50,B50,0.01*C50,3,4,1) -> 0.003944226
A51: 1906-01-03T02:00:00 | B51: 8.7 | C51: 56 | D51: 102660 | E51: 3.35 | F51: 273.75 | G51: 0 | H51: =psych(D51,B51,0.01*C51,3,4,1) -> 0.003840697789
A52: 1906-01-03T03:00:00 | B52: 8.7 | C52: 57.25 | D52: 102660 | E52: 3.475 | F52: 263.75 | G52: 0 | H52: =psych(D52,B52,0.01*C52,3,4,1) -> 0.003926968919
A53: 1906-01-03T04:00:00 | B53: 8.7 | C53: 54.875 | D53: 102660 | E53: 3.725 | F53: 285 | G53: 0 | H53: =psych(D53,B53,0.01*C53,3,4,1) -> 0.003763074103
A54: 1906-01-03T05:00:00 | B54: 8.7 | C54: 51.75 | D54: 102660 | E54: 3.475 | F54: 281.25 | G54: 0 | H54: =psych(D54,B54,0.01*C54,3,4,1) -> 0.003547553753
A55: 1906-01-03T06:00:00 | B55: 9.2625 | C55: 49.75 | D55: 102660 | E55: 4.35 | F55: 270 | G55: 0 | H55: =psych(D55,B55,0.01*C55,3,4,1) -> 0.003542493056
A56: 1906-01-03T07:00:00 | B56: 9.0375 | C56: 51.5 | D56: 102703.75 | E56: 4.1625 | F56: 276.25 | G56: 0 | H56: =psych(D56,B56,0.01*C56,3,4,1) -> 0.003610722019
A57: 1906-01-03T08:00:00 | B57: 8.7 | C57: 56.125 | D57: 102748.75 | E57: 4.5375 | F57: 286.25 | G57: 0 | H57: =psych(D57,B57,0.01*C57,3,4,1) -> 0.00384597839
A58: 1906-01-03T09:00:00 | B58: 9.2625 | C58: 52.375 | D58: 102778.75 | E58: 3.85 | F58: 277.5 | G58: 0 | H58: =psych(D58,B58,0.01*C58,3,4,1) -> 0.003726193551
A59: 1906-01-03T10:00:00 | B59: 10.6 | C59: 45.875 | D59: 102833.75 | E59: 2.7875 | F59: 238.75 | G59: 0 | H59: =psych(D59,B59,0.01*C59,3,4,1) -> 0.003567088183
A60: 1906-01-03T11:00:00 | B60: 12.2625 | C60: 45.875 | D60: 102860 | E60: 2.6 | F60: 251.25 | G60: 0 | H60: =psych(D60,B60,0.01*C60,3,4,1) -> 0.00398400526
A61: 1906-01-03T12:00:00 | B61: 13.3375 | C61: 50.75 | D61: 102816.25 | E61: 2.2875 | F61: 270 | G61: 0 | H61: =psych(D61,B61,0.01*C61,3,4,1) -> 0.004736737275
A62: 1906-01-03T13:00:00 | B62: 14.6 | C62: 42.375 | D62: 102752.5 | E62: 2.725 | F62: 276.25 | G62: 0 | H62: =psych(D62,B62,0.01*C62,3,4,1) -> 0.004292532948
A63: 1906-01-03T14:00:00 | B63: 15.7625 | C63: 37.875 | D63: 102661.25 | E63: 1.1625 | F63: 105 | G63: 0 | H63: =psych(D63,B63,0.01*C63,3,4,1) -> 0.004137170903
A64: 1906-01-03T15:00:00 | B64: 15.5375 | C64: 40.25 | D64: 102620 | E64: 1.625 | F64: 175 | G64: 0 | H64: =psych(D64,B64,0.01*C64,3,4,1) -> 0.0043367907
A65: 1906-01-03T16:00:00 | B65: 15.7625 | C65: 41.625 | D65: 102620 | E65: 2.2875 | F65: 280 | G65: 0 | H65: =psych(D65,B65,0.01*C65,3,4,1) -> 0.004551630419
A66: 1906-01-03T17:00:00 | B66: 15.5375 | C66: 45.125 | D66: 102620 | E66: 1.725 | F66: 280 | G66: 0 | H66: =psych(D66,B66,0.01*C66,3,4,1) -> 0.004866163656
A67: 1906-01-03T18:00:00 | B67: 13.7625 | C67: 50.125 | D67: 102620 | E67: 1.875 | F67: 248.75 | G67: 0 | H67: =psych(D67,B67,0.01*C67,3,4,1) -> 0.004819568983
A68: 1906-01-03T19:00:00 | B68: 11.3375 | C68: 62.625 | D68: 102663.75 | E68: 3.35 | F68: 236.25 | G68: 0 | H68: =psych(D68,B68,0.01*C68,3,4,1) -> 0.005135540878
A69: 1906-01-03T20:00:00 | B69: 9.3375 | C69: 64 | D69: 102733.75 | E69: 2.1625 | F69: 240 | G69: 0 | H69: =psych(D69,B69,0.01*C69,3,4,1) -> 0.004584599996
A70: 1906-01-03T21:00:00 | B70: 8.7 | C70: 56 | D70: 102778.75 | E70: 1 | F70: 227.5 | G70: 0 | H70: =psych(D70,B70,0.01*C70,3,4,1) -> 0.003836232898
A71: 1906-01-03T22:00:00 | B71: 8.7 | C71: 54.875 | D71: 102790 | E71: 1.6875 | F71: 226.25 | G71: 0 | H71: =psych(D71,B71,0.01*C71,3,4,1) -> 0.003758286131
A72: 1906-01-03T23:00:00 | B72: 8.825 | C72: 59.125 | D72: 102833.75 | E72: 2.1 | F72: 223.75 | G72: 0 | H72: =psych(D72,B72,0.01*C72,3,4,1) -> 0.00408414372
A73: 1906-01-03 | B73: 8.9625 | C73: 64.125 | D73: 102841.25 | E73: 2.1 | F73: 220 | G73: 0 | H73: =psych(D73,B73,0.01*C73,3,4,1) -> 0.004473339006
A74: 1906-01-04T01:00:00 | B74: 8.8125 | C74: 67.25 | D74: 102805 | E74: 1.4125 | F74: 120 | G74: 0 | H74: =psych(D74,B74,0.01*C74,3,4,1) -> 0.004646935606
A75: 1906-01-04T02:00:00 | B75: 7.95 | C75: 69.875 | D75: 102790 | E75: 1.6875 | F75: 153.75 | G75: 0 | H75: =psych(D75,B75,0.01*C75,3,4,1) -> 0.004553779582
A76: 1906-01-04T03:00:00 | B76: 6.4375 | C76: 70.375 | D76: 102815 | E76: 1.4125 | F76: 197.5 | G76: 0 | H76: =psych(D76,B76,0.01*C76,3,4,1) -> 0.004131051636
A77: 1906-01-04T04:00:00 | B77: 5.3 | C77: 71.875 | D77: 102830 | E77: 1 | F77: 196.25 | G77: 0 | H77: =psych(D77,B77,0.01*C77,3,4,1) -> 0.003897461172
A78: 1906-01-04T05:00:00 | B78: 5 | C78: 78.625 | D78: 102830 | E78: 0.375 | F78: 75 | G78: 0 | H78: =psych(D78,B78,0.01*C78,3,4,1) -> 0.004177177969
A79: 1906-01-04T06:00:00 | B79: 6.125 | C79: 78.25 | D79: 102830 | E79: 0.625 | F79: 75 | G79: 0 | H79: =psych(D79,B79,0.01*C79,3,4,1) -> 0.00449727321
A80: 1906-01-04T07:00:00 | B80: 5.1125 | C80: 82.25 | D80: 102830 | E80: 0.375 | F80: 45 | G80: 0 | H80: =psych(D80,B80,0.01*C80,3,4,1) -> 0.004405779012
A81: 1906-01-04T08:00:00 | B81: 3.0375 | C81: 87.875 | D81: 102867.5 | E81: 0.9375 | F81: 131.25 | G81: 0 | H81: =psych(D81,B81,0.01*C81,3,4,1) -> 0.004064750208
A82: 1906-01-04T09:00:00 | B82: 4.025 | C82: 84.625 | D82: 102915 | E82: 3.125 | F82: 228.75 | G82: 0 | H82: =psych(D82,B82,0.01*C82,3,4,1) -> 0.004195913452
A83: 1906-01-04T10:00:00 | B83: 6.5625 | C83: 78.25 | D83: 102973.75 | E83: 5.4125 | F83: 265 | G83: 0 | H83: =psych(D83,B83,0.01*C83,3,4,1) -> 0.004629592202
A84: 1906-01-04T11:00:00 | B84: 9.75 | C84: 72.875 | D84: 102975 | E84: 5.5125 | F84: 267.5 | G84: 0 | H84: =psych(D84,B84,0.01*C84,3,4,1) -> 0.005361246016
A85: 1906-01-04T12:00:00 | B85: 11.6 | C85: 66 | D85: 102916.25 | E85: 3.5375 | F85: 260 | G85: 0 | H85: =psych(D85,B85,0.01*C85,3,4,1) -> 0.005496865514
A86: 1906-01-04T13:00:00 | B86: 13.5875 | C86: 59.25 | D86: 102852.5 | E86: 2.2875 | F86: 247.5 | G86: 0 | H86: =psych(D86,B86,0.01*C86,3,4,1) -> 0.005626941922
A87: 1906-01-04T14:00:00 | B87: 16.1625 | C87: 53.875 | D87: 102767.5 | E87: 1.725 | F87: 246.25 | G87: 0 | H87: =psych(D87,B87,0.01*C87,3,4,1) -> 0.006049467461
A88: 1906-01-04T15:00:00 | B88: 17.6625 | C88: 46.375 | D88: 102730 | E88: 1.875 | F88: 243.75 | G88: 0 | H88: =psych(D88,B88,0.01*C88,3,4,1) -> 0.00572638954
A89: 1906-01-04T16:00:00 | B89: 18 | C89: 39.875 | D89: 102730 | E89: 2.1 | F89: 240 | G89: 0 | H89: =psych(D89,B89,0.01*C89,3,4,1) -> 0.00502394335
A90: 1906-01-04T17:00:00 | B90: 16.9375 | C90: 38.625 | D90: 102730 | E90: 2.4125 | F90: 246.25 | G90: 0 | H90: =psych(D90,B90,0.01*C90,3,4,1) -> 0.004547073169
A91: 1906-01-04T18:00:00 | B91: 14.6125 | C91: 45.25 | D91: 102730 | E91: 1.9125 | F91: 250 | G91: 0 | H91: =psych(D91,B91,0.01*C91,3,4,1) -> 0.004590658762
A92: 1906-01-04T19:00:00 | B92: 12.5375 | C92: 49.625 | D92: 102748.75 | E92: 1.1875 | F92: 243.75 | G92: 0 | H92: =psych(D92,B92,0.01*C92,3,4,1) -> 0.004395930429
A93: 1906-01-04T20:00:00 | B93: 10.275 | C93: 52.5 | D93: 102778.75 | E93: 1.3125 | F93: 221.25 | G93: 0 | H93: =psych(D93,B93,0.01*C93,3,4,1) -> 0.003999500683
A94: 1906-01-04T21:00:00 | B94: 9.3 | C94: 52.75 | D94: 102833.75 | E94: 1.875 | F94: 216.25 | G94: 0 | H94: =psych(D94,B94,0.01*C94,3,4,1) -> 0.003760562144
A95: 1906-01-04T22:00:00 | B95: 9.3 | C95: 54.5 | D95: 102878.75 | E95: 2.1 | F95: 213.75 | G95: 0 | H95: =psych(D95,B95,0.01*C95,3,4,1) -> 0.003884389184
A96: 1906-01-04T23:00:00 | B96: 8.1125 | C96: 56.625 | D96: 102871.25 | E96: 1.4125 | F96: 222.5 | G96: 0 | H96: =psych(D96,B96,0.01*C96,3,4,1) -> 0.00372342458
A97: 1906-01-04 | B97: 5.8375 | C97: 57.625 | D97: 102860 | E97: 1 | F97: 223.75 | G97: 0 | H97: =psych(D97,B97,0.01*C97,3,4,1) -> 0.003239193091
A98: 1906-01-05T01:00:00 | B98: 4.15 | C98: 64.875 | D98: 102841.25 | E98: 0.375 | F98: 82.5 | G98: 0 | H98: =psych(D98,B98,0.01*C98,3,4,1) -> 0.003242417542
A99: 1906-01-05T02:00:00 | B99: 5.0125 | C99: 64.625 | D99: 102830 | E99: 0.625 | F99: 118.75 | G99: 0 | H99: =psych(D99,B99,0.01*C99,3,4,1) -> 0.003432294307
A100: 1906-01-05T03:00:00 | B100: 8.55 | C100: 48.25 | D100: 102830 | E100: 1.6875 | F100: 246.25 | G100: 0 | H100: =psych(D100,B100,0.01*C100,3,4,1) -> 0.003267307405
A101: 1906-01-05T04:00:00 | B101: 8.5125 | C101: 42.5 | D101: 102805 | E101: 1.725 | F101: 242.5 | G101: 0 | H101: =psych(D101,B101,0.01*C101,3,4,1) -> 0.0028695037
A102: 1906-01-05T05:00:00 | B102: 7.5 | C102: 40.25 | D102: 102790 | E102: 1.875 | F102: 220 | G102: 0 | H102: =psych(D102,B102,0.01*C102,3,4,1) -> 0.002535600278
A103: 1906-01-05T06:00:00 | B103: 5.375 | C103: 50.5 | D103: 102815 | E103: 0.7875 | F103: 82.5 | G103: 0 | H103: =psych(D103,B103,0.01*C103,3,4,1) -> 0.002748057737
A104: 1906-01-05T07:00:00 | B104: 3.6 | C104: 60.5 | D104: 102848.75 | E104: 0.9375 | F104: 112.5 | G104: 0 | H104: =psych(D104,B104,0.01*C104,3,4,1) -> 0.002907172542
A105: 1906-01-05T08:00:00 | B105: 2.7375 | C105: 55.125 | D105: 102860 | E105: 1.875 | F105: 205 | G105: 0 | H105: =psych(D105,B105,0.01*C105,3,4,1) -> 0.002490067888
A106: 1906-01-05T09:00:00 | B106: 5.5875 | C106: 41.625 | D106: 102878.75 | E106: 2.1 | F106: 220 | G106: 0 | H106: =psych(D106,B106,0.01*C106,3,4,1) -> 0.00229570646
A107: 1906-01-05T10:00:00 | B107: 10.8125 | C107: 32.25 | D107: 102915 | E107: 2.1 | F107: 232.5 | G107: 0 | H107: =psych(D107,B107,0.01*C107,3,4,1) -> 0.002537215842
A108: 1906-01-05T11:00:00 | B108: 13.925 | C108: 34.375 | D108: 102930 | E108: 2.4125 | F108: 252.5 | G108: 0 | H108: =psych(D108,B108,0.01*C108,3,4,1) -> 0.003322266276
A109: 1906-01-05T12:00:00 | B109: 15.0375 | C109: 36.375 | D109: 102886.25 | E109: 1.9125 | F109: 272.5 | G109: 0 | H109: =psych(D109,B109,0.01*C109,3,4,1) -> 0.003782179317
A110: 1906-01-05T13:00:00 | B110: 16.425 | C110: 37.25 | D110: 102797.5 | E110: 2.1875 | F110: 280 | G110: 0 | H110: =psych(D110,B110,0.01*C110,3,4,1) -> 0.004239788746
A111: 1906-01-05T14:00:00 | B111: 17.6625 | C111: 37.375 | D111: 102697.5 | E111: 2.9125 | F111: 292.5 | G111: 0 | H111: =psych(D111,B111,0.01*C111,3,4,1) -> 0.004608306103
A112: 1906-01-05T15:00:00 | B112: 18 | C112: 37 | D112: 102635 | E112: 3.725 | F112: 281.25 | G112: 0 | H112: =psych(D112,B112,0.01*C112,3,4,1) -> 0.004663346909
A113: 1906-01-05T16:00:00 | B113: 17.4375 | C113: 37.625 | D113: 102601.25 | E113: 2.475 | F113: 282.5 | G113: 0 | H113: =psych(D113,B113,0.01*C113,3,4,1) -> 0.004577766427
A114: 1906-01-05T17:00:00 | B114: 15.5375 | C114: 43.625 | D114: 102590 | E114: 1.875 | F114: 290 | G114: 0 | H114: =psych(D114,B114,0.01*C114,3,4,1) -> 0.00470457012
A115: 1906-01-05T18:00:00 | B115: 14.6 | C115: 42.625 | D115: 102608.75 | E115: 1.4125 | F115: 258.75 | G115: 0 | H115: =psych(D115,B115,0.01*C115,3,4,1) -> 0.004324124857
A116: 1906-01-05T19:00:00 | B116: 12.9125 | C116: 53.125 | D116: 102620 | E116: 1 | F116: 277.5 | G116: 0 | H116: =psych(D116,B116,0.01*C116,3,4,1) -> 0.004832529863
A117: 1906-01-05T20:00:00 | B117: 10.275 | C117: 64.125 | D117: 102645 | E117: 1.6875 | F117: 187.5 | G117: 0 | H117: =psych(D117,B117,0.01*C117,3,4,1) -> 0.0048984947
A118: 1906-01-05T21:00:00 | B118: 8.175 | C118: 65.375 | D118: 102660 | E118: 0.7875 | F118: 45 | G118: 0 | H118: =psych(D118,B118,0.01*C118,3,4,1) -> 0.004330175401
A119: 1906-01-05T22:00:00 | B119: 6.4375 | C119: 59.375 | D119: 102660 | E119: 0 | F119: 0 | G119: 0 | H119: =psych(D119,B119,0.01*C119,3,4,1) -> 0.003487017296
A120: 1906-01-05T23:00:00 | B120: 6.05 | C120: 68.5 | D120: 102660 | E120: 1.3125 | F120: 62.5 | G120: 0 | H120: =psych(D120,B120,0.01*C120,3,4,1) -> 0.003919417198
A121: 1906-01-05 | B121: 7.1375 | C121: 74.75 | D121: 102678.75 | E121: 1.4125 | F121: 112.5 | G121: 0 | H121: =psych(D121,B121,0.01*C121,3,4,1) -> 0.00461384292
A122: 1906-01-06T01:00:00 | B122: 8.3875 | C122: 72.125 | D122: 102646.25 | E122: 2 | F122: 107.5 | G122: 0 | H122: =psych(D122,B122,0.01*C122,3,4,1) -> 0.004851406887
A123: 1906-01-06T02:00:00 | B123: 8.05 | C123: 72.875 | D123: 102620 | E123: 0.975 | F123: 37.5 | G123: 0 | H123: =psych(D123,B123,0.01*C123,3,4,1) -> 0.004791471815
A124: 1906-01-06T03:00:00 | B124: 5.5375 | C124: 70.875 | D124: 102620 | E124: 0.9375 | F124: 43.75 | G124: 0 | H124: =psych(D124,B124,0.01*C124,3,4,1) -> 0.003915313465
A125: 1906-01-06T04:00:00 | B125: 4.3 | C125: 73.375 | D125: 102620 | E125: 0.5625 | F125: 26.25 | G125: 0 | H125: =psych(D125,B125,0.01*C125,3,4,1) -> 0.003716861776
A126: 1906-01-06T05:00:00 | B126: 3.8625 | C126: 75.375 | D126: 102582.5 | E126: 0.9375 | F126: 56.25 | G126: 0 | H126: =psych(D126,B126,0.01*C126,3,4,1) -> 0.00370386282
A127: 1906-01-06T06:00:00 | B127: 3.6 | C127: 75 | D127: 102491.25 | E127: 1.1875 | F127: 83.75 | G127: 0 | H127: =psych(D127,B127,0.01*C127,3,4,1) -> 0.003620632908
A128: 1906-01-06T07:00:00 | B128: 3.0375 | C128: 79.375 | D128: 102431.25 | E128: 0.375 | F128: 30 | G128: 0 | H128: =psych(D128,B128,0.01*C128,3,4,1) -> 0.003684974101
A129: 1906-01-06T08:00:00 | B129: 3.2625 | C129: 82 | D129: 102438.75 | E129: 0.9375 | F129: 137.5 | G129: 0 | H129: =psych(D129,B129,0.01*C129,3,4,1) -> 0.003868819237
A130: 1906-01-06T09:00:00 | B130: 6.1 | C130: 80.75 | D130: 102518.75 | E130: 1.875 | F130: 295 | G130: 0 | H130: =psych(D130,B130,0.01*C130,3,4,1) -> 0.004648128273
A131: 1906-01-06T10:00:00 | B131: 7.6 | C131: 77.5 | D131: 102597.5 | E131: 2.1 | F131: 183.75 | G131: 0 | H131: =psych(D131,B131,0.01*C131,3,4,1) -> 0.004943898209
A132: 1906-01-06T11:00:00 | B132: 11.225 | C132: 67.25 | D132: 102601.25 | E132: 1.4125 | F132: 52.5 | G132: 0 | H132: =psych(D132,B132,0.01*C132,3,4,1) -> 0.005480163753
A133: 1906-01-06T12:00:00 | B133: 14.9625 | C133: 59.5 | D133: 102546.25 | E133: 1.6875 | F133: 130 | G133: 0 | H133: =psych(D133,B133,0.01*C133,3,4,1) -> 0.006201139276
A134: 1906-01-06T13:00:00 | B134: 15.3375 | C134: 62.375 | D134: 102438.75 | E134: 0.7875 | F134: 71.25 | G134: 0 | H134: =psych(D134,B134,0.01*C134,3,4,1) -> 0.006671476562
A135: 1906-01-06T14:00:00 | B135: 15.5625 | C135: 58.75 | D135: 102327.5 | E135: 2.5625 | F135: 187.5 | G135: 0 | H135: =psych(D135,B135,0.01*C135,3,4,1) -> 0.006379111508
A136: 1906-01-06T15:00:00 | B136: 14.8375 | C136: 60.625 | D136: 102265 | E136: 4.1 | F136: 293.75 | G136: 0 | H136: =psych(D136,B136,0.01*C136,3,4,1) -> 0.006285771328
A137: 1906-01-06T16:00:00 | B137: 13.7 | C137: 75.875 | D137: 102250 | E137: 4.1 | F137: 277.5 | G137: 0 | H137: =psych(D137,B137,0.01*C137,3,4,1) -> 0.007321254345
A138: 1906-01-06T17:00:00 | B138: 12.9 | C138: 84.875 | D138: 102250 | E138: 2.85 | F138: 270 | G138: 0 | H138: =psych(D138,B138,0.01*C138,3,4,1) -> 0.007778666247
A139: 1906-01-06T18:00:00 | B139: 12.6 | C139: 82.25 | D139: 102206.25 | E139: 0.7875 | F139: 101.25 | G139: 0 | H139: =psych(D139,B139,0.01*C139,3,4,1) -> 0.007389891885
A140: 1906-01-06T19:00:00 | B140: 13.1 | C140: 84.375 | D140: 102161.25 | E140: 0 | F140: 0 | G140: 0 | H140: =psych(D140,B140,0.01*C140,3,4,1) -> 0.007842288169
A141: 1906-01-06T20:00:00 | B141: 12.3375 | C141: 90.75 | D141: 102106.25 | E141: 0 | F141: 0 | G141: 1.5 | H141: =psych(D141,B141,0.01*C141,3,4,1) -> 0.008030187446
A142: 1906-01-06T21:00:00 | B142: 12.2625 | C142: 90.5 | D142: 102080 | E142: 0 | F142: 0 | G142: 0 | H142: =psych(D142,B142,0.01*C142,3,4,1) -> 0.007969937954
A143: 1906-01-06T22:00:00 | B143: 12.6 | C143: 91.5 | D143: 102080 | E143: 0 | F143: 0 | G143: 0 | H143: =psych(D143,B143,0.01*C143,3,4,1) -> 0.00824228943
A144: 1906-01-06T23:00:00 | B144: 12.6 | C144: 93 | D144: 102036.25 | E144: 1.3125 | F144: 131.25 | G144: 0 | H144: =psych(D144,B144,0.01*C144,3,4,1) -> 0.008382870418
A145: 1906-01-06 | B145: 12.6 | C145: 86.75 | D145: 101991.25 | E145: 2.1 | F145: 210 | G145: 0 | H145: =psych(D145,B145,0.01*C145,3,4,1) -> 0.007815919551
A146: 1906-01-07T01:00:00 | B146: 12.5375 | C146: 87.375 | D146: 101917.5 | E146: 0.7875 | F146: 78.75 | G146: 0 | H146: =psych(D146,B146,0.01*C146,3,4,1) -> 0.007846045459
A147: 1906-01-07T02:00:00 | B147: 12.25 | C147: 87.5 | D147: 101880 | E147: 2.25 | F147: 137.5 | G147: 0 | H147: =psych(D147,B147,0.01*C147,3,4,1) -> 0.007711352771
A148: 1906-01-07T03:00:00 | B148: 11.6625 | C148: 87.875 | D148: 101836.25 | E148: 4.225 | F148: 213.75 | G148: 0 | H148: =psych(D148,B148,0.01*C148,3,4,1) -> 0.007450115924
A149: 1906-01-07T04:00:00 | B149: 11.4 | C149: 85.25 | D149: 101791.25 | E149: 4.6 | F149: 235 | G149: 0 | H149: =psych(D149,B149,0.01*C149,3,4,1) -> 0.007102288532
A150: 1906-01-07T05:00:00 | B150: 10.8375 | C150: 81.125 | D150: 101755 | E150: 4.2875 | F150: 237.5 | G150: 0 | H150: =psych(D150,B150,0.01*C150,3,4,1) -> 0.006506986004
A151: 1906-01-07T06:00:00 | B151: 10.5 | C151: 81.875 | D151: 101721.25 | E151: 4.725 | F151: 236.25 | G151: 0 | H151: =psych(D151,B151,0.01*C151,3,4,1) -> 0.006422348079
A152: 1906-01-07T07:00:00 | B152: 10.0625 | C152: 83 | D152: 101728.75 | E152: 4.475 | F152: 221.25 | G152: 0 | H152: =psych(D152,B152,0.01*C152,3,4,1) -> 0.006321458266
A153: 1906-01-07T08:00:00 | B153: 10.2375 | C153: 81.125 | D153: 101740 | E153: 4.725 | F153: 222.5 | G153: 0 | H153: =psych(D153,B153,0.01*C153,3,4,1) -> 0.006250034869
A154: 1906-01-07T09:00:00 | B154: 11.0625 | C154: 78.125 | D154: 101783.75 | E154: 4.1625 | F154: 236.25 | G154: 0 | H154: =psych(D154,B154,0.01*C154,3,4,1) -> 0.006357506393
A155: 1906-01-07T10:00:00 | B155: 11.8375 | C155: 72 | D155: 101853.75 | E155: 3.9125 | F155: 258.75 | G155: 0 | H155: =psych(D155,B155,0.01*C155,3,4,1) -> 0.00616151154
A156: 1906-01-07T11:00:00 | B156: 12.6 | C156: 65.875 | D156: 101898.75 | E156: 4.725 | F156: 251.25 | G156: 0 | H156: =psych(D156,B156,0.01*C156,3,4,1) -> 0.00592267324
A157: 1906-01-07T12:00:00 | B157: 13.3375 | C157: 64 | D157: 101891.25 | E157: 5.7875 | F157: 258.75 | G157: 0 | H157: =psych(D157,B157,0.01*C157,3,4,1) -> 0.006040187288
A158: 1906-01-07T13:00:00 | B158: 13.6 | C158: 62.75 | D158: 101836.25 | E158: 5.5125 | F158: 270 | G158: 0 | H158: =psych(D158,B158,0.01*C158,3,4,1) -> 0.006027551044
A159: 1906-01-07T14:00:00 | B159: 14.1625 | C159: 63.25 | D159: 101810 | E159: 5.1 | F159: 270 | G159: 0 | H159: =psych(D159,B159,0.01*C159,3,4,1) -> 0.006306148275
A160: 1906-01-07T15:00:00 | B160: 14.9375 | C160: 64.625 | D160: 101791.25 | E160: 4.475 | F160: 307.5 | G160: 0 | H160: =psych(D160,B160,0.01*C160,3,4,1) -> 0.006780555737
A161: 1906-01-07T16:00:00 | B161: 14.7625 | C161: 66.25 | D161: 101780 | E161: 4.1 | F161: 330 | G161: 0 | H161: =psych(D161,B161,0.01*C161,3,4,1) -> 0.006874850775
A162: 1906-01-07T17:00:00 | B162: 13.5 | C162: 71.375 | D162: 101817.5 | E162: 4.725 | F162: 336.25 | G162: 0 | H162: =psych(D162,B162,0.01*C162,3,4,1) -> 0.006821389466
A163: 1906-01-07T18:00:00 | B163: 12.4 | C163: 75.875 | D163: 101821.25 | E163: 3.225 | F163: 302.5 | G163: 0 | H163: =psych(D163,B163,0.01*C163,3,4,1) -> 0.006746688996
A164: 1906-01-07T19:00:00 | B164: 11.1 | C164: 80.75 | D164: 101853.75 | E164: 0.7875 | F164: 105 | G164: 0 | H164: =psych(D164,B164,0.01*C164,3,4,1) -> 0.006585367272
A165: 1906-01-07T20:00:00 | B165: 10.5 | C165: 83 | D165: 101898.75 | E165: 0.9375 | F165: 218.75 | G165: 0 | H165: =psych(D165,B165,0.01*C165,3,4,1) -> 0.006500056818
A166: 1906-01-07T21:00:00 | B166: 9.5 | C166: 86.75 | D166: 101935 | E166: 0.5625 | F166: 131.25 | G166: 0 | H166: =psych(D166,B166,0.01*C166,3,4,1) -> 0.006349693654
A167: 1906-01-07T22:00:00 | B167: 8.4 | C167: 87.125 | D167: 101987.5 | E167: 1.3125 | F167: 181.25 | G167: 0 | H167: =psych(D167,B167,0.01*C167,3,4,1) -> 0.005913223111
A168: 1906-01-07T23:00:00 | B168: 8.1625 | C168: 83.5 | D168: 102053.75 | E168: 2.1 | F168: 296.25 | G168: 0 | H168: =psych(D168,B168,0.01*C168,3,4,1) -> 0.00556983372
A169: 1906-01-07 | B169: 8.575 | C169: 82.625 | D169: 102061.25 | E169: 0.7875 | F169: 112.5 | G169: 0 | H169: =psych(D169,B169,0.01*C169,3,4,1) -> 0.005668440028
A170: 1906-01-08T01:00:00 | B170: 8.9875 | C170: 83 | D170: 102068.75 | E170: 0.9375 | F170: 175 | G170: 0 | H170: =psych(D170,B170,0.01*C170,3,4,1) -> 0.00585663838
A171: 1906-01-08T02:00:00 | B171: 8.6 | C171: 83 | D171: 102105 | E171: 1.1875 | F171: 298.75 | G171: 0 | H171: =psych(D171,B171,0.01*C171,3,4,1) -> 0.005701678545
A172: 1906-01-08T03:00:00 | B172: 7.2375 | C172: 84.875 | D172: 102138.75 | E172: 1.6875 | F172: 291.25 | G172: 0 | H172: =psych(D172,B172,0.01*C172,3,4,1) -> 0.005308583232
A173: 1906-01-08T04:00:00 | B173: 6.6 | C173: 86 | D173: 102150 | E173: 2.1 | F173: 273.75 | G173: 0 | H173: =psych(D173,B173,0.01*C173,3,4,1) -> 0.005146650196
A174: 1906-01-08T05:00:00 | B174: 6.6 | C174: 83.5 | D174: 102150 | E174: 2.1 | F174: 276.25 | G174: 0 | H174: =psych(D174,B174,0.01*C174,3,4,1) -> 0.004995836567
A175: 1906-01-08T06:00:00 | B175: 5.975 | C175: 80.125 | D175: 102168.75 | E175: 2.725 | F175: 273.75 | G175: 0 | H175: =psych(D175,B175,0.01*C175,3,4,1) -> 0.004587672567
A176: 1906-01-08T07:00:00 | B176: 5.1625 | C176: 85.25 | D176: 102223.75 | E176: 3.725 | F176: 276.25 | G176: 0 | H176: =psych(D176,B176,0.01*C176,3,4,1) -> 0.004611097583
A177: 1906-01-08T08:00:00 | B177: 4.9 | C177: 77.125 | D177: 102250 | E177: 3.475 | F177: 267.5 | G177: 0 | H177: =psych(D177,B177,0.01*C177,3,4,1) -> 0.00409151812
A178: 1906-01-08T09:00:00 | B178: 7.525 | C178: 56.875 | D178: 102312.5 | E178: 4.35 | F178: 310 | G178: 0 | H178: =psych(D178,B178,0.01*C178,3,4,1) -> 0.003612005723
A179: 1906-01-08T10:00:00 | B179: 10.225 | C179: 49.625 | D179: 102393.75 | E179: 5.1 | F179: 340 | G179: 0 | H179: =psych(D179,B179,0.01*C179,3,4,1) -> 0.003780707528
A180: 1906-01-08T11:00:00 | B180: 11.9625 | C180: 51.25 | D180: 102420 | E180: 4.475 | F180: 340 | G180: 0 | H180: =psych(D180,B180,0.01*C180,3,4,1) -> 0.004385243713
A181: 1906-01-08T12:00:00 | B181: 13.6625 | C181: 47 | D181: 102401.25 | E181: 6.0375 | F181: 127.5 | G181: 0 | H181: =psych(D181,B181,0.01*C181,3,4,1) -> 0.004497068425
A182: 1906-01-08T13:00:00 | B182: 14.8 | C182: 44 | D182: 102365 | E182: 3.325 | F182: 218.75 | G182: 0 | H182: =psych(D182,B182,0.01*C182,3,4,1) -> 0.004533900535
A183: 1906-01-08T14:00:00 | B183: 16.1625 | C183: 37.75 | D183: 102331.25 | E183: 2.9375 | F183: 131.25 | G183: 0 | H183: =psych(D183,B183,0.01*C183,3,4,1) -> 0.004244675408
A184: 1906-01-08T15:00:00 | B184: 17.3625 | C184: 38.375 | D184: 102301.25 | E184: 2.1625 | F184: 0 | G184: 0 | H184: =psych(D184,B184,0.01*C184,3,4,1) -> 0.004661184421
A185: 1906-01-08T16:00:00 | B185: 17.7 | C185: 36.625 | D185: 102327.5 | E185: 1.6875 | F185: 212.5 | G185: 0 | H185: =psych(D185,B185,0.01*C185,3,4,1) -> 0.00454241397
A186: 1906-01-08T17:00:00 | B186: 16.6375 | C186: 39 | D186: 102375 | E186: 2.1 | F186: 333.75 | G186: 0 | H186: =psych(D186,B186,0.01*C186,3,4,1) -> 0.004519998054
A187: 1906-01-08T18:00:00 | B187: 13.875 | C187: 51.375 | D187: 102408.75 | E187: 0.7875 | F187: 123.75 | G187: 0 | H187: =psych(D187,B187,0.01*C187,3,4,1) -> 0.00498761536
A188: 1906-01-08T19:00:00 | B188: 12.6 | C188: 49.5 | D188: 102463.75 | E188: 0.625 | F188: 150 | G188: 0 | H188: =psych(D188,B188,0.01*C188,3,4,1) -> 0.004415268207
A189: 1906-01-08T20:00:00 | B189: 10.4125 | C189: 49.375 | D189: 102508.75 | E189: 1.6875 | F189: 233.75 | G189: 0 | H189: =psych(D189,B189,0.01*C189,3,4,1) -> 0.003804967318
A190: 1906-01-08T21:00:00 | B190: 7.5375 | C190: 60.125 | D190: 102545 | E190: 1.4125 | F190: 148.75 | G190: 0 | H190: =psych(D190,B190,0.01*C190,3,4,1) -> 0.003814236807
A191: 1906-01-08T22:00:00 | B191: 5.975 | C191: 64.375 | D191: 102597.5 | E191: 1 | F191: 150 | G191: 0 | H191: =psych(D191,B191,0.01*C191,3,4,1) -> 0.003665075805
A192: 1906-01-08T23:00:00 | B192: 5.225 | C192: 67.75 | D192: 102620 | E192: 0.6875 | F192: 173.75 | G192: 0 | H192: =psych(D192,B192,0.01*C192,3,4,1) -> 0.003660748773
A193: 1906-01-08 | B193: 4.5625 | C193: 67.5 | D193: 102601.25 | E193: 0.1875 | F193: 63.75 | G193: 0 | H193: =psych(D193,B193,0.01*C193,3,4,1) -> 0.003482057796
A194: 1906-01-09T01:00:00 | B194: 3.8 | C194: 69.75 | D194: 102608.75 | E194: 1.3125 | F194: 181.25 | G194: 0 | H194: =psych(D194,B194,0.01*C194,3,4,1) -> 0.003409930395
A195: 1906-01-09T02:00:00 | B195: 3 | C195: 73.875 | D195: 102645 | E195: 0.7875 | F195: 108.75 | G195: 0 | H195: =psych(D195,B195,0.01*C195,3,4,1) -> 0.003411921622
A196: 1906-01-09T03:00:00 | B196: 2.2 | C196: 76.875 | D196: 102703.75 | E196: 0 | F196: 0 | G196: 0 | H196: =psych(D196,B196,0.01*C196,3,4,1) -> 0.003351879069
A197: 1906-01-09T04:00:00 | B197: 1.9 | C197: 79.875 | D197: 102748.75 | E197: 0 | F197: 0 | G197: 0 | H197: =psych(D197,B197,0.01*C197,3,4,1) -> 0.003407653018
A198: 1906-01-09T05:00:00 | B198: 1.4 | C198: 82.875 | D198: 102716.25 | E198: 0.9375 | F198: 75 | G198: 0 | H198: =psych(D198,B198,0.01*C198,3,4,1) -> 0.003412289315
A199: 1906-01-09T06:00:00 | B199: 0.6 | C199: 80.875 | D199: 102690 | E199: 1.875 | F199: 95 | G199: 0 | H199: =psych(D199,B199,0.01*C199,3,4,1) -> 0.00314287509
A200: 1906-01-09T07:00:00 | B200: 0.3 | C200: 82.125 | D200: 102733.75 | E200: 1.4125 | F200: 136.25 | G200: 0 | H200: =psych(D200,B200,0.01*C200,3,4,1) -> 0.00312146469
... 4300 more rows

Sheet CZ5
A1: Date | B1: TdbºC | C1: RH% | D1: P Pa | E1: Wind m/s | F1: Windº | G1: Rain mm/hr | H1: W
A2: 1906-01-01T01:00:00 | B2: 8.5125 | C2: 64.125 | D2: 101186.25 | E2: 1.1875 | F2: 149.25 | G2: 0 | H2: =psych(D2,B2,0.01*C2,3,4,1) -> 0.004409680647
A3: 1906-01-01T02:00:00 | B3: 6.475 | C3: 73.75 | D3: 101310 | E3: 1.3125 | F3: 118.125 | G3: 0 | H3: =psych(D3,B3,0.01*C3,3,4,1) -> 0.004406788285
A4: 1906-01-01T03:00:00 | B4: 6.025 | C4: 73 | D4: 101297.5 | E4: 1.5 | F4: 65 | G4: 0 | H4: =psych(D4,B4,0.01*C4,3,4,1) -> 0.004227848045
A5: 1906-01-01T04:00:00 | B5: 5.8 | C5: 75.5 | D5: 101265 | E5: 1.5 | F5: 93 | G5: 0 | H5: =psych(D5,B5,0.01*C5,3,4,1) -> 0.00430697884
A6: 1906-01-01T05:00:00 | B6: 5.8 | C6: 77 | D6: 101212.5 | E6: 0.5625 | F6: 50.625 | G6: 0 | H6: =psych(D6,B6,0.01*C6,3,4,1) -> 0.004395447224
A7: 1906-01-01T06:00:00 | B7: 5.4875 | C7: 76.375 | D7: 101190 | E7: 0.625 | F7: 56.25 | G7: 0 | H7: =psych(D7,B7,0.01*C7,3,4,1) -> 0.00426632967
A8: 1906-01-01T07:00:00 | B8: 5.3 | C8: 72.25 | D8: 101190 | E8: 1 | F8: 104.375 | G8: 0 | H8: =psych(D8,B8,0.01*C8,3,4,1) -> 0.003981828671
A9: 1906-01-01T08:00:00 | B9: 5.3 | C9: 73.75 | D9: 101208.75 | E9: 1 | F9: 98.625 | G9: 0 | H9: =psych(D9,B9,0.01*C9,3,4,1) -> 0.004064278668
A10: 1906-01-01T09:00:00 | B10: 6.3625 | C10: 72.25 | D10: 101263.75 | E10: 1.3125 | F10: 76.25 | G10: 0 | H10: =psych(D10,B10,0.01*C10,3,4,1) -> 0.004284923944
A11: 1906-01-01T10:00:00 | B11: 11.0625 | C11: 54.375 | D11: 101308.75 | E11: 1.875 | F11: 81.75 | G11: 0 | H11: =psych(D11,B11,0.01*C11,3,4,1) -> 0.004431947262
A12: 1906-01-01T11:00:00 | B12: 16.3125 | C12: 33.75 | D12: 101276.25 | E12: 0.7875 | F12: 33.75 | G12: 0 | H12: =psych(D12,B12,0.01*C12,3,4,1) -> 0.003868978847
A13: 1906-01-01T12:00:00 | B13: 19.375 | C13: 29.5 | D13: 101187.5 | E13: 0.9375 | F13: 56.25 | G13: 0 | H13: =psych(D13,B13,0.01*C13,3,4,1) -> 0.004106471266
A14: 1906-01-01T13:00:00 | B14: 20.8875 | C14: 24.125 | D14: 101068.75 | E14: 2.8125 | F14: 230.625 | G14: 0 | H14: =psych(D14,B14,0.01*C14,3,4,1) -> 0.003689633633
A15: 1906-01-01T14:00:00 | B15: 19.925 | C15: 26.25 | D15: 101020 | E15: 4.5375 | F15: 301.25 | G15: 0 | H15: =psych(D15,B15,0.01*C15,3,4,1) -> 0.003785375859
A16: 1906-01-01T15:00:00 | B16: 18.4125 | C16: 35 | D16: 101020 | E16: 4.1625 | F16: 278.625 | G16: 0 | H16: =psych(D16,B16,0.01*C16,3,4,1) -> 0.004598962926
A17: 1906-01-01T16:00:00 | B17: 17.625 | C17: 42.375 | D17: 101020 | E17: 2.6625 | F17: 228.125 | G17: 0 | H17: =psych(D17,B17,0.01*C17,3,4,1) -> 0.005304903175
A18: 1906-01-01T17:00:00 | B18: 16.025 | C18: 41.25 | D18: 100995 | E18: 1.725 | F18: 76.125 | G18: 0 | H18: =psych(D18,B18,0.01*C18,3,4,1) -> 0.004661609599
A19: 1906-01-01T18:00:00 | B19: 14.5125 | C19: 44 | D19: 100980 | E19: 1.875 | F19: 140.625 | G19: 0 | H19: =psych(D19,B19,0.01*C19,3,4,1) -> 0.004511380707
A20: 1906-01-01T19:00:00 | B20: 13.0375 | C20: 53.25 | D20: 100980 | E20: 1.4125 | F20: 183.125 | G20: 0 | H20: =psych(D20,B20,0.01*C20,3,4,1) -> 0.004964040742
A21: 1906-01-01T20:00:00 | B21: 12.775 | C21: 53.25 | D21: 100980 | E21: 1.3125 | F21: 143.625 | G21: 0 | H21: =psych(D21,B21,0.01*C21,3,4,1) -> 0.00487879146
A22: 1906-01-01T21:00:00 | B22: 12.3125 | C22: 50.375 | D22: 101005 | E22: 1.1875 | F22: 78.75 | G22: 0 | H22: =psych(D22,B22,0.01*C22,3,4,1) -> 0.004473326293
A23: 1906-01-01T22:00:00 | B23: 11.9 | C23: 50 | D23: 101020 | E23: 0.375 | F23: 16.875 | G23: 0 | H23: =psych(D23,B23,0.01*C23,3,4,1) -> 0.00431927278
A24: 1906-01-01T23:00:00 | B24: 11.9 | C24: 47.5 | D24: 101020 | E24: 0 | F24: 0 | G24: 0 | H24: =psych(D24,B24,0.01*C24,3,4,1) -> 0.004101884886
A25: 1906-01-01 | B25: 11.775 | C25: 46 | D25: 100995 | E25: 0.9375 | F25: 155 | G25: 0 | H25: =psych(D25,B25,0.01*C25,3,4,1) -> 0.003939654812
A26: 1906-01-02T01:00:00 | B26: 11.3875 | C26: 44.75 | D26: 100936.25 | E26: 0.5625 | F26: 93 | G26: 0 | H26: =psych(D26,B26,0.01*C26,3,4,1) -> 0.003736549329
A27: 1906-01-02T02:00:00 | B27: 10.825 | C27: 47.75 | D27: 100910 | E27: 0.625 | F27: 112.5 | G27: 0 | H27: =psych(D27,B27,0.01*C27,3,4,1) -> 0.003842498043
A28: 1906-01-02T03:00:00 | B28: 10.2875 | C28: 48.125 | D28: 100891.25 | E28: 1.6875 | F28: 138.125 | G28: 0 | H28: =psych(D28,B28,0.01*C28,3,4,1) -> 0.003736348145
A29: 1906-01-02T04:00:00 | B29: 10.1 | C29: 51.375 | D29: 100861.25 | E29: 1.4125 | F29: 197.375 | G29: 0 | H29: =psych(D29,B29,0.01*C29,3,4,1) -> 0.003941418647
A30: 1906-01-02T05:00:00 | B30: 10.4125 | C30: 45.25 | D30: 100825 | E30: 0.375 | F30: 93 | G30: 0 | H30: =psych(D30,B30,0.01*C30,3,4,1) -> 0.003543837924
A31: 1906-01-02T06:00:00 | B31: 10.6 | C31: 40 | D31: 100791.25 | E31: 0 | F31: 0 | G31: 0 | H31: =psych(D31,B31,0.01*C31,3,4,1) -> 0.003171288302
A32: 1906-01-02T07:00:00 | B32: 10.6 | C32: 42.5 | D32: 100798.75 | E32: 0.625 | F32: 56.25 | G32: 0 | H32: =psych(D32,B32,0.01*C32,3,4,1) -> 0.003370315767
A33: 1906-01-02T08:00:00 | B33: 10.975 | C33: 42.75 | D33: 100810 | E33: 0.375 | F33: 33.75 | G33: 0 | H33: =psych(D33,B33,0.01*C33,3,4,1) -> 0.003476050471
A34: 1906-01-02T09:00:00 | B34: 12.325 | C34: 39.5 | D34: 100835 | E34: 0 | F34: 0 | G34: 0 | H34: =psych(D34,B34,0.01*C34,3,4,1) -> 0.003511022634
A35: 1906-01-02T10:00:00 | B35: 13.6875 | C35: 37.375 | D35: 100850 | E35: 1.625 | F35: 211.25 | G35: 0 | H35: =psych(D35,B35,0.01*C35,3,4,1) -> 0.003632023636
A36: 1906-01-02T11:00:00 | B36: 15.9125 | C36: 30.75 | D36: 100825 | E36: 1.6 | F36: 267.375 | G36: 0 | H36: =psych(D36,B36,0.01*C36,3,4,1) -> 0.003449251472
A37: 1906-01-02T12:00:00 | B37: 17.6875 | C37: 24.5 | D37: 100772.5 | E37: 2.3125 | F37: 239.375 | G37: 0 | H37: =psych(D37,B37,0.01*C37,3,4,1) -> 0.003075851497
A38: 1906-01-02T13:00:00 | B38: 18.7875 | C38: 23 | D38: 100725 | E38: 2.1 | F38: 276.125 | G38: 0 | H38: =psych(D38,B38,0.01*C38,3,4,1) -> 0.003095599211
A39: 1906-01-02T14:00:00 | B39: 19.575 | C39: 22.375 | D39: 100666.25 | E39: 2.1875 | F39: 293 | G39: 0 | H39: =psych(D39,B39,0.01*C39,3,4,1) -> 0.003165203715
A40: 1906-01-02T15:00:00 | B40: 19.8 | C40: 25.125 | D40: 100640 | E40: 2.2875 | F40: 293 | G40: 0 | H40: =psych(D40,B40,0.01*C40,3,4,1) -> 0.003607720329
A41: 1906-01-02T16:00:00 | B41: 19.425 | C41: 27.625 | D41: 100640 | E41: 1.725 | F41: 306.75 | G41: 0 | H41: =psych(D41,B41,0.01*C41,3,4,1) -> 0.003877014796
A42: 1906-01-02T17:00:00 | B42: 17.825 | C42: 34.25 | D42: 100683.75 | E42: 1.875 | F42: 273.125 | G42: 0 | H42: =psych(D42,B42,0.01*C42,3,4,1) -> 0.004350015795
A43: 1906-01-02T18:00:00 | B43: 15.875 | C43: 40.5 | D43: 100710 | E43: 2.4125 | F43: 191.75 | G43: 0 | H43: =psych(D43,B43,0.01*C43,3,4,1) -> 0.004545159988
A44: 1906-01-02T19:00:00 | B44: 14.825 | C44: 43.25 | D44: 100735 | E44: 1.6 | F44: 73.625 | G44: 0 | H44: =psych(D44,B44,0.01*C44,3,4,1) -> 0.004536054771
A45: 1906-01-02T20:00:00 | B45: 13.6 | C45: 50.875 | D45: 100750 | E45: 1.6875 | F45: 121.125 | G45: 0 | H45: =psych(D45,B45,0.01*C45,3,4,1) -> 0.004930942262
A46: 1906-01-02T21:00:00 | B46: 13.3125 | C46: 65.625 | D46: 100768.75 | E46: 1.4125 | F46: 123.75 | G46: 0 | H46: =psych(D46,B46,0.01*C46,3,4,1) -> 0.006254468477
A47: 1906-01-02T22:00:00 | B47: 12.4375 | C47: 73.25 | D47: 100798.75 | E47: 1.3125 | F47: 104.375 | G47: 0 | H47: =psych(D47,B47,0.01*C47,3,4,1) -> 0.006593982681
A48: 1906-01-02T23:00:00 | B48: 10.925 | C48: 61.5 | D48: 100810 | E48: 1.875 | F48: 169.25 | G48: 0 | H48: =psych(D48,B48,0.01*C48,3,4,1) -> 0.004996148978
A49: 1906-01-02 | B49: 10.025 | C49: 52.75 | D49: 100791.25 | E49: 1.725 | F49: 118.625 | G49: 0 | H49: =psych(D49,B49,0.01*C49,3,4,1) -> 0.004029999185
A50: 1906-01-03T01:00:00 | B50: 9.925 | C50: 58.875 | D50: 100780 | E50: 1.875 | F50: 180.5 | G50: 0 | H50: =psych(D50,B50,0.01*C50,3,4,1) -> 0.004471547004
A51: 1906-01-03T02:00:00 | B51: 10.5 | C51: 77.375 | D51: 100780 | E51: 1.4125 | F51: 191.75 | G51: 0 | H51: =psych(D51,B51,0.01*C51,3,4,1) -> 0.006123132871
A52: 1906-01-03T03:00:00 | B52: 11.2375 | C52: 86 | D52: 100761.25 | E52: 1 | F52: 115.5 | G52: 0 | H52: =psych(D52,B52,0.01*C52,3,4,1) -> 0.007161118967
A53: 1906-01-03T04:00:00 | B53: 10.3125 | C53: 88.5 | D53: 100706.25 | E53: 1.3125 | F53: 118.125 | G53: 0 | H53: =psych(D53,B53,0.01*C53,3,4,1) -> 0.006930329201
A54: 1906-01-03T05:00:00 | B54: 10.0375 | C54: 96.25 | D54: 100655 | E54: 1.1875 | F54: 121.25 | G54: 0 | H54: =psych(D54,B54,0.01*C54,3,4,1) -> 0.007409217853
A55: 1906-01-03T06:00:00 | B55: 11.05 | C55: 100 | D55: 100665 | E55: 1 | F55: 126.75 | G55: 0 | H55: =psych(D55,B55,0.01*C55,3,4,1) -> 0.008245924057
A56: 1906-01-03T07:00:00 | B56: 11.875 | C56: 95 | D56: 100680 | E56: 1.3125 | F56: 106.875 | G56: 0 | H56: =psych(D56,B56,0.01*C56,3,4,1) -> 0.00827264816
A57: 1906-01-03T08:00:00 | B57: 11.725 | C57: 94.5 | D57: 100723.75 | E57: 0.5625 | F57: 33.75 | G57: 0 | H57: =psych(D57,B57,0.01*C57,3,4,1) -> 0.008142765684
A58: 1906-01-03T09:00:00 | B58: 12.9375 | C58: 86 | D58: 100750 | E58: 0.625 | F58: 84.375 | G58: 0 | H58: =psych(D58,B58,0.01*C58,3,4,1) -> 0.008021875871
A59: 1906-01-03T10:00:00 | B59: 14.55 | C59: 73.75 | D59: 100787.5 | E59: 1.6875 | F59: 247.5 | G59: 0 | H59: =psych(D59,B59,0.01*C59,3,4,1) -> 0.007632351978
A60: 1906-01-03T11:00:00 | B60: 15.75 | C60: 66.875 | D60: 100772.5 | E60: 2.1 | F60: 146.25 | G60: 0 | H60: =psych(D60,B60,0.01*C60,3,4,1) -> 0.007475513003
A61: 1906-01-03T12:00:00 | B61: 16.2 | C61: 63.125 | D61: 100681.25 | E61: 2.1 | F61: 31.25 | G61: 0 | H61: =psych(D61,B61,0.01*C61,3,4,1) -> 0.00726638429
A62: 1906-01-03T13:00:00 | B62: 17.0125 | C62: 58.25 | D62: 100577.5 | E62: 2.1 | F62: 177.375 | G62: 0 | H62: =psych(D62,B62,0.01*C62,3,4,1) -> 0.007065841077
A63: 1906-01-03T14:00:00 | B63: 17.8125 | C63: 54.75 | D63: 100540 | E63: 3.0375 | F63: 256.25 | G63: 0 | H63: =psych(D63,B63,0.01*C63,3,4,1) -> 0.006987435466
A64: 1906-01-03T15:00:00 | B64: 17.6875 | C64: 57.75 | D64: 100540 | E64: 3.6 | F64: 276.125 | G64: 0 | H64: =psych(D64,B64,0.01*C64,3,4,1) -> 0.007316287522
A65: 1906-01-03T16:00:00 | B65: 16.3125 | C65: 65.625 | D65: 100565 | E65: 4.5375 | F65: 293 | G65: 0 | H65: =psych(D65,B65,0.01*C65,3,4,1) -> 0.007621649237
A66: 1906-01-03T17:00:00 | B66: 14.9125 | C66: 75.875 | D66: 100580 | E66: 4.1625 | F66: 293 | G66: 0 | H66: =psych(D66,B66,0.01*C66,3,4,1) -> 0.008060195355
A67: 1906-01-03T18:00:00 | B67: 13.3125 | C67: 83.75 | D67: 100598.75 | E67: 1.35 | F67: 109.875 | G67: 0 | H67: =psych(D67,B67,0.01*C67,3,4,1) -> 0.008017823332
A68: 1906-01-03T19:00:00 | B68: 12.2875 | C68: 89.75 | D68: 100628.75 | E68: 1.3125 | F68: 168.75 | G68: 0 | H68: =psych(D68,B68,0.01*C68,3,4,1) -> 0.008031867
A69: 1906-01-03T20:00:00 | B69: 12.4125 | C69: 90.125 | D69: 100683.75 | E69: 2.1 | F69: 284.375 | G69: 0 | H69: =psych(D69,B69,0.01*C69,3,4,1) -> 0.008128806693
A70: 1906-01-03T21:00:00 | B70: 12.2875 | C70: 90.875 | D70: 100710 | E70: 1.725 | F70: 194.25 | G70: 0 | H70: =psych(D70,B70,0.01*C70,3,4,1) -> 0.008127213685
A71: 1906-01-03T22:00:00 | B71: 12.1 | C71: 94.5 | D71: 100735 | E71: 1.875 | F71: 121.25 | G71: 0 | H71: =psych(D71,B71,0.01*C71,3,4,1) -> 0.00834857322
A72: 1906-01-03T23:00:00 | B72: 12.225 | C72: 96 | D72: 100768.75 | E72: 1.725 | F72: 126.75 | G72: 0 | H72: =psych(D72,B72,0.01*C72,3,4,1) -> 0.008551079799
A73: 1906-01-03 | B73: 12.425 | C73: 94.125 | D73: 100761.25 | E73: 1.875 | F73: 106.875 | G73: 0 | H73: =psych(D73,B73,0.01*C73,3,4,1) -> 0.008494961976
A74: 1906-01-04T01:00:00 | B74: 12.5625 | C74: 90.5 | D74: 100787.5 | E74: 2.1 | F74: 118.125 | G74: 1.5 | H74: =psych(D74,B74,0.01*C74,3,4,1) -> 0.008236377258
A75: 1906-01-04T02:00:00 | B75: 12.4125 | C75: 89 | D75: 100853.75 | E75: 2.1 | F75: 106.875 | G75: 0 | H75: =psych(D75,B75,0.01*C75,3,4,1) -> 0.008012325158
A76: 1906-01-04T03:00:00 | B76: 11.925 | C76: 89 | D76: 100898.75 | E76: 2.4125 | F76: 90 | G76: 0 | H76: =psych(D76,B76,0.01*C76,3,4,1) -> 0.007752519963
A77: 1906-01-04T04:00:00 | B77: 11.325 | C77: 89.625 | D77: 100910 | E77: 1.9125 | F77: 90 | G77: 0 | H77: =psych(D77,B77,0.01*C77,3,4,1) -> 0.007499366634
A78: 1906-01-04T05:00:00 | B78: 11.475 | C78: 91.875 | D78: 100910 | E78: 1.875 | F78: 90 | G78: 0 | H78: =psych(D78,B78,0.01*C78,3,4,1) -> 0.007767730976
A79: 1906-01-04T06:00:00 | B79: 11.325 | C79: 95.5 | D79: 100935 | E79: 2.1 | F79: 90 | G79: 0 | H79: =psych(D79,B79,0.01*C79,3,4,1) -> 0.007995271411
A80: 1906-01-04T07:00:00 | B80: 11.475 | C80: 88.25 | D80: 100993.75 | E80: 2.725 | F80: 104.375 | G80: 0 | H80: =psych(D80,B80,0.01*C80,3,4,1) -> 0.007451315989
A81: 1906-01-04T08:00:00 | B81: 12.075 | C81: 83 | D81: 101057.5 | E81: 2.475 | F81: 113 | G81: 0 | H81: =psych(D81,B81,0.01*C81,3,4,1) -> 0.007284863155
A82: 1906-01-04T09:00:00 | B82: 13.3625 | C82: 85.5 | D82: 101123.75 | E82: 2.1 | F82: 70.5 | G82: 0 | H82: =psych(D82,B82,0.01*C82,3,4,1) -> 0.00817146626
A83: 1906-01-04T10:00:00 | B83: 15.125 | C83: 75.75 | D83: 101150 | E83: 2.4125 | F83: 59.375 | G83: 0 | H83: =psych(D83,B83,0.01*C83,3,4,1) -> 0.008112486453
A84: 1906-01-04T11:00:00 | B84: 16.925 | C84: 67.75 | D84: 101131.25 | E84: 2.2875 | F84: 124.25 | G84: 0 | H84: =psych(D84,B84,0.01*C84,3,4,1) -> 0.008141885745
A85: 1906-01-04T12:00:00 | B85: 17.9125 | C85: 62.625 | D85: 101032.5 | E85: 2.1 | F85: 214.25 | G85: 0 | H85: =psych(D85,B85,0.01*C85,3,4,1) -> 0.008016865105
A86: 1906-01-04T13:00:00 | B86: 18.475 | C86: 58.75 | D86: 100936.25 | E86: 2.1 | F86: 304.25 | G86: 0 | H86: =psych(D86,B86,0.01*C86,3,4,1) -> 0.007796002936
A87: 1906-01-04T14:00:00 | B87: 18.7 | C87: 56.75 | D87: 100910 | E87: 3.6625 | F87: 309.875 | G87: 0 | H87: =psych(D87,B87,0.01*C87,3,4,1) -> 0.007637534191
A88: 1906-01-04T15:00:00 | B88: 18.0125 | C88: 58.5 | D88: 100910 | E88: 3.975 | F88: 293 | G88: 0 | H88: =psych(D88,B88,0.01*C88,3,4,1) -> 0.007539515218
A89: 1906-01-04T16:00:00 | B89: 17.6 | C89: 61.25 | D89: 100935 | E89: 3.2875 | F89: 293 | G89: 0 | H89: =psych(D89,B89,0.01*C89,3,4,1) -> 0.007691364829
A90: 1906-01-04T17:00:00 | B90: 16.475 | C90: 66.375 | D90: 100968.75 | E90: 2.7875 | F90: 306.75 | G90: 0 | H90: =psych(D90,B90,0.01*C90,3,4,1) -> 0.007759521063
A91: 1906-01-04T18:00:00 | B91: 15.05 | C91: 72.125 | D91: 101023.75 | E91: 2.2875 | F91: 301.25 | G91: 0 | H91: =psych(D91,B91,0.01*C91,3,4,1) -> 0.00769153542
A92: 1906-01-04T19:00:00 | B92: 13.9125 | C92: 77.75 | D92: 101068.75 | E92: 1.725 | F92: 180.5 | G92: 0 | H92: =psych(D92,B92,0.01*C92,3,4,1) -> 0.007700067742
A93: 1906-01-04T20:00:00 | B93: 12.75 | C93: 81.875 | D93: 101105 | E93: 0.5625 | F93: 42.375 | G93: 0 | H93: =psych(D93,B93,0.01*C93,3,4,1) -> 0.007511298692
A94: 1906-01-04T21:00:00 | B94: 10.8 | C94: 87.375 | D94: 101138.75 | E94: 0.9375 | F94: 98.75 | G94: 0 | H94: =psych(D94,B94,0.01*C94,3,4,1) -> 0.007039376583
A95: 1906-01-04T22:00:00 | B95: 9.2125 | C95: 87.5 | D95: 101193.75 | E95: 1.5 | F95: 115.5 | G95: 0 | H95: =psych(D95,B95,0.01*C95,3,4,1) -> 0.006327573101
A96: 1906-01-04T23:00:00 | B96: 8.3625 | C96: 92.875 | D96: 101220 | E96: 1.875 | F96: 90 | G96: 0 | H96: =psych(D96,B96,0.01*C96,3,4,1) -> 0.006339430794
A97: 1906-01-04 | B97: 7.725 | C97: 96.375 | D97: 101220 | E97: 2.1 | F97: 118.125 | G97: 0 | H97: =psych(D97,B97,0.01*C97,3,4,1) -> 0.00629862686
A98: 1906-01-05T01:00:00 | B98: 7.375 | C98: 93.5 | D98: 101220 | E98: 2.1 | F98: 106.875 | G98: 0 | H98: =psych(D98,B98,0.01*C98,3,4,1) -> 0.00596314844
A99: 1906-01-05T02:00:00 | B99: 7.3 | C99: 92 | D99: 101238.75 | E99: 1.725 | F99: 61.875 | G99: 0 | H99: =psych(D99,B99,0.01*C99,3,4,1) -> 0.00583517127
A100: 1906-01-05T03:00:00 | B100: 7.3 | C100: 92 | D100: 101250 | E100: 0.5625 | F100: 16.875 | G100: 0 | H100: =psych(D100,B100,0.01*C100,3,4,1) -> 0.005834516836
A101: 1906-01-05T04:00:00 | B101: 6.3 | C101: 88.25 | D101: 101250 | E101: 0 | F101: 0 | G101: 0 | H101: =psych(D101,B101,0.01*C101,3,4,1) -> 0.005219801125
A102: 1906-01-05T05:00:00 | B102: 5.7 | C102: 86 | D102: 101250 | E102: 0 | F102: 0 | G102: 0 | H102: =psych(D102,B102,0.01*C102,3,4,1) -> 0.004877229999
A103: 1906-01-05T06:00:00 | B103: 4.6375 | C103: 90.375 | D103: 101250 | E103: 0 | F103: 0 | G103: 0 | H103: =psych(D103,B103,0.01*C103,3,4,1) -> 0.004758858872
A104: 1906-01-05T07:00:00 | B104: 3.75 | C104: 94.875 | D104: 101250 | E104: 0 | F104: 0 | G104: 0 | H104: =psych(D104,B104,0.01*C104,3,4,1) -> 0.004693570982
A105: 1906-01-05T08:00:00 | B105: 4.9125 | C105: 94.125 | D105: 101293.75 | E105: 0 | F105: 0 | G105: 0 | H105: =psych(D105,B105,0.01*C105,3,4,1) -> 0.005052659976
A106: 1906-01-05T09:00:00 | B106: 9.3875 | C106: 79.25 | D106: 101320 | E106: 0.9375 | F106: 98.75 | G106: 0 | H106: =psych(D106,B106,0.01*C106,3,4,1) -> 0.005786732773
A107: 1906-01-05T10:00:00 | B107: 13.975 | C107: 52.875 | D107: 101320 | E107: 1.5 | F107: 199.875 | G107: 0 | H107: =psych(D107,B107,0.01*C107,3,4,1) -> 0.005224177368
A108: 1906-01-05T11:00:00 | B108: 18.7125 | C108: 35.125 | D108: 101276.25 | E108: 2.1875 | F108: 267.5 | G108: 0 | H108: =psych(D108,B108,0.01*C108,3,4,1) -> 0.004691731811
A109: 1906-01-05T12:00:00 | B109: 21.45 | C109: 27.875 | D109: 101212.5 | E109: 3.5375 | F109: 264.875 | G109: 0 | H109: =psych(D109,B109,0.01*C109,3,4,1) -> 0.00441175239
A110: 1906-01-05T13:00:00 | B110: 20.4625 | C110: 30.375 | D110: 101165 | E110: 6.0375 | F110: 233.625 | G110: 0 | H110: =psych(D110,B110,0.01*C110,3,4,1) -> 0.004527159663
A111: 1906-01-05T14:00:00 | B111: 20.2875 | C111: 31.75 | D111: 101150 | E111: 7.2 | F111: 239.375 | G111: 0 | H111: =psych(D111,B111,0.01*C111,3,4,1) -> 0.004683078929
A112: 1906-01-05T15:00:00 | B112: 21.075 | C112: 31 | D112: 101150 | E112: 5.8875 | F112: 248 | G112: 0 | H112: =psych(D112,B112,0.01*C112,3,4,1) -> 0.004800707688
A113: 1906-01-05T16:00:00 | B113: 20.925 | C113: 32.875 | D113: 101150 | E113: 3.85 | F113: 289.875 | G113: 0 | H113: =psych(D113,B113,0.01*C113,3,4,1) -> 0.005046324639
A114: 1906-01-05T17:00:00 | B114: 18.3875 | C114: 45.25 | D114: 101175 | E114: 2.475 | F114: 301.25 | G114: 0 | H114: =psych(D114,B114,0.01*C114,3,4,1) -> 0.005940079045
A115: 1906-01-05T18:00:00 | B115: 14.625 | C115: 59.5 | D115: 101208.75 | E115: 2.1 | F115: 208.625 | G115: 0 | H115: =psych(D115,B115,0.01*C115,3,4,1) -> 0.006147249937
A116: 1906-01-05T19:00:00 | B116: 12.575 | C116: 67.125 | D116: 101263.75 | E116: 1.725 | F116: 129.875 | G116: 0 | H116: =psych(D116,B116,0.01*C116,3,4,1) -> 0.006064312848
A117: 1906-01-05T20:00:00 | B117: 11.45 | C117: 70.25 | D117: 101327.5 | E117: 2.1875 | F117: 98.625 | G117: 0 | H117: =psych(D117,B117,0.01*C117,3,4,1) -> 0.005887520214
A118: 1906-01-05T21:00:00 | B118: 10.375 | C118: 71 | D118: 101350 | E118: 2.2875 | F118: 118.125 | G118: 0 | H118: =psych(D118,B118,0.01*C118,3,4,1) -> 0.005535424116
A119: 1906-01-05T22:00:00 | B119: 9 | C119: 76 | D119: 101350 | E119: 0.7875 | F119: 50.625 | G119: 0 | H119: =psych(D119,B119,0.01*C119,3,4,1) -> 0.005401377954
A120: 1906-01-05T23:00:00 | B120: 7.3375 | C120: 79 | D120: 101331.25 | E120: 0 | F120: 0 | G120: 0 | H120: =psych(D120,B120,0.01*C120,3,4,1) -> 0.005012351097
A121: 1906-01-05 | B121: 5.7625 | C121: 79 | D121: 101301.25 | E121: 0.9375 | F121: 70.625 | G121: 0 | H121: =psych(D121,B121,0.01*C121,3,4,1) -> 0.004494681208
A122: 1906-01-06T01:00:00 | B122: 4.7 | C122: 77.125 | D122: 101290 | E122: 0.5625 | F122: 42.375 | G122: 0 | H122: =psych(D122,B122,0.01*C122,3,4,1) -> 0.00407287128
A123: 1906-01-06T02:00:00 | B123: 4.525 | C123: 77.875 | D123: 101290 | E123: 0 | F123: 0 | G123: 0 | H123: =psych(D123,B123,0.01*C123,3,4,1) -> 0.004062366092
A124: 1906-01-06T03:00:00 | B124: 5.2875 | C124: 75.25 | D124: 101265 | E124: 0 | F124: 0 | G124: 0 | H124: =psych(D124,B124,0.01*C124,3,4,1) -> 0.004141546445
A125: 1906-01-06T04:00:00 | B125: 5.7 | C125: 69.875 | D125: 101231.25 | E125: 1.3125 | F125: 42.5 | G125: 0 | H125: =psych(D125,B125,0.01*C125,3,4,1) -> 0.003957669167
A126: 1906-01-06T05:00:00 | B126: 5.0125 | C126: 74.875 | D126: 101201.25 | E126: 1.725 | F126: 53.625 | G126: 0 | H126: =psych(D126,B126,0.01*C126,3,4,1) -> 0.004044639049
A127: 1906-01-06T06:00:00 | B127: 5.2875 | C127: 75.25 | D127: 101190 | E127: 1.875 | F127: 101.25 | G127: 0 | H127: =psych(D127,B127,0.01*C127,3,4,1) -> 0.004144636531
A128: 1906-01-06T07:00:00 | B128: 5.7 | C128: 73 | D128: 101208.75 | E128: 1.725 | F128: 93.125 | G128: 0 | H128: =psych(D128,B128,0.01*C128,3,4,1) -> 0.004136769403
A129: 1906-01-06T08:00:00 | B129: 5.0125 | C129: 81.125 | D129: 101220 | E129: 1.5 | F129: 109.875 | G129: 0 | H129: =psych(D129,B129,0.01*C129,3,4,1) -> 0.004383817079
A130: 1906-01-06T09:00:00 | B130: 8.6625 | C130: 74.75 | D130: 101263.75 | E130: 1.5 | F130: 93.125 | G130: 0 | H130: =psych(D130,B130,0.01*C130,3,4,1) -> 0.005195375492
A131: 1906-01-06T10:00:00 | B131: 13.0375 | C131: 56.125 | D131: 101290 | E131: 1.5 | F131: 53.625 | G131: 0 | H131: =psych(D131,B131,0.01*C131,3,4,1) -> 0.0052181537
A132: 1906-01-06T11:00:00 | B132: 17.575 | C132: 39.625 | D132: 101227.5 | E132: 1.875 | F132: 45 | G132: 0 | H132: =psych(D132,B132,0.01*C132,3,4,1) -> 0.004931933519
A133: 1906-01-06T12:00:00 | B133: 21.2875 | C133: 29.625 | D133: 101121.25 | E133: 2.1 | F133: 157.5 | G133: 0 | H133: =psych(D133,B133,0.01*C133,3,4,1) -> 0.004648197192
A134: 1906-01-06T13:00:00 | B134: 22.9875 | C134: 22 | D134: 101017.5 | E134: 2.725 | F134: 267.5 | G134: 0 | H134: =psych(D134,B134,0.01*C134,3,4,1) -> 0.003827478911
A135: 1906-01-06T14:00:00 | B135: 23.7125 | C135: 20.25 | D135: 100961.25 | E135: 3.725 | F135: 264.875 | G135: 0 | H135: =psych(D135,B135,0.01*C135,3,4,1) -> 0.003681833734
A136: 1906-01-06T15:00:00 | B136: 22.9 | C136: 22.25 | D136: 100950 | E136: 4.4125 | F136: 248 | G136: 0 | H136: =psych(D136,B136,0.01*C136,3,4,1) -> 0.003853249091
A137: 1906-01-06T16:00:00 | B137: 21.925 | C137: 24.875 | D137: 100968.75 | E137: 3.6625 | F137: 261.75 | G137: 0 | H137: =psych(D137,B137,0.01*C137,3,4,1) -> 0.004060469795
A138: 1906-01-06T17:00:00 | B138: 18.7 | C138: 39.75 | D138: 101005 | E138: 1.7875 | F138: 143.75 | G138: 0 | H138: =psych(D138,B138,0.01*C138,3,4,1) -> 0.005324976389
A139: 1906-01-06T18:00:00 | B139: 14.275 | C139: 59.25 | D139: 101038.75 | E139: 1.3125 | F139: 124.25 | G139: 0 | H139: =psych(D139,B139,0.01*C139,3,4,1) -> 0.005992995045
A140: 1906-01-06T19:00:00 | B140: 12.075 | C140: 66 | D140: 101068.75 | E140: 1.5 | F140: 129.875 | G140: 0 | H140: =psych(D140,B140,0.01*C140,3,4,1) -> 0.005778270353
A141: 1906-01-06T20:00:00 | B141: 10.6375 | C141: 66 | D141: 101105 | E141: 1.1875 | F141: 70.5 | G141: 0 | H141: =psych(D141,B141,0.01*C141,3,4,1) -> 0.005246807579
A142: 1906-01-06T21:00:00 | B142: 9.375 | C142: 64.125 | D142: 101095 | E142: 0.375 | F142: 16.875 | G142: 0 | H142: =psych(D142,B142,0.01*C142,3,4,1) -> 0.004680535815
A143: 1906-01-06T22:00:00 | B143: 8.3125 | C143: 64.25 | D143: 101123.75 | E143: 0 | F143: 0 | G143: 0 | H143: =psych(D143,B143,0.01*C143,3,4,1) -> 0.004361077789
A144: 1906-01-06T23:00:00 | B144: 7.5875 | C144: 61.875 | D144: 101150 | E144: 0 | F144: 0 | G144: 0 | H144: =psych(D144,B144,0.01*C144,3,4,1) -> 0.003994153176
A145: 1906-01-06 | B145: 7.275 | C145: 55 | D145: 101131.25 | E145: 1.3125 | F145: 28.125 | G145: 0 | H145: =psych(D145,B145,0.01*C145,3,4,1) -> 0.003473036761
A146: 1906-01-07T01:00:00 | B146: 7.2625 | C146: 57 | D146: 101095 | E146: 2.1 | F146: 73.125 | G146: 0 | H146: =psych(D146,B146,0.01*C146,3,4,1) -> 0.003598259137
A147: 1906-01-07T02:00:00 | B147: 7.175 | C147: 58.125 | D147: 101080 | E147: 2.4125 | F147: 104.375 | G147: 0 | H147: =psych(D147,B147,0.01*C147,3,4,1) -> 0.003648180783
A148: 1906-01-07T03:00:00 | B148: 6.7875 | C148: 58.25 | D148: 101080 | E148: 1.9125 | F148: 98.625 | G148: 0 | H148: =psych(D148,B148,0.01*C148,3,4,1) -> 0.003559564639
A149: 1906-01-07T04:00:00 | B149: 6.2875 | C149: 57.125 | D149: 101080 | E149: 1.5 | F149: 61.875 | G149: 0 | H149: =psych(D149,B149,0.01*C149,3,4,1) -> 0.003371622519
A150: 1906-01-07T05:00:00 | B150: 6.1 | C150: 56 | D150: 101080 | E150: 1.875 | F150: 73.125 | G150: 0 | H150: =psych(D150,B150,0.01*C150,3,4,1) -> 0.003262120589
A151: 1906-01-07T06:00:00 | B151: 6.4125 | C151: 53.5 | D151: 101080 | E151: 1.725 | F151: 90 | G151: 0 | H151: =psych(D151,B151,0.01*C151,3,4,1) -> 0.003184060527
A152: 1906-01-07T07:00:00 | B152: 6.6 | C152: 50.125 | D152: 101105 | E152: 1.875 | F152: 76.25 | G152: 0 | H152: =psych(D152,B152,0.01*C152,3,4,1) -> 0.003020448222
A153: 1906-01-07T08:00:00 | B153: 7.2875 | C153: 48.375 | D153: 101138.75 | E153: 2.1 | F153: 81.75 | G153: 0 | H153: =psych(D153,B153,0.01*C153,3,4,1) -> 0.003055039529
A154: 1906-01-07T09:00:00 | B154: 11.6375 | C154: 39.875 | D154: 101175 | E154: 2.1 | F154: 48.125 | G154: 0 | H154: =psych(D154,B154,0.01*C154,3,4,1) -> 0.003375116789
A155: 1906-01-07T10:00:00 | B155: 16.3125 | C155: 31.25 | D155: 101227.5 | E155: 0.7875 | F155: 8.625 | G155: 0 | H155: =psych(D155,B155,0.01*C155,3,4,1) -> 0.003582472292
A156: 1906-01-07T11:00:00 | B156: 18.3875 | C156: 29 | D156: 101187.5 | E156: 0.9375 | F156: 42.5 | G156: 0 | H156: =psych(D156,B156,0.01*C156,3,4,1) -> 0.003793418221
A157: 1906-01-07T12:00:00 | B157: 21.4875 | C157: 21.5 | D157: 101087.5 | E157: 2.5 | F157: 180.5 | G157: 0 | H157: =psych(D157,B157,0.01*C157,3,4,1) -> 0.003409363748
A158: 1906-01-07T13:00:00 | B158: 24.0375 | C158: 15.75 | D158: 100987.5 | E158: 3.1 | F158: 289.875 | G158: 0 | H158: =psych(D158,B158,0.01*C158,3,4,1) -> 0.002915825663
A159: 1906-01-07T14:00:00 | B159: 23.975 | C159: 18.125 | D159: 100906.25 | E159: 3.4125 | F159: 301.25 | G159: 0 | H159: =psych(D159,B159,0.01*C159,3,4,1) -> 0.003347945184
A160: 1906-01-07T15:00:00 | B160: 22.9125 | C160: 20.625 | D160: 100861.25 | E160: 3.9125 | F160: 306.75 | G160: 0 | H160: =psych(D160,B160,0.01*C160,3,4,1) -> 0.003576098525
A161: 1906-01-07T16:00:00 | B161: 21.1875 | C161: 24.125 | D161: 100850 | E161: 3.475 | F161: 286.875 | G161: 0 | H161: =psych(D161,B161,0.01*C161,3,4,1) -> 0.003766900531
A162: 1906-01-07T17:00:00 | B162: 18.7125 | C162: 25.375 | D162: 100868.75 | E162: 2.475 | F162: 284.375 | G162: 0 | H162: =psych(D162,B162,0.01*C162,3,4,1) -> 0.00339605735
A163: 1906-01-07T18:00:00 | B163: 14.7 | C163: 33.125 | D163: 100880 | E163: 1.725 | F163: 180.5 | G163: 0 | H163: =psych(D163,B163,0.01*C163,3,4,1) -> 0.003435238526
A164: 1906-01-07T19:00:00 | B164: 11.9625 | C164: 40.5 | D164: 100861.25 | E164: 0.5625 | F164: 42.375 | G164: 0 | H164: =psych(D164,B164,0.01*C164,3,4,1) -> 0.003514073666
A165: 1906-01-07T20:00:00 | B165: 12.0875 | C165: 40.125 | D165: 100868.75 | E165: 0 | F165: 0 | G165: 0 | H165: =psych(D165,B165,0.01*C165,3,4,1) -> 0.003510063311
A166: 1906-01-07T21:00:00 | B166: 12.5 | C166: 39 | D166: 100942.5 | E166: 0 | F166: 0 | G166: 0 | H166: =psych(D166,B166,0.01*C166,3,4,1) -> 0.003502903825
A167: 1906-01-07T22:00:00 | B167: 12.75 | C167: 41.5 | D167: 101023.75 | E167: 0 | F167: 0 | G167: 0 | H167: =psych(D167,B167,0.01*C167,3,4,1) -> 0.003787777229
A168: 1906-01-07T23:00:00 | B168: 12.8375 | C168: 48 | D168: 101068.75 | E168: 1.625 | F168: 183.125 | G168: 0 | H168: =psych(D168,B168,0.01*C168,3,4,1) -> 0.004408644286
A169: 1906-01-07 | B169: 12.3625 | C169: 48.5 | D169: 101123.75 | E169: 0.975 | F169: 109.875 | G169: 0 | H169: =psych(D169,B169,0.01*C169,3,4,1) -> 0.004314845038
A170: 1906-01-08T01:00:00 | B170: 11.6 | C170: 47.625 | D170: 101087.5 | E170: 0.9375 | F170: 56.25 | G170: 0 | H170: =psych(D170,B170,0.01*C170,3,4,1) -> 0.00402879695
A171: 1906-01-08T02:00:00 | B171: 11.05 | C171: 53.625 | D171: 101031.25 | E171: 1.5 | F171: 160.625 | G171: 0 | H171: =psych(D171,B171,0.01*C171,3,4,1) -> 0.004378812365
A172: 1906-01-08T03:00:00 | B172: 10.9 | C172: 60.75 | D172: 101020 | E172: 1.875 | F172: 132.375 | G172: 0 | H172: =psych(D172,B172,0.01*C172,3,4,1) -> 0.004916150947
A173: 1906-01-08T04:00:00 | B173: 10.525 | C173: 66.75 | D173: 100976.25 | E173: 1.725 | F173: 76.25 | G173: 0 | H173: =psych(D173,B173,0.01*C173,3,4,1) -> 0.005273708935
A174: 1906-01-08T05:00:00 | B174: 10.3 | C174: 72.125 | D174: 100925 | E174: 1.5 | F174: 81.75 | G174: 0 | H174: =psych(D174,B174,0.01*C174,3,4,1) -> 0.005619336043
A175: 1906-01-08T06:00:00 | B175: 10.3 | C175: 74 | D175: 100910 | E175: 1.875 | F175: 76.25 | G175: 0 | H175: =psych(D175,B175,0.01*C175,3,4,1) -> 0.005767638898
A176: 1906-01-08T07:00:00 | B176: 11.05 | C176: 61.5 | D176: 100910 | E176: 2.4125 | F176: 236.75 | G176: 0 | H176: =psych(D176,B176,0.01*C176,3,4,1) -> 0.005033141238
A177: 1906-01-08T08:00:00 | B177: 12.4375 | C177: 44 | D177: 100910 | E177: 2.2875 | F177: 169.25 | G177: 0 | H177: =psych(D177,B177,0.01*C177,3,4,1) -> 0.003939817372
A178: 1906-01-08T09:00:00 | B178: 13.375 | C178: 43.625 | D178: 100935 | E178: 1.725 | F178: 39.875 | G178: 0 | H178: =psych(D178,B178,0.01*C178,3,4,1) -> 0.004153910214
A179: 1906-01-08T10:00:00 | B179: 15.2875 | C179: 38.25 | D179: 100968.75 | E179: 1.1875 | F179: 177.375 | G179: 0 | H179: =psych(D179,B179,0.01*C179,3,4,1) -> 0.004120588474
A180: 1906-01-08T11:00:00 | B180: 18.6125 | C180: 31.75 | D180: 100961.25 | E180: 1.3125 | F180: 298.125 | G180: 0 | H180: =psych(D180,B180,0.01*C180,3,4,1) -> 0.004224461147
A181: 1906-01-08T12:00:00 | B181: 21.6875 | C181: 32.875 | D181: 100862.5 | E181: 2.5 | F181: 245 | G181: 0 | H181: =psych(D181,B181,0.01*C181,3,4,1) -> 0.005305152442
A182: 1906-01-08T13:00:00 | B182: 22.3875 | C182: 32.75 | D182: 100747.5 | E182: 3.725 | F182: 259.25 | G182: 0 | H182: =psych(D182,B182,0.01*C182,3,4,1) -> 0.005523678462
A183: 1906-01-08T14:00:00 | B183: 20.5125 | C183: 41.375 | D183: 100710 | E183: 4.1 | F183: 306.75 | G183: 0 | H183: =psych(D183,B183,0.01*C183,3,4,1) -> 0.006230522066
A184: 1906-01-08T15:00:00 | B184: 18.875 | C184: 55.125 | D184: 100710 | E184: 3.475 | F184: 301.25 | G184: 0 | H184: =psych(D184,B184,0.01*C184,3,4,1) -> 0.007513883518
A185: 1906-01-08T16:00:00 | B185: 18.5 | C185: 66.25 | D185: 100691.25 | E185: 3.1 | F185: 293 | G185: 0 | H185: =psych(D185,B185,0.01*C185,3,4,1) -> 0.008841094075
A186: 1906-01-08T17:00:00 | B186: 16.75 | C186: 78.125 | D186: 100680 | E186: 2.475 | F186: 306.75 | G186: 0 | H186: =psych(D186,B186,0.01*C186,3,4,1) -> 0.009344392007
A187: 1906-01-08T18:00:00 | B187: 15.075 | C187: 87.375 | D187: 100680 | E187: 2.1 | F187: 132.5 | G187: 0 | H187: =psych(D187,B187,0.01*C187,3,4,1) -> 0.009389953361
A188: 1906-01-08T19:00:00 | B188: 14.7 | C188: 91.875 | D188: 100723.75 | E188: 2.1 | F188: 8.625 | G188: 0 | H188: =psych(D188,B188,0.01*C188,3,4,1) -> 0.009637338977
A189: 1906-01-08T20:00:00 | B189: 14.7 | C189: 91.125 | D189: 100768.75 | E189: 0.7875 | F189: 0 | G189: 0 | H189: =psych(D189,B189,0.01*C189,3,4,1) -> 0.009553124332
A190: 1906-01-08T21:00:00 | B190: 14.0125 | C190: 93.75 | D190: 100798.75 | E190: 0 | F190: 0 | G190: 0 | H190: =psych(D190,B190,0.01*C190,3,4,1) -> 0.009395388432
A191: 1906-01-08T22:00:00 | B191: 13.6 | C191: 94.125 | D191: 100835 | E191: 0 | F191: 0 | G191: 0 | H191: =psych(D191,B191,0.01*C191,3,4,1) -> 0.009176894025
A192: 1906-01-08T23:00:00 | B192: 13.1625 | C192: 97.375 | D192: 100825 | E192: 0.625 | F192: 28.125 | G192: 0 | H192: =psych(D192,B192,0.01*C192,3,4,1) -> 0.009228330527
A193: 1906-01-08 | B193: 12.025 | C193: 97.5 | D193: 100791.25 | E193: 0.375 | F193: 16.875 | G193: 0 | H193: =psych(D193,B193,0.01*C193,3,4,1) -> 0.008569349703
A194: 1906-01-09T01:00:00 | B194: 10.625 | C194: 96 | D194: 100761.25 | E194: 0 | F194: 0 | G194: 0 | H194: =psych(D194,B194,0.01*C194,3,4,1) -> 0.007681072444
A195: 1906-01-09T02:00:00 | B195: 9.6 | C195: 98.5 | D195: 100768.75 | E195: 0 | F195: 0 | G195: 0 | H195: =psych(D195,B195,0.01*C195,3,4,1) -> 0.007354122421
A196: 1906-01-09T03:00:00 | B196: 9.3 | C196: 100 | D196: 100780 | E196: 1.3125 | F196: 0 | G196: 0 | H196: =psych(D196,B196,0.01*C196,3,4,1) -> 0.007315635128
A197: 1906-01-09T04:00:00 | B197: 8.925 | C197: 100 | D197: 100780 | E197: 2.1 | F197: 98.75 | G197: 0 | H197: =psych(D197,B197,0.01*C197,3,4,1) -> 0.007130753514
A198: 1906-01-09T05:00:00 | B198: 9.075 | C198: 100 | D198: 100761.25 | E198: 1.725 | F198: 143.625 | G198: 0 | H198: =psych(D198,B198,0.01*C198,3,4,1) -> 0.007205554667
A199: 1906-01-09T06:00:00 | B199: 8.6125 | C199: 100 | D199: 100768.75 | E199: 1.875 | F199: 65 | G199: 0 | H199: =psych(D199,B199,0.01*C199,3,4,1) -> 0.006980677944
A200: 1906-01-09T07:00:00 | B200: 7.45 | C200: 97.5 | D200: 100780 | E200: 1.725 | F200: 8.625 | G200: 0 | H200: =psych(D200,B200,0.01*C200,3,4,1) -> 0.006280700699
... 4300 more rows

Sheet CZ6
A1: Date | B1: TdbºC | C1: RH% | D1: P Pa | E1: Wind m/s | F1: Windº | G1: Rain mm/hr | H1: W
A2: 1906-01-01T01:00:00 | B2: 8.05 | C2: 60.375 | D2: 101727.5 | E2: 0.5625 | F2: 37.5 | G2: 0 | H2: =psych(D2,B2,0.01*C2,3,4,1) -> 0.003999373408
A3: 1906-01-01T02:00:00 | B3: 6.9125 | C3: 45 | D3: 101865 | E3: 0 | F3: 87.5 | G3: 0 | H3: =psych(D3,B3,0.01*C3,3,4,1) -> 0.002748655993
A4: 1906-01-01T03:00:00 | B4: 5.9375 | C4: 47.5 | D4: 101886.25 | E4: 0 | F4: 90 | G4: 0 | H4: =psych(D4,B4,0.01*C4,3,4,1) -> 0.002712010429
A5: 1906-01-01T04:00:00 | B5: 4.975 | C5: 45.25 | D5: 101877.5 | E5: 0 | F5: 85 | G5: 0 | H5: =psych(D5,B5,0.01*C5,3,4,1) -> 0.002415469398
A6: 1906-01-01T05:00:00 | B6: 4.0375 | C6: 43 | D6: 101851.25 | E6: 0 | F6: 112.5 | G6: 0 | H6: =psych(D6,B6,0.01*C6,3,4,1) -> 0.002149157879
A7: 1906-01-01T06:00:00 | B7: 3.7625 | C7: 41.75 | D7: 101840 | E7: 1.3125 | F7: 88.75 | G7: 0 | H7: =psych(D7,B7,0.01*C7,3,4,1) -> 0.00204658073
A8: 1906-01-01T07:00:00 | B8: 3.8 | C8: 38.5 | D8: 101840 | E8: 2.1 | F8: 95 | G8: 0 | H8: =psych(D8,B8,0.01*C8,3,4,1) -> 0.00189178815
A9: 1906-01-01T08:00:00 | B9: 4.7375 | C9: 36.375 | D9: 101883.75 | E9: 2.4125 | F9: 97.5 | G9: 0 | H9: =psych(D9,B9,0.01*C9,3,4,1) -> 0.001908113849
A10: 1906-01-01T09:00:00 | B10: 8.175 | C10: 34.125 | D10: 101935 | E10: 2.6 | F10: 115 | G10: 0 | H10: =psych(D10,B10,0.01*C10,3,4,1) -> 0.002268886065
A11: 1906-01-01T10:00:00 | B11: 11.7125 | C11: 30.5 | D11: 101925 | E11: 2.6 | F11: 136.25 | G11: 0 | H11: =psych(D11,B11,0.01*C11,3,4,1) -> 0.002572028664
A12: 1906-01-01T11:00:00 | B12: 14.675 | C12: 37.125 | D12: 101847.5 | E12: 2.9125 | F12: 127.5 | G12: 0 | H12: =psych(D12,B12,0.01*C12,3,4,1) -> 0.00380961516
A13: 1906-01-01T12:00:00 | B13: 16.7375 | C13: 49.5 | D13: 101791.25 | E13: 3.725 | F13: 232.5 | G13: 0 | H13: =psych(D13,B13,0.01*C13,3,4,1) -> 0.005818645484
A14: 1906-01-01T13:00:00 | B14: 17.3 | C14: 54 | D14: 101673.75 | E14: 5.1 | F14: 268.75 | G14: 0 | H14: =psych(D14,B14,0.01*C14,3,4,1) -> 0.006593781301
A15: 1906-01-01T14:00:00 | B15: 17.3 | C15: 59.625 | D15: 101585 | E15: 5.7 | F15: 243.75 | G15: 0 | H15: =psych(D15,B15,0.01*C15,3,4,1) -> 0.007295124871
A16: 1906-01-01T15:00:00 | B16: 17.3 | C16: 54.875 | D16: 101532.5 | E16: 5.0125 | F16: 258.75 | G16: 0 | H16: =psych(D16,B16,0.01*C16,3,4,1) -> 0.006711200188
A17: 1906-01-01T16:00:00 | B17: 15.425 | C17: 63.75 | D17: 101510 | E17: 4.2875 | F17: 251.25 | G17: 0 | H17: =psych(D17,B17,0.01*C17,3,4,1) -> 0.006922459757
A18: 1906-01-01T17:00:00 | B18: 12.8625 | C18: 77 | D18: 101485 | E18: 3.475 | F18: 258.75 | G18: 0 | H18: =psych(D18,B18,0.01*C18,3,4,1) -> 0.007084877117
A19: 1906-01-01T18:00:00 | B19: 12 | C19: 80 | D19: 101513.75 | E19: 2.1 | F19: 238.75 | G19: 0 | H19: =psych(D19,B19,0.01*C19,3,4,1) -> 0.006951840477
A20: 1906-01-01T19:00:00 | B20: 11.625 | C20: 81.875 | D20: 101540 | E20: 2.1875 | F20: 88.75 | G20: 0 | H20: =psych(D20,B20,0.01*C20,3,4,1) -> 0.006938799087
A21: 1906-01-01T20:00:00 | B21: 10.9 | C21: 83 | D21: 101540 | E21: 2.6 | F21: 53.75 | G21: 0 | H21: =psych(D21,B21,0.01*C21,3,4,1) -> 0.006701348396
A22: 1906-01-01T21:00:00 | B22: 11.1 | C22: 81.125 | D22: 101540 | E22: 2.6 | F22: 105 | G22: 0 | H22: =psych(D22,B22,0.01*C22,3,4,1) -> 0.006636936666
A23: 1906-01-01T22:00:00 | B23: 10.4625 | C23: 83.75 | D23: 101521.25 | E23: 2.6 | F23: 101.25 | G23: 0 | H23: =psych(D23,B23,0.01*C23,3,4,1) -> 0.006567428496
A24: 1906-01-01T23:00:00 | B24: 9.275 | C24: 85.375 | D24: 101547.5 | E24: 2.9125 | F24: 83.75 | G24: 0 | H24: =psych(D24,B24,0.01*C24,3,4,1) -> 0.006176887639
A25: 1906-01-01 | B25: 8.8375 | C25: 85.625 | D25: 101551.25 | E25: 2.1 | F25: 92.5 | G25: 0 | H25: =psych(D25,B25,0.01*C25,3,4,1) -> 0.006012898493
A26: 1906-01-02T01:00:00 | B26: 8.8 | C26: 88.5 | D26: 101521.25 | E26: 2.5 | F26: 81.25 | G26: 0 | H26: =psych(D26,B26,0.01*C26,3,4,1) -> 0.006202755623
A27: 1906-01-02T02:00:00 | B27: 8.3625 | C27: 90 | D27: 101528.75 | E27: 3.4125 | F27: 63.75 | G27: 0 | H27: =psych(D27,B27,0.01*C27,3,4,1) -> 0.006122392932
A28: 1906-01-02T03:00:00 | B28: 7.225 | C28: 87.5 | D28: 101521.25 | E28: 3.2875 | F28: 66.25 | G28: 0 | H28: =psych(D28,B28,0.01*C28,3,4,1) -> 0.005503047106
A29: 1906-01-02T04:00:00 | B29: 6.325 | C29: 86 | D29: 101528.75 | E29: 2.1 | F29: 82.5 | G29: 0 | H29: =psych(D29,B29,0.01*C29,3,4,1) -> 0.005080382122
A30: 1906-01-02T05:00:00 | B30: 6.475 | C30: 84.125 | D30: 101558.75 | E30: 1.875 | F30: 83.75 | G30: 0 | H30: =psych(D30,B30,0.01*C30,3,4,1) -> 0.005019317713
A31: 1906-01-02T06:00:00 | B31: 6.325 | C31: 82.375 | D31: 101595 | E31: 1.725 | F31: 98.75 | G31: 0 | H31: =psych(D31,B31,0.01*C31,3,4,1) -> 0.004861366297
A32: 1906-01-02T07:00:00 | B32: 5.6 | C32: 84.5 | D32: 101628.75 | E32: 2.1875 | F32: 91.25 | G32: 0 | H32: =psych(D32,B32,0.01*C32,3,4,1) -> 0.004740258343
A33: 1906-01-02T08:00:00 | B33: 6.175 | C33: 81.625 | D33: 101683.75 | E33: 1.9125 | F33: 142.5 | G33: 0 | H33: =psych(D33,B33,0.01*C33,3,4,1) -> 0.004762562823
A34: 1906-01-02T09:00:00 | B34: 8.95 | C34: 74 | D34: 101772.5 | E34: 2.1875 | F34: 142.5 | G34: 0 | H34: =psych(D34,B34,0.01*C34,3,4,1) -> 0.005218220044
A35: 1906-01-02T10:00:00 | B35: 11.175 | C35: 69.75 | D35: 101828.75 | E35: 2.2875 | F35: 182.5 | G35: 0 | H35: =psych(D35,B35,0.01*C35,3,4,1) -> 0.005710127273
A36: 1906-01-02T11:00:00 | B36: 14.0125 | C36: 62.125 | D36: 101821.25 | E36: 1.725 | F36: 195 | G36: 0 | H36: =psych(D36,B36,0.01*C36,3,4,1) -> 0.006131627618
A37: 1906-01-02T12:00:00 | B37: 16.775 | C37: 53 | D37: 101747.5 | E37: 1.875 | F37: 192.5 | G37: 0 | H37: =psych(D37,B37,0.01*C37,3,4,1) -> 0.006251920503
A38: 1906-01-02T13:00:00 | B38: 18.475 | C38: 51.25 | D38: 101647.5 | E38: 3.0375 | F38: 237.5 | G38: 0 | H38: =psych(D38,B38,0.01*C38,3,4,1) -> 0.006741878506
A39: 1906-01-02T14:00:00 | B39: 18.125 | C39: 49.5 | D39: 101610 | E39: 3.9125 | F39: 266.25 | G39: 0 | H39: =psych(D39,B39,0.01*C39,3,4,1) -> 0.006368749574
A40: 1906-01-02T15:00:00 | B40: 15.2875 | C40: 61.125 | D40: 101610 | E40: 4.1 | F40: 263.75 | G40: 0 | H40: =psych(D40,B40,0.01*C40,3,4,1) -> 0.006568892549
A41: 1906-01-02T16:00:00 | B41: 13.9 | C41: 65.875 | D41: 101610 | E41: 3.7875 | F41: 266.25 | G41: 0 | H41: =psych(D41,B41,0.01*C41,3,4,1) -> 0.006471341098
A42: 1906-01-02T17:00:00 | B42: 13.025 | C42: 69 | D42: 101610 | E42: 3.2875 | F42: 257.5 | G42: 0 | H42: =psych(D42,B42,0.01*C42,3,4,1) -> 0.006401820387
A43: 1906-01-02T18:00:00 | B43: 11.625 | C43: 78.875 | D43: 101610 | E43: 2.7875 | F43: 250 | G43: 0 | H43: =psych(D43,B43,0.01*C43,3,4,1) -> 0.006677169112
A44: 1906-01-02T19:00:00 | B44: 11.975 | C44: 83 | D44: 101672.5 | E44: 2.9125 | F44: 300 | G44: 0 | H44: =psych(D44,B44,0.01*C44,3,4,1) -> 0.007192156749
A45: 1906-01-02T20:00:00 | B45: 12.5 | C45: 76.125 | D45: 101753.75 | E45: 2.475 | F45: 161.25 | G45: 0 | H45: =psych(D45,B45,0.01*C45,3,4,1) -> 0.006818845288
A46: 1906-01-02T21:00:00 | B46: 11.625 | C46: 75.125 | D46: 101798.75 | E46: 2.4125 | F46: 53.75 | G46: 0 | H46: =psych(D46,B46,0.01*C46,3,4,1) -> 0.006344562198
A47: 1906-01-02T22:00:00 | B47: 11.1 | C47: 68.25 | D47: 101853.75 | E47: 2.6 | F47: 56.25 | G47: 0 | H47: =psych(D47,B47,0.01*C47,3,4,1) -> 0.005556853057
A48: 1906-01-02T23:00:00 | B48: 11.1 | C48: 61.75 | D48: 101898.75 | E48: 2.2875 | F48: 91.25 | G48: 0 | H48: =psych(D48,B48,0.01*C48,3,4,1) -> 0.005021118438
A49: 1906-01-02 | B49: 10.9125 | C49: 55.375 | D49: 101660 | E49: 2.1 | F49: 66.25 | G49: 0 | H49: =psych(D49,B49,0.01*C49,3,4,1) -> 0.004453385805
A50: 1906-01-03T01:00:00 | B50: 10.6125 | C50: 47.625 | D50: 101760 | E50: 2.725 | F50: 58.75 | G50: 0 | H50: =psych(D50,B50,0.01*C50,3,4,1) -> 0.003746431457
A51: 1906-01-03T02:00:00 | B51: 10.5 | C51: 37.5 | D51: 101935 | E51: 4.0375 | F51: 45 | G51: 0 | H51: =psych(D51,B51,0.01*C51,3,4,1) -> 0.002919000616
A52: 1906-01-03T03:00:00 | B52: 10.5 | C52: 31.125 | D52: 101950 | E52: 3.975 | F52: 30 | G52: 0 | H52: =psych(D52,B52,0.01*C52,3,4,1) -> 0.002420481543
A53: 1906-01-03T04:00:00 | B53: 9.6875 | C53: 29.375 | D53: 101925 | E53: 2.975 | F53: 30 | G53: 0 | H53: =psych(D53,B53,0.01*C53,3,4,1) -> 0.002163085998
A54: 1906-01-03T05:00:00 | B54: 10.0125 | C54: 26.5 | D54: 101935 | E54: 3.85 | F54: 30 | G54: 0 | H54: =psych(D54,B54,0.01*C54,3,4,1) -> 0.001993651259
A55: 1906-01-03T06:00:00 | B55: 10.125 | C55: 27.5 | D55: 101968.75 | E55: 3.975 | F55: 23.75 | G55: 0 | H55: =psych(D55,B55,0.01*C55,3,4,1) -> 0.002084139918
A56: 1906-01-03T07:00:00 | B56: 9.9 | C56: 28.375 | D56: 101998.75 | E56: 3.9125 | F56: 38.75 | G56: 0 | H56: =psych(D56,B56,0.01*C56,3,4,1) -> 0.002117773271
A57: 1906-01-03T08:00:00 | B57: 11.0875 | C57: 25.5 | D57: 102035 | E57: 3.7875 | F57: 37.5 | G57: 0 | H57: =psych(D57,B57,0.01*C57,3,4,1) -> 0.002059237258
A58: 1906-01-03T09:00:00 | B58: 12.6125 | C58: 24 | D58: 102068.75 | E58: 4.225 | F58: 42.5 | G58: 0 | H58: =psych(D58,B58,0.01*C58,3,4,1) -> 0.002142982194
A59: 1906-01-03T10:00:00 | B59: 14.35 | C59: 20.875 | D59: 102080 | E59: 4.9125 | F59: 43.75 | G59: 0 | H59: =psych(D59,B59,0.01*C59,3,4,1) -> 0.002087030075
A60: 1906-01-03T11:00:00 | B60: 16.35 | C60: 17.75 | D60: 102061.25 | E60: 3.85 | F60: 40 | G60: 0 | H60: =psych(D60,B60,0.01*C60,3,4,1) -> 0.00201799135
A61: 1906-01-03T12:00:00 | B61: 18.6625 | C61: 17.625 | D61: 101987.5 | E61: 3.725 | F61: 46.25 | G61: 0 | H61: =psych(D61,B61,0.01*C61,3,4,1) -> 0.002321679138
A62: 1906-01-03T13:00:00 | B62: 19.975 | C62: 13.625 | D62: 101881.25 | E62: 2.85 | F62: 18.75 | G62: 0 | H62: =psych(D62,B62,0.01*C62,3,4,1) -> 0.001948490172
A63: 1906-01-03T14:00:00 | B63: 20.6375 | C63: 12.875 | D63: 101802.5 | E63: 2.4125 | F63: 168.75 | G63: 0 | H63: =psych(D63,B63,0.01*C63,3,4,1) -> 0.00191957537
A64: 1906-01-03T15:00:00 | B64: 20.0875 | C64: 19.625 | D64: 101755 | E64: 3.5375 | F64: 257.5 | G64: 0 | H64: =psych(D64,B64,0.01*C64,3,4,1) -> 0.002833683516
A65: 1906-01-03T16:00:00 | B65: 18.0375 | C65: 24.25 | D65: 101765 | E65: 4.725 | F65: 268.75 | G65: 0 | H65: =psych(D65,B65,0.01*C65,3,4,1) -> 0.00308199469
A66: 1906-01-03T17:00:00 | B66: 15.85 | C66: 26.875 | D66: 101780 | E66: 5.1 | F66: 280 | G66: 0 | H66: =psych(D66,B66,0.01*C66,3,4,1) -> 0.002972120883
A67: 1906-01-03T18:00:00 | B67: 14.6625 | C67: 36.75 | D67: 101817.5 | E67: 5.1 | F67: 280 | G67: 0 | H67: =psych(D67,B67,0.01*C67,3,4,1) -> 0.003768956995
A68: 1906-01-03T19:00:00 | B68: 13.5875 | C68: 48.875 | D68: 101865 | E68: 4.475 | F68: 286.25 | G68: 0 | H68: =psych(D68,B68,0.01*C68,3,4,1) -> 0.004679555896
A69: 1906-01-03T20:00:00 | B69: 12.2875 | C69: 53.625 | D69: 101880 | E69: 2.85 | F69: 290 | G69: 0 | H69: =psych(D69,B69,0.01*C69,3,4,1) -> 0.004715090802
A70: 1906-01-03T21:00:00 | B70: 12.2375 | C70: 51.5 | D70: 101898.75 | E70: 2.4125 | F70: 140 | G70: 0 | H70: =psych(D70,B70,0.01*C70,3,4,1) -> 0.004511071266
A71: 1906-01-03T22:00:00 | B71: 13.6875 | C71: 36.25 | D71: 101935 | E71: 3.5375 | F71: 50 | G71: 0 | H71: =psych(D71,B71,0.01*C71,3,4,1) -> 0.003484380271
A72: 1906-01-03T23:00:00 | B72: 14.9 | C72: 33 | D72: 101950 | E72: 3.1625 | F72: 62.5 | G72: 0 | H72: =psych(D72,B72,0.01*C72,3,4,1) -> 0.003430299957
A73: 1906-01-03 | B73: 14.8875 | C73: 30.375 | D73: 101925 | E73: 2.6 | F73: 76.25 | G73: 0 | H73: =psych(D73,B73,0.01*C73,3,4,1) -> 0.003154273316
A74: 1906-01-04T01:00:00 | B74: 13.6375 | C74: 30.125 | D74: 101891.25 | E74: 3.225 | F74: 61.25 | G74: 0 | H74: =psych(D74,B74,0.01*C74,3,4,1) -> 0.002884703446
A75: 1906-01-04T02:00:00 | B75: 11.3125 | C75: 30.75 | D75: 101855 | E75: 3.9125 | F75: 50 | G75: 0 | H75: =psych(D75,B75,0.01*C75,3,4,1) -> 0.002526900901
A76: 1906-01-04T03:00:00 | B76: 8.6125 | C76: 33.75 | D76: 101840 | E76: 3.1625 | F76: 87.5 | G76: 0 | H76: =psych(D76,B76,0.01*C76,3,4,1) -> 0.002313899309
A77: 1906-01-04T04:00:00 | B77: 7.1 | C77: 37.875 | D77: 101821.25 | E77: 2.6 | F77: 53.75 | G77: 0 | H77: =psych(D77,B77,0.01*C77,3,4,1) -> 0.002342895629
A78: 1906-01-04T05:00:00 | B78: 8.6125 | C78: 35.25 | D78: 101810 | E78: 2.6 | F78: 57.5 | G78: 0 | H78: =psych(D78,B78,0.01*C78,3,4,1) -> 0.002417853954
A79: 1906-01-04T06:00:00 | B79: 8.7625 | C79: 31.125 | D79: 101810 | E79: 2.9125 | F79: 55 | G79: 0 | H79: =psych(D79,B79,0.01*C79,3,4,1) -> 0.002155800415
A80: 1906-01-04T07:00:00 | B80: 9.1375 | C80: 31.875 | D80: 101828.75 | E80: 3.4125 | F80: 33.75 | G80: 0 | H80: =psych(D80,B80,0.01*C80,3,4,1) -> 0.002264374365
A81: 1906-01-04T08:00:00 | B81: 10.95 | C81: 29.25 | D81: 101840 | E81: 2.2875 | F81: 86.25 | G81: 0 | H81: =psych(D81,B81,0.01*C81,3,4,1) -> 0.00234613979
A82: 1906-01-04T09:00:00 | B82: 13.3875 | C82: 26.375 | D82: 101865 | E82: 1.875 | F82: 120 | G82: 0 | H82: =psych(D82,B82,0.01*C82,3,4,1) -> 0.002483848529
A83: 1906-01-04T10:00:00 | B83: 16.2125 | C83: 24.125 | D83: 101880 | E83: 2.4125 | F83: 76.25 | G83: 0 | H83: =psych(D83,B83,0.01*C83,3,4,1) -> 0.002726752769
A84: 1906-01-04T11:00:00 | B84: 18.9875 | C84: 20.5 | D84: 101836.25 | E84: 2.6 | F84: 31.25 | G84: 0 | H84: =psych(D84,B84,0.01*C84,3,4,1) -> 0.002761853335
A85: 1906-01-04T12:00:00 | B85: 20 | C85: 29 | D85: 101728.75 | E85: 3.225 | F85: 176.25 | G85: 0 | H85: =psych(D85,B85,0.01*C85,3,4,1) -> 0.004174742918
A86: 1906-01-04T13:00:00 | B86: 18.6875 | C86: 38.125 | D86: 101636.25 | E86: 4.5375 | F86: 257.5 | G86: 0 | H86: =psych(D86,B86,0.01*C86,3,4,1) -> 0.005069534349
A87: 1906-01-04T14:00:00 | B87: 18.3375 | C87: 40.625 | D87: 101566.25 | E87: 2.85 | F87: 187.5 | G87: 0 | H87: =psych(D87,B87,0.01*C87,3,4,1) -> 0.005290282743
A88: 1906-01-04T15:00:00 | B88: 18.6 | C88: 38.5 | D88: 101521.25 | E88: 3.4375 | F88: 237.5 | G88: 0 | H88: =psych(D88,B88,0.01*C88,3,4,1) -> 0.005097428829
A89: 1906-01-04T16:00:00 | B89: 17.7875 | C89: 43.875 | D89: 101528.75 | E89: 5.2875 | F89: 283.75 | G89: 0 | H89: =psych(D89,B89,0.01*C89,3,4,1) -> 0.005523373912
A90: 1906-01-04T17:00:00 | B90: 16.425 | C90: 53.625 | D90: 101540 | E90: 5.7 | F90: 267.5 | G90: 0 | H90: =psych(D90,B90,0.01*C90,3,4,1) -> 0.006198504541
A91: 1906-01-04T18:00:00 | B91: 14.9625 | C91: 62 | D91: 101583.75 | E91: 6.325 | F91: 260 | G91: 0 | H91: =psych(D91,B91,0.01*C91,3,4,1) -> 0.006526291811
A92: 1906-01-04T19:00:00 | B92: 14.4 | C92: 65 | D92: 101610 | E92: 5.3875 | F92: 253.75 | G92: 0 | H92: =psych(D92,B92,0.01*C92,3,4,1) -> 0.006597090862
A93: 1906-01-04T20:00:00 | B93: 14.025 | C93: 69.375 | D93: 101610 | E93: 4.9125 | F93: 262.5 | G93: 0 | H93: =psych(D93,B93,0.01*C93,3,4,1) -> 0.006875122422
A94: 1906-01-04T21:00:00 | B94: 13.3 | C94: 75.125 | D94: 101628.75 | E94: 4.1625 | F94: 251.25 | G94: 0 | H94: =psych(D94,B94,0.01*C94,3,4,1) -> 0.007103081523
A95: 1906-01-04T22:00:00 | B95: 13 | C95: 72 | D95: 101621.25 | E95: 2.975 | F95: 215 | G95: 0 | H95: =psych(D95,B95,0.01*C95,3,4,1) -> 0.006671366471
A96: 1906-01-04T23:00:00 | B96: 13 | C96: 72.75 | D96: 101610 | E96: 2.6 | F96: 143.75 | G96: 0 | H96: =psych(D96,B96,0.01*C96,3,4,1) -> 0.006742367613
A97: 1906-01-04 | B97: 12.75 | C97: 80 | D97: 101566.25 | E97: 1.9125 | F97: 185 | G97: 0 | H97: =psych(D97,B97,0.01*C97,3,4,1) -> 0.007303542564
A98: 1906-01-05T01:00:00 | B98: 12.1 | C98: 81.125 | D98: 101540 | E98: 2.1875 | F98: 117.5 | G98: 0 | H98: =psych(D98,B98,0.01*C98,3,4,1) -> 0.007096015019
A99: 1906-01-05T02:00:00 | B99: 10.9875 | C99: 81.875 | D99: 101540 | E99: 3.5375 | F99: 56.25 | G99: 0 | H99: =psych(D99,B99,0.01*C99,3,4,1) -> 0.00664853415
A100: 1906-01-05T03:00:00 | B100: 9.625 | C100: 84.875 | D100: 101521.25 | E100: 3.475 | F100: 60 | G100: 0 | H100: =psych(D100,B100,0.01*C100,3,4,1) -> 0.006289815758
A101: 1906-01-05T04:00:00 | B101: 9.1 | C101: 80.375 | D101: 101485 | E101: 3.4125 | F101: 78.75 | G101: 0 | H101: =psych(D101,B101,0.01*C101,3,4,1) -> 0.005746515341
A102: 1906-01-05T05:00:00 | B102: 9.5375 | C102: 77 | D102: 101470 | E102: 3.2875 | F102: 90 | G102: 0 | H102: =psych(D102,B102,0.01*C102,3,4,1) -> 0.005670025209
A103: 1906-01-05T06:00:00 | B103: 10.2375 | C103: 73.25 | D103: 101495 | E103: 2.1 | F103: 133.75 | G103: 0 | H103: =psych(D103,B103,0.01*C103,3,4,1) -> 0.005651562367
A104: 1906-01-05T07:00:00 | B104: 10.5 | C104: 69.125 | D104: 101510 | E104: 2.8125 | F104: 91.25 | G104: 0 | H104: =psych(D104,B104,0.01*C104,3,4,1) -> 0.005424886162
A105: 1906-01-05T08:00:00 | B105: 11.3125 | C105: 66.75 | D105: 101547.5 | E105: 2.2875 | F105: 137.5 | G105: 0 | H105: =psych(D105,B105,0.01*C105,3,4,1) -> 0.005528275697
A106: 1906-01-05T09:00:00 | B106: 12.55 | C106: 61.625 | D106: 101570 | E106: 2.8125 | F106: 140 | G106: 0 | H106: =psych(D106,B106,0.01*C106,3,4,1) -> 0.005536880093
A107: 1906-01-05T10:00:00 | B107: 14.1875 | C107: 60.875 | D107: 101638.75 | E107: 2.6625 | F107: 66.25 | G107: 0 | H107: =psych(D107,B107,0.01*C107,3,4,1) -> 0.00608732159
A108: 1906-01-05T11:00:00 | B108: 14.9 | C108: 62 | D108: 101636.25 | E108: 2.1 | F108: 40 | G108: 0 | H108: =psych(D108,B108,0.01*C108,3,4,1) -> 0.006496394435
A109: 1906-01-05T12:00:00 | B109: 15.3375 | C109: 60.75 | D109: 101503.75 | E109: 3.6625 | F109: 196.25 | G109: 0 | H109: =psych(D109,B109,0.01*C109,3,4,1) -> 0.006556322554
A110: 1906-01-05T13:00:00 | B110: 15.1625 | C110: 64.375 | D110: 101440 | E110: 4.9125 | F110: 271.25 | G110: 0 | H110: =psych(D110,B110,0.01*C110,3,4,1) -> 0.006877664346
A111: 1906-01-05T14:00:00 | B111: 14.9 | C111: 65.75 | D111: 101377.5 | E111: 4.475 | F111: 235 | G111: 0 | H111: =psych(D111,B111,0.01*C111,3,4,1) -> 0.006911467033
A112: 1906-01-05T15:00:00 | B112: 15.775 | C112: 60 | D112: 101340 | E112: 3.7875 | F112: 245 | G112: 0 | H112: =psych(D112,B112,0.01*C112,3,4,1) -> 0.006671594593
A113: 1906-01-05T16:00:00 | B113: 15.8625 | C113: 61.375 | D113: 101315 | E113: 3.9125 | F113: 247.5 | G113: 0 | H113: =psych(D113,B113,0.01*C113,3,4,1) -> 0.006866627261
A114: 1906-01-05T17:00:00 | B114: 14.35 | C114: 70.875 | D114: 101300 | E114: 4.1 | F114: 246.25 | G114: 0 | H114: =psych(D114,B114,0.01*C114,3,4,1) -> 0.007198955018
A115: 1906-01-05T18:00:00 | B115: 13.6 | C115: 75 | D115: 101325 | E115: 3.475 | F115: 250 | G115: 0 | H115: =psych(D115,B115,0.01*C115,3,4,1) -> 0.007254743212
A116: 1906-01-05T19:00:00 | B116: 13.6 | C116: 76.25 | D116: 101340 | E116: 2.475 | F116: 256.25 | G116: 0 | H116: =psych(D116,B116,0.01*C116,3,4,1) -> 0.007375984818
A117: 1906-01-05T20:00:00 | B117: 12.7875 | C117: 78.875 | D117: 101358.75 | E117: 2.1 | F117: 103.75 | G117: 0 | H117: =psych(D117,B117,0.01*C117,3,4,1) -> 0.007232518439
A118: 1906-01-05T21:00:00 | B118: 11.55 | C118: 65.625 | D118: 101413.75 | E118: 3.35 | F118: 10 | G118: 0 | H118: =psych(D118,B118,0.01*C118,3,4,1) -> 0.005528569542
A119: 1906-01-05T22:00:00 | B119: 10.725 | C119: 47 | D119: 101458.75 | E119: 4.725 | F119: 10 | G119: 0 | H119: =psych(D119,B119,0.01*C119,3,4,1) -> 0.0037360884
A120: 1906-01-05T23:00:00 | B120: 10.375 | C120: 46.625 | D120: 101495 | E120: 3.85 | F120: 3.75 | G120: 0 | H120: =psych(D120,B120,0.01*C120,3,4,1) -> 0.003618778402
A121: 1906-01-05 | B121: 10.175 | C121: 48.125 | D121: 101485 | E121: 4.0375 | F121: 0 | G121: 0 | H121: =psych(D121,B121,0.01*C121,3,4,1) -> 0.003686352479
A122: 1906-01-06T01:00:00 | B122: 9.9125 | C122: 44.5 | D122: 101451.25 | E122: 3.975 | F122: 0 | G122: 0 | H122: =psych(D122,B122,0.01*C122,3,4,1) -> 0.003348580034
A123: 1906-01-06T02:00:00 | B123: 9.3625 | C123: 39.25 | D123: 101483.75 | E123: 3.6 | F123: 12.5 | G123: 0 | H123: =psych(D123,B123,0.01*C123,3,4,1) -> 0.002843153076
A124: 1906-01-06T03:00:00 | B124: 8.6 | C124: 38.875 | D124: 101572.5 | E124: 3.9125 | F124: 7.5 | G124: 0 | H124: =psych(D124,B124,0.01*C124,3,4,1) -> 0.002671555987
A125: 1906-01-06T04:00:00 | B125: 8.8 | C125: 36.875 | D125: 101610 | E125: 3.7875 | F125: 0 | G125: 0 | H125: =psych(D125,B125,0.01*C125,3,4,1) -> 0.002567280047
A126: 1906-01-06T05:00:00 | B126: 8.225 | C126: 36.875 | D126: 101610 | E126: 2.2875 | F126: 87.5 | G126: 0 | H126: =psych(D126,B126,0.01*C126,3,4,1) -> 0.002468731606
A127: 1906-01-06T06:00:00 | B127: 7.2 | C127: 38 | D127: 101628.75 | E127: 1.875 | F127: 140 | G127: 0 | H127: =psych(D127,B127,0.01*C127,3,4,1) -> 0.00237138678
A128: 1906-01-06T07:00:00 | B128: 6.025 | C128: 51.125 | D128: 101683.75 | E128: 2.4125 | F128: 96.25 | G128: 0 | H128: =psych(D128,B128,0.01*C128,3,4,1) -> 0.002943645144
A129: 1906-01-06T08:00:00 | B129: 6.875 | C129: 59.625 | D129: 101753.75 | E129: 3.5375 | F129: 63.75 | G129: 0 | H129: =psych(D129,B129,0.01*C129,3,4,1) -> 0.003641771084
A130: 1906-01-06T09:00:00 | B130: 9.45 | C130: 58.75 | D130: 101842.5 | E130: 3.1625 | F130: 91.25 | G130: 0 | H130: =psych(D130,B130,0.01*C130,3,4,1) -> 0.004275515151
A131: 1906-01-06T10:00:00 | B131: 12.3125 | C131: 48.625 | D131: 101942.5 | E131: 2.6 | F131: 53.75 | G131: 0 | H131: =psych(D131,B131,0.01*C131,3,4,1) -> 0.00427687456
A132: 1906-01-06T11:00:00 | B132: 14.775 | C132: 38.625 | D132: 101936.25 | E132: 2.9125 | F132: 88.75 | G132: 0 | H132: =psych(D132,B132,0.01*C132,3,4,1) -> 0.00398685886
A133: 1906-01-06T12:00:00 | B133: 16.975 | C133: 30.375 | D133: 101847.5 | E133: 2.1 | F133: 142.5 | G133: 0 | H133: =psych(D133,B133,0.01*C133,3,4,1) -> 0.003610019621
A134: 1906-01-06T13:00:00 | B134: 17.8 | C134: 26.375 | D134: 101747.5 | E134: 3.4375 | F134: 206.25 | G134: 0 | H134: =psych(D134,B134,0.01*C134,3,4,1) -> 0.003304063961
A135: 1906-01-06T14:00:00 | B135: 17.8 | C135: 28.5 | D135: 101647.5 | E135: 4.2875 | F135: 240 | G135: 0 | H135: =psych(D135,B135,0.01*C135,3,4,1) -> 0.003575330981
A136: 1906-01-06T15:00:00 | B136: 17.8 | C136: 33.125 | D136: 101628.75 | E136: 5.725 | F136: 252.5 | G136: 0 | H136: =psych(D136,B136,0.01*C136,3,4,1) -> 0.004160190794
A137: 1906-01-06T16:00:00 | B137: 17.3 | C137: 40 | D137: 101621.25 | E137: 6.075 | F137: 247.5 | G137: 0 | H137: =psych(D137,B137,0.01*C137,3,4,1) -> 0.004873431033
A138: 1906-01-06T17:00:00 | B138: 15.625 | C138: 46.75 | D138: 101610 | E138: 6.6375 | F138: 258.75 | G138: 0 | H138: =psych(D138,B138,0.01*C138,3,4,1) -> 0.005122244233
A139: 1906-01-06T18:00:00 | B139: 14.425 | C139: 49 | D139: 101628.75 | E139: 7.2 | F139: 276.25 | G139: 0 | H139: =psych(D139,B139,0.01*C139,3,4,1) -> 0.004967411028
A140: 1906-01-06T19:00:00 | B140: 13.7 | C140: 44.625 | D140: 101640 | E140: 5.2625 | F140: 280 | G140: 0 | H140: =psych(D140,B140,0.01*C140,3,4,1) -> 0.004311032292
A141: 1906-01-06T20:00:00 | B141: 12.0875 | C141: 45.75 | D141: 101640 | E141: 3.7875 | F141: 280 | G141: 0 | H141: =psych(D141,B141,0.01*C141,3,4,1) -> 0.003974710321
A142: 1906-01-06T21:00:00 | B142: 12.175 | C142: 56.75 | D142: 101665 | E142: 3.6 | F142: 298.75 | G142: 0 | H142: =psych(D142,B142,0.01*C142,3,4,1) -> 0.004965507229
A143: 1906-01-06T22:00:00 | B143: 13.1375 | C143: 60.75 | D143: 101698.75 | E143: 3.6 | F143: 310 | G143: 0 | H143: =psych(D143,B143,0.01*C143,3,4,1) -> 0.005666402193
A144: 1906-01-06T23:00:00 | B144: 13.0875 | C144: 43.125 | D144: 101728.75 | E144: 4.5375 | F144: 153.75 | G144: 0 | H144: =psych(D144,B144,0.01*C144,3,4,1) -> 0.003997480827
A145: 1906-01-06 | B145: 12.15 | C145: 32.375 | D145: 101740 | E145: 5.1 | F145: 60 | G145: 0 | H145: =psych(D145,B145,0.01*C145,3,4,1) -> 0.002816312707
A146: 1906-01-07T01:00:00 | B146: 10.8875 | C146: 37 | D146: 101740 | E146: 3.85 | F146: 35 | G146: 0 | H146: =psych(D146,B146,0.01*C146,3,4,1) -> 0.002961275055
A147: 1906-01-07T02:00:00 | B147: 9.9 | C147: 30 | D147: 101765 | E147: 4.0375 | F147: 13.75 | G147: 0 | H147: =psych(D147,B147,0.01*C147,3,4,1) -> 0.002244654713
A148: 1906-01-07T03:00:00 | B148: 9.1 | C148: 22.75 | D148: 101780 | E148: 3.35 | F148: 172.5 | G148: 0 | H148: =psych(D148,B148,0.01*C148,3,4,1) -> 0.001611142147
A149: 1906-01-07T04:00:00 | B149: 6.1125 | C149: 35.125 | D149: 101755 | E149: 2.6 | F149: 145 | G149: 0 | H149: =psych(D149,B149,0.01*C149,3,4,1) -> 0.002030282892
A150: 1906-01-07T05:00:00 | B150: 4.9375 | C150: 43.625 | D150: 101740 | E150: 2.2875 | F150: 70 | G150: 0 | H150: =psych(D150,B150,0.01*C150,3,4,1) -> 0.002325445062
A151: 1906-01-07T06:00:00 | B151: 4.7625 | C151: 43.375 | D151: 101765 | E151: 1.725 | F151: 120 | G151: 0 | H151: =psych(D151,B151,0.01*C151,3,4,1) -> 0.002283321778
A152: 1906-01-07T07:00:00 | B152: 5.8125 | C152: 39.875 | D152: 101817.5 | E152: 2.1875 | F152: 125 | G152: 0 | H152: =psych(D152,B152,0.01*C152,3,4,1) -> 0.002256917274
A153: 1906-01-07T08:00:00 | B153: 7.1 | C153: 36.75 | D153: 101865 | E153: 2.9125 | F153: 185 | G153: 0 | H153: =psych(D153,B153,0.01*C153,3,4,1) -> 0.002272070528
A154: 1906-01-07T09:00:00 | B154: 9.65 | C154: 34.125 | D154: 101961.25 | E154: 3.725 | F154: 236.25 | G154: 0 | H154: =psych(D154,B154,0.01*C154,3,4,1) -> 0.002507029048
A155: 1906-01-07T10:00:00 | B155: 13.75 | C155: 29.25 | D155: 102053.75 | E155: 4.4125 | F155: 221.25 | G155: 0 | H155: =psych(D155,B155,0.01*C155,3,4,1) -> 0.002816694245
A156: 1906-01-07T11:00:00 | B156: 15.9 | C156: 27 | D156: 102061.25 | E156: 4.2875 | F156: 222.5 | G156: 0 | H156: =psych(D156,B156,0.01*C156,3,4,1) -> 0.002987327421
A157: 1906-01-07T12:00:00 | B157: 17.5125 | C157: 25.125 | D157: 101987.5 | E157: 3.1625 | F157: 236.25 | G157: 0 | H157: =psych(D157,B157,0.01*C157,3,4,1) -> 0.003082540579
A158: 1906-01-07T13:00:00 | B158: 18.7375 | C158: 23.375 | D158: 101862.5 | E158: 2.6 | F158: 177.5 | G158: 0 | H158: =psych(D158,B158,0.01*C158,3,4,1) -> 0.003101254003
A159: 1906-01-07T14:00:00 | B159: 19 | C159: 23 | D159: 101810 | E159: 2.9125 | F159: 183.75 | G159: 0 | H159: =psych(D159,B159,0.01*C159,3,4,1) -> 0.003103579976
A160: 1906-01-07T15:00:00 | B160: 18.125 | C160: 24.25 | D160: 101810 | E160: 4.725 | F160: 228.75 | G160: 0 | H160: =psych(D160,B160,0.01*C160,3,4,1) -> 0.003097704479
A161: 1906-01-07T16:00:00 | B161: 16.725 | C161: 28.125 | D161: 101828.75 | E161: 5.325 | F161: 246.25 | G161: 0 | H161: =psych(D161,B161,0.01*C161,3,4,1) -> 0.003288900997
A162: 1906-01-07T17:00:00 | B162: 14.7625 | C162: 38.75 | D162: 101865 | E162: 5.1 | F162: 250 | G162: 0 | H162: =psych(D162,B162,0.01*C162,3,4,1) -> 0.003999412429
A163: 1906-01-07T18:00:00 | B163: 13.4 | C163: 49.625 | D163: 101923.75 | E163: 4.7875 | F163: 250 | G163: 0 | H163: =psych(D163,B163,0.01*C163,3,4,1) -> 0.004691040091
A164: 1906-01-07T19:00:00 | B164: 13.6 | C164: 47.375 | D164: 101968.75 | E164: 3.975 | F164: 231.25 | G164: 0 | H164: =psych(D164,B164,0.01*C164,3,4,1) -> 0.004533958898
A165: 1906-01-07T20:00:00 | B165: 13.4 | C165: 29.625 | D165: 102023.75 | E165: 3.6 | F165: 195 | G165: 0 | H165: =psych(D165,B165,0.01*C165,3,4,1) -> 0.002789209192
A166: 1906-01-07T21:00:00 | B166: 12.225 | C166: 21.625 | D166: 102093.75 | E166: 2.6625 | F166: 155 | G166: 0 | H166: =psych(D166,B166,0.01*C166,3,4,1) -> 0.001881109047
A167: 1906-01-07T22:00:00 | B167: 11.7 | C167: 23.875 | D167: 102138.75 | E167: 1.725 | F167: 133.75 | G167: 0 | H167: =psych(D167,B167,0.01*C167,3,4,1) -> 0.002005657129
A168: 1906-01-07T23:00:00 | B168: 11.2625 | C168: 27.5 | D168: 102150 | E168: 1.5 | F168: 117.5 | G168: 0 | H168: =psych(D168,B168,0.01*C168,3,4,1) -> 0.002244830297
A169: 1906-01-07 | B169: 10.0625 | C169: 36.5 | D169: 102150 | E169: 1.5 | F169: 110 | G169: 0 | H169: =psych(D169,B169,0.01*C169,3,4,1) -> 0.002752729746
A170: 1906-01-08T01:00:00 | B170: 8.375 | C170: 44.125 | D170: 102168.75 | E170: 1.5 | F170: 122.5 | G170: 0 | H170: =psych(D170,B170,0.01*C170,3,4,1) -> 0.002970420743
A171: 1906-01-08T02:00:00 | B171: 6.95 | C171: 46.625 | D171: 102205 | E171: 1.5 | F171: 67.5 | G171: 0 | H171: =psych(D171,B171,0.01*C171,3,4,1) -> 0.002846201558
A172: 1906-01-08T03:00:00 | B172: 6.0625 | C172: 49.5 | D172: 102220 | E172: 1.875 | F172: 30 | G172: 0 | H172: =psych(D172,B172,0.01*C172,3,4,1) -> 0.002842030188
A173: 1906-01-08T04:00:00 | B173: 4.8625 | C173: 50.375 | D173: 102220 | E173: 1.725 | F173: 173.75 | G173: 0 | H173: =psych(D173,B173,0.01*C173,3,4,1) -> 0.002660117374
A174: 1906-01-08T05:00:00 | B174: 4.7375 | C174: 47.5 | D174: 102195 | E174: 1.5 | F174: 272.5 | G174: 0 | H174: =psych(D174,B174,0.01*C174,3,4,1) -> 0.002486408804
A175: 1906-01-08T06:00:00 | B175: 5 | C175: 46 | D175: 102161.25 | E175: 1.5 | F175: 242.5 | G175: 0 | H175: =psych(D175,B175,0.01*C175,3,4,1) -> 0.00245310618
A176: 1906-01-08T07:00:00 | B176: 5 | C176: 46 | D176: 102168.75 | E176: 1.5 | F176: 157.5 | G176: 0 | H176: =psych(D176,B176,0.01*C176,3,4,1) -> 0.002452925392
A177: 1906-01-08T08:00:00 | B177: 4.0625 | C177: 53.5 | D177: 102205 | E177: 2.8125 | F177: 120 | G177: 0 | H177: =psych(D177,B177,0.01*C177,3,4,1) -> 0.002671617868
A178: 1906-01-08T09:00:00 | B178: 6.75 | C178: 49.875 | D178: 102282.5 | E178: 2.6625 | F178: 113.75 | G178: 0 | H178: =psych(D178,B178,0.01*C178,3,4,1) -> 0.00300151424
A179: 1906-01-08T10:00:00 | B179: 12.3875 | C179: 36.25 | D179: 102338.75 | E179: 2.725 | F179: 116.25 | G179: 0 | H179: =psych(D179,B179,0.01*C179,3,4,1) -> 0.003186214765
A180: 1906-01-08T11:00:00 | B180: 15.6 | C180: 30.375 | D180: 102287.5 | E180: 2.7875 | F180: 120 | G180: 0 | H180: =psych(D180,B180,0.01*C180,3,4,1) -> 0.003291114231
A181: 1906-01-08T12:00:00 | B181: 17.075 | C181: 25.625 | D181: 102168.75 | E181: 1.9125 | F181: 70 | G181: 0 | H181: =psych(D181,B181,0.01*C181,3,4,1) -> 0.003052497123
A182: 1906-01-08T13:00:00 | B182: 18.5375 | C182: 26.125 | D182: 102076.25 | E182: 2.1875 | F182: 127.5 | G182: 0 | H182: =psych(D182,B182,0.01*C182,3,4,1) -> 0.003417542148
A183: 1906-01-08T14:00:00 | B183: 18.1625 | C183: 31.75 | D183: 102006.25 | E183: 4.1625 | F183: 211.25 | G183: 0 | H183: =psych(D183,B183,0.01*C183,3,4,1) -> 0.004063775969
A184: 1906-01-08T15:00:00 | B184: 17.6 | C184: 34.625 | D184: 101980 | E184: 4.475 | F184: 236.25 | G184: 0 | H184: =psych(D184,B184,0.01*C184,3,4,1) -> 0.004280107583
A185: 1906-01-08T16:00:00 | B185: 17.1 | C185: 40 | D185: 101980 | E185: 3.475 | F185: 240 | G185: 0 | H185: =psych(D185,B185,0.01*C185,3,4,1) -> 0.004794586488
A186: 1906-01-08T17:00:00 | B186: 14.9875 | C186: 45.5 | D186: 101980 | E186: 2.7875 | F186: 258.75 | G186: 0 | H186: =psych(D186,B186,0.01*C186,3,4,1) -> 0.004765145419
A187: 1906-01-08T18:00:00 | B187: 13.4 | C187: 47 | D187: 101998.75 | E187: 1.9125 | F187: 276.25 | G187: 0 | H187: =psych(D187,B187,0.01*C187,3,4,1) -> 0.004437838756
A188: 1906-01-08T19:00:00 | B188: 12.725 | C188: 48.875 | D188: 102010 | E188: 1.5 | F188: 123.75 | G188: 0 | H188: =psych(D188,B188,0.01*C188,3,4,1) -> 0.004414963263
A189: 1906-01-08T20:00:00 | B189: 12.5 | C189: 48.125 | D189: 101991.25 | E189: 1.875 | F189: 217.5 | G189: 0 | H189: =psych(D189,B189,0.01*C189,3,4,1) -> 0.004283384572
A190: 1906-01-08T21:00:00 | B190: 12.5 | C190: 43.25 | D190: 101998.75 | E190: 1.725 | F190: 180 | G190: 0 | H190: =psych(D190,B190,0.01*C190,3,4,1) -> 0.003846515095
A191: 1906-01-08T22:00:00 | B191: 10.125 | C191: 50.375 | D191: 102053.75 | E191: 2.5 | F191: 108.75 | G191: 0 | H191: =psych(D191,B191,0.01*C191,3,4,1) -> 0.003825227982
A192: 1906-01-08T23:00:00 | B192: 7.7 | C192: 51 | D192: 102061.25 | E192: 2.475 | F192: 88.75 | G192: 0 | H192: =psych(D192,B192,0.01*C192,3,4,1) -> 0.003284184346
A193: 1906-01-08 | B193: 7.475 | C193: 45.5 | D193: 102050 | E193: 1.725 | F193: 70 | G193: 0 | H193: =psych(D193,B193,0.01*C193,3,4,1) -> 0.002883792672
A194: 1906-01-09T01:00:00 | B194: 8.2 | C194: 47.125 | D194: 102050 | E194: 2.5 | F194: 113.75 | G194: 0 | H194: =psych(D194,B194,0.01*C194,3,4,1) -> 0.003139387624
A195: 1906-01-09T02:00:00 | B195: 7.875 | C195: 45.875 | D195: 102050 | E195: 2.475 | F195: 96.25 | G195: 0 | H195: =psych(D195,B195,0.01*C195,3,4,1) -> 0.002988537962
A196: 1906-01-09T03:00:00 | B196: 5.6875 | C196: 49.625 | D196: 102050 | E196: 1.725 | F196: 63.75 | G196: 0 | H196: =psych(D196,B196,0.01*C196,3,4,1) -> 0.002780518379
A197: 1906-01-09T04:00:00 | B197: 5.1 | C197: 47.375 | D197: 102006.25 | E197: 1.875 | F197: 85 | G197: 0 | H197: =psych(D197,B197,0.01*C197,3,4,1) -> 0.002548361702
A198: 1906-01-09T05:00:00 | B198: 4.525 | C198: 45.875 | D198: 101998.75 | E198: 2.4125 | F198: 106.25 | G198: 0 | H198: =psych(D198,B198,0.01*C198,3,4,1) -> 0.002370026533
A199: 1906-01-09T06:00:00 | B199: 5.3125 | C199: 42 | D199: 102053.75 | E199: 2.2875 | F199: 66.25 | G199: 0 | H199: =psych(D199,B199,0.01*C199,3,4,1) -> 0.00229089693
A200: 1906-01-09T07:00:00 | B200: 6.1 | C200: 35.25 | D200: 102142.5 | E200: 2.1 | F200: 71.25 | G200: 0 | H200: =psych(D200,B200,0.01*C200,3,4,1) -> 0.002028017967
... 4300 more rows

Sheet CZ7
A1: Date | B1: TdbºC | C1: RH% | D1: P Pa | E1: Wind m/s | F1: Windº | G1: Rain mm/hr | H1: W
A2: 1906-01-01T01:00:00 | B2: 12.425 | C2: 18.375 | D2: 101703.75 | E2: 3.925 | F2: 147.375 | G2: 0 | H2: =psych(D2,B2,0.01*C2,3,4,1) -> 0.001625107885
A3: 1906-01-01T02:00:00 | B3: 13.35 | C3: 15.625 | D3: 101686.25 | E3: 4.725 | F3: 25.625 | G3: 0 | H3: =psych(D3,B3,0.01*C3,3,4,1) -> 0.001468067416
A4: 1906-01-01T03:00:00 | B4: 12.9375 | C4: 17.25 | D4: 101635 | E4: 4.7375 | F4: 19.25 | G4: 0 | H4: =psych(D4,B4,0.01*C4,3,4,1) -> 0.001578715453
A5: 1906-01-01T04:00:00 | B5: 11.725 | C5: 19.25 | D5: 101626.25 | E5: 4.575 | F5: 12.625 | G5: 0 | H5: =psych(D5,B5,0.01*C5,3,4,1) -> 0.001626981622
A6: 1906-01-01T05:00:00 | B6: 10.075 | C6: 20 | D6: 101648.75 | E6: 4.1875 | F6: 24.375 | G6: 0 | H6: =psych(D6,B6,0.01*C6,3,4,1) -> 0.00151404437
A7: 1906-01-01T06:00:00 | B7: 9.275 | C7: 20 | D7: 101666.25 | E7: 3.625 | F7: 48 | G7: 0 | H7: =psych(D7,B7,0.01*C7,3,4,1) -> 0.001434399466
A8: 1906-01-01T07:00:00 | B8: 8.8875 | C8: 20.625 | D8: 101676.25 | E8: 3.2125 | F8: 71.375 | G8: 0 | H8: =psych(D8,B8,0.01*C8,3,4,1) -> 0.001440913007
A9: 1906-01-01T08:00:00 | B9: 10.2 | C9: 19.125 | D9: 101686.25 | E9: 3.85 | F9: 61.25 | G9: 0 | H9: =psych(D9,B9,0.01*C9,3,4,1) -> 0.001459301093
A10: 1906-01-01T09:00:00 | B10: 12.475 | C10: 17.375 | D10: 101696.25 | E10: 5.05 | F10: 31.25 | G10: 0 | H10: =psych(D10,B10,0.01*C10,3,4,1) -> 0.001541630889
A11: 1906-01-01T10:00:00 | B11: 14.8 | C11: 15.75 | D11: 101706.25 | E11: 6.25 | F11: 226.25 | G11: 0 | H11: =psych(D11,B11,0.01*C11,3,4,1) -> 0.001625860183
A12: 1906-01-01T11:00:00 | B12: 16.5125 | C12: 14.375 | D12: 101647.5 | E12: 6.7 | F12: 350 | G12: 0 | H12: =psych(D12,B12,0.01*C12,3,4,1) -> 0.001657052047
A13: 1906-01-01T12:00:00 | B13: 17.875 | C13: 13.375 | D13: 101541.25 | E13: 6.7 | F13: 350 | G13: 0 | H13: =psych(D13,B13,0.01*C13,3,4,1) -> 0.001682499857
A14: 1906-01-01T13:00:00 | B14: 19.15 | C14: 12.375 | D14: 101437.5 | E14: 6.7 | F14: 350 | G14: 0 | H14: =psych(D14,B14,0.01*C14,3,4,1) -> 0.00168791982
A15: 1906-01-01T14:00:00 | B15: 19.6 | C15: 12 | D15: 101412.5 | E15: 6.575 | F15: 133.125 | G15: 0 | H15: =psych(D15,B15,0.01*C15,3,4,1) -> 0.001683668205
A16: 1906-01-01T15:00:00 | B16: 19.6 | C16: 12 | D16: 101438.75 | E16: 6.4375 | F16: 11.75 | G16: 0 | H16: =psych(D16,B16,0.01*C16,3,4,1) -> 0.001683231331
A17: 1906-01-01T16:00:00 | B17: 19.6 | C17: 12 | D17: 101462.5 | E17: 6.275 | F17: 25.125 | G17: 0 | H17: =psych(D17,B17,0.01*C17,3,4,1) -> 0.00168283626
A18: 1906-01-01T17:00:00 | B18: 18.2875 | C18: 12.625 | D18: 101507.5 | E18: 5.575 | F18: 21.875 | G18: 0 | H18: =psych(D18,B18,0.01*C18,3,4,1) -> 0.001630286539
A19: 1906-01-01T18:00:00 | B19: 16.3125 | C19: 14.25 | D19: 101561.25 | E19: 4.5125 | F19: 8.25 | G19: 0 | H19: =psych(D19,B19,0.01*C19,3,4,1) -> 0.001623139183
A20: 1906-01-01T19:00:00 | B20: 14.2875 | C20: 16.25 | D20: 101617.5 | E20: 3.475 | F20: 219.875 | G20: 0 | H20: =psych(D20,B20,0.01*C20,3,4,1) -> 0.001624232043
A21: 1906-01-01T20:00:00 | B21: 13.125 | C21: 18.25 | D21: 101652.5 | E21: 2.9125 | F21: 350 | G21: 0 | H21: =psych(D21,B21,0.01*C21,3,4,1) -> 0.001690858025
A22: 1906-01-01T21:00:00 | B22: 12.65 | C22: 19.625 | D22: 101678.75 | E22: 2.55 | F22: 350 | G22: 0 | H22: =psych(D22,B22,0.01*C22,3,4,1) -> 0.001762313723
A23: 1906-01-01T22:00:00 | B23: 12.125 | C23: 21.25 | D23: 101702.5 | E23: 2.2125 | F23: 350 | G23: 0 | H23: =psych(D23,B23,0.01*C23,3,4,1) -> 0.001843308751
A24: 1906-01-01T23:00:00 | B24: 11.7125 | C24: 22.625 | D24: 101697.5 | E24: 2.2875 | F24: 348.125 | G24: 0 | H24: =psych(D24,B24,0.01*C24,3,4,1) -> 0.00191018101
A25: 1906-01-01 | B25: 11.4125 | C25: 23.625 | D25: 101671.25 | E25: 2.65 | F25: 344.5 | G25: 0 | H25: =psych(D25,B25,0.01*C25,3,4,1) -> 0.001956051664
A26: 1906-01-02T01:00:00 | B26: 10.925 | C26: 24.625 | D26: 101647.5 | E26: 2.9875 | F26: 341.125 | G26: 0 | H26: =psych(D26,B26,0.01*C26,3,4,1) -> 0.001974446089
A27: 1906-01-02T02:00:00 | B27: 9.8875 | C27: 26.875 | D27: 101640 | E27: 2.475 | F27: 344.375 | G27: 0 | H27: =psych(D27,B27,0.01*C27,3,4,1) -> 0.002010869266
A28: 1906-01-02T03:00:00 | B28: 8.15 | C28: 29.25 | D28: 101640 | E28: 1.4125 | F28: 350.75 | G28: 0 | H28: =psych(D28,B28,0.01*C28,3,4,1) -> 0.001946084742
A29: 1906-01-02T04:00:00 | B29: 6.0875 | C29: 31.875 | D29: 101640 | E29: 0.375 | F29: 132.375 | G29: 0 | H29: =psych(D29,B29,0.01*C29,3,4,1) -> 0.001840768078
A30: 1906-01-02T05:00:00 | B30: 4.925 | C30: 33 | D30: 101652.5 | E30: 0 | F30: 0 | G30: 0 | H30: =psych(D30,B30,0.01*C30,3,4,1) -> 0.001757454667
A31: 1906-01-02T06:00:00 | B31: 4.3875 | C31: 33 | D31: 101678.75 | E31: 0 | F31: 0 | G31: 0 | H31: =psych(D31,B31,0.01*C31,3,4,1) -> 0.001692001431
A32: 1906-01-02T07:00:00 | B32: 3.825 | C32: 32.375 | D32: 101702.5 | E32: 0 | F32: 0 | G32: 0 | H32: =psych(D32,B32,0.01*C32,3,4,1) -> 0.001595020321
A33: 1906-01-02T08:00:00 | B33: 5.975 | C33: 32 | D33: 101735 | E33: 0.3125 | F33: 31.25 | G33: 0 | H33: =psych(D33,B33,0.01*C33,3,4,1) -> 0.001831925166
A34: 1906-01-02T09:00:00 | B34: 9.775 | C34: 32 | D34: 101781.25 | E34: 0.8125 | F34: 81.25 | G34: 0 | H34: =psych(D34,B34,0.01*C34,3,4,1) -> 0.002374418815
A35: 1906-01-02T10:00:00 | B35: 13.5125 | C35: 31.375 | D35: 101825 | E35: 1.3125 | F35: 131.25 | G35: 0 | H35: =psych(D35,B35,0.01*C35,3,4,1) -> 0.002982446422
A36: 1906-01-02T11:00:00 | B36: 16.2125 | C36: 27.875 | D36: 101790 | E36: 2.125 | F36: 164.375 | G36: 0 | H36: =psych(D36,B36,0.01*C36,3,4,1) -> 0.003155550506
A37: 1906-01-02T12:00:00 | B37: 18.25 | C37: 23.5 | D37: 101716.25 | E37: 3.1875 | F37: 188 | G37: 0 | H37: =psych(D37,B37,0.01*C37,3,4,1) -> 0.003028015408
A38: 1906-01-02T13:00:00 | B38: 20.3125 | C38: 19.5 | D38: 101640 | E38: 4.225 | F38: 211.375 | G38: 0 | H38: =psych(D38,B38,0.01*C38,3,4,1) -> 0.002858434283
A39: 1906-01-02T14:00:00 | B39: 20.725 | C39: 23 | D39: 101603.75 | E39: 4.4125 | F39: 221.875 | G39: 0 | H39: =psych(D39,B39,0.01*C39,3,4,1) -> 0.003462972841
A40: 1906-01-02T15:00:00 | B40: 20.1875 | C40: 32.25 | D40: 101587.5 | E40: 4.05 | F40: 225.5 | G40: 0 | H40: =psych(D40,B40,0.01*C40,3,4,1) -> 0.004707329658
A41: 1906-01-02T16:00:00 | B41: 19.625 | C41: 44.125 | D41: 101573.75 | E41: 3.7125 | F41: 228.875 | G41: 0 | H41: =psych(D41,B41,0.01*C41,3,4,1) -> 0.006235956429
A42: 1906-01-02T17:00:00 | B42: 18.5875 | C42: 49.625 | D42: 101595 | E42: 3.1625 | F42: 244.375 | G42: 0 | H42: =psych(D42,B42,0.01*C42,3,4,1) -> 0.006575948423
A43: 1906-01-02T18:00:00 | B43: 17.4125 | C43: 51.25 | D43: 101628.75 | E43: 2.4625 | F43: 268 | G43: 0 | H43: =psych(D43,B43,0.01*C43,3,4,1) -> 0.006302528337
A44: 1906-01-02T19:00:00 | B44: 16.1875 | C44: 53.25 | D44: 101665 | E44: 1.7625 | F44: 291.375 | G44: 0 | H44: =psych(D44,B44,0.01*C44,3,4,1) -> 0.006053822065
A45: 1906-01-02T20:00:00 | B45: 15.2 | C45: 54.625 | D45: 101692.5 | E45: 1.75 | F45: 335.625 | G45: 0 | H45: =psych(D45,B45,0.01*C45,3,4,1) -> 0.005825803667
A46: 1906-01-02T21:00:00 | B46: 14.3375 | C46: 56.25 | D46: 101712.5 | E46: 2.0875 | F46: 167 | G46: 0 | H46: =psych(D46,B46,0.01*C46,3,4,1) -> 0.005671882842
A47: 1906-01-02T22:00:00 | B47: 13.5 | C47: 58.25 | D47: 101732.5 | E47: 2.45 | F47: 88.625 | G47: 0 | H47: =psych(D47,B47,0.01*C47,3,4,1) -> 0.005560497268
A48: 1906-01-02T23:00:00 | B48: 12.7625 | C48: 60.25 | D48: 101721.25 | E48: 2.7875 | F48: 111.875 | G48: 0 | H48: =psych(D48,B48,0.01*C48,3,4,1) -> 0.005480678796
A49: 1906-01-02 | B49: 12.25 | C49: 61.625 | D49: 101685 | E49: 3.15 | F49: 115.5 | G49: 0 | H49: =psych(D49,B49,0.01*C49,3,4,1) -> 0.005421624098
A50: 1906-01-03T01:00:00 | B50: 12.1625 | C50: 63.25 | D50: 101651.25 | E50: 3.4875 | F50: 118.875 | G50: 0 | H50: =psych(D50,B50,0.01*C50,3,4,1) -> 0.005535465596
A51: 1906-01-03T02:00:00 | B51: 12.575 | C51: 62.75 | D51: 101633.75 | E51: 3.7875 | F51: 136.875 | G51: 0 | H51: =psych(D51,B51,0.01*C51,3,4,1) -> 0.005644647006
A52: 1906-01-03T03:00:00 | B52: 13.55 | C52: 61.375 | D52: 101623.75 | E52: 4.15 | F52: 163.25 | G52: 0 | H52: =psych(D52,B52,0.01*C52,3,4,1) -> 0.005887278734
A53: 1906-01-03T04:00:00 | B53: 14.75 | C53: 60.375 | D53: 101613.75 | E53: 4.4875 | F53: 189.875 | G53: 0 | H53: =psych(D53,B53,0.01*C53,3,4,1) -> 0.006264297189
A54: 1906-01-03T05:00:00 | B54: 15.2 | C54: 61.875 | D54: 101616.25 | E54: 4.4125 | F54: 200 | G54: 0 | H54: =psych(D54,B54,0.01*C54,3,4,1) -> 0.006612246885
A55: 1906-01-03T06:00:00 | B55: 15.2 | C55: 64.875 | D55: 101626.25 | E55: 4.05 | F55: 200 | G55: 0 | H55: =psych(D55,B55,0.01*C55,3,4,1) -> 0.006935725831
A56: 1906-01-03T07:00:00 | B56: 15.2 | C56: 68.5 | D56: 101636.25 | E56: 3.7125 | F56: 200 | G56: 0 | H56: =psych(D56,B56,0.01*C56,3,4,1) -> 0.007327107579
A57: 1906-01-03T08:00:00 | B57: 15.575 | C57: 68.75 | D57: 101658.75 | E57: 3.9125 | F57: 208.125 | G57: 0 | H57: =psych(D57,B57,0.01*C57,3,4,1) -> 0.007533869211
A58: 1906-01-03T09:00:00 | B58: 16.1125 | C58: 66.75 | D58: 101695 | E58: 4.4125 | F58: 221.75 | G58: 0 | H58: =psych(D58,B58,0.01*C58,3,4,1) -> 0.007568334078
A59: 1906-01-03T10:00:00 | B59: 16.675 | C59: 65.375 | D59: 101728.75 | E59: 4.9125 | F59: 235.125 | G59: 0 | H59: =psych(D59,B59,0.01*C59,3,4,1) -> 0.007681695915
A60: 1906-01-03T11:00:00 | B60: 17.2125 | C60: 61.875 | D60: 101683.75 | E60: 5.85 | F60: 248.125 | G60: 0 | H60: =psych(D60,B60,0.01*C60,3,4,1) -> 0.007524037801
A61: 1906-01-03T12:00:00 | B61: 17.65 | C61: 57.5 | D61: 101593.75 | E61: 7.1125 | F61: 261.75 | G61: 0 | H61: =psych(D61,B61,0.01*C61,3,4,1) -> 0.00719059005
A62: 1906-01-03T13:00:00 | B62: 18.175 | C62: 53.5 | D62: 101503.75 | E62: 8.35 | F62: 275.125 | G62: 0 | H62: =psych(D62,B62,0.01*C62,3,4,1) -> 0.006918330812
A63: 1906-01-03T14:00:00 | B63: 17.4625 | C63: 56.375 | D63: 101470 | E63: 8.05 | F63: 278.125 | G63: 0 | H63: =psych(D63,B63,0.01*C63,3,4,1) -> 0.006973033465
A64: 1906-01-03T15:00:00 | B64: 15.8375 | C64: 64.625 | D64: 101470 | E64: 6.7875 | F64: 274.5 | G64: 0 | H64: =psych(D64,B64,0.01*C64,3,4,1) -> 0.007211609401
A65: 1906-01-03T16:00:00 | B65: 14.2625 | C65: 73.625 | D65: 101470 | E65: 5.55 | F65: 271.125 | G65: 1.5 | H65: =psych(D65,B65,0.01*C65,3,4,1) -> 0.007426251016
A66: 1906-01-03T17:00:00 | B66: 13.7 | C66: 72.625 | D66: 101463.75 | E66: 4.975 | F66: 276.25 | G66: 0 | H66: =psych(D66,B66,0.01*C66,3,4,1) -> 0.00705901868
A67: 1906-01-03T18:00:00 | B67: 13.7 | C67: 65.625 | D67: 101453.75 | E67: 4.8375 | F67: 286.25 | G67: 0 | H67: =psych(D67,B67,0.01*C67,3,4,1) -> 0.006372295813
A68: 1906-01-03T19:00:00 | B68: 13.7 | C68: 59.25 | D68: 101443.75 | E68: 4.675 | F68: 296.25 | G68: 0 | H68: =psych(D68,B68,0.01*C68,3,4,1) -> 0.005748124374
A69: 1906-01-03T20:00:00 | B69: 13.7 | C69: 56.375 | D69: 101446.25 | E69: 4.4125 | F69: 300 | G69: 0 | H69: =psych(D69,B69,0.01*C69,3,4,1) -> 0.005466619559
A70: 1906-01-03T21:00:00 | B70: 13.7 | C70: 56 | D70: 101456.25 | E70: 4.05 | F70: 300 | G70: 0 | H70: =psych(D70,B70,0.01*C70,3,4,1) -> 0.00542939891
A71: 1906-01-03T22:00:00 | B71: 13.7 | C71: 55.375 | D71: 101466.25 | E71: 3.7125 | F71: 300 | G71: 0 | H71: =psych(D71,B71,0.01*C71,3,4,1) -> 0.005367746302
A72: 1906-01-03T23:00:00 | B72: 13.7 | C72: 56.25 | D72: 101463.75 | E72: 3.4125 | F72: 291.875 | G72: 0 | H72: =psych(D72,B72,0.01*C72,3,4,1) -> 0.00545344316
A73: 1906-01-03 | B73: 13.6375 | C73: 58.25 | D73: 101453.75 | E73: 3.05 | F73: 278.25 | G73: 0 | H73: =psych(D73,B73,0.01*C73,3,4,1) -> 0.005626525484
A74: 1906-01-04T01:00:00 | B74: 13.475 | C74: 60.25 | D74: 101443.75 | E74: 2.7125 | F74: 264.875 | G74: 1.5 | H74: =psych(D74,B74,0.01*C74,3,4,1) -> 0.005760229295
A75: 1906-01-04T02:00:00 | B75: 13.2125 | C75: 62.875 | D75: 101427.5 | E75: 2.6 | F75: 268.125 | G75: 0 | H75: =psych(D75,B75,0.01*C75,3,4,1) -> 0.005911485339
A76: 1906-01-04T03:00:00 | B76: 12.7875 | C76: 65.25 | D76: 101401.25 | E76: 2.6 | F76: 281.75 | G76: 0 | H76: =psych(D76,B76,0.01*C76,3,4,1) -> 0.005968640211
A77: 1906-01-04T04:00:00 | B77: 12.225 | C77: 67.875 | D77: 101377.5 | E77: 2.6 | F77: 295.125 | G77: 0 | H77: =psych(D77,B77,0.01*C77,3,4,1) -> 0.005985120334
A78: 1906-01-04T05:00:00 | B78: 11.625 | C78: 70.875 | D78: 101376.25 | E78: 2.6 | F78: 331.25 | G78: 0 | H78: =psych(D78,B78,0.01*C78,3,4,1) -> 0.006007355474
A79: 1906-01-04T06:00:00 | B79: 11.025 | C79: 74.5 | D79: 101386.25 | E79: 2.6 | F79: 156.25 | G79: 0 | H79: =psych(D79,B79,0.01*C79,3,4,1) -> 0.006068346905
A80: 1906-01-04T07:00:00 | B80: 10.3625 | C80: 78.5 | D80: 101396.25 | E80: 2.6 | F80: 71.25 | G80: 0 | H80: =psych(D80,B80,0.01*C80,3,4,1) -> 0.006117928188
A81: 1906-01-04T08:00:00 | B81: 10.975 | C81: 76.875 | D81: 101425 | E81: 2.9125 | F81: 98.125 | G81: 0 | H81: =psych(D81,B81,0.01*C81,3,4,1) -> 0.006240349065
A82: 1906-01-04T09:00:00 | B82: 12.5 | C82: 72.5 | D82: 101458.75 | E82: 3.4125 | F82: 111.75 | G82: 0 | H82: =psych(D82,B82,0.01*C82,3,4,1) -> 0.006509819785
A83: 1906-01-04T10:00:00 | B83: 13.975 | C83: 68.5 | D83: 101495 | E83: 3.9125 | F83: 125.125 | G83: 0 | H83: =psych(D83,B83,0.01*C83,3,4,1) -> 0.00677297935
A84: 1906-01-04T11:00:00 | B84: 14.3125 | C84: 66.375 | D84: 101466.25 | E84: 4.1 | F84: 146.875 | G84: 0 | H84: =psych(D84,B84,0.01*C84,3,4,1) -> 0.006709285012
A85: 1906-01-04T12:00:00 | B85: 14.075 | C85: 65.375 | D85: 101396.25 | E85: 4.1 | F85: 173.25 | G85: 0 | H85: =psych(D85,B85,0.01*C85,3,4,1) -> 0.00650968862
A86: 1906-01-04T13:00:00 | B86: 13.8125 | C86: 64.375 | D86: 101326.25 | E86: 4.1 | F86: 199.875 | G86: 1.5 | H86: =psych(D86,B86,0.01*C86,3,4,1) -> 0.006304059816
A87: 1906-01-04T14:00:00 | B87: 13.7 | C87: 62.75 | D87: 101306.25 | E87: 4.1 | F87: 210 | G87: 0 | H87: =psych(D87,B87,0.01*C87,3,4,1) -> 0.006099349435
A88: 1906-01-04T15:00:00 | B88: 13.7 | C88: 61.375 | D88: 101322.5 | E88: 4.1 | F88: 210 | G88: 0 | H88: =psych(D88,B88,0.01*C88,3,4,1) -> 0.00596345098
A89: 1906-01-04T16:00:00 | B89: 13.7 | C89: 59.75 | D89: 101336.25 | E89: 4.1 | F89: 210 | G89: 1.5 | H89: =psych(D89,B89,0.01*C89,3,4,1) -> 0.005803290928
A90: 1906-01-04T17:00:00 | B90: 12.6375 | C90: 62.125 | D90: 101390 | E90: 3.7875 | F90: 243.125 | G90: 0 | H90: =psych(D90,B90,0.01*C90,3,4,1) -> 0.005624706326
A91: 1906-01-04T18:00:00 | B91: 10.8125 | C91: 67.125 | D91: 101463.75 | E91: 3.2875 | F91: 296.75 | G91: 0 | H91: =psych(D91,B91,0.01*C91,3,4,1) -> 0.005380873444
A92: 1906-01-04T19:00:00 | B92: 9.0375 | C92: 72.125 | D92: 101540 | E92: 2.7875 | F92: 125.125 | G92: 0 | H92: =psych(D92,B92,0.01*C92,3,4,1) -> 0.005127116952
A93: 1906-01-04T20:00:00 | B93: 8.025 | C93: 75.25 | D93: 101595 | E93: 2.475 | F93: 226.875 | G93: 0 | H93: =psych(D93,B93,0.01*C93,3,4,1) -> 0.004990632611
A94: 1906-01-04T21:00:00 | B94: 7.55 | C94: 76.625 | D94: 101628.75 | E94: 2.3375 | F94: 348.25 | G94: 0 | H94: =psych(D94,B94,0.01*C94,3,4,1) -> 0.004917642617
A95: 1906-01-04T22:00:00 | B95: 6.9625 | C95: 78.25 | D95: 101665 | E95: 2.175 | F95: 334.875 | G95: 0 | H95: =psych(D95,B95,0.01*C95,3,4,1) -> 0.004821423238
A96: 1906-01-04T23:00:00 | B96: 6.2 | C96: 78.375 | D96: 101705 | E96: 2.225 | F96: 330 | G96: 0 | H96: =psych(D96,B96,0.01*C96,3,4,1) -> 0.004578537621
A97: 1906-01-04 | B97: 5.275 | C97: 76.125 | D97: 101751.25 | E97: 2.3625 | F97: 330 | G97: 0 | H97: =psych(D97,B97,0.01*C97,3,4,1) -> 0.004166221102
A98: 1906-01-05T01:00:00 | B98: 4.4 | C98: 73.75 | D98: 101795 | E98: 2.525 | F98: 330 | G98: 0 | H98: =psych(D98,B98,0.01*C98,3,4,1) -> 0.003793094622
A99: 1906-01-05T02:00:00 | B99: 3.725 | C99: 72.375 | D99: 101810 | E99: 2.6 | F99: 334.375 | G99: 0 | H99: =psych(D99,B99,0.01*C99,3,4,1) -> 0.003548012513
A100: 1906-01-05T03:00:00 | B100: 3.4375 | C100: 72 | D100: 101810 | E100: 2.6 | F100: 340.75 | G100: 0 | H100: =psych(D100,B100,0.01*C100,3,4,1) -> 0.003458262156
A101: 1906-01-05T04:00:00 | B101: 3.2125 | C101: 71.375 | D101: 101810 | E101: 2.6 | F101: 347.375 | G101: 0 | H101: =psych(D101,B101,0.01*C101,3,4,1) -> 0.003373685218
A102: 1906-01-05T05:00:00 | B102: 3.1 | C102: 69.75 | D102: 101822.5 | E102: 2.475 | F102: 131.25 | G102: 0 | H102: =psych(D102,B102,0.01*C102,3,4,1) -> 0.003269778212
A103: 1906-01-05T06:00:00 | B103: 3.1 | C103: 67.75 | D103: 101848.75 | E103: 2.3375 | F103: 6.25 | G103: 0 | H103: =psych(D103,B103,0.01*C103,3,4,1) -> 0.003174719824
A104: 1906-01-05T07:00:00 | B104: 3.1 | C104: 65.75 | D104: 101872.5 | E104: 2.175 | F104: 16.25 | G104: 0 | H104: =psych(D104,B104,0.01*C104,3,4,1) -> 0.003079815253
A105: 1906-01-05T08:00:00 | B105: 4.7875 | C105: 59.375 | D105: 101923.75 | E105: 2.1 | F105: 46.875 | G105: 0 | H105: =psych(D105,B105,0.01*C105,3,4,1) -> 0.00313041428
A106: 1906-01-05T09:00:00 | B106: 7.425 | C106: 50.375 | D106: 101987.5 | E106: 2.1 | F106: 90.5 | G106: 0 | H106: =psych(D106,B106,0.01*C106,3,4,1) -> 0.003185359602
A107: 1906-01-05T10:00:00 | B107: 10.15 | C107: 42.625 | D107: 102053.75 | E107: 2.1 | F107: 133.875 | G107: 0 | H107: =psych(D107,B107,0.01*C107,3,4,1) -> 0.003239114894
A108: 1906-01-05T11:00:00 | B108: 12.5125 | C108: 38.125 | D108: 102030 | E108: 2.5375 | F108: 114.375 | G108: 0 | H108: =psych(D108,B108,0.01*C108,3,4,1) -> 0.00338998497
A109: 1906-01-05T12:00:00 | B109: 14.4875 | C109: 35.125 | D109: 101950 | E109: 3.175 | F109: 58 | G109: 0 | H109: =psych(D109,B109,0.01*C109,3,4,1) -> 0.003555956631
A110: 1906-01-05T13:00:00 | B110: 16.575 | C110: 32.125 | D110: 101870 | E110: 3.8375 | F110: 226.375 | G110: 0 | H110: =psych(D110,B110,0.01*C110,3,4,1) -> 0.003722070787
A111: 1906-01-05T14:00:00 | B111: 17.15 | C111: 31.625 | D111: 101815 | E111: 4.1 | F111: 331.875 | G111: 0 | H111: =psych(D111,B111,0.01*C111,3,4,1) -> 0.003802880561
A112: 1906-01-05T15:00:00 | B112: 16.9375 | C112: 32.625 | D112: 101768.75 | E112: 4.1 | F112: 318.25 | G112: 0 | H112: =psych(D112,B112,0.01*C112,3,4,1) -> 0.003872836845
A113: 1906-01-05T16:00:00 | B113: 16.65 | C113: 33.625 | D113: 101725 | E113: 4.1 | F113: 304.875 | G113: 0 | H113: =psych(D113,B113,0.01*C113,3,4,1) -> 0.003921318303
A114: 1906-01-05T17:00:00 | B114: 15.625 | C114: 35.25 | D114: 101716.25 | E114: 3.7875 | F114: 312.5 | G114: 0 | H114: =psych(D114,B114,0.01*C114,3,4,1) -> 0.003850367446
A115: 1906-01-05T18:00:00 | B115: 14.1 | C115: 37.875 | D115: 101726.25 | E115: 3.2875 | F115: 332.5 | G115: 0 | H115: =psych(D115,B115,0.01*C115,3,4,1) -> 0.003748713187
A116: 1906-01-05T19:00:00 | B116: 12.5625 | C116: 40.25 | D116: 101736.25 | E116: 2.7875 | F116: 127.5 | G116: 0 | H116: =psych(D116,B116,0.01*C116,3,4,1) -> 0.00360229477
A117: 1906-01-05T20:00:00 | B117: 11.3125 | C117: 42.875 | D117: 101746.25 | E117: 2.0375 | F117: 0 | G117: 0 | H117: =psych(D117,B117,0.01*C117,3,4,1) -> 0.003532726966
A118: 1906-01-05T21:00:00 | B118: 10.0875 | C118: 45.875 | D118: 101762.5 | E118: 1.2 | F118: 0 | G118: 0 | H118: =psych(D118,B118,0.01*C118,3,4,1) -> 0.003482824831
A119: 1906-01-05T22:00:00 | B119: 8.85 | C119: 49.5 | D119: 101776.25 | E119: 0.3375 | F119: 0 | G119: 0 | H119: =psych(D119,B119,0.01*C119,3,4,1) -> 0.00345719099
A120: 1906-01-05T23:00:00 | B120: 7.8375 | C120: 49.125 | D120: 101761.25 | E120: 0.3125 | F120: 1.875 | G120: 0 | H120: =psych(D120,B120,0.01*C120,3,4,1) -> 0.003202243224
A121: 1906-01-05 | B121: 7.0625 | C121: 46.125 | D121: 101725 | E121: 0.8125 | F121: 5.5 | G121: 0 | H121: =psych(D121,B121,0.01*C121,3,4,1) -> 0.002850911389
A122: 1906-01-06T01:00:00 | B122: 6.3625 | C122: 43.75 | D122: 101691.25 | E122: 1.3125 | F122: 8.875 | G122: 0 | H122: =psych(D122,B122,0.01*C122,3,4,1) -> 0.002576721864
A123: 1906-01-06T02:00:00 | B123: 5.6625 | C123: 42.375 | D123: 101655 | E123: 1.5 | F123: 216.25 | G123: 0 | H123: =psych(D123,B123,0.01*C123,3,4,1) -> 0.00237785916
A124: 1906-01-06T03:00:00 | B124: 4.9 | C124: 41.375 | D124: 101621.25 | E124: 1.5 | F124: 321.25 | G124: 0 | H124: =psych(D124,B124,0.01*C124,3,4,1) -> 0.00220187825
A125: 1906-01-06T04:00:00 | B125: 3.975 | C125: 39.75 | D125: 101585 | E125: 1.5 | F125: 291.25 | G125: 0 | H125: =psych(D125,B125,0.01*C125,3,4,1) -> 0.00198266593
A126: 1906-01-06T05:00:00 | B126: 3.4125 | C126: 39.625 | D126: 101576.25 | E126: 1.625 | F126: 246.875 | G126: 0 | H126: =psych(D126,B126,0.01*C126,3,4,1) -> 0.001899513009
A127: 1906-01-06T06:00:00 | B127: 3.175 | C127: 40 | D127: 101592.5 | E127: 1.825 | F127: 193.25 | G127: 0 | H127: =psych(D127,B127,0.01*C127,3,4,1) -> 0.001885209711
A128: 1906-01-06T07:00:00 | B128: 2.9125 | C128: 40 | D128: 101606.25 | E128: 2.025 | F128: 139.875 | G128: 0 | H128: =psych(D128,B128,0.01*C128,3,4,1) -> 0.001850113507
A129: 1906-01-06T08:00:00 | B129: 4.55 | C129: 38.75 | D129: 101635 | E129: 2.2875 | F129: 153.125 | G129: 0 | H129: =psych(D129,B129,0.01*C129,3,4,1) -> 0.002011458007
A130: 1906-01-06T09:00:00 | B130: 7.225 | C130: 36.75 | D130: 101681.25 | E130: 2.65 | F130: 206.75 | G130: 0 | H130: =psych(D130,B130,0.01*C130,3,4,1) -> 0.002295848029
A131: 1906-01-06T10:00:00 | B131: 9.8875 | C131: 34.125 | D131: 101725 | E131: 2.9875 | F131: 260.125 | G131: 0 | H131: =psych(D131,B131,0.01*C131,3,4,1) -> 0.002553421028
A132: 1906-01-06T11:00:00 | B132: 12.4625 | C132: 31.125 | D132: 101690 | E132: 3.1 | F132: 278.125 | G132: 0 | H132: =psych(D132,B132,0.01*C132,3,4,1) -> 0.002764943154
A133: 1906-01-06T12:00:00 | B133: 14.775 | C133: 28.75 | D133: 101616.25 | E133: 3.1 | F133: 274.5 | G133: 0 | H133: =psych(D133,B133,0.01*C133,3,4,1) -> 0.00297208405
A134: 1906-01-06T13:00:00 | B134: 17.1625 | C134: 26.125 | D134: 101540 | E134: 3.1 | F134: 271.125 | G134: 0 | H134: =psych(D134,B134,0.01*C134,3,4,1) -> 0.00314921967
A135: 1906-01-06T14:00:00 | B135: 17.9125 | C135: 28.75 | D135: 101503.75 | E135: 3.4125 | F135: 278.125 | G135: 0 | H135: =psych(D135,B135,0.01*C135,3,4,1) -> 0.003637847082
A136: 1906-01-06T15:00:00 | B136: 17.55 | C136: 34.75 | D136: 101487.5 | E136: 3.9125 | F136: 291.75 | G136: 0 | H136: =psych(D136,B136,0.01*C136,3,4,1) -> 0.004302960709
A137: 1906-01-06T16:00:00 | B137: 17.2125 | C137: 41.375 | D137: 101473.75 | E137: 4.4125 | F137: 305.125 | G137: 0 | H137: =psych(D137,B137,0.01*C137,3,4,1) -> 0.005021595582
A138: 1906-01-06T17:00:00 | B138: 16.1625 | C138: 46.5 | D138: 101482.5 | E138: 3.975 | F138: 320.625 | G138: 0 | H138: =psych(D138,B138,0.01*C138,3,4,1) -> 0.005280994434
A139: 1906-01-06T18:00:00 | B139: 14.725 | C139: 49.875 | D139: 101508.75 | E139: 2.9125 | F139: 337 | G139: 0 | H139: =psych(D139,B139,0.01*C139,3,4,1) -> 0.00516278821
A140: 1906-01-06T19:00:00 | B140: 13.2625 | C140: 53.5 | D140: 101532.5 | E140: 1.875 | F140: 128.625 | G140: 0 | H140: =psych(D140,B140,0.01*C140,3,4,1) -> 0.005034239345
A141: 1906-01-06T20:00:00 | B141: 12.075 | C141: 55.625 | D141: 101571.25 | E141: 1.625 | F141: 26.875 | G141: 0 | H141: =psych(D141,B141,0.01*C141,3,4,1) -> 0.004838597243
A142: 1906-01-06T21:00:00 | B142: 11.2 | C142: 56.625 | D142: 101615 | E142: 1.825 | F142: 70.5 | G142: 0 | H142: =psych(D142,B142,0.01*C142,3,4,1) -> 0.004645212066
A143: 1906-01-06T22:00:00 | B143: 10.3375 | C143: 57.625 | D143: 101661.25 | E143: 2.025 | F143: 113.875 | G143: 0 | H143: =psych(D143,B143,0.01*C143,3,4,1) -> 0.004460040941
A144: 1906-01-06T23:00:00 | B144: 9.5 | C144: 57.375 | D144: 101692.5 | E144: 2.225 | F144: 128.125 | G144: 0 | H144: =psych(D144,B144,0.01*C144,3,4,1) -> 0.004195161102
A145: 1906-01-06 | B145: 8.95 | C145: 55.75 | D145: 101712.5 | E145: 2.3625 | F145: 124.5 | G145: 0 | H145: =psych(D145,B145,0.01*C145,3,4,1) -> 0.003925505671
A146: 1906-01-07T01:00:00 | B146: 8.6125 | C146: 53.75 | D146: 101732.5 | E146: 2.525 | F146: 121.125 | G146: 0 | H146: =psych(D146,B146,0.01*C146,3,4,1) -> 0.003697166733
A147: 1906-01-07T02:00:00 | B147: 8.375 | C147: 53 | D147: 101752.5 | E147: 2.35 | F147: 138.75 | G147: 0 | H147: =psych(D147,B147,0.01*C147,3,4,1) -> 0.003585995002
A148: 1906-01-07T03:00:00 | B148: 8.1125 | C148: 52.375 | D148: 101778.75 | E148: 2.0125 | F148: 168.75 | G148: 0 | H148: =psych(D148,B148,0.01*C148,3,4,1) -> 0.003479573375
A149: 1906-01-07T04:00:00 | B149: 7.75 | C149: 50.75 | D149: 101802.5 | E149: 1.65 | F149: 198.75 | G149: 0 | H149: =psych(D149,B149,0.01*C149,3,4,1) -> 0.003287606095
A150: 1906-01-07T05:00:00 | B150: 7.225 | C150: 50.625 | D150: 101822.5 | E150: 1.5 | F150: 191.25 | G150: 0 | H150: =psych(D150,B150,0.01*C150,3,4,1) -> 0.003162645711
A151: 1906-01-07T06:00:00 | B151: 6.75 | C151: 51 | D151: 101848.75 | E151: 1.5 | F151: 161.25 | G151: 0 | H151: =psych(D151,B151,0.01*C151,3,4,1) -> 0.003082688987
A152: 1906-01-07T07:00:00 | B152: 6.225 | C152: 51 | D152: 101872.5 | E152: 1.5 | F152: 131.25 | G152: 0 | H152: =psych(D152,B152,0.01*C152,3,4,1) -> 0.002971936744
A153: 1906-01-07T08:00:00 | B153: 7.25 | C153: 51.625 | D153: 101905 | E153: 1.625 | F153: 121.875 | G153: 0 | H153: =psych(D153,B153,0.01*C153,3,4,1) -> 0.003228369069
A154: 1906-01-07T09:00:00 | B154: 9.1875 | C154: 52.625 | D154: 101951.25 | E154: 1.825 | F154: 125.5 | G154: 0 | H154: =psych(D154,B154,0.01*C154,3,4,1) -> 0.003755508771
A155: 1906-01-07T10:00:00 | B155: 11.15 | C155: 53 | D155: 101995 | E155: 2.025 | F155: 128.875 | G155: 0 | H155: =psych(D155,B155,0.01*C155,3,4,1) -> 0.004315010844
A156: 1906-01-07T11:00:00 | B156: 12.9625 | C156: 51.125 | D156: 101985 | E156: 2.4125 | F156: 144.375 | G156: 0 | H156: =psych(D156,B156,0.01*C156,3,4,1) -> 0.004693857612
A157: 1906-01-07T12:00:00 | B157: 14.6 | C157: 48.125 | D157: 101938.75 | E157: 2.9125 | F157: 168 | G157: 0 | H157: =psych(D157,B157,0.01*C157,3,4,1) -> 0.004918830495
A158: 1906-01-07T13:00:00 | B158: 16.2625 | C158: 45.125 | D158: 101895 | E158: 3.4125 | F158: 191.375 | G158: 0 | H158: =psych(D158,B158,0.01*C158,3,4,1) -> 0.005135563462
A159: 1906-01-07T14:00:00 | B159: 16.9 | C159: 45.25 | D159: 101880 | E159: 3.6 | F159: 204.375 | G159: 0 | H159: =psych(D159,B159,0.01*C159,3,4,1) -> 0.005365673063
A160: 1906-01-07T15:00:00 | B160: 16.9 | C160: 47.25 | D160: 101880 | E160: 3.6 | F160: 210.75 | G160: 0 | H160: =psych(D160,B160,0.01*C160,3,4,1) -> 0.00560496702
A161: 1906-01-07T16:00:00 | B161: 16.9 | C161: 49.25 | D161: 101880 | E161: 3.6 | F161: 217.375 | G161: 0 | H161: =psych(D161,B161,0.01*C161,3,4,1) -> 0.005844443599
A162: 1906-01-07T17:00:00 | B162: 16.2125 | C162: 51.25 | D162: 101892.5 | E162: 3.1625 | F162: 249.375 | G162: 0 | H162: =psych(D162,B162,0.01*C162,3,4,1) -> 0.005820556708
A163: 1906-01-07T18:00:00 | B163: 15.05 | C163: 53.875 | D163: 101918.75 | E163: 2.4625 | F163: 295.75 | G163: 0 | H163: =psych(D163,B163,0.01*C163,3,4,1) -> 0.005676648066
A164: 1906-01-07T19:00:00 | B164: 13.975 | C164: 56.25 | D164: 101942.5 | E164: 1.7625 | F164: 117.375 | G164: 0 | H164: =psych(D164,B164,0.01*C164,3,4,1) -> 0.005526359721
A165: 1906-01-07T20:00:00 | B165: 12.9125 | C165: 58.875 | D165: 101956.25 | E165: 1.625 | F165: 223.125 | G165: 0 | H165: =psych(D165,B165,0.01*C165,3,4,1) -> 0.005395285329
A166: 1906-01-07T21:00:00 | B166: 11.75 | C166: 61.875 | D166: 101966.25 | E166: 1.825 | F166: 354.5 | G166: 0 | H166: =psych(D166,B166,0.01*C166,3,4,1) -> 0.005251104447
A167: 1906-01-07T22:00:00 | B167: 10.6125 | C167: 64.875 | D167: 101976.25 | E167: 2.025 | F167: 351.125 | G167: 0 | H167: =psych(D167,B167,0.01*C167,3,4,1) -> 0.005103630188
A168: 1906-01-07T23:00:00 | B168: 9.7625 | C168: 66 | D168: 101973.75 | E168: 1.975 | F168: 137.5 | G168: 0 | H168: =psych(D168,B168,0.01*C168,3,4,1) -> 0.004903679289
A169: 1906-01-07 | B169: 9.3125 | C169: 66 | D169: 101963.75 | E169: 1.775 | F169: 22.5 | G169: 0 | H169: =psych(D169,B169,0.01*C169,3,4,1) -> 0.004756864508
A170: 1906-01-08T01:00:00 | B170: 9.1375 | C170: 66 | D170: 101953.75 | E170: 1.575 | F170: 42.5 | G170: 0 | H170: =psych(D170,B170,0.01*C170,3,4,1) -> 0.004701117999
A171: 1906-01-08T02:00:00 | B171: 9.1 | C171: 65.375 | D171: 101925 | E171: 1.5 | F171: 76.875 | G171: 0 | H171: =psych(D171,B171,0.01*C171,3,4,1) -> 0.004645732222
A172: 1906-01-08T03:00:00 | B172: 9.1 | C172: 64.375 | D172: 101891.25 | E172: 1.5 | F172: 120.5 | G172: 0 | H172: =psych(D172,B172,0.01*C172,3,4,1) -> 0.004575673054
A173: 1906-01-08T04:00:00 | B173: 9.1 | C173: 63.375 | D173: 101855 | E173: 1.5 | F173: 163.875 | G173: 0 | H173: =psych(D173,B173,0.01*C173,3,4,1) -> 0.004505694528
A174: 1906-01-08T05:00:00 | B174: 8.725 | C174: 63.625 | D174: 101846.25 | E174: 1.5 | F174: 169.375 | G174: 0 | H174: =psych(D174,B174,0.01*C174,3,4,1) -> 0.004409973107
A175: 1906-01-08T06:00:00 | B175: 8.1875 | C175: 64 | D175: 101862.5 | E175: 1.5 | F175: 153 | G175: 0 | H175: =psych(D175,B175,0.01*C175,3,4,1) -> 0.004275548601
A176: 1906-01-08T07:00:00 | B176: 7.6875 | C176: 64.625 | D176: 101876.25 | E176: 1.5 | F176: 136.375 | G176: 0 | H176: =psych(D176,B176,0.01*C176,3,4,1) -> 0.00417149014
A177: 1906-01-08T08:00:00 | B177: 8.625 | C177: 62.5 | D177: 101905 | E177: 1.5 | F177: 134.375 | G177: 0 | H177: =psych(D177,B177,0.01*C177,3,4,1) -> 0.004299524863
A178: 1906-01-08T09:00:00 | B178: 10.4875 | C178: 58.5 | D178: 101951.25 | E178: 1.5 | F178: 140.75 | G178: 0 | H178: =psych(D178,B178,0.01*C178,3,4,1) -> 0.004561072589
A179: 1906-01-08T10:00:00 | B179: 12.3875 | C179: 54.5 | D179: 101995 | E179: 1.5 | F179: 147.375 | G179: 0 | H179: =psych(D179,B179,0.01*C179,3,4,1) -> 0.004819007064
A180: 1906-01-08T11:00:00 | B180: 14.1 | C180: 52.375 | D180: 101941.25 | E180: 2.375 | F180: 181.25 | G180: 0 | H180: =psych(D180,B180,0.01*C180,3,4,1) -> 0.00518480327
A181: 1906-01-08T12:00:00 | B181: 15.7625 | C181: 51.375 | D181: 101831.25 | E181: 3.775 | F181: 231.25 | G181: 0 | H181: =psych(D181,B181,0.01*C181,3,4,1) -> 0.00567140971
A182: 1906-01-08T13:00:00 | B182: 17.4 | C182: 50.375 | D182: 101721.25 | E182: 5.175 | F182: 281.25 | G182: 0 | H182: =psych(D182,B182,0.01*C182,3,4,1) -> 0.00618322871
A183: 1906-01-08T14:00:00 | B183: 17.8125 | C183: 51.25 | D183: 101686.25 | E183: 5.575 | F183: 301.875 | G183: 0 | H183: =psych(D183,B183,0.01*C183,3,4,1) -> 0.006461613538
A184: 1906-01-08T15:00:00 | B184: 17.575 | C184: 53.25 | D184: 101696.25 | E184: 5.375 | F184: 305.5 | G184: 0 | H184: =psych(D184,B184,0.01*C184,3,4,1) -> 0.006614933192
A185: 1906-01-08T16:00:00 | B185: 17.3125 | C185: 55.25 | D185: 101706.25 | E185: 5.175 | F185: 308.875 | G185: 0 | H185: =psych(D185,B185,0.01*C185,3,4,1) -> 0.006751285065
A186: 1906-01-08T17:00:00 | B186: 16.825 | C186: 57.25 | D186: 101716.25 | E186: 4.475 | F186: 322.5 | G186: 0 | H186: =psych(D186,B186,0.01*C186,3,4,1) -> 0.00678253536
A187: 1906-01-08T18:00:00 | B187: 16.35 | C187: 59.25 | D187: 101726.25 | E187: 3.475 | F187: 342.5 | G187: 0 | H187: =psych(D187,B187,0.01*C187,3,4,1) -> 0.006810197653
A188: 1906-01-08T19:00:00 | B188: 15.825 | C188: 61.25 | D188: 101736.25 | E188: 2.475 | F188: 137.5 | G188: 0 | H188: =psych(D188,B188,0.01*C188,3,4,1) -> 0.006807272492
A189: 1906-01-08T20:00:00 | B189: 15.4125 | C189: 62.625 | D189: 101746.25 | E189: 2.1 | F189: 3.75 | G189: 0 | H189: =psych(D189,B189,0.01*C189,3,4,1) -> 0.006777504551
A190: 1906-01-08T21:00:00 | B190: 15.1125 | C190: 63.625 | D190: 101762.5 | E190: 2.1 | F190: 218.75 | G190: 0 | H190: =psych(D190,B190,0.01*C190,3,4,1) -> 0.006752892658
A191: 1906-01-08T22:00:00 | B191: 14.8125 | C191: 64.625 | D191: 101776.25 | E191: 2.1 | F191: 343.75 | G191: 0 | H191: =psych(D191,B191,0.01*C191,3,4,1) -> 0.006726549473
A192: 1906-01-08T23:00:00 | B192: 14.45 | C192: 65 | D192: 101773.75 | E192: 2.1 | F192: 144.375 | G192: 0 | H192: =psych(D192,B192,0.01*C192,3,4,1) -> 0.006607930142
A193: 1906-01-08 | B193: 13.9875 | C193: 65.625 | D193: 101757.5 | E193: 2.1 | F193: 55.75 | G193: 0 | H193: =psych(D193,B193,0.01*C193,3,4,1) -> 0.006474148974
A194: 1906-01-09T01:00:00 | B194: 13.4875 | C194: 66.625 | D194: 101743.75 | E194: 2.1 | F194: 102.375 | G194: 0 | H194: =psych(D194,B194,0.01*C194,3,4,1) -> 0.006362203959
A195: 1906-01-09T02:00:00 | B195: 13.05 | C195: 67 | D195: 101721.25 | E195: 2.225 | F195: 118.125 | G195: 0 | H195: =psych(D195,B195,0.01*C195,3,4,1) -> 0.006217801937
A196: 1906-01-09T03:00:00 | B196: 12.7125 | C196: 67.625 | D196: 101685 | E196: 2.3625 | F196: 114.5 | G196: 0 | H196: =psych(D196,B196,0.01*C196,3,4,1) -> 0.006140049886
A197: 1906-01-09T04:00:00 | B197: 12.4125 | C197: 68.625 | D197: 101651.25 | E197: 2.525 | F197: 111.125 | G197: 0 | H197: =psych(D197,B197,0.01*C197,3,4,1) -> 0.006111074911
A198: 1906-01-09T05:00:00 | B198: 12.4875 | C198: 70.25 | D198: 101640 | E198: 2.9125 | F198: 111.875 | G198: 0 | H198: =psych(D198,B198,0.01*C198,3,4,1) -> 0.006289165853
A199: 1906-01-09T06:00:00 | B199: 12.7875 | C199: 72.25 | D199: 101640 | E199: 3.4125 | F199: 115.5 | G199: 0 | H199: =psych(D199,B199,0.01*C199,3,4,1) -> 0.006600059697
A200: 1906-01-09T07:00:00 | B200: 13.025 | C200: 73.625 | D200: 101640 | E200: 3.9125 | F200: 118.875 | G200: 1.5 | H200: =psych(D200,B200,0.01*C200,3,4,1) -> 0.00683360409
... 4300 more rows

Sheet CZ8
A1: Date | B1: TdbºC | C1: RH% | D1: P Pa | E1: Wind m/s | F1: Windº | G1: Rain mm/hr | H1: W
A2: 1906-01-01T01:00:00 | B2: 5.5125 | C2: 59.625 | D2: 100636.25 | E2: 1.9375 | F2: 50 | G2: 0 | H2: =psych(D2,B2,0.01*C2,3,4,1) -> 0.003349908209
A3: 1906-01-01T02:00:00 | B3: 4.5375 | C3: 68.25 | D3: 100538.75 | E3: 2.9125 | F3: 80 | G3: 0 | H3: =psych(D3,B3,0.01*C3,3,4,1) -> 0.003587295125
A4: 1906-01-01T03:00:00 | B4: 4.1375 | C4: 66 | D4: 100562.5 | E4: 2.7375 | F4: 73.75 | G4: 0 | H4: =psych(D4,B4,0.01*C4,3,4,1) -> 0.00337112563
A5: 1906-01-01T04:00:00 | B5: 4.2875 | C5: 62.25 | D5: 100576.25 | E5: 2.825 | F5: 57.5 | G5: 0 | H5: =psych(D5,B5,0.01*C5,3,4,1) -> 0.003211980215
A6: 1906-01-01T05:00:00 | B6: 4.9625 | C6: 57.5 | D6: 100586.25 | E6: 3.15 | F6: 56.25 | G6: 0 | H6: =psych(D6,B6,0.01*C6,3,4,1) -> 0.003109526298
A7: 1906-01-01T06:00:00 | B7: 4.1125 | C7: 56.625 | D7: 100652.5 | E7: 3.175 | F7: 47.5 | G7: 0 | H7: =psych(D7,B7,0.01*C7,3,4,1) -> 0.002882362052
A8: 1906-01-01T07:00:00 | B8: 3.025 | C8: 60.125 | D8: 100715 | E8: 2.475 | F8: 33.75 | G8: 0 | H8: =psych(D8,B8,0.01*C8,3,4,1) -> 0.002832482602
A9: 1906-01-01T08:00:00 | B9: 4.925 | C9: 57 | D9: 100792.5 | E9: 3.0375 | F9: 48.75 | G9: 0 | H9: =psych(D9,B9,0.01*C9,3,4,1) -> 0.00306793671
A10: 1906-01-01T09:00:00 | B10: 8.7 | C10: 51.5 | D10: 100873.75 | E10: 1.6625 | F10: 91.25 | G10: 0 | H10: =psych(D10,B10,0.01*C10,3,4,1) -> 0.003593193781
A11: 1906-01-01T10:00:00 | B11: 11.8875 | C11: 43.75 | D11: 100937.5 | E11: 0.1875 | F11: 41.25 | G11: 0 | H11: =psych(D11,B11,0.01*C11,3,4,1) -> 0.003776055533
A12: 1906-01-01T11:00:00 | B12: 12.9 | C12: 37.5 | D12: 100960 | E12: 0.9375 | F12: 112.5 | G12: 0 | H12: =psych(D12,B12,0.01*C12,3,4,1) -> 0.003456844968
A13: 1906-01-01T12:00:00 | B13: 13.3375 | C13: 35.375 | D13: 100878.75 | E13: 1.1875 | F13: 236.25 | G13: 0 | H13: =psych(D13,B13,0.01*C13,3,4,1) -> 0.003357724833
A14: 1906-01-01T13:00:00 | B14: 14.85 | C14: 33.125 | D14: 100786.25 | E14: 0.6875 | F14: 263.75 | G14: 0 | H14: =psych(D14,B14,0.01*C14,3,4,1) -> 0.003472075323
A15: 1906-01-01T14:00:00 | B15: 14.725 | C15: 32 | D15: 100741.25 | E15: 1.8125 | F15: 266.25 | G15: 0 | H15: =psych(D15,B15,0.01*C15,3,4,1) -> 0.003327936509
A16: 1906-01-01T15:00:00 | B16: 14.2 | C16: 32 | D16: 100705 | E16: 3.225 | F16: 257.5 | G16: 0 | H16: =psych(D16,B16,0.01*C16,3,4,1) -> 0.003217424441
A17: 1906-01-01T16:00:00 | B17: 13.3875 | C17: 34.5 | D17: 100715 | E17: 3.2875 | F17: 268.75 | G17: 0 | H17: =psych(D17,B17,0.01*C17,3,4,1) -> 0.003290357647
A18: 1906-01-01T17:00:00 | B18: 11.65 | C18: 39.75 | D18: 100730 | E18: 3.1 | F18: 267.5 | G18: 0 | H18: =psych(D18,B18,0.01*C18,3,4,1) -> 0.003382233293
A19: 1906-01-01T18:00:00 | B19: 8.775 | C19: 50.125 | D19: 100748.75 | E19: 2.7875 | F19: 110 | G19: 0 | H19: =psych(D19,B19,0.01*C19,3,4,1) -> 0.003518999297
A20: 1906-01-01T19:00:00 | B20: 6.6875 | C20: 55.625 | D20: 100760 | E20: 1.9125 | F20: 32.5 | G20: 0 | H20: =psych(D20,B20,0.01*C20,3,4,1) -> 0.003385638265
A21: 1906-01-01T20:00:00 | B21: 5.3875 | C21: 59.125 | D21: 100760 | E21: 1.875 | F21: 77.5 | G21: 0 | H21: =psych(D21,B21,0.01*C21,3,4,1) -> 0.003288721435
A22: 1906-01-01T21:00:00 | B22: 4.4 | C22: 59.125 | D22: 100803.75 | E22: 2.1 | F22: 75 | G22: 0 | H22: =psych(D22,B22,0.01*C22,3,4,1) -> 0.003067245394
A23: 1906-01-01T22:00:00 | B23: 5.4125 | C23: 51.125 | D23: 100848.75 | E23: 1.4125 | F23: 60 | G23: 0 | H23: =psych(D23,B23,0.01*C23,3,4,1) -> 0.002844151842
A24: 1906-01-01T23:00:00 | B24: 6.7 | C24: 47.625 | D24: 100841.25 | E24: 1.6875 | F24: 60 | G24: 0 | H24: =psych(D24,B24,0.01*C24,3,4,1) -> 0.002896604362
A25: 1906-01-01 | B25: 6.5 | C25: 42.375 | D25: 100830 | E25: 0.7875 | F25: 22.5 | G25: 0 | H25: =psych(D25,B25,0.01*C25,3,4,1) -> 0.002540884856
A26: 1906-01-02T01:00:00 | B26: 5.325 | C26: 44.625 | D26: 100811.25 | E26: 1.3125 | F26: 62.5 | G26: 0 | H26: =psych(D26,B26,0.01*C26,3,4,1) -> 0.002466916961
A27: 1906-01-02T02:00:00 | B27: 4.2375 | C27: 44.875 | D27: 100800 | E27: 2.1 | F27: 75 | G27: 0 | H27: =psych(D27,B27,0.01*C27,3,4,1) -> 0.002298870939
A28: 1906-01-02T03:00:00 | B28: 3.9 | C28: 43 | D28: 100756.25 | E28: 1.4125 | F28: 72.5 | G28: 0 | H28: =psych(D28,B28,0.01*C28,3,4,1) -> 0.002151615763
A29: 1906-01-02T04:00:00 | B29: 3.4 | C29: 44.25 | D29: 100730 | E29: 1 | F29: 80 | G29: 0 | H29: =psych(D29,B29,0.01*C29,3,4,1) -> 0.002137972132
A30: 1906-01-02T05:00:00 | B30: 2.725 | C30: 45.625 | D30: 100730 | E30: 2 | F30: 73.75 | G30: 0 | H30: =psych(D30,B30,0.01*C30,3,4,1) -> 0.002101343597
A31: 1906-01-02T06:00:00 | B31: 2.875 | C31: 45.375 | D31: 100748.75 | E31: 2.2875 | F31: 57.5 | G31: 0 | H31: =psych(D31,B31,0.01*C31,3,4,1) -> 0.002111847379
A32: 1906-01-02T07:00:00 | B32: 2.2875 | C32: 46.875 | D32: 100760 | E32: 2.1 | F32: 68.75 | G32: 0 | H32: =psych(D32,B32,0.01*C32,3,4,1) -> 0.002092074405
A33: 1906-01-02T08:00:00 | B33: 4.8 | C33: 44.875 | D33: 100822.5 | E33: 2.725 | F33: 98.75 | G33: 0 | H33: =psych(D33,B33,0.01*C33,3,4,1) -> 0.002391034509
A34: 1906-01-02T09:00:00 | B34: 7.4125 | C34: 43.625 | D34: 100885 | E34: 2.1 | F34: 103.75 | G34: 0 | H34: =psych(D34,B34,0.01*C34,3,4,1) -> 0.002784513593
A35: 1906-01-02T10:00:00 | B35: 10.0875 | C35: 42.75 | D35: 100918.75 | E35: 1.1875 | F35: 106.25 | G35: 0 | H35: =psych(D35,B35,0.01*C35,3,4,1) -> 0.00327160522
A36: 1906-01-02T11:00:00 | B36: 13.0875 | C36: 35.125 | D36: 100886.25 | E36: 0.375 | F36: 41.25 | G36: 0 | H36: =psych(D36,B36,0.01*C36,3,4,1) -> 0.003279342842
A37: 1906-01-02T12:00:00 | B37: 14.975 | C37: 28.5 | D37: 100797.5 | E37: 0 | F37: 0 | G37: 0 | H37: =psych(D37,B37,0.01*C37,3,4,1) -> 0.003008891415
A38: 1906-01-02T13:00:00 | B38: 15.5 | C38: 27 | D38: 100716.25 | E38: 1.3125 | F38: 168.75 | G38: 0 | H38: =psych(D38,B38,0.01*C38,3,4,1) -> 0.002950474359
A39: 1906-01-02T14:00:00 | B39: 15.9375 | C39: 29.5 | D39: 100652.5 | E39: 0.7875 | F39: 101.25 | G39: 0 | H39: =psych(D39,B39,0.01*C39,3,4,1) -> 0.003319321985
A40: 1906-01-02T15:00:00 | B40: 16.2 | C40: 31 | D40: 100605 | E40: 1.3125 | F40: 175 | G40: 0 | H40: =psych(D40,B40,0.01*C40,3,4,1) -> 0.00355005557
A41: 1906-01-02T16:00:00 | B41: 14.8875 | C41: 31 | D41: 100590 | E41: 2.4125 | F41: 273.75 | G41: 0 | H41: =psych(D41,B41,0.01*C41,3,4,1) -> 0.003262464521
A42: 1906-01-02T17:00:00 | B42: 12.4125 | C42: 36 | D42: 100590 | E42: 1.6 | F42: 301.25 | G42: 0 | H42: =psych(D42,B42,0.01*C42,3,4,1) -> 0.003224744487
A43: 1906-01-02T18:00:00 | B43: 9.7125 | C43: 42.75 | D43: 100615 | E43: 1.6875 | F43: 151.25 | G43: 0 | H43: =psych(D43,B43,0.01*C43,3,4,1) -> 0.003199630641
A44: 1906-01-02T19:00:00 | B44: 7.3875 | C44: 48.125 | D44: 100605 | E44: 2.725 | F44: 56.25 | G44: 0 | H44: =psych(D44,B44,0.01*C44,3,4,1) -> 0.003076464148
A45: 1906-01-02T20:00:00 | B45: 5.35 | C45: 53.125 | D45: 100590 | E45: 1.7875 | F45: 66.25 | G45: 0 | H45: =psych(D45,B45,0.01*C45,3,4,1) -> 0.002950671836
A46: 1906-01-02T21:00:00 | B46: 5.475 | C46: 52.5 | D46: 100633.75 | E46: 1.6875 | F46: 51.25 | G46: 0 | H46: =psych(D46,B46,0.01*C46,3,4,1) -> 0.002940076107
A47: 1906-01-02T22:00:00 | B47: 5.5 | C47: 51 | D47: 100641.25 | E47: 1.4125 | F47: 83.75 | G47: 0 | H47: =psych(D47,B47,0.01*C47,3,4,1) -> 0.002860460744
A48: 1906-01-02T23:00:00 | B48: 4.6375 | C48: 51.625 | D48: 100630 | E48: 2 | F48: 78.75 | G48: 0 | H48: =psych(D48,B48,0.01*C48,3,4,1) -> 0.002726285869
A49: 1906-01-02 | B49: 3.9875 | C49: 52 | D49: 100586.25 | E49: 2.2875 | F49: 66.25 | G49: 0 | H49: =psych(D49,B49,0.01*C49,3,4,1) -> 0.0026244296
A50: 1906-01-03T01:00:00 | B50: 3.7375 | C50: 55.125 | D50: 100535 | E50: 1.4125 | F50: 82.5 | G50: 0 | H50: =psych(D50,B50,0.01*C50,3,4,1) -> 0.00273549778
A51: 1906-01-03T02:00:00 | B51: 4.0125 | C51: 55.75 | D51: 100520 | E51: 1 | F51: 83.75 | G51: 0 | H51: =psych(D51,B51,0.01*C51,3,4,1) -> 0.002821388578
A52: 1906-01-03T03:00:00 | B52: 4.6375 | C52: 51.875 | D52: 100520 | E52: 1 | F52: 73.75 | G52: 0 | H52: =psych(D52,B52,0.01*C52,3,4,1) -> 0.002742557504
A53: 1906-01-03T04:00:00 | B53: 4.9 | C53: 50 | D53: 100482.5 | E53: 1.3125 | F53: 88.75 | G53: 0 | H53: =psych(D53,B53,0.01*C53,3,4,1) -> 0.002693153367
A54: 1906-01-03T05:00:00 | B54: 4.9 | C54: 50 | D54: 100416.25 | E54: 1.875 | F54: 68.75 | G54: 0 | H54: =psych(D54,B54,0.01*C54,3,4,1) -> 0.002694937884
A55: 1906-01-03T06:00:00 | B55: 4.9 | C55: 50 | D55: 100433.75 | E55: 1.725 | F55: 50 | G55: 0 | H55: =psych(D55,B55,0.01*C55,3,4,1) -> 0.002694466272
A56: 1906-01-03T07:00:00 | B56: 4.9 | C56: 51.875 | D56: 100460 | E56: 1.875 | F56: 68.75 | G56: 0 | H56: =psych(D56,B56,0.01*C56,3,4,1) -> 0.002795229107
A57: 1906-01-03T08:00:00 | B57: 4.9 | C57: 54.25 | D57: 100478.75 | E57: 2.1 | F57: 67.5 | G57: 0 | H57: =psych(D57,B57,0.01*C57,3,4,1) -> 0.002923256868
A58: 1906-01-03T09:00:00 | B58: 7.3375 | C58: 54.375 | D58: 100508.75 | E58: 1.4125 | F58: 72.5 | G58: 0 | H58: =psych(D58,B58,0.01*C58,3,4,1) -> 0.003469630996
A59: 1906-01-03T10:00:00 | B59: 10.05 | C59: 55.25 | D59: 100545 | E59: 1 | F59: 155 | G59: 0 | H59: =psych(D59,B59,0.01*C59,3,4,1) -> 0.004239844217
A60: 1906-01-03T11:00:00 | B60: 11.9875 | C60: 54.125 | D60: 100560 | E60: 1.3125 | F60: 250 | G60: 0 | H60: =psych(D60,B60,0.01*C60,3,4,1) -> 0.004727270731
A61: 1906-01-03T12:00:00 | B61: 13.5125 | C61: 51.75 | D61: 100516.25 | E61: 0.875 | F61: 286.25 | G61: 0 | H61: =psych(D61,B61,0.01*C61,3,4,1) -> 0.004999386952
A62: 1906-01-03T13:00:00 | B62: 14 | C62: 48.5 | D62: 100490 | E62: 0.8125 | F62: 315 | G62: 0 | H62: =psych(D62,B62,0.01*C62,3,4,1) -> 0.004836350957
A63: 1906-01-03T14:00:00 | B63: 15.6875 | C63: 45.125 | D63: 100427.5 | E63: 0.375 | F63: 123.75 | G63: 0 | H63: =psych(D63,B63,0.01*C63,3,4,1) -> 0.00502168162
A64: 1906-01-03T15:00:00 | B64: 15.825 | C64: 44 | D64: 100390 | E64: 0 | F64: 0 | G64: 0 | H64: =psych(D64,B64,0.01*C64,3,4,1) -> 0.00494099096
A65: 1906-01-03T16:00:00 | B65: 14.1125 | C65: 48.375 | D65: 100390 | E65: 1.625 | F65: 168.75 | G65: 0 | H65: =psych(D65,B65,0.01*C65,3,4,1) -> 0.00486428263
A66: 1906-01-03T17:00:00 | B66: 12.5875 | C66: 54.125 | D66: 100327.5 | E66: 1.6 | F66: 288.75 | G66: 0 | H66: =psych(D66,B66,0.01*C66,3,4,1) -> 0.004930612836
A67: 1906-01-03T18:00:00 | B67: 10.85 | C67: 57.25 | D67: 100308.75 | E67: 0.375 | F67: 112.5 | G67: 0 | H67: =psych(D67,B67,0.01*C67,3,4,1) -> 0.004648283208
A68: 1906-01-03T19:00:00 | B68: 9.2875 | C68: 63 | D68: 100320 | E68: 0 | F68: 0 | G68: 0 | H68: =psych(D68,B68,0.01*C68,3,4,1) -> 0.004606167538
A69: 1906-01-03T20:00:00 | B69: 7.55 | C69: 70.375 | D69: 100320 | E69: 1.3125 | F69: 37.5 | G69: 0 | H69: =psych(D69,B69,0.01*C69,3,4,1) -> 0.004572935511
A70: 1906-01-03T21:00:00 | B70: 6.425 | C70: 73 | D70: 100338.75 | E70: 2.1 | F70: 53.75 | G70: 0 | H70: =psych(D70,B70,0.01*C70,3,4,1) -> 0.004388917683
A71: 1906-01-03T22:00:00 | B71: 6.2 | C71: 69.25 | D71: 100375 | E71: 2.1 | F71: 50 | G71: 0 | H71: =psych(D71,B71,0.01*C71,3,4,1) -> 0.004095916577
A72: 1906-01-03T23:00:00 | B72: 6.2625 | C72: 67 | D72: 100365 | E72: 2.1 | F72: 50 | G72: 0 | H72: =psych(D72,B72,0.01*C72,3,4,1) -> 0.003979633316
A73: 1906-01-03 | B73: 6.2375 | C73: 65.75 | D73: 100331.25 | E73: 0.7875 | F73: 18.75 | G73: 0 | H73: =psych(D73,B73,0.01*C73,3,4,1) -> 0.003899463261
A74: 1906-01-04T01:00:00 | B74: 6.075 | C74: 63.125 | D74: 100301.25 | E74: 0.9375 | F74: 50 | G74: 0 | H74: =psych(D74,B74,0.01*C74,3,4,1) -> 0.003701920089
A75: 1906-01-04T02:00:00 | B75: 5.6875 | C75: 57 | D75: 100290 | E75: 1.5 | F75: 73.75 | G75: 0 | H75: =psych(D75,B75,0.01*C75,3,4,1) -> 0.003252245151
A76: 1906-01-04T03:00:00 | B76: 5.125 | C76: 53.375 | D76: 100290 | E76: 1.5 | F76: 63.75 | G76: 0 | H76: =psych(D76,B76,0.01*C76,3,4,1) -> 0.002927107815
A77: 1906-01-04T04:00:00 | B77: 4.9 | C77: 53 | D77: 100290 | E77: 1.5 | F77: 60 | G77: 0 | H77: =psych(D77,B77,0.01*C77,3,4,1) -> 0.002860990542
A78: 1906-01-04T05:00:00 | B78: 4.4625 | C78: 54.25 | D78: 100265 | E78: 1.875 | F78: 60 | G78: 0 | H78: =psych(D78,B78,0.01*C78,3,4,1) -> 0.002840853977
A79: 1906-01-04T06:00:00 | B79: 4.2 | C79: 55 | D79: 100275 | E79: 2.1 | F79: 47.5 | G79: 0 | H79: =psych(D79,B79,0.01*C79,3,4,1) -> 0.002827255521
A80: 1906-01-04T07:00:00 | B80: 3.7625 | C80: 56.25 | D80: 100308.75 | E80: 2.1 | F80: 65 | G80: 0 | H80: =psych(D80,B80,0.01*C80,3,4,1) -> 0.002802854241
A81: 1906-01-04T08:00:00 | B81: 5.1875 | C81: 55.125 | D81: 100320 | E81: 1.4125 | F81: 98.75 | G81: 0 | H81: =psych(D81,B81,0.01*C81,3,4,1) -> 0.003035888403
A82: 1906-01-04T09:00:00 | B82: 7.825 | C82: 52.125 | D82: 100363.75 | E82: 1 | F82: 103.75 | G82: 0 | H82: =psych(D82,B82,0.01*C82,3,4,1) -> 0.003443506152
A83: 1906-01-04T10:00:00 | B83: 11.675 | C83: 47.25 | D83: 100390 | E83: 0.6875 | F83: 112.5 | G83: 0 | H83: =psych(D83,B83,0.01*C83,3,4,1) -> 0.004044962574
A84: 1906-01-04T11:00:00 | B84: 14.5875 | C84: 43.125 | D84: 100365 | E84: 0.5 | F84: 201.25 | G84: 0 | H84: =psych(D84,B84,0.01*C84,3,4,1) -> 0.004470082206
A85: 1906-01-04T12:00:00 | B85: 15.3 | C85: 48.875 | D85: 100350 | E85: 2.125 | F85: 293.75 | G85: 0 | H85: =psych(D85,B85,0.01*C85,3,4,1) -> 0.005312006972
A86: 1906-01-04T13:00:00 | B86: 15.7375 | C86: 49.875 | D86: 100312.5 | E86: 2.7875 | F86: 288.75 | G86: 0 | H86: =psych(D86,B86,0.01*C86,3,4,1) -> 0.005579423367
A87: 1906-01-04T14:00:00 | B87: 16.4375 | C87: 45.5 | D87: 100246.25 | E87: 2.9125 | F87: 270 | G87: 0 | H87: =psych(D87,B87,0.01*C87,3,4,1) -> 0.005324033439
A88: 1906-01-04T15:00:00 | B88: 16.2625 | C88: 42.75 | D88: 100220 | E88: 2.7875 | F88: 276.25 | G88: 0 | H88: =psych(D88,B88,0.01*C88,3,4,1) -> 0.004945082557
A89: 1906-01-04T16:00:00 | B89: 14.75 | C89: 45.125 | D89: 100220 | E89: 2.2875 | F89: 280 | G89: 0 | H89: =psych(D89,B89,0.01*C89,3,4,1) -> 0.004735571909
A90: 1906-01-04T17:00:00 | B90: 13.1875 | C90: 49.5 | D90: 100220 | E90: 0.7875 | F90: 105 | G90: 0 | H90: =psych(D90,B90,0.01*C90,3,4,1) -> 0.004693236947
A91: 1906-01-04T18:00:00 | B91: 11.8875 | C91: 56 | D91: 100238.75 | E91: 0.625 | F91: 6.25 | G91: 0 | H91: =psych(D91,B91,0.01*C91,3,4,1) -> 0.004875595753
A92: 1906-01-04T19:00:00 | B92: 10.5875 | C92: 61.5 | D92: 100293.75 | E92: 0.375 | F92: 3.75 | G92: 0 | H92: =psych(D92,B92,0.01*C92,3,4,1) -> 0.004909573044
A93: 1906-01-04T20:00:00 | B93: 9.2875 | C93: 64.875 | D93: 100338.75 | E93: 0 | F93: 0 | G93: 0 | H93: =psych(D93,B93,0.01*C93,3,4,1) -> 0.004743408217
A94: 1906-01-04T21:00:00 | B94: 8.3625 | C94: 69.125 | D94: 100375 | E94: 1.3125 | F94: 31.25 | G94: 0 | H94: =psych(D94,B94,0.01*C94,3,4,1) -> 0.004745965258
A95: 1906-01-04T22:00:00 | B95: 8.1 | C95: 72.875 | D95: 100408.75 | E95: 1.4125 | F95: 56.25 | G95: 0 | H95: =psych(D95,B95,0.01*C95,3,4,1) -> 0.004914644835
A96: 1906-01-04T23:00:00 | B96: 8.35 | C96: 73.375 | D96: 100463.75 | E96: 1.6875 | F96: 47.5 | G96: 0 | H96: =psych(D96,B96,0.01*C96,3,4,1) -> 0.00503133086
A97: 1906-01-04 | B97: 8.8125 | C97: 73 | D97: 100446.25 | E97: 1.4125 | F97: 65 | G97: 0 | H97: =psych(D97,B97,0.01*C97,3,4,1) -> 0.00516699477
A98: 1906-01-05T01:00:00 | B98: 9 | C98: 71.75 | D98: 100420 | E98: 1.6875 | F98: 61.25 | G98: 0 | H98: =psych(D98,B98,0.01*C98,3,4,1) -> 0.005144444929
A99: 1906-01-05T02:00:00 | B99: 8.4375 | C99: 69.125 | D99: 100420 | E99: 1.725 | F99: 62.5 | G99: 0 | H99: =psych(D99,B99,0.01*C99,3,4,1) -> 0.004768213237
A100: 1906-01-05T03:00:00 | B100: 7.4125 | C100: 71.125 | D100: 100420 | E100: 1.875 | F100: 57.5 | G100: 0 | H100: =psych(D100,B100,0.01*C100,3,4,1) -> 0.004573878585
A101: 1906-01-05T04:00:00 | B101: 7.6875 | C101: 68 | D101: 100420 | E101: 0.7875 | F101: 18.75 | G101: 0 | H101: =psych(D101,B101,0.01*C101,3,4,1) -> 0.004455012389
A102: 1906-01-05T05:00:00 | B102: 7.725 | C102: 65 | D102: 100401.25 | E102: 0 | F102: 0 | G102: 0 | H102: =psych(D102,B102,0.01*C102,3,4,1) -> 0.004268907604
A103: 1906-01-05T06:00:00 | B103: 7.5 | C103: 65 | D103: 100365 | E103: 0.625 | F103: 43.75 | G103: 0 | H103: =psych(D103,B103,0.01*C103,3,4,1) -> 0.004204904552
A104: 1906-01-05T07:00:00 | B104: 8.25 | C104: 56.25 | D104: 100375 | E104: 1 | F104: 76.25 | G104: 0 | H104: =psych(D104,B104,0.01*C104,3,4,1) -> 0.003826983859
A105: 1906-01-05T08:00:00 | B105: 8.7 | C105: 51 | D105: 100471.25 | E105: 0.375 | F105: 30 | G105: 0 | H105: =psych(D105,B105,0.01*C105,3,4,1) -> 0.003572444926
A106: 1906-01-05T09:00:00 | B106: 9.825 | C106: 57.25 | D106: 100545 | E106: 0 | F106: 0 | G106: 0 | H106: =psych(D106,B106,0.01*C106,3,4,1) -> 0.004328168999
A107: 1906-01-05T10:00:00 | B107: 12.6875 | C107: 57.25 | D107: 100578.75 | E107: 0 | F107: 0 | G107: 0 | H107: =psych(D107,B107,0.01*C107,3,4,1) -> 0.005239083991
A108: 1906-01-05T11:00:00 | B108: 14.375 | C108: 53.75 | D108: 100590 | E108: 0.3125 | F108: 175 | G108: 0 | H108: =psych(D108,B108,0.01*C108,3,4,1) -> 0.005492023989
A109: 1906-01-05T12:00:00 | B109: 16.1 | C109: 49.875 | D109: 100527.5 | E109: 0.1875 | F109: 105 | G109: 0 | H109: =psych(D109,B109,0.01*C109,3,4,1) -> 0.005699131209
A110: 1906-01-05T13:00:00 | B110: 17 | C110: 45.5 | D110: 100427.5 | E110: 0.9375 | F110: 175 | G110: 0 | H110: =psych(D110,B110,0.01*C110,3,4,1) -> 0.005509440072
A111: 1906-01-05T14:00:00 | B111: 17.6875 | C111: 42.125 | D111: 100346.25 | E111: 1.875 | F111: 280 | G111: 0 | H111: =psych(D111,B111,0.01*C111,3,4,1) -> 0.005330201212
A112: 1906-01-05T15:00:00 | B112: 17.4125 | C112: 42.875 | D112: 100320 | E112: 2.1 | F112: 261.25 | G112: 0 | H112: =psych(D112,B112,0.01*C112,3,4,1) -> 0.005333146788
A113: 1906-01-05T16:00:00 | B113: 16.25 | C113: 45.25 | D113: 100320 | E113: 1.725 | F113: 256.25 | G113: 0 | H113: =psych(D113,B113,0.01*C113,3,4,1) -> 0.005227235902
A114: 1906-01-05T17:00:00 | B114: 14.675 | C114: 50.375 | D114: 100338.75 | E114: 1.875 | F114: 285 | G114: 0 | H114: =psych(D114,B114,0.01*C114,3,4,1) -> 0.005259157789
A115: 1906-01-05T18:00:00 | B115: 13.25 | C115: 55.5 | D115: 100375 | E115: 1.4125 | F115: 300 | G115: 0 | H115: =psych(D115,B115,0.01*C115,3,4,1) -> 0.005280421793
A116: 1906-01-05T19:00:00 | B116: 12.1125 | C116: 60.75 | D116: 100408.75 | E116: 0.6875 | F116: 318.75 | G116: 0 | H116: =psych(D116,B116,0.01*C116,3,4,1) -> 0.005363292877
A117: 1906-01-05T20:00:00 | B117: 11.7 | C117: 64.875 | D117: 100420 | E117: 0.1875 | F117: 123.75 | G117: 0 | H117: =psych(D117,B117,0.01*C117,3,4,1) -> 0.005574913468
A118: 1906-01-05T21:00:00 | B118: 10.5125 | C118: 69.125 | D118: 100445 | E118: 0 | F118: 0 | G118: 0 | H118: =psych(D118,B118,0.01*C118,3,4,1) -> 0.005487527962
A119: 1906-01-05T22:00:00 | B119: 10.2375 | C119: 69.125 | D119: 100460 | E119: 0.9375 | F119: 6.25 | G119: 0 | H119: =psych(D119,B119,0.01*C119,3,4,1) -> 0.005385967076
A120: 1906-01-05T23:00:00 | B120: 10.625 | C120: 71.75 | D120: 100460 | E120: 1.1875 | F120: 60 | G120: 0 | H120: =psych(D120,B120,0.01*C120,3,4,1) -> 0.005740268586
A121: 1906-01-05 | B121: 10.3875 | C121: 74 | D121: 100391.25 | E121: 0.375 | F121: 33.75 | G121: 0 | H121: =psych(D121,B121,0.01*C121,3,4,1) -> 0.005832033474
A122: 1906-01-06T01:00:00 | B122: 9.7625 | C122: 72.125 | D122: 100350 | E122: 0.9375 | F122: 37.5 | G122: 0 | H122: =psych(D122,B122,0.01*C122,3,4,1) -> 0.005450212393
A123: 1906-01-06T02:00:00 | B123: 9.4375 | C123: 69.125 | D123: 100331.25 | E123: 1.1875 | F123: 72.5 | G123: 0 | H123: =psych(D123,B123,0.01*C123,3,4,1) -> 0.005108821335
A124: 1906-01-06T03:00:00 | B124: 9.7125 | C124: 68.625 | D124: 100301.25 | E124: 1 | F124: 86.25 | G124: 0 | H124: =psych(D124,B124,0.01*C124,3,4,1) -> 0.005168542231
A125: 1906-01-06T04:00:00 | B125: 9.9 | C125: 62.75 | D125: 100265 | E125: 1 | F125: 52.5 | G125: 0 | H125: =psych(D125,B125,0.01*C125,3,4,1) -> 0.004784699965
A126: 1906-01-06T05:00:00 | B126: 9.2125 | C126: 63.375 | D126: 100231.25 | E126: 1 | F126: 61.25 | G126: 0 | H126: =psych(D126,B126,0.01*C126,3,4,1) -> 0.004614363716
A127: 1906-01-06T06:00:00 | B127: 9.4875 | C127: 61.625 | D127: 100220 | E127: 1 | F127: 55 | G127: 0 | H127: =psych(D127,B127,0.01*C127,3,4,1) -> 0.004571016815
A128: 1906-01-06T07:00:00 | B128: 9.5875 | C128: 61.5 | D128: 100238.75 | E128: 1.3125 | F128: 71.25 | G128: 0 | H128: =psych(D128,B128,0.01*C128,3,4,1) -> 0.004591817842
A129: 1906-01-06T08:00:00 | B129: 9.7125 | C129: 64.875 | D129: 100275 | E129: 0.5625 | F129: 33.75 | G129: 0 | H129: =psych(D129,B129,0.01*C129,3,4,1) -> 0.004885179058
A130: 1906-01-06T09:00:00 | B130: 11.025 | C130: 64.125 | D130: 100308.75 | E130: 0 | F130: 0 | G130: 0 | H130: =psych(D130,B130,0.01*C130,3,4,1) -> 0.005272677315
A131: 1906-01-06T10:00:00 | B131: 13.5125 | C131: 66.75 | D131: 100320 | E131: 0 | F131: 0 | G131: 0 | H131: =psych(D131,B131,0.01*C131,3,4,1) -> 0.006476319372
A132: 1906-01-06T11:00:00 | B132: 15.2875 | C132: 57.75 | D132: 100257.5 | E132: 0 | F132: 0 | G132: 0 | H132: =psych(D132,B132,0.01*C132,3,4,1) -> 0.006287096185
A133: 1906-01-06T12:00:00 | B133: 17.5125 | C133: 46 | D133: 100176.25 | E133: 0 | F133: 0 | G133: 0 | H133: =psych(D133,B133,0.01*C133,3,4,1) -> 0.005770404636
A134: 1906-01-06T13:00:00 | B134: 18.9125 | C134: 43 | D134: 100106.25 | E134: 1.9375 | F134: 181.25 | G134: 0 | H134: =psych(D134,B134,0.01*C134,3,4,1) -> 0.005895151835
A135: 1906-01-06T14:00:00 | B135: 19.1 | C135: 42.375 | D135: 100042.5 | E135: 2.475 | F135: 283.75 | G135: 0 | H135: =psych(D135,B135,0.01*C135,3,4,1) -> 0.005881478498
A136: 1906-01-06T15:00:00 | B136: 18.7875 | C136: 40.75 | D136: 100020 | E136: 3.35 | F136: 273.75 | G136: 0 | H136: =psych(D136,B136,0.01*C136,3,4,1) -> 0.005544895223
A137: 1906-01-06T16:00:00 | B137: 17.1625 | C137: 48.125 | D137: 100038.75 | E137: 4.1 | F137: 276.25 | G137: 0 | H137: =psych(D137,B137,0.01*C137,3,4,1) -> 0.005914295775
A138: 1906-01-06T17:00:00 | B138: 14.8 | C138: 57.375 | D138: 100068.75 | E138: 2.85 | F138: 280 | G138: 0 | H138: =psych(D138,B138,0.01*C138,3,4,1) -> 0.006062522514
A139: 1906-01-06T18:00:00 | B139: 12.9 | C139: 66.875 | D139: 100105 | E139: 1.4125 | F139: 280 | G139: 0 | H139: =psych(D139,B139,0.01*C139,3,4,1) -> 0.006245077153
A140: 1906-01-06T19:00:00 | B140: 11.6125 | C140: 71 | D140: 100138.75 | E140: 1.6875 | F140: 142.5 | G140: 0 | H140: =psych(D140,B140,0.01*C140,3,4,1) -> 0.006088066815
A141: 1906-01-06T20:00:00 | B141: 10.3875 | C141: 71 | D141: 100131.25 | E141: 2.1 | F141: 103.75 | G141: 0 | H141: =psych(D141,B141,0.01*C141,3,4,1) -> 0.005608128358
A142: 1906-01-06T21:00:00 | B142: 9.9 | C142: 72.875 | D142: 100138.75 | E142: 2.1 | F142: 98.75 | G142: 0 | H142: =psych(D142,B142,0.01*C142,3,4,1) -> 0.005570716284
A143: 1906-01-06T22:00:00 | B143: 9.9 | C143: 74 | D143: 100150 | E143: 1.725 | F143: 67.5 | G143: 0 | H143: =psych(D143,B143,0.01*C143,3,4,1) -> 0.005656854551
A144: 1906-01-06T23:00:00 | B144: 9.775 | C144: 74 | D144: 100106.25 | E144: 1.5 | F144: 53.75 | G144: 0 | H144: =psych(D144,B144,0.01*C144,3,4,1) -> 0.005611663618
A145: 1906-01-06 | B145: 9.575 | C145: 75.875 | D145: 100061.25 | E145: 1.875 | F145: 112.5 | G145: 1.5 | H145: =psych(D145,B145,0.01*C145,3,4,1) -> 0.00568024134
A146: 1906-01-07T01:00:00 | B146: 9.5 | C146: 78.875 | D146: 100050 | E146: 1.725 | F146: 137.5 | G146: 1.5 | H146: =psych(D146,B146,0.01*C146,3,4,1) -> 0.005877633343
A147: 1906-01-07T02:00:00 | B147: 9.75 | C147: 80 | D147: 100031.25 | E147: 1.1875 | F147: 123.75 | G147: 1.5 | H147: =psych(D147,B147,0.01*C147,3,4,1) -> 0.00606541425
A148: 1906-01-07T03:00:00 | B148: 10.3375 | C148: 81.875 | D148: 99976.25 | E148: 2.3125 | F148: 120 | G148: 1.5 | H148: =psych(D148,B148,0.01*C148,3,4,1) -> 0.006464354164
A149: 1906-01-07T04:00:00 | B149: 10.6 | C149: 84.875 | D149: 99950 | E149: 3.1 | F149: 120 | G149: 1.5 | H149: =psych(D149,B149,0.01*C149,3,4,1) -> 0.006825377412
A150: 1906-01-07T05:00:00 | B150: 10.6 | C150: 86 | D150: 99887.5 | E150: 3.1 | F150: 145 | G150: 0 | H150: =psych(D150,B150,0.01*C150,3,4,1) -> 0.006921228471
A151: 1906-01-07T06:00:00 | B151: 10.6 | C151: 86 | D151: 99825 | E151: 3.4125 | F151: 160 | G151: 1.5 | H151: =psych(D151,B151,0.01*C151,3,4,1) -> 0.006925610073
A152: 1906-01-07T07:00:00 | B152: 10.975 | C152: 87.875 | D152: 99853.75 | E152: 3.2875 | F152: 191.25 | G152: 1.5 | H152: =psych(D152,B152,0.01*C152,3,4,1) -> 0.007257251185
A153: 1906-01-07T08:00:00 | B153: 11.2 | C153: 90.875 | D153: 99880 | E153: 2.7875 | F153: 153.75 | G153: 1.5 | H153: =psych(D153,B153,0.01*C153,3,4,1) -> 0.007620407183
A154: 1906-01-07T09:00:00 | B154: 11.575 | C154: 92.625 | D154: 99898.75 | E154: 2.2875 | F154: 107.5 | G154: 0 | H154: =psych(D154,B154,0.01*C154,3,4,1) -> 0.00796544799
A155: 1906-01-07T10:00:00 | B155: 12.2375 | C155: 93 | D155: 99978.75 | E155: 2.1 | F155: 200 | G155: 1.5 | H155: =psych(D155,B155,0.01*C155,3,4,1) -> 0.008353569936
A156: 1906-01-07T11:00:00 | B156: 12.5 | C156: 93 | D156: 100020 | E156: 2.725 | F156: 266.25 | G156: 0 | H156: =psych(D156,B156,0.01*C156,3,4,1) -> 0.00849743528
A157: 1906-01-07T12:00:00 | B157: 13.25 | C157: 79.875 | D157: 99932.5 | E157: 5.975 | F157: 257.5 | G157: 0 | H157: =psych(D157,B157,0.01*C157,3,4,1) -> 0.007662160118
A158: 1906-01-07T13:00:00 | B158: 14.075 | C158: 61.375 | D158: 99861.25 | E158: 7.7 | F158: 256.25 | G158: 0 | H158: =psych(D158,B158,0.01*C158,3,4,1) -> 0.006202295439
A159: 1906-01-07T14:00:00 | B159: 14.7375 | C159: 53.75 | D159: 99825 | E159: 5.45 | F159: 272.5 | G159: 0 | H159: =psych(D159,B159,0.01*C159,3,4,1) -> 0.005666870991
A160: 1906-01-07T15:00:00 | B160: 14.5625 | C160: 53 | D160: 99835 | E160: 2.85 | F160: 186.25 | G160: 0 | H160: =psych(D160,B160,0.01*C160,3,4,1) -> 0.005523185411
A161: 1906-01-07T16:00:00 | B161: 13.925 | C161: 51.75 | D161: 99825 | E161: 2.725 | F161: 123.75 | G161: 0 | H161: =psych(D161,B161,0.01*C161,3,4,1) -> 0.005172348624
A162: 1906-01-07T17:00:00 | B162: 12.5125 | C162: 56 | D162: 99835 | E162: 2.475 | F162: 120 | G162: 0 | H162: =psych(D162,B162,0.01*C162,3,4,1) -> 0.005102803797
A163: 1906-01-07T18:00:00 | B163: 11.05 | C163: 58.375 | D163: 99825 | E163: 1.725 | F163: 120 | G163: 0 | H163: =psych(D163,B163,0.01*C163,3,4,1) -> 0.004827735713
A164: 1906-01-07T19:00:00 | B164: 9.0375 | C164: 61.125 | D164: 99835 | E164: 1.875 | F164: 76.25 | G164: 0 | H164: =psych(D164,B164,0.01*C164,3,4,1) -> 0.004414349436
A165: 1906-01-07T20:00:00 | B165: 6.85 | C165: 67.375 | D165: 100062.5 | E165: 2.1 | F165: 75 | G165: 0 | H165: =psych(D165,B165,0.01*C165,3,4,1) -> 0.004181098522
A166: 1906-01-07T21:00:00 | B166: 6.5375 | C166: 70 | D166: 100208.75 | E166: 2.725 | F166: 90 | G166: 0 | H166: =psych(D166,B166,0.01*C166,3,4,1) -> 0.004245838293
A167: 1906-01-07T22:00:00 | B167: 6.05 | C167: 70 | D167: 100220 | E167: 3.1 | F167: 90 | G167: 0 | H167: =psych(D167,B167,0.01*C167,3,4,1) -> 0.004103966992
A168: 1906-01-07T23:00:00 | B168: 5.0375 | C168: 64.375 | D168: 100201.25 | E168: 2.1 | F168: 83.75 | G168: 0 | H168: =psych(D168,B168,0.01*C168,3,4,1) -> 0.003515301753
A169: 1906-01-07 | B169: 4.575 | C169: 57.25 | D169: 100190 | E169: 2.5 | F169: 105 | G169: 0 | H169: =psych(D169,B169,0.01*C169,3,4,1) -> 0.003024811366
A170: 1906-01-08T01:00:00 | B170: 4.75 | C170: 55 | D170: 100208.75 | E170: 1.7875 | F170: 113.75 | G170: 0 | H170: =psych(D170,B170,0.01*C170,3,4,1) -> 0.002940768871
A171: 1906-01-08T02:00:00 | B171: 5.15 | C171: 60.625 | D171: 100238.75 | E171: 1 | F171: 210 | G171: 0 | H171: =psych(D171,B171,0.01*C171,3,4,1) -> 0.003334370839
A172: 1906-01-08T03:00:00 | B172: 5.3 | C172: 57.125 | D172: 100381.25 | E172: 1.6875 | F172: 201.25 | G172: 0 | H172: =psych(D172,B172,0.01*C172,3,4,1) -> 0.003169508868
A173: 1906-01-08T04:00:00 | B173: 4.425 | C173: 59.25 | D173: 100478.75 | E173: 2.1 | F173: 110 | G173: 0 | H173: =psych(D173,B173,0.01*C173,3,4,1) -> 0.003089187503
A174: 1906-01-08T05:00:00 | B174: 3.4625 | C174: 54.875 | D174: 100508.75 | E174: 2.725 | F174: 80 | G174: 0 | H174: =psych(D174,B174,0.01*C174,3,4,1) -> 0.00267120027
A175: 1906-01-08T06:00:00 | B175: 2.325 | C175: 51.875 | D175: 100607.5 | E175: 2.475 | F175: 86.25 | G175: 0 | H175: =psych(D175,B175,0.01*C175,3,4,1) -> 0.002325816019
A176: 1906-01-08T07:00:00 | B176: 2.3 | C176: 51.75 | D176: 100660 | E176: 2.725 | F176: 90 | G176: 0 | H176: =psych(D176,B176,0.01*C176,3,4,1) -> 0.002314831864
A177: 1906-01-08T08:00:00 | B177: 3.9125 | C177: 53.5 | D177: 100722.5 | E177: 1.7875 | F177: 90 | G177: 0 | H177: =psych(D177,B177,0.01*C177,3,4,1) -> 0.002682543715
A178: 1906-01-08T09:00:00 | B178: 7.2625 | C178: 55.625 | D178: 100785 | E178: 1 | F178: 115 | G178: 0 | H178: =psych(D178,B178,0.01*C178,3,4,1) -> 0.003521829433
A179: 1906-01-08T10:00:00 | B179: 8.8 | C179: 56 | D179: 100837.5 | E179: 1.6875 | F179: 161.25 | G179: 0 | H179: =psych(D179,B179,0.01*C179,3,4,1) -> 0.003937270369
A180: 1906-01-08T11:00:00 | B180: 11.3625 | C180: 51.625 | D180: 100860 | E180: 2.4125 | F180: 217.5 | G180: 0 | H180: =psych(D180,B180,0.01*C180,3,4,1) -> 0.004310669453
A181: 1906-01-08T12:00:00 | B181: 13.3375 | C181: 47.75 | D181: 100841.25 | E181: 2.6 | F181: 265 | G181: 0 | H181: =psych(D181,B181,0.01*C181,3,4,1) -> 0.004542611775
A182: 1906-01-08T13:00:00 | B182: 14.0375 | C182: 46.375 | D182: 100786.25 | E182: 1.9125 | F182: 292.5 | G182: 0 | H182: =psych(D182,B182,0.01*C182,3,4,1) -> 0.004620499778
A183: 1906-01-08T14:00:00 | B183: 15.1125 | C183: 41.625 | D183: 100741.25 | E183: 3.125 | F183: 275 | G183: 0 | H183: =psych(D183,B183,0.01*C183,3,4,1) -> 0.004446318246
A184: 1906-01-08T15:00:00 | B184: 15.6 | C184: 36.5 | D184: 100730 | E184: 3.7875 | F184: 272.5 | G184: 0 | H184: =psych(D184,B184,0.01*C184,3,4,1) -> 0.00402058863
A185: 1906-01-08T16:00:00 | B185: 15.6 | C185: 33.125 | D185: 100705 | E185: 3.2875 | F185: 273.75 | G185: 0 | H185: =psych(D185,B185,0.01*C185,3,4,1) -> 0.003647552807
A186: 1906-01-08T17:00:00 | B186: 13.5375 | C186: 37.625 | D186: 100715 | E186: 2.475 | F186: 270 | G186: 0 | H186: =psych(D186,B186,0.01*C186,3,4,1) -> 0.003625599185
A187: 1906-01-08T18:00:00 | B187: 10.9875 | C187: 46.625 | D187: 100773.75 | E187: 2.1 | F187: 157.5 | G187: 0 | H187: =psych(D187,B187,0.01*C187,3,4,1) -> 0.003797598938
A188: 1906-01-08T19:00:00 | B188: 8.45 | C188: 54.375 | D188: 100800 | E188: 0.7875 | F188: 33.75 | G188: 0 | H188: =psych(D188,B188,0.01*C188,3,4,1) -> 0.00373362115
A189: 1906-01-08T20:00:00 | B189: 6.0875 | C189: 61.375 | D189: 100818.75 | E189: 1.625 | F189: 31.25 | G189: 0 | H189: =psych(D189,B189,0.01*C189,3,4,1) -> 0.00358323359
A190: 1906-01-08T21:00:00 | B190: 5.3 | C190: 64 | D190: 100848.75 | E190: 2.2875 | F190: 50 | G190: 0 | H190: =psych(D190,B190,0.01*C190,3,4,1) -> 0.003536573912
A191: 1906-01-08T22:00:00 | B191: 4.925 | C191: 62.125 | D191: 100885 | E191: 2.1 | F191: 50 | G191: 0 | H191: =psych(D191,B191,0.01*C191,3,4,1) -> 0.003342181798
A192: 1906-01-08T23:00:00 | B192: 4.325 | C192: 59.125 | D192: 100900 | E192: 2.1 | F192: 50 | G192: 0 | H192: =psych(D192,B192,0.01*C192,3,4,1) -> 0.003048157139
A193: 1906-01-08 | B193: 3.85 | C193: 55.5 | D193: 100900 | E193: 2.4125 | F193: 50 | G193: 0 | H193: =psych(D193,B193,0.01*C193,3,4,1) -> 0.00276610799
A194: 1906-01-09T01:00:00 | B194: 3.7 | C194: 52.75 | D194: 100875 | E194: 2.2875 | F194: 50 | G194: 0 | H194: =psych(D194,B194,0.01*C194,3,4,1) -> 0.00260137533
A195: 1906-01-09T02:00:00 | B195: 4.0125 | C195: 53.875 | D195: 100860 | E195: 1.725 | F195: 75 | G195: 0 | H195: =psych(D195,B195,0.01*C195,3,4,1) -> 0.002716853142
A196: 1906-01-09T03:00:00 | B196: 4.6375 | C196: 53.75 | D196: 100860 | E196: 2.1875 | F196: 77.5 | G196: 0 | H196: =psych(D196,B196,0.01*C196,3,4,1) -> 0.002832514548
A197: 1906-01-09T04:00:00 | B197: 4.9 | C197: 53 | D197: 100822.5 | E197: 1.9125 | F197: 88.75 | G197: 0 | H197: =psych(D197,B197,0.01*C197,3,4,1) -> 0.002845810915
A198: 1906-01-09T05:00:00 | B198: 4.4625 | C198: 53 | D198: 100800 | E198: 1.875 | F198: 81.25 | G198: 0 | H198: =psych(D198,B198,0.01*C198,3,4,1) -> 0.002760310115
A199: 1906-01-09T06:00:00 | B199: 4.6375 | C199: 48.625 | D199: 100800 | E199: 1.4125 | F199: 57.5 | G199: 0 | H199: =psych(D199,B199,0.01*C199,3,4,1) -> 0.002562856278
A200: 1906-01-09T07:00:00 | B200: 4.9 | C200: 46 | D200: 100800 | E200: 1 | F200: 50 | G200: 0 | H200: =psych(D200,B200,0.01*C200,3,4,1) -> 0.002469010592
... 4300 more rows

Sheet CZ9
A1: Date | B1: TdbºC | C1: RH% | D1: P Pa | E1: Wind m/s | F1: Windº | G1: Rain mm/hr | H1: W
A2: 1906-01-01T01:00:00 | B2: 11.2625 | C2: 33.625 | D2: 99437.5 | E2: 1.6 | F2: 306.75 | G2: 0 | H2: =psych(D2,B2,0.01*C2,3,4,1) -> 0.002822297991
A3: 1906-01-01T02:00:00 | B3: 10.6625 | C3: 27.5 | D3: 99560 | E3: 1.3125 | F3: 273.125 | G3: 0 | H3: =psych(D3,B3,0.01*C3,3,4,1) -> 0.002213041874
A4: 1906-01-01T03:00:00 | B4: 9.475 | C4: 32.125 | D4: 99486.25 | E4: 1.1875 | F4: 261.75 | G4: 0 | H4: =psych(D4,B4,0.01*C4,3,4,1) -> 0.002390070849
A5: 1906-01-01T04:00:00 | B5: 8.725 | C5: 34 | D5: 99435 | E5: 1 | F5: 213.75 | G5: 0 | H5: =psych(D5,B5,0.01*C5,3,4,1) -> 0.002406030944
A6: 1906-01-01T05:00:00 | B6: 8.5 | C6: 34 | D6: 99401.25 | E6: 1 | F6: 250.625 | G6: 0 | H6: =psych(D6,B6,0.01*C6,3,4,1) -> 0.002370303654
A7: 1906-01-01T06:00:00 | B7: 8.25 | C7: 35.875 | D7: 99408.75 | E7: 1.3125 | F7: 306.75 | G7: 0 | H7: =psych(D7,B7,0.01*C7,3,4,1) -> 0.002459102574
A8: 1906-01-01T07:00:00 | B8: 7.725 | C8: 40.125 | D8: 99420 | E8: 2.1875 | F8: 132.5 | G8: 0 | H8: =psych(D8,B8,0.01*C8,3,4,1) -> 0.002654377614
A9: 1906-01-01T08:00:00 | B9: 9.125 | C9: 36.375 | D9: 99445 | E9: 1.6 | F9: 219.875 | G9: 0 | H9: =psych(D9,B9,0.01*C9,3,4,1) -> 0.002645374967
A10: 1906-01-01T09:00:00 | B10: 13.35 | C10: 30.5 | D10: 99460 | E10: 1 | F10: 267.375 | G10: 0 | H10: =psych(D10,B10,0.01*C10,3,4,1) -> 0.002936712597
A11: 1906-01-01T10:00:00 | B11: 17.175 | C11: 25.25 | D11: 99478.75 | E11: 1.3125 | F11: 183.125 | G11: 0 | H11: =psych(D11,B11,0.01*C11,3,4,1) -> 0.00310907164
A12: 1906-01-01T11:00:00 | B12: 20.55 | C12: 19.25 | D12: 99446.25 | E12: 1.5 | F12: 158 | G12: 0 | H12: =psych(D12,B12,0.01*C12,3,4,1) -> 0.002926956048
A13: 1906-01-01T12:00:00 | B13: 23.15 | C13: 13.875 | D13: 99357.5 | E13: 1.875 | F13: 171.75 | G13: 0 | H13: =psych(D13,B13,0.01*C13,3,4,1) -> 0.002473134924
A14: 1906-01-01T13:00:00 | B14: 24.9 | C14: 11.375 | D14: 99257.5 | E14: 2.4125 | F14: 166.25 | G14: 0 | H14: =psych(D14,B14,0.01*C14,3,4,1) -> 0.002253705602
A15: 1906-01-01T14:00:00 | B15: 26.4375 | C15: 9.75 | D15: 99176.25 | E15: 2.2875 | F15: 143.625 | G15: 0 | H15: =psych(D15,B15,0.01*C15,3,4,1) -> 0.002117463421
A16: 1906-01-01T15:00:00 | B16: 26.0625 | C16: 11.5 | D16: 99131.25 | E16: 3.0375 | F16: 163.125 | G16: 0 | H16: =psych(D16,B16,0.01*C16,3,4,1) -> 0.002445215631
A17: 1906-01-01T16:00:00 | B17: 24.1875 | C17: 14.875 | D17: 99120 | E17: 3.6 | F17: 180 | G17: 0 | H17: =psych(D17,B17,0.01*C17,3,4,1) -> 0.002830707685
A18: 1906-01-01T17:00:00 | B18: 21.4625 | C18: 17.875 | D18: 99101.25 | E18: 3.6 | F18: 166.25 | G18: 0 | H18: =psych(D18,B18,0.01*C18,3,4,1) -> 0.002884494152
A19: 1906-01-01T18:00:00 | B19: 19.05 | C19: 22.125 | D19: 99090 | E19: 2.6625 | F19: 87.375 | G19: 0 | H19: =psych(D19,B19,0.01*C19,3,4,1) -> 0.003076916811
A20: 1906-01-01T19:00:00 | B20: 15.7375 | C20: 33.375 | D20: 99108.75 | E20: 2.4125 | F20: 228.125 | G20: 0 | H20: =psych(D20,B20,0.01*C20,3,4,1) -> 0.00376803892
A21: 1906-01-01T20:00:00 | B21: 13.5125 | C21: 35.25 | D21: 99138.75 | E21: 1.6 | F21: 126.75 | G21: 0 | H21: =psych(D21,B21,0.01*C21,3,4,1) -> 0.00344413154
A22: 1906-01-01T21:00:00 | B22: 12.225 | C22: 38 | D22: 99150 | E22: 1.3125 | F22: 56.25 | G22: 0 | H22: =psych(D22,B22,0.01*C22,3,4,1) -> 0.00341202588
A23: 1906-01-01T22:00:00 | B23: 11.95 | C23: 48.5 | D23: 99175 | E23: 2.1875 | F23: 90 | G23: 0 | H23: =psych(D23,B23,0.01*C23,3,4,1) -> 0.004281481844
A24: 1906-01-01T23:00:00 | B24: 11.975 | C24: 59.25 | D24: 99165 | E24: 2.2875 | F24: 33.75 | G24: 0 | H24: =psych(D24,B24,0.01*C24,3,4,1) -> 0.00524771496
A25: 1906-01-01 | B25: 11.15 | C25: 53.625 | D25: 99150 | E25: 2.4125 | F25: 183.125 | G25: 0 | H25: =psych(D25,B25,0.01*C25,3,4,1) -> 0.004492442327
A26: 1906-01-02T01:00:00 | B26: 9.825 | C26: 51.75 | D26: 99131.25 | E26: 2.6 | F26: 293 | G26: 0 | H26: =psych(D26,B26,0.01*C26,3,4,1) -> 0.003965862621
A27: 1906-01-02T02:00:00 | B27: 8.8 | C27: 56.5 | D27: 99138.75 | E27: 0.975 | F27: 109.875 | G27: 0 | H27: =psych(D27,B27,0.01*C27,3,4,1) -> 0.004041163025
A28: 1906-01-02T03:00:00 | B28: 8.5 | C28: 64.25 | D28: 99112.5 | E28: 1.9375 | F28: 70.625 | G28: 0 | H28: =psych(D28,B28,0.01*C28,3,4,1) -> 0.004507604161
A29: 1906-01-02T04:00:00 | B29: 8.5 | C29: 77.375 | D29: 99090 | E29: 2.475 | F29: 56.75 | G29: 0 | H29: =psych(D29,B29,0.01*C29,3,4,1) -> 0.005437711921
A30: 1906-01-02T05:00:00 | B30: 8.875 | C30: 83 | D30: 99065 | E30: 2.725 | F30: 205.5 | G30: 0 | H30: =psych(D30,B30,0.01*C30,3,4,1) -> 0.00598978978
A31: 1906-01-02T06:00:00 | B31: 8.725 | C31: 91.75 | D31: 99075 | E31: 1.7875 | F31: 258.75 | G31: 0 | H31: =psych(D31,B31,0.01*C31,3,4,1) -> 0.006559686557
A32: 1906-01-02T07:00:00 | B32: 7.4375 | C32: 98.875 | D32: 99108.75 | E32: 0.375 | F32: 84.375 | G32: 0 | H32: =psych(D32,B32,0.01*C32,3,4,1) -> 0.006473126634
A33: 1906-01-02T08:00:00 | B33: 7.1125 | C33: 98.125 | D33: 99138.75 | E33: 2.25 | F33: 70.625 | G33: 0 | H33: =psych(D33,B33,0.01*C33,3,4,1) -> 0.006278797961
A34: 1906-01-02T09:00:00 | B34: 9.1125 | C34: 94.5 | D34: 99175 | E34: 3.6 | F34: 239.25 | G34: 0 | H34: =psych(D34,B34,0.01*C34,3,4,1) -> 0.006932681305
A35: 1906-01-02T10:00:00 | B35: 16.3875 | C35: 56.75 | D35: 99190 | E35: 3.6 | F35: 315 | G35: 0 | H35: =psych(D35,B35,0.01*C35,3,4,1) -> 0.006704510233
A36: 1906-01-02T11:00:00 | B36: 20.475 | C36: 32.5 | D36: 99102.5 | E36: 6.7875 | F36: 329.375 | G36: 0 | H36: =psych(D36,B36,0.01*C36,3,4,1) -> 0.00495185502
A37: 1906-01-02T12:00:00 | B37: 21.0125 | C37: 29.125 | D37: 99031.25 | E37: 8.3875 | F37: 338 | G37: 0 | H37: =psych(D37,B37,0.01*C37,3,4,1) -> 0.004587621314
A38: 1906-01-02T13:00:00 | B38: 21.2 | C38: 28.625 | D38: 98976.25 | E38: 7.8875 | F38: 338 | G38: 0 | H38: =psych(D38,B38,0.01*C38,3,4,1) -> 0.004563445951
A39: 1906-01-02T14:00:00 | B39: 21.6375 | C39: 27.75 | D39: 98968.75 | E39: 8.0125 | F39: 338 | G39: 0 | H39: =psych(D39,B39,0.01*C39,3,4,1) -> 0.004544349276
A40: 1906-01-02T15:00:00 | B40: 21.9 | C40: 26.375 | D40: 99023.75 | E40: 8.2 | F40: 126.75 | G40: 0 | H40: =psych(D40,B40,0.01*C40,3,4,1) -> 0.004385468102
A41: 1906-01-02T16:00:00 | B41: 21.15 | C41: 26.625 | D41: 99093.75 | E41: 7.575 | F41: 211.25 | G41: 0 | H41: =psych(D41,B41,0.01*C41,3,4,1) -> 0.00422428919
A42: 1906-01-02T17:00:00 | B42: 21.0125 | C42: 22.625 | D42: 99120 | E42: 6.8875 | F42: 126.75 | G42: 0 | H42: =psych(D42,B42,0.01*C42,3,4,1) -> 0.003554713884
A43: 1906-01-02T18:00:00 | B43: 19.075 | C43: 25 | D43: 99182.5 | E43: 7.325 | F43: 211.25 | G43: 0 | H43: =psych(D43,B43,0.01*C43,3,4,1) -> 0.003481172121
